Workbook

Sheet RESUMO MODULO TOTAL
B1: CONTRATAÇÃO DE SERVIÇOS DE PAVIMENTAÇÃO ASFÁLTICA COM CONCRETO BETUMINOSO USINADO A QUENTE (CBUQ) EM VIAS URBANAS E RURAIS INSERIDAS NA ÁREA DE ATUAÇÃO DA CODEVASF, NO ESTADO DE ALAGOAS - REGIÃO 2
M2: SICRO: | N2: ='SINTÉTICO SICRO'!B2 -> Alagoas - Janeiro/2024
M3: SINAPI: | N3: =RIGHT('INSUMOS SINAPI'!A3,7) -> 03/2024
M4: Data Base do Orçamento | N4: 2024-03-01
B5: =B1 -> CONTRATAÇÃO DE SERVIÇOS DE PAVIMENTAÇÃO ASFÁLTICA COM CONCRETO BETUMINOSO USINADO A QUENTE (CBUQ) EM VIAS URBANAS E RURAIS INSERIDAS NA ÁREA DE ATUAÇÃO DA CODEVASF, NO ESTADO DE ALAGOAS - REGIÃO 2
B6: ITEM | C6: ORIGEM COMPOSIÇÃO | D6: CÓDIGO COMPOSIÇÃO | E6: DISCRIMINAÇÃO DOS SERVIÇOS | I6: BDI % = | J6: =BDI!C17 -> 0.2339 | K6: BDI DIFERENCIADO% = | L6: =BDI!C68 -> 0.15 | M6: R$/m² | N6: =N57/I8 -> 197.9344427
I7: Total de m² | J7: Encargos Sociais: | K7: Horista | L7: Mensalista | M7: PREÇO UNITÁRIO COM BDI | N7: PREÇO TOTAL COM BDI
I8: ='MC MODULO'!G1*'MC MODULO'!C1*'MC MODULO'!C2 -> 238000 | K8: ='ENC. SOCIAIS'!$E$51 -> 115.22 | L8: ='ENC. SOCIAIS'!$F$51 -> 70.31
I9: UND | J9: QTDE. | K9: BDI | L9: PREÇO UNITÁRIO
E10: MOBILIZAÇÃO/DESMOBILIZAÇÃO
B11: 1 | C11: Codevasf | D11: Mob | E11: Mobilização | I11: kmxfrente | J11: =Mob!B66*Mob!H6 -> 1700 | K11: =(M11/L11-1) -> 0.2339 | L11: =Mob!B63 -> 91.24073833 | M11: =Mob!B65 -> 112.581947 | N11: =M11*J11 -> 191389.31 | O11: =N11/$N$57 -> 0.004062742964
B12: 2 | C12: Codevasf | D12: Mob | E12: Desmobilização | I12: kmxfrente | J12: =Mob!B66*Mob!H6 -> 1700 | K12: =(M12/L12-1) -> 0.2339 | L12: =Mob!B63 -> 91.24073833 | M12: =Mob!B65 -> 112.581947 | N12: =M12*J12 -> 191389.31 | O12: =N12/$N$57 -> 0.004062742964
E13: INSTALAÇÃO DE CANTEIRO
B14: 3 | C14: Codevasf | D14: Canteiro | E14: Canteiro de Obras e Almoxarifado | I14: frente | J14: ='MC MODULO'!G1 -> 17 | K14: =(M14/L14-1) -> 0.2339 | L14: =' Canteiro'!F11 -> 18859.92 | M14: =' Canteiro'!F13 -> 23271.25529 | N14: =ROUND(ROUND(J14,2)*ROUND(M14,6),2) -> 395611.34 | O14: =N14/N57 -> 0.008397894263
B15: 4 | C15: SINAPI | D15: 103689 | E15: Fornecimento e instalação de placa de obra com chapa galvanizada e estrutura de madeira. af_03/2022_ps | I15: m² | J15: ='MC MODULO'!H25 -> 272 | K15: =(M15/L15-1) -> 0.2339 | L15: =VLOOKUP(D15,'COMP Sint. Sinapi'!G7:K1048576,5,0) -> 313.3 | M15: =L15*(1+$J$6) -> 386.58087 | N15: =ROUND(ROUND(J15,2)*ROUND(M15,6),2) -> 105150
E16: ADMINISTRAÇÃO LOCAL DA OBRA
B17: 5 | C17: Codevasf | D17: Adm Local | E17: Administração Local da Obra | I17: und | J17: 1 | K17: =(M17/L17-1) -> 0.2339 | L17: ='Adm Local'!J249 -> 1117796.829 | M17: ='Adm Local'!I251 -> 1379249.507 | N17: =ROUND(ROUND(J17,2)*ROUND(M17,6),2) -> 1379249.51 | O17: =N17/N57 -> 0.02927820913
E18: TERRAPLANAGEM
B19: 6 | C19: SICRO | D19: 5502114 | E19: =VLOOKUP(D19,'SINTÉTICO SICRO'!$A$4:$D$1048576,2,0) -> Escavação, carga e transporte de material de 1ª categoria - DMT de 1.000 a 1.200 m - caminho de serviço em leito natural - com escavadeira e caminhão basculante de 14 m³ | I19: m³ | J19: ='MC MODULO'!H37 -> 83300 | K19: =M19/L19-1 -> 0.2339 | L19: =ROUND(IF(C19="CODEVASF",VLOOKUP(D19,'CPU CODEVASF'!E:I,5,FALSE),VLOOKUP(D19,'SINTÉTICO SICRO'!A:D,4,FALSE)),6) -> 7.41 | M19: =ROUND(IF(C19="CODEVASF",VLOOKUP(D19,'CPU CODEVASF'!E:H,4,FALSE),VLOOKUP(D19,'SINTÉTICO SICRO'!A:D,4,FALSE)*(1+$J$6)),6) -> 9.143199 | N19: =ROUND(ROUND(J19,2)*ROUND(M19,6),2) -> 761628.48
B20: 7 | C20: SICRO | D20: 4413942 | E20: =VLOOKUP(D20,'SINTÉTICO SICRO'!$A$4:$D$1048576,2,0) -> Espalhamento de material em bota-fora | I20: m³ | J20: ='MC MODULO'!H44 -> 83300 | K20: 0.2339 | L20: =ROUND(IF(C20="CODEVASF",VLOOKUP(D20,'CPU CODEVASF'!E:I,5,FALSE),VLOOKUP(D20,'SINTÉTICO SICRO'!A:D,4,FALSE)),6) -> 1.78 | M20: =ROUND(IF(C20="CODEVASF",VLOOKUP(D20,'CPU CODEVASF'!E:H,4,FALSE),VLOOKUP(D20,'SINTÉTICO SICRO'!A:D,4,FALSE)*(1+$J$6)),6) -> 2.196342 | N20: 182955.29 | AD20: 1
E21: PAVIMENTAÇÃO
B22: 8 | C22: SICRO | D22: 4011463 | E22: =VLOOKUP(D22,'SINTÉTICO SICRO'!$A$4:$D$1048576,2,0) -> Concreto asfáltico - faixa C - areia e brita comerciais | I22: t | J22: ='MC MODULO'!H51 -> 28560 | K22: =M22/L22-1 -> 0.2339 | L22: =ROUND(IF(C22="CODEVASF",VLOOKUP(D22,'CPU CODEVASF'!E:I,5,FALSE),VLOOKUP(D22,'SINTÉTICO SICRO'!A:D,4,FALSE)),6) -> 196.81 | M22: =ROUND(IF(C22="CODEVASF",VLOOKUP(D22,'CPU CODEVASF'!E:H,4,FALSE),VLOOKUP(D22,'SINTÉTICO SICRO'!A:D,4,FALSE)*(1+$J$6)),6) -> 242.843859 | N22: =ROUND(ROUND(J22,2)*ROUND(M22,6),2) -> 6935620.61
B23: 9 | C23: SICRO | D23: 4011352 | E23: =VLOOKUP(D23,'SINTÉTICO SICRO'!$A$4:$D$1048576,2,0) -> Imprimação com emulsão asfáltica | I23: m² | J23: ='MC MODULO'!H57 -> 238000 | K23: 0.2339 | L23: =ROUND(IF(C23="CODEVASF",VLOOKUP(D23,'CPU CODEVASF'!E:I,5,FALSE),VLOOKUP(D23,'SINTÉTICO SICRO'!A:D,4,FALSE)),6) -> 0.39 | M23: =ROUND(IF(C23="CODEVASF",VLOOKUP(D23,'CPU CODEVASF'!E:H,4,FALSE),VLOOKUP(D23,'SINTÉTICO SICRO'!A:D,4,FALSE)*(1+$J$6)),6) -> 0.481221 | N23: 114530.6
B24: 10 | C24: SICRO | D24: 4011353 | E24: =VLOOKUP(D24,'SINTÉTICO SICRO'!$A$4:$D$1048576,2,0) -> Pintura de ligação | I24: m² | J24: ='MC MODULO'!H63 -> 238000 | K24: 0.2339 | L24: =ROUND(IF(C24="CODEVASF",VLOOKUP(D24,'CPU CODEVASF'!E:I,5,FALSE),VLOOKUP(D24,'SINTÉTICO SICRO'!A:D,4,FALSE)),6) -> 0.27 | M24: =ROUND(IF(C24="CODEVASF",VLOOKUP(D24,'CPU CODEVASF'!E:H,4,FALSE),VLOOKUP(D24,'SINTÉTICO SICRO'!A:D,4,FALSE)*(1+$J$6)),6) -> 0.333153 | N24: 79290.41
B25: 11 | C25: SICRO | D25: 4011268 | E25: =VLOOKUP(D25,'SINTÉTICO SICRO'!$A$4:$D$1048576,2,0) -> Base estabilizada granulometricamente com mistura solo brita (70% - 30%) em usina com material de jazida e brita comercial | I25: m³ | J25: ='MC MODULO'!H68 -> 35700 | K25: 0.2339 | L25: =ROUND(IF(C25="CODEVASF",VLOOKUP(D25,'CPU CODEVASF'!E:I,5,FALSE),VLOOKUP(D25,'SINTÉTICO SICRO'!A:D,4,FALSE)),6) -> 85.12 | M25: =ROUND(IF(C25="CODEVASF",VLOOKUP(D25,'CPU CODEVASF'!E:H,4,FALSE),VLOOKUP(D25,'SINTÉTICO SICRO'!A:D,4,FALSE)*(1+$J$6)),6) -> 105.029568 | N25: 3749555.58
B26: 12 | C26: SICRO | D26: 4011227 | E26: =VLOOKUP(D26,'SINTÉTICO SICRO'!$A$4:$D$1048576,2,0) -> Sub-base de solo estabilizado granulometricamente sem mistura com material de jazida | I26: m³ | J26: ='MC MODULO'!H74 -> 35700 | K26: 0.2339 | L26: =ROUND(IF(C26="CODEVASF",VLOOKUP(D26,'CPU CODEVASF'!E:I,5,FALSE),VLOOKUP(D26,'SINTÉTICO SICRO'!A:D,4,FALSE)),6) -> 10.95 | M26: =ROUND(IF(C26="CODEVASF",VLOOKUP(D26,'CPU CODEVASF'!E:H,4,FALSE),VLOOKUP(D26,'SINTÉTICO SICRO'!A:D,4,FALSE)*(1+$J$6)),6) -> 13.511205 | N26: 482350.02
B27: 13 | C27: SICRO | D27: 4011209 | E27: =VLOOKUP(D27,'SINTÉTICO SICRO'!$A$4:$D$1048576,2,0) -> Regularização do subleito | I27: m² | J27: ='MC MODULO'!H80 -> 238000 | K27: 0.2339 | L27: =ROUND(IF(C27="CODEVASF",VLOOKUP(D27,'CPU CODEVASF'!E:I,5,FALSE),VLOOKUP(D27,'SINTÉTICO SICRO'!A:D,4,FALSE)),6) -> 1.1 | M27: =ROUND(IF(C27="CODEVASF",VLOOKUP(D27,'CPU CODEVASF'!E:H,4,FALSE),VLOOKUP(D27,'SINTÉTICO SICRO'!A:D,4,FALSE)*(1+$J$6)),6) -> 1.35729 | N27: 323035.02
E28: AQUISIÇÃO E TRANSPORTE DO MATERIAL BETUMINOSO
B29: 14 | C29: CODEVASF | D29: CPU-13 | E29: AQUISIÇÃO DE CIMENTO ASFALTICO CAP 50/70 | I29: t | J29: =' CONSUMO DE MAT. B TOTAL'!P13 -> 1805.85 | K29: =M29/L29-1 -> 0.1499999999 | L29: =ROUND(IF(C29="CODEVASF",VLOOKUP(D29,'CPU CODEVASF'!E:I,5,FALSE),VLOOKUP(D29,'SINTÉTICO SICRO'!A:D,4,FALSE)),6) -> 4475.099923 | M29: =ROUND(IF(C29="CODEVASF",VLOOKUP(D29,'CPU CODEVASF'!E:H,4,FALSE),VLOOKUP(D29,'SINTÉTICO SICRO'!A:D,4,FALSE)*(1+$J$6)),6) -> 5146.364911 | N29: =ROUND(ROUND(J29,2)*ROUND(M29,6),2) -> 9293563.07
B30: 15 | C30: CODEVASF | D30: CPU-17 | E30: TRANSPORTE CAP 50/70 | I30: t | J30: =' CONSUMO DE MAT. B TOTAL'!P13 -> 1805.85 | K30: 0.15 | L30: =ROUND(IF(C30="CODEVASF",VLOOKUP(D30,'CPU CODEVASF'!E:I,5,FALSE),VLOOKUP(D30,'SINTÉTICO SICRO'!A:D,4,FALSE)),6) -> 207.47 | M30: =ROUND(IF(C30="CODEVASF",VLOOKUP(D30,'CPU CODEVASF'!E:H,4,FALSE),VLOOKUP(D30,'SINTÉTICO SICRO'!A:D,4,FALSE)*(1+$J$6)),6) -> 238.5905 | N30: 430858.65
B31: 16 | C31: CODEVASF | D31: CPU-14 | E31: AQUISIÇÃO DE EAI | I31: t | J31: =' CONSUMO DE MAT. B TOTAL'!P8 -> 309.4 | K31: 0.15 | L31: =ROUND(IF(C31="CODEVASF",VLOOKUP(D31,'CPU CODEVASF'!E:I,5,FALSE),VLOOKUP(D31,'SINTÉTICO SICRO'!A:D,4,FALSE)),6) -> 3111.918746 | M31: =ROUND(IF(C31="CODEVASF",VLOOKUP(D31,'CPU CODEVASF'!E:H,4,FALSE),VLOOKUP(D31,'SINTÉTICO SICRO'!A:D,4,FALSE)*(1+$J$6)),6) -> 3578.706558 | N31: 1107251.81
B32: 17 | C32: CODEVASF | D32: CPU-18 | E32: TRANSPORTE DE EAI | I32: t | J32: =' CONSUMO DE MAT. B TOTAL'!P8 -> 309.4 | K32: 0.1499999998 | L32: =ROUND(IF(C32="CODEVASF",VLOOKUP(D32,'CPU CODEVASF'!E:I,5,FALSE),VLOOKUP(D32,'SINTÉTICO SICRO'!A:D,4,FALSE)),6) -> 1295.929468 | M32: =ROUND(IF(C32="CODEVASF",VLOOKUP(D32,'CPU CODEVASF'!E:H,4,FALSE),VLOOKUP(D32,'SINTÉTICO SICRO'!A:D,4,FALSE)*(1+$J$6)),6) -> 1490.318888 | N32: 461104.66
B33: 18 | C33: CODEVASF | D33: CPU-15 | E33: AQUISIÇÃO DE EMULSÃO ASFÁLTICA RR-1C | I33: t | J33: =' CONSUMO DE MAT. B TOTAL'!P11 -> 107.1 | K33: 0.15000007 | L33: =ROUND(IF(C33="CODEVASF",VLOOKUP(D33,'CPU CODEVASF'!E:I,5,FALSE),VLOOKUP(D33,'SINTÉTICO SICRO'!A:D,4,FALSE)),6) -> 2932.238631 | M33: =ROUND(IF(C33="CODEVASF",VLOOKUP(D33,'CPU CODEVASF'!E:H,4,FALSE),VLOOKUP(D33,'SINTÉTICO SICRO'!A:D,4,FALSE)*(1+$J$6)),6) -> 3372.074631 | N33: 361149.19
B34: 19 | C34: CODEVASF | D34: CPU-19 | E34: TRANSPORTE RR-1C | I34: t | J34: =' CONSUMO DE MAT. B TOTAL'!P11 -> 107.1 | K34: 0.1499999998 | L34: =ROUND(IF(C34="CODEVASF",VLOOKUP(D34,'CPU CODEVASF'!E:I,5,FALSE),VLOOKUP(D34,'SINTÉTICO SICRO'!A:D,4,FALSE)),6) -> 1295.929468 | M34: =ROUND(IF(C34="CODEVASF",VLOOKUP(D34,'CPU CODEVASF'!E:H,4,FALSE),VLOOKUP(D34,'SINTÉTICO SICRO'!A:D,4,FALSE)*(1+$J$6)),6) -> 1490.318888 | N34: 159613.15
E35: SINALIZAÇÃO
B36: 20 | C36: SICRO | D36: 5213440 | E36: =VLOOKUP(D36,'SINTÉTICO SICRO'!$A$4:$D$1048576,2,0) -> Placa de regulamentação em aço D = 0,60 m - película retrorrefletiva tipo I + SI - fornecimento e implantação | I36: und | J36: ='MC MODULO'!H87 -> 102 | K36: =M36/L36-1 -> 0.2339 | L36: =ROUND(IF(C36="CODEVASF",VLOOKUP(D36,'CPU CODEVASF'!E:I,5,FALSE),VLOOKUP(D36,'SINTÉTICO SICRO'!A:D,4,FALSE)),6) -> 249.15 | M36: =ROUND(IF(C36="CODEVASF",VLOOKUP(D36,'CPU CODEVASF'!E:H,4,FALSE),VLOOKUP(D36,'SINTÉTICO SICRO'!A:D,4,FALSE)*(1+$J$6)),6) -> 307.426185 | N36: =ROUND(ROUND(J36,2)*ROUND(M36,6),2) -> 31357.47
B37: 21 | C37: SICRO | D37: 5213464 | E37: =VLOOKUP(D37,'SINTÉTICO SICRO'!$A$4:$D$1048576,2,0) -> Placa de advertência em aço, lado de 0,60 m - película retrorrefletiva tipo I + SI - fornecimento e implantação | I37: und | J37: ='MC MODULO'!H92 -> 102 | K37: =M37/L37-1 -> 0.2339 | L37: =ROUND(IF(C37="CODEVASF",VLOOKUP(D37,'CPU CODEVASF'!E:I,5,FALSE),VLOOKUP(D37,'SINTÉTICO SICRO'!A:D,4,FALSE)),6) -> 249.18 | M37: =ROUND(IF(C37="CODEVASF",VLOOKUP(D37,'CPU CODEVASF'!E:H,4,FALSE),VLOOKUP(D37,'SINTÉTICO SICRO'!A:D,4,FALSE)*(1+$J$6)),6) -> 307.463202 | N37: =ROUND(ROUND(J37,2)*ROUND(M37,6),2) -> 31361.25
B38: 22 | C38: SICRO | D38: 5213863 | E38: =VLOOKUP(D38,'SINTÉTICO SICRO'!$A$4:$D$1048576,2,0) -> Suporte metálico galvanizado para placa de advertência ou regulamentação - lado ou diâmetro de 0,60 m - fornecimento e implantação | I38: und | J38: ='MC MODULO'!H98 -> 204 | K38: 0.2339 | L38: =ROUND(IF(C38="CODEVASF",VLOOKUP(D38,'CPU CODEVASF'!E:I,5,FALSE),VLOOKUP(D38,'SINTÉTICO SICRO'!A:D,4,FALSE)),6) -> 430.14 | M38: =ROUND(IF(C38="CODEVASF",VLOOKUP(D38,'CPU CODEVASF'!E:H,4,FALSE),VLOOKUP(D38,'SINTÉTICO SICRO'!A:D,4,FALSE)*(1+$J$6)),6) -> 530.749746 | N38: 108272.95
B39: 23 | C39: SICRO | D39: 5213400 | E39: =VLOOKUP(D39,'SINTÉTICO SICRO'!$A$4:$D$1048576,2,0) -> Pintura de faixa com tinta acrílica - espessura de 0,4 mm | I39: m² | J39: ='MC MODULO'!H103+'MC MODULO'!H108 -> 9520 | K39: 0.2339 | L39: =ROUND(IF(C39="CODEVASF",VLOOKUP(D39,'CPU CODEVASF'!E:I,5,FALSE),VLOOKUP(D39,'SINTÉTICO SICRO'!A:D,4,FALSE)),6) -> 26.5 | M39: =ROUND(IF(C39="CODEVASF",VLOOKUP(D39,'CPU CODEVASF'!E:H,4,FALSE),VLOOKUP(D39,'SINTÉTICO SICRO'!A:D,4,FALSE)*(1+$J$6)),6) -> 32.69835 | N39: 311288.29
E40: DRENAGEM
B41: 24 | C41: SICRO | D41: 2003373 | E41: =VLOOKUP(D41,'SINTÉTICO SICRO'!$A$4:$D$1048576,2,0) -> Meio-fio de concreto - MFC 03 - areia e brita comerciais - fôrma de madeira | I41: m | J41: ='MC MODULO'!H115 -> 68000 | K41: =M41/L41-1 -> 0.2339 | L41: =ROUND(IF(C41="CODEVASF",VLOOKUP(D41,'CPU CODEVASF'!E:I,5,FALSE),VLOOKUP(D41,'SINTÉTICO SICRO'!A:D,4,FALSE)),6) -> 62.08 | M41: =ROUND(IF(C41="CODEVASF",VLOOKUP(D41,'CPU CODEVASF'!E:H,4,FALSE),VLOOKUP(D41,'SINTÉTICO SICRO'!A:D,4,FALSE)*(1+$J$6)),6) -> 76.600512 | N41: =ROUND(ROUND(J41,2)*ROUND(M41,6),2) -> 5208834.82
B42: 25 | C42: SICRO | D42: 4915724 | E42: =VLOOKUP(D42,'SINTÉTICO SICRO'!$A$4:$D$1048576,2,0) -> Caiação mecanizada com fixador de cal | I42: m² | J42: ='MC MODULO'!H120 -> 8160 | K42: =(M42/L42-1) -> 0.2339 | L42: =ROUND(IF(C42="CODEVASF",VLOOKUP(D42,'CPU CODEVASF'!E:I,5,FALSE),VLOOKUP(D42,'SINTÉTICO SICRO'!A:D,4,FALSE)),6) -> 1.78 | M42: =ROUND(IF(C42="CODEVASF",VLOOKUP(D42,'CPU CODEVASF'!E:H,4,FALSE),VLOOKUP(D42,'SINTÉTICO SICRO'!A:D,4,FALSE)*(1+$J$6)),6) -> 2.196342 | N42: =ROUND(ROUND(J42,2)*ROUND(M42,6),2) -> 17922.15 | Y42: 4514640
E43: SERVIÇOS COMPLEMENTARES
B44: 26 | C44: Codevasf | D44: CPU-12 | E44: Conserto de quebra no ramal na rua sem pavimento com fornecimento de material hidráulico | I44: m | J44: ='MC MODULO'!H127 -> 3400 | K44: =M44/L44-1 -> 0.2338999961 | L44: =ROUND(IF(C44="CODEVASF",VLOOKUP(D44,'CPU CODEVASF'!E:I,5,FALSE),VLOOKUP(D44,'SINTÉTICO SICRO'!A:D,4,FALSE)),6) -> 15.75599 | M44: =ROUND(IF(C44="CODEVASF",VLOOKUP(D44,'CPU CODEVASF'!E:H,4,FALSE),VLOOKUP(D44,'SINTÉTICO SICRO'!A:D,4,FALSE)*(1+$J$6)),6) -> 19.441316 | N44: =ROUND(ROUND(J44,2)*ROUND(M44,6),2) -> 66100.47
E45: PROJETO EXECUTIVO
B46: 27 | C46: Codevasf | D46: Composição Própria | E46: Projeto Executivo | I46: m² | J46: ='MC MODULO'!H134 -> 238000 | K46: =M46/L46-1 -> 0.2338998887 | L46: =ROUND(('Projeto Executivo'!G27)/(1+$J$6),6) -> 1.635439 | M46: =ROUND(('Projeto Executivo'!G27),6) -> 2.017968 | N46: =ROUND(ROUND(J46,2)*ROUND(M46,6),2) -> 480276.38
E47: MOMENTO DE TRANSPORTE
B48: 28 | C48: SICRO | D48: 5914359 | E48: =VLOOKUP(D48,'SINTÉTICO SICRO'!$A$4:$D$1048576,2,0) -> Transporte com caminhão basculante de 10 m³ - rodovia em leito natural | I48: tkm | J48: =ROUND(SUMIF('MOMENTO DE TRANSPORTE - PRINC'!A:A,'RESUMO MODULO TOTAL'!D48,'MOMENTO DE TRANSPORTE - PRINC'!K:K)+SUMIF('MOMENTO DE TRANSPORTE - AUX'!A:A,'RESUMO MODULO TOTAL'!D48,'MOMENTO DE TRANSPORTE - AUX'!K:K),2) -> 3053228.16 | K48: =M48/L48-1 -> 0.2339 | L48: =ROUND(IF(C48="CODEVASF",VLOOKUP(D48,'CPU CODEVASF'!E:I,5,FALSE),VLOOKUP(D48,'SINTÉTICO SICRO'!A:D,4,FALSE)),6) -> 1.14 | M48: =ROUND(IF(C48="CODEVASF",VLOOKUP(D48,'CPU CODEVASF'!E:H,4,FALSE),VLOOKUP(D48,'SINTÉTICO SICRO'!A:D,4,FALSE)*(1+$J$6)),6) -> 1.406646 | N48: =ROUND(ROUND(J48,2)*ROUND(M48,6),2) -> 4294811.18
B49: 29 | C49: SICRO | D49: 5914374 | E49: =VLOOKUP(D49,'SINTÉTICO SICRO'!$A$4:$D$1048576,2,0) -> Transporte com caminhão basculante de 10 m³ - rodovia em revestimento primário | I49: tkm | J49: =ROUND(SUMIF('MOMENTO DE TRANSPORTE - PRINC'!A:A,'RESUMO MODULO TOTAL'!D49,'MOMENTO DE TRANSPORTE - PRINC'!K:K)+SUMIF('MOMENTO DE TRANSPORTE - AUX'!A:A,'RESUMO MODULO TOTAL'!D49,'MOMENTO DE TRANSPORTE - AUX'!K:K),2) -> 3053228.16 | K49: 0.2339 | L49: =ROUND(IF(C49="CODEVASF",VLOOKUP(D49,'CPU CODEVASF'!E:I,5,FALSE),VLOOKUP(D49,'SINTÉTICO SICRO'!A:D,4,FALSE)),6) -> 0.91 | M49: =ROUND(IF(C49="CODEVASF",VLOOKUP(D49,'CPU CODEVASF'!E:H,4,FALSE),VLOOKUP(D49,'SINTÉTICO SICRO'!A:D,4,FALSE)*(1+$J$6)),6) -> 1.122849 | N49: 3428314.19
B50: 30 | C50: SICRO | D50: 5914389 | E50: =VLOOKUP(D50,'SINTÉTICO SICRO'!$A$4:$D$1048576,2,0) -> Transporte com caminhão basculante de 10 m³ - rodovia pavimentada | I50: tkm | J50: =ROUND(SUMIF('MOMENTO DE TRANSPORTE - PRINC'!A:A,'RESUMO MODULO TOTAL'!D50,'MOMENTO DE TRANSPORTE - PRINC'!K:K)+SUMIF('MOMENTO DE TRANSPORTE - AUX'!A:A,'RESUMO MODULO TOTAL'!D50,'MOMENTO DE TRANSPORTE - AUX'!K:K),2) -> 6758253.06 | K50: 0.2339 | L50: =ROUND(IF(C50="CODEVASF",VLOOKUP(D50,'CPU CODEVASF'!E:I,5,FALSE),VLOOKUP(D50,'SINTÉTICO SICRO'!A:D,4,FALSE)),6) -> 0.75 | M50: =ROUND(IF(C50="CODEVASF",VLOOKUP(D50,'CPU CODEVASF'!E:H,4,FALSE),VLOOKUP(D50,'SINTÉTICO SICRO'!A:D,4,FALSE)*(1+$J$6)),6) -> 0.925425 | N50: 6254256.34
B51: 31 | C51: SICRO | D51: 5914449 | E51: =VLOOKUP(D51,'SINTÉTICO SICRO'!$A$4:$D$1048576,2,0) -> Transporte com caminhão carroceria de 15 t - rodovia em leito natural | I51: tkm | J51: =ROUND(SUMIF('MOMENTO DE TRANSPORTE - PRINC'!A:A,'RESUMO MODULO TOTAL'!D51,'MOMENTO DE TRANSPORTE - PRINC'!K:K)+SUMIF('MOMENTO DE TRANSPORTE - AUX'!A:A,'RESUMO MODULO TOTAL'!D51,'MOMENTO DE TRANSPORTE - AUX'!K:K),2) -> 21362.78 | K51: 0.2339 | L51: =ROUND(IF(C51="CODEVASF",VLOOKUP(D51,'CPU CODEVASF'!E:I,5,FALSE),VLOOKUP(D51,'SINTÉTICO SICRO'!A:D,4,FALSE)),6) -> 1.05 | M51: =ROUND(IF(C51="CODEVASF",VLOOKUP(D51,'CPU CODEVASF'!E:H,4,FALSE),VLOOKUP(D51,'SINTÉTICO SICRO'!A:D,4,FALSE)*(1+$J$6)),6) -> 1.295595 | N51: 27677.51
B52: 32 | C52: SICRO | D52: 5914464 | E52: =VLOOKUP(D52,'SINTÉTICO SICRO'!$A$4:$D$1048576,2,0) -> Transporte com caminhão carroceria de 15 t - rodovia em revestimento primário | I52: tkm | J52: =ROUND(SUMIF('MOMENTO DE TRANSPORTE - PRINC'!A:A,'RESUMO MODULO TOTAL'!D52,'MOMENTO DE TRANSPORTE - PRINC'!K:K)+SUMIF('MOMENTO DE TRANSPORTE - AUX'!A:A,'RESUMO MODULO TOTAL'!D52,'MOMENTO DE TRANSPORTE - AUX'!K:K),2) -> 21362.78 | K52: 0.2339 | L52: =ROUND(IF(C52="CODEVASF",VLOOKUP(D52,'CPU CODEVASF'!E:I,5,FALSE),VLOOKUP(D52,'SINTÉTICO SICRO'!A:D,4,FALSE)),6) -> 0.84 | M52: =ROUND(IF(C52="CODEVASF",VLOOKUP(D52,'CPU CODEVASF'!E:H,4,FALSE),VLOOKUP(D52,'SINTÉTICO SICRO'!A:D,4,FALSE)*(1+$J$6)),6) -> 1.036476 | N52: 22142.01
B53: 33 | C53: SICRO | D53: 5914479 | E53: =VLOOKUP(D53,'SINTÉTICO SICRO'!$A$4:$D$1048576,2,0) -> Transporte com caminhão carroceria de 15 t - rodovia pavimentada | I53: tkm | J53: =ROUND(SUMIF('MOMENTO DE TRANSPORTE - PRINC'!A:A,'RESUMO MODULO TOTAL'!D53,'MOMENTO DE TRANSPORTE - PRINC'!K:K)+SUMIF('MOMENTO DE TRANSPORTE - AUX'!A:A,'RESUMO MODULO TOTAL'!D53,'MOMENTO DE TRANSPORTE - AUX'!K:K),2) -> 21362.78 | K53: 0.2339 | L53: =ROUND(IF(C53="CODEVASF",VLOOKUP(D53,'CPU CODEVASF'!E:I,5,FALSE),VLOOKUP(D53,'SINTÉTICO SICRO'!A:D,4,FALSE)),6) -> 0.69 | M53: =ROUND(IF(C53="CODEVASF",VLOOKUP(D53,'CPU CODEVASF'!E:H,4,FALSE),VLOOKUP(D53,'SINTÉTICO SICRO'!A:D,4,FALSE)*(1+$J$6)),6) -> 0.851391 | N53: 18188.08
B54: 34 | C54: SICRO | D54: 5914364 | E54: =VLOOKUP(D54,'SINTÉTICO SICRO'!$A$4:$D$1048576,2,0) -> Transporte de cimento ou cal hidratada a granel com caminhão silo de 30 m³ - rodovia em leito natural | I54: tkm | J54: =ROUND(SUMIF('MOMENTO DE TRANSPORTE - PRINC'!A:A,'RESUMO MODULO TOTAL'!D54,'MOMENTO DE TRANSPORTE - PRINC'!K:K)+SUMIF('MOMENTO DE TRANSPORTE - AUX'!A:A,'RESUMO MODULO TOTAL'!D54,'MOMENTO DE TRANSPORTE - AUX'!K:K),2) -> 39292.16 | K54: 0.2339 | L54: =ROUND(IF(C54="CODEVASF",VLOOKUP(D54,'CPU CODEVASF'!E:I,5,FALSE),VLOOKUP(D54,'SINTÉTICO SICRO'!A:D,4,FALSE)),6) -> 0.86 | M54: =ROUND(IF(C54="CODEVASF",VLOOKUP(D54,'CPU CODEVASF'!E:H,4,FALSE),VLOOKUP(D54,'SINTÉTICO SICRO'!A:D,4,FALSE)*(1+$J$6)),6) -> 1.061154 | N54: 41695.03
B55: 35 | C55: SICRO | D55: 5914365 | E55: =VLOOKUP(D55,'SINTÉTICO SICRO'!$A$4:$D$1048576,2,0) -> Transporte de cimento ou cal hidratada a granel com caminhão silo de 30 m³ - rodovia em revestimento primário | I55: tkm | J55: =ROUND(SUMIF('MOMENTO DE TRANSPORTE - PRINC'!A:A,'RESUMO MODULO TOTAL'!D55,'MOMENTO DE TRANSPORTE - PRINC'!K:K)+SUMIF('MOMENTO DE TRANSPORTE - AUX'!A:A,'RESUMO MODULO TOTAL'!D55,'MOMENTO DE TRANSPORTE - AUX'!K:K),2) -> 39292.16 | K55: 0.2339 | L55: =ROUND(IF(C55="CODEVASF",VLOOKUP(D55,'CPU CODEVASF'!E:I,5,FALSE),VLOOKUP(D55,'SINTÉTICO SICRO'!A:D,4,FALSE)),6) -> 0.69 | M55: =ROUND(IF(C55="CODEVASF",VLOOKUP(D55,'CPU CODEVASF'!E:H,4,FALSE),VLOOKUP(D55,'SINTÉTICO SICRO'!A:D,4,FALSE)*(1+$J$6)),6) -> 0.851391 | N55: 33452.99
B56: 36 | C56: SICRO | D56: 5914366 | E56: =VLOOKUP(D56,'SINTÉTICO SICRO'!$A$4:$D$1048576,2,0) -> Transporte de cimento ou cal hidratada a granel com caminhão silo de 30 m³ - rodovia pavimentada | I56: tkm | J56: =ROUND(SUMIF('MOMENTO DE TRANSPORTE - PRINC'!A:A,'RESUMO MODULO TOTAL'!D56,'MOMENTO DE TRANSPORTE - PRINC'!K:K)+SUMIF('MOMENTO DE TRANSPORTE - AUX'!A:A,'RESUMO MODULO TOTAL'!D56,'MOMENTO DE TRANSPORTE - AUX'!K:K),2) -> 39292.16 | K56: =M56/L56-1 -> 0.2339 | L56: =ROUND(IF(C56="CODEVASF",VLOOKUP(D56,'CPU CODEVASF'!E:I,5,FALSE),VLOOKUP(D56,'SINTÉTICO SICRO'!A:D,4,FALSE)),6) -> 0.56 | M56: =ROUND(IF(C56="CODEVASF",VLOOKUP(D56,'CPU CODEVASF'!E:H,4,FALSE),VLOOKUP(D56,'SINTÉTICO SICRO'!A:D,4,FALSE)*(1+$J$6)),6) -> 0.690984 | N56: =ROUND(ROUND(J56,2)*ROUND(M56,6),2) -> 27150.25
B57: VALOR TOTAL DO SRP | N57: =SUM(N11:N56) -> 47108397.37
B58: Obs.: Os valores estão apresentados com apenas 2 casas decimais, mas os valores da presente planilha foram calculados utilizando a precisão de 6 casas decimais.
N59: 47108397.37

Sheet CRONOGRAMA TOTAL
A2: ='RESUMO MODULO TOTAL'!B1 -> CONTRATAÇÃO DE SERVIÇOS DE PAVIMENTAÇÃO ASFÁLTICA COM CONCRETO BETUMINOSO USINADO A QUENTE (CBUQ) EM VIAS URBANAS E RURAIS INSERIDAS NA ÁREA DE ATUAÇÃO DA CODEVASF, NO ESTADO DE ALAGOAS - REGIÃO 2
A3: Cronograma Físico e Financeiro
A4: Item | B4: Descrição | C4: Total Por Etapa | D4: 30 DIAS | E4: 60 DIAS | F4: 90 DIAS | G4: 120 DIAS | H4: 150 DIAS | I4: 180 DIAS | J4: 210 DIAS | K4: 240 DIAS | L4: 270 DIAS | M4: 300 DIAS | N4: 330 DIAS | O4: 360 DIAS
B5: ='RESUMO MODULO TOTAL'!E10 -> MOBILIZAÇÃO/DESMOBILIZAÇÃO | C5: =SUM(D5:O5) -> 1 | D5: 0.5 | O5: 0.5
C6: =SUM('RESUMO MODULO TOTAL'!N11:N12) -> 382778.6199 | D6: =$C$6*D5 -> 191389.31 | O6: =$C$6*O5 -> 191389.31 | P6: =SUM(D6:O6) -> 382778.6199 | Q6: =IF(P6=C6,"OK","") -> OK
B7: ='RESUMO MODULO TOTAL'!E13 -> INSTALAÇÃO DE CANTEIRO | C7: =SUM(D7:O7) -> 1 | D7: 0.1 | E7: 0.5 | F7: 0.4
C8: =SUM('RESUMO MODULO TOTAL'!N14:N15) -> 500761.34 | D8: =$C$8*D7 -> 50076.134 | E8: =$C$8*E7 -> 250380.67 | F8: 200304.536 | G8: 0 | H8: 0 | I8: 0 | J8: 0 | K8: 0 | L8: 0 | M8: 0 | N8: 0 | O8: 0 | P8: =SUM(D8:O8) -> 500761.34 | Q8: =IF(P8=C8,"OK","") -> OK
B9: ='RESUMO MODULO TOTAL'!E16 -> ADMINISTRAÇÃO LOCAL DA OBRA | C9: =SUM(D9:O9) -> 1 | D9: =(D6+D8+D12+D14+D16+D18+D20+D22+D24+D26)/($O$33-$C$10) -> 0.01578297121 | E9: 0.005475297086 | F9: 0.04048225963 | G9: 0.03610202197 | H9: 0.03682476089 | I9: 0.1379354322 | J9: 0.1165796755 | K9: 0.1165796755 | L9: 0.1165796755 | M9: 0.1165796755 | N9: 0.1737287502 | O9: =(O6+O8+O12+O14+O16+O18+O20+O22+O24+O26)/($O$33-$C$10) -> 0.08734980468
C10: =SUM('RESUMO MODULO TOTAL'!N17) -> 1379249.51 | D10: =$C$10*D9 -> 21768.6553 | E10: =$C$10*E9 -> 7551.800822 | F10: =$C$10*F9 -> 55835.13676 | G10: 49793.69611 | H10: 50790.53341 | I10: 190247.3773 | J10: 160792.4603 | K10: 160792.4603 | L10: 160792.4603 | M10: 160792.4603 | N10: 239615.2936 | O10: 120477.1753 | P10: =SUM(D10:O10) -> 1379249.51 | Q10: =IF(P10=C10,"OK","") -> OK
B11: ='RESUMO MODULO TOTAL'!E18 -> TERRAPLANAGEM | C11: =SUM(D11:O11) -> 1 | F11: =1/4 -> 0.25 | G11: =1/4 -> 0.25 | H11: =1/4 -> 0.25 | I11: =1/4 -> 0.25
C12: =SUM('RESUMO MODULO TOTAL'!N19:N20) -> 944583.77 | D12: =$C$14*D11 -> 0 | E12: =$C$12*E11 -> 0 | F12: 236145.9425 | G12: 236145.9425 | H12: 236145.9425 | I12: 236145.9425 | J12: 0 | K12: 0 | L12: 0 | M12: 0 | N12: 0 | O12: 0 | P12: =SUM(D12:O12) -> 944583.77 | Q12: =IF(P12=C12,"OK","") -> OK
B13: ='RESUMO MODULO TOTAL'!E21 -> PAVIMENTAÇÃO | C13: =SUM(D13:O13) -> 1 | I13: =1/6 -> 0.1666666667 | J13: =1/6 -> 0.1666666667 | K13: 0.1666666667 | L13: 0.1666666667 | M13: 0.1666666667 | N13: 0.1666666667
C14: =SUM('RESUMO MODULO TOTAL'!N22:N27) -> 11684382.24 | D14: =$C$14*D13 -> 0 | E14: =$C$14*E13 -> 0 | F14: 0 | G14: 0 | H14: 0 | I14: 1947397.04 | J14: 1947397.04 | K14: 1947397.04 | L14: 1947397.04 | M14: 1947397.04 | N14: 1947397.04 | O14: 0 | P14: =SUM(D14:O14) -> 11684382.24 | Q14: =IF(P14=C14,"OK","") -> OK
B15: AQUISIÇÃO E TRANSPORTE DE MATERIAL BETUMINOSO | C15: =SUM(D15:O15) -> 1 | I15: =1/6 -> 0.1666666667 | J15: 0.1666666667 | K15: 0.1666666667 | L15: 0.1666666667 | M15: 0.1666666667 | N15: 0.1666666667
C16: =SUM('RESUMO MODULO TOTAL'!N29:N34) -> 11813540.53 | D16: =$C$16*D15 -> 0 | E16: =$C$16*E15 -> 0 | F16: 0 | G16: 0 | H16: 0 | I16: 1968923.422 | J16: 1968923.422 | K16: 1968923.422 | L16: 1968923.422 | M16: 1968923.422 | N16: 1968923.422 | O16: 0 | P16: =SUM(D16:O16) -> 11813540.53 | Q16: =IF(P16=C16,"OK","") -> OK
B17: ='RESUMO MODULO TOTAL'!E35 -> SINALIZAÇÃO | C17: =SUM(D17:O17) -> 1 | O17: 1
C18: =SUM('RESUMO MODULO TOTAL'!N36:N39) -> 482279.96 | D18: =$C$18*D17 -> 0 | E18: =$C$18*E17 -> 0 | F18: 0 | G18: 0 | H18: 0 | I18: 0 | J18: 0 | K18: 0 | L18: 0 | M18: 0 | N18: 0 | O18: 482279.96 | P18: =SUM(D18:O18) -> 482279.96 | Q18: =IF(P18=C18,"OK","") -> OK
B19: ='RESUMO MODULO TOTAL'!E40 -> DRENAGEM | C19: =SUM(D19:O19) -> 1 | N19: 0.5 | O19: 0.5
C20: =SUM('RESUMO MODULO TOTAL'!N41:N42) -> 5226756.97 | D20: =$C$20*D19 -> 0 | E20: =$C$20*E19 -> 0 | F20: 0 | G20: 0 | H20: 0 | I20: 0 | J20: 0 | K20: 0 | L20: 0 | M20: 0 | N20: 2613378.485 | O20: 2613378.485 | P20: =SUM(D20:O20) -> 5226756.97 | Q20: =IF(P20=C20,"OK","") -> OK
B21: ='RESUMO MODULO TOTAL'!E43 -> SERVIÇOS COMPLEMENTARES | C21: =SUM(D21:O21) -> 1 | H21: 0.5 | I21: 0.5
C22: =SUM('RESUMO MODULO TOTAL'!N44) -> 66100.47 | D22: =$C$22*D21 -> 0 | E22: =$C$22*E21 -> 0 | F22: 0 | G22: 0 | H22: 33050.235 | I22: 33050.235 | J22: 0 | K22: 0 | L22: 0 | M22: 0 | N22: 0 | O22: 0 | P22: =SUM(D22:O22) -> 66100.47 | Q22: =IF(P22=C22,"OK","") -> OK
B23: ='RESUMO MODULO TOTAL'!E45 -> PROJETO EXECUTIVO | C23: =SUM(D23:O23) -> 1 | D23: 1
C24: ='RESUMO MODULO TOTAL'!N46 -> 480276.38 | D24: =$C$24*D23 -> 480276.38 | E24: =$C$24*E23 -> 0 | F24: 0 | G24: 0 | H24: 0 | I24: 0 | J24: 0 | K24: 0 | L24: 0 | M24: 0 | N24: 0 | O24: 0 | P24: =SUM(D24:O24) -> 480276.38 | Q24: =IF(P24=C24,"OK","") -> OK
B25: ='RESUMO MODULO TOTAL'!E47 -> MOMENTO DE TRANSPORTE | C25: =SUM(D25:O25) -> 1 | F25: 0.1 | G25: 0.1 | H25: 0.1 | I25: 0.15 | J25: 0.1 | K25: 0.1 | L25: 0.1 | M25: 0.1 | N25: 0.1 | O25: 0.05
C26: =SUM('RESUMO MODULO TOTAL'!N48:N56) -> 14147687.58 | D26: =$C$26*D25 -> 0 | E26: =$C$26*E25 -> 0 | F26: 1414768.758 | G26: 1414768.758 | H26: 1414768.758 | I26: 2122153.137 | J26: 1414768.758 | K26: 1414768.758 | L26: 1414768.758 | M26: 1414768.758 | N26: 1414768.758 | O26: 707384.379 | P26: =SUM(D26:O26) -> 14147687.58 | Q26: =IF(P26=C26,"OK","") -> OK
A28: Porcentagem | D28: =SUM(D6+D8+D10+D12+D14+D16+D18+D20+D22+D24+D26)/$O$33 -> 0.01578297121 | E28: =SUM(E6+E8+E10+E12+E14+E16+E18+E20+E22+E24+E26)/$O$33 -> 0.005475297086 | F28: 0.04048225963 | G28: 0.03610202197 | H28: 0.03682476089 | I28: 0.1379354322 | J28: 0.1165796755 | K28: 0.1165796755 | L28: 0.1165796755 | M28: 0.1165796755 | N28: 0.1737287502 | O28: =SUM(O6+O8+O10+O12+O14+O16+O18+O20+O22+O24+O26)/$O$33 -> 0.08734980468
A29: Custo | D29: =$O$33*D28 -> 743510.4793 | E29: =$O$33*E28 -> 257932.4708 | F29: =$O$33*F28 -> 1907054.373 | G29: 1700708.397 | H29: 1734755.469 | I29: 6497917.153 | J29: 5491881.68 | K29: 5491881.68 | L29: 5491881.68 | M29: 5491881.68 | N29: 8184082.998 | O29: 4114909.309
A30: Porcentagem Acumulado | D30: =D28 -> 0.01578297121 | E30: =D30+E28 -> 0.02125826829 | F30: =E30+F28 -> 0.06174052793 | G30: 0.09784254989 | H30: 0.1346673108 | I30: 0.272602743 | J30: 0.3891824185 | K30: 0.5057620941 | L30: 0.6223417696 | M30: 0.7389214451 | N30: 0.9126501953 | O30: =N30+O28 -> 1
A31: Custo Acumulado | D31: =D29 -> 743510.4793 | E31: =D31+E29 -> 1001442.95 | F31: 2908497.323 | G31: 4609205.72 | H31: 6343961.189 | I31: 12841878.34 | J31: 18333760.02 | K31: 23825641.7 | L31: 29317523.38 | M31: 34809405.06 | N31: 42993488.06 | O31: 47108397.37
D33: Total Geral | N33: R$ | O33: =C6+C8+C10+C12+C14+C16+C18+C20+C22+C24+C26 -> 47108397.37
O36: =O31-O33 -> 0

Sheet CONSUMO DE MAT. B TOTAL
B3: CONSUMO DO MATERIAL BETUMINOSO TOTAL
B5: TRECHO | D5: QUANTIDADES | M5: MAT. BETUMINOSO
B6: Inicio (km) | C6: Fim (km) | D6: Extensão (m) | E6: Largura (m) | F6: Espess. (m) | G6: Área (m2) | H6: Volume (m3) | I6: Densidade (t/m3) | J6: Massa (t) | K6: Unid | L6: Quant. | M6: Tipo | N6: Consumo Taxa de Aplicação | O6: Unid. | P6: Quant.
B7: IMPRIMAÇÃO
F8: 1 | G8: ='MC MODULO'!H57 -> 238000 | M8: EAI | N8: 1,3 l/m2 | O8: t | P8: =ROUND((G8*1.3)/1000,2) -> 309.4
F9: 1 | H9: =G9*F9 -> 0 | M9: CM-30 | N9: 1,2 l/m2 | O9: t | P9: =ROUND((G9*1.2)/1000,2) -> 0
B10: PINTURA DE LIGAÇÃO
F11: 1 | G11: ='MC MODULO'!H63 -> 238000 | H11: =G11*F11 -> 238000 | M11: RR-1C | N11: 0,45 l/m2 | O11: t | P11: =ROUND((G11*0.45)/1000,2) -> 107.1
B12: CBUQ FAIXA "C"
H13: =G13*F13 -> 0 | J13: ='MC MODULO'!H51 -> 28560 | M13: CAP-50/70 | N13: 63,23 t/m3 | O13: t | P13: =ROUND((J13*63.23)/1000,2) -> 1805.85
B14: CBUQ FAIXA "B"
H15: =G15*F15 -> 0 | M15: CAP-50/70 | N15: 56,60 t/m3 | O15: t | P15: =ROUND((J15*56.6)/1000,2) -> 0
H17: =G17*F17 -> 0

Sheet Mob
A4: ='RESUMO MODULO TOTAL'!B1 -> CONTRATAÇÃO DE SERVIÇOS DE PAVIMENTAÇÃO ASFÁLTICA COM CONCRETO BETUMINOSO USINADO A QUENTE (CBUQ) EM VIAS URBANAS E RURAIS INSERIDAS NA ÁREA DE ATUAÇÃO DA CODEVASF, NO ESTADO DE ALAGOAS - REGIÃO 2
A5: MOBILIZAÇÃO/DESMOBILIZAÇÃO (MOB) | F5: Frentes de serviços | H5: ='MC MODULO'!G1 -> 17
F6: Distância da Capital ao Canteiro: | H6: 100 | I6: Fica a cargo de cada SR colocar a distancia adequada de acordo com o historico de mobilização
F8: Velocidade média de transporte (pavim.): | H8: 60
A10: Transporte dos equipamentos
A11: CODIGO | B11: EQUIPAMENTO | C11: VEÍCULO TRANSPORTADOR | D11: QTDE | E11: K | F11: FU | G11: CUSTO DO TRANSPORTE
G12: (R$/h) | H12: (R$)/km
A13: E9524 | B13: =VLOOKUP(A13,Equipamentos!$A:$K,2,FALSE) -> Motoniveladora - 93 kW | C13: =IFERROR(INDEX('Tabelas 2 e 3 mob'!A:K,MATCH(A13,'Tabelas 2 e 3 mob'!A:A,0),9),"ERRO") -> E9665 | D13: 1 | E13: 2 | F13: 1 | G13: =IF(C13="Veículo(s) da própria frota.",0,INDEX(Equipamentos!B:K,MATCH(C13,Equipamentos!A:A,0),10)) -> 121.2906 | H13: =((D13*E13*F13)/$H$8)*G13 -> 4.04302
A14: E9526 | B14: =VLOOKUP(A14,Equipamentos!$A:$K,2,FALSE) -> Retroescavadeira de pneus - capacidade da caçamba da pá-carregadeira de 0,76 m³ e da retroescavadeira de 0,29 m³ - 58 kW | C14: =IFERROR(INDEX('Tabelas 2 e 3 mob'!A:K,MATCH(A14,'Tabelas 2 e 3 mob'!A:A,0),9),"ERRO") -> E9665 | D14: 1 | E14: 2 | F14: 1 | G14: =IF(C14="Veículo(s) da própria frota.",0,INDEX(Equipamentos!B:K,MATCH(C14,Equipamentos!A:A,0),10)) -> 121.2906 | H14: =((D14*E14*F14)/$H$8)*G14 -> 4.04302
A15: E9577 | B15: =VLOOKUP(A15,Equipamentos!$A:$K,2,FALSE) -> Trator agrícola sobre pneus - 77 kW | C15: =IFERROR(INDEX('Tabelas 2 e 3 mob'!A:K,MATCH(A15,'Tabelas 2 e 3 mob'!A:A,0),9),"ERRO") -> E9665 | D15: 1 | E15: 2 | F15: 0.5 | G15: =IF(C15="Veículo(s) da própria frota.",0,INDEX(Equipamentos!B:K,MATCH(C15,Equipamentos!A:A,0),10)) -> 121.2906 | H15: 2.02151
A16: E9518 | B16: =VLOOKUP(A16,Equipamentos!$A:$K,2,FALSE) -> Grade de 24 discos rebocável de D = 60 cm (24") | C16: =IFERROR(INDEX('Tabelas 2 e 3 mob'!A:K,MATCH(A16,'Tabelas 2 e 3 mob'!A:A,0),9),"ERRO") -> Veículo(s) da própria frota. | D16: 1 | E16: 2 | F16: 0 | G16: =IF(C16="Veículo(s) da própria frota.",0,INDEX(Equipamentos!B:K,MATCH(C16,Equipamentos!A:A,0),10)) -> 0 | H16: 0
A17: E9615 | B17: =VLOOKUP(A17,Equipamentos!$A:$K,2,FALSE) -> Usina misturadora de solos com capacidade de 300 t/h - 44 kW | C17: =IFERROR(INDEX('Tabelas 2 e 3 mob'!A:K,MATCH(A17,'Tabelas 2 e 3 mob'!A:A,0),9),"ERRO") -> E9018 | D17: 1 | E17: 2 | F17: 2 | G17: =IF(C17="Veículo(s) da própria frota.",0,INDEX(Equipamentos!B:K,MATCH(C17,Equipamentos!A:A,0),10)) -> 166.9692 | H17: 11.13128
A18: E9689 | B18: =VLOOKUP(A18,Equipamentos!$A:$K,2,FALSE) -> Usina de asfalto a quente gravimétrica com capacidade de 100/140 t/h - 260 kW | C18: =IFERROR(INDEX('Tabelas 2 e 3 mob'!A:K,MATCH(A18,'Tabelas 2 e 3 mob'!A:A,0),9),"ERRO") -> E9666 | D18: 1 | E18: 2 | F18: 3 | G18: =IF(C18="Veículo(s) da própria frota.",0,INDEX(Equipamentos!B:K,MATCH(C18,Equipamentos!A:A,0),10)) -> 125.8871 | H18: 12.58871
A19: E9530 | B19: =VLOOKUP(A19,Equipamentos!$A:$K,2,FALSE) -> Rolo compactador liso vibratório autopropelido por pneus de 11 t - 97 kW | C19: =IFERROR(INDEX('Tabelas 2 e 3 mob'!A:K,MATCH(A19,'Tabelas 2 e 3 mob'!A:A,0),9),"ERRO") -> E9666 | D19: 1 | E19: 2 | F19: 0.5 | G19: =IF(C19="Veículo(s) da própria frota.",0,INDEX(Equipamentos!B:K,MATCH(C19,Equipamentos!A:A,0),10)) -> 125.8871 | H19: 2.098118333
A20: E9558 | B20: =VLOOKUP(A20,Equipamentos!$A:$K,2,FALSE) -> Tanque de estocagem de asfalto com capacidade de 30.000 l | C20: =IFERROR(INDEX('Tabelas 2 e 3 mob'!A:K,MATCH(A20,'Tabelas 2 e 3 mob'!A:A,0),9),"ERRO") -> E9665 | D20: 1 | E20: 2 | F20: 1 | G20: =IF(C20="Veículo(s) da própria frota.",0,INDEX(Equipamentos!B:K,MATCH(C20,Equipamentos!A:A,0),10)) -> 121.2906 | H20: 4.04302
A21: E9758 | B21: =VLOOKUP(A21,Equipamentos!$A:$K,2,FALSE) -> Vibroacabadora de asfalto sobre pneus - 82 kW | C21: =IFERROR(INDEX('Tabelas 2 e 3 mob'!A:K,MATCH(A21,'Tabelas 2 e 3 mob'!A:A,0),9),"ERRO") -> E9018 | D21: 1 | E21: 2 | F21: 0.5 | G21: =IF(C21="Veículo(s) da própria frota.",0,INDEX(Equipamentos!B:K,MATCH(C21,Equipamentos!A:A,0),10)) -> 166.9692 | H21: 2.78282
A22: E9685 | B22: =VLOOKUP(A22,Equipamentos!$A:$K,2,FALSE) -> Rolo compactador pé de carneiro vibratório autopropelido por pneus de 11,6 t - 82 kW | C22: =IFERROR(INDEX('Tabelas 2 e 3 mob'!A:K,MATCH(A22,'Tabelas 2 e 3 mob'!A:A,0),9),"ERRO") -> E9666 | D22: 1 | E22: 2 | F22: 0.5 | G22: =IF(C22="Veículo(s) da própria frota.",0,INDEX(Equipamentos!B:K,MATCH(C22,Equipamentos!A:A,0),10)) -> 125.8871 | H22: 2.098118333
A23: E9605 | B23: =VLOOKUP(A23,Equipamentos!$A:$K,2,FALSE) -> Caminhão tanque com capacidade de 6.000 l - 136 kW | C23: =IFERROR(INDEX('Tabelas 2 e 3 mob'!A:K,MATCH(A23,'Tabelas 2 e 3 mob'!A:A,0),9),"ERRO") -> E9605 | D23: 1 | E23: 1 | F23: 1 | G23: =IF(C23="Veículo(s) da própria frota.",0,INDEX(Equipamentos!B:K,MATCH(C23,Equipamentos!A:A,0),10)) -> 69.0868 | H23: 1.151446667
A24: E9579 | B24: =VLOOKUP(A24,Equipamentos!$A:$K,2,FALSE) -> Caminhão basculante com capacidade de 10 m³ - 188 kW | C24: =IFERROR(INDEX('Tabelas 2 e 3 mob'!A:K,MATCH(A24,'Tabelas 2 e 3 mob'!A:A,0),9),"ERRO") -> E9579 | D24: 5 | E24: 1 | F24: 1 | G24: =IF(C24="Veículo(s) da própria frota.",0,INDEX(Equipamentos!B:K,MATCH(C24,Equipamentos!A:A,0),10)) -> 86.4163 | H24: 7.201358333
A25: E9509 | B25: =VLOOKUP(A25,Equipamentos!$A:$K,2,FALSE) -> Caminhão tanque distribuidor de asfalto com capacidade de 6.000 l - 7 kW/136 kW | C25: =IFERROR(INDEX('Tabelas 2 e 3 mob'!A:K,MATCH(A25,'Tabelas 2 e 3 mob'!A:A,0),9),"ERRO") -> E9509 | D25: 1 | E25: 1 | F25: 1 | G25: =IF(C25="Veículo(s) da própria frota.",0,INDEX(Equipamentos!B:K,MATCH(C25,Equipamentos!A:A,0),10)) -> 71.4972 | H25: 1.19162
A26: E9762 | B26: =VLOOKUP(A26,Equipamentos!$A:$K,2,FALSE) -> Rolo compactador de pneus autopropelido de 27 t - 85 kW | C26: =IFERROR(INDEX('Tabelas 2 e 3 mob'!A:K,MATCH(A26,'Tabelas 2 e 3 mob'!A:A,0),9),"ERRO") -> E9666 | D26: 1 | E26: 2 | F26: 0.5 | G26: =IF(C26="Veículo(s) da própria frota.",0,INDEX(Equipamentos!B:K,MATCH(C26,Equipamentos!A:A,0),10)) -> 125.8871 | H26: 2.098118333
A27: E9681 | B27: =VLOOKUP(A27,Equipamentos!$A:$K,2,FALSE) -> Rolo compactador liso tandem vibratório autopropelido de 10,4 t - 82 kW | C27: =IFERROR(INDEX('Tabelas 2 e 3 mob'!A:K,MATCH(A27,'Tabelas 2 e 3 mob'!A:A,0),9),"ERRO") -> E9666 | D27: 1 | E27: 2 | F27: 0.5 | G27: =IF(C27="Veículo(s) da própria frota.",0,INDEX(Equipamentos!B:K,MATCH(C27,Equipamentos!A:A,0),10)) -> 125.8871 | H27: 2.098118333
A28: E9545 | B28: =VLOOKUP(A28,Equipamentos!$A:$K,2,FALSE) -> Vibroacabadora de asfalto sobre esteiras - 82 kW | C28: =IFERROR(INDEX('Tabelas 2 e 3 mob'!A:K,MATCH(A28,'Tabelas 2 e 3 mob'!A:A,0),9),"ERRO") -> E9018 | D28: 1 | E28: 2 | F28: 0.5 | G28: =IF(C28="Veículo(s) da própria frota.",0,INDEX(Equipamentos!B:K,MATCH(C28,Equipamentos!A:A,0),10)) -> 166.9692 | H28: 2.78282
A29: E9571 | B29: =VLOOKUP(A29,Equipamentos!$A:$K,2,FALSE) -> Caminhão tanque com capacidade de 10.000 l - 188 kW | C29: =IFERROR(INDEX('Tabelas 2 e 3 mob'!A:K,MATCH(A29,'Tabelas 2 e 3 mob'!A:A,0),9),"ERRO") -> E9571 | D29: 1 | E29: 1 | F29: 1 | G29: =IF(C29="Veículo(s) da própria frota.",0,INDEX(Equipamentos!B:K,MATCH(C29,Equipamentos!A:A,0),10)) -> 81.0426 | H29: 1.35071
A30: E9514 | B30: =VLOOKUP(A30,Equipamentos!$A:$K,2,FALSE) -> Distribuidor de agregados sobre pneus autopropelido - 130 kW | C30: =IFERROR(INDEX('Tabelas 2 e 3 mob'!A:K,MATCH(A30,'Tabelas 2 e 3 mob'!A:A,0),9),"ERRO") -> E9665 | D30: 1 | E30: 2 | F30: 0.5 | G30: =IF(C30="Veículo(s) da própria frota.",0,INDEX(Equipamentos!B:K,MATCH(C30,Equipamentos!A:A,0),10)) -> 121.2906 | H30: 2.02151
A31: E9511 | B31: =VLOOKUP(A31,Equipamentos!$A:$K,2,FALSE) -> Carregadeira de pneus com capacidade de 3,40 m³ - 195 kW | C31: =IFERROR(INDEX('Tabelas 2 e 3 mob'!A:K,MATCH(A31,'Tabelas 2 e 3 mob'!A:A,0),9),"ERRO") -> E9665 | D31: 1 | E31: 2 | F31: 1 | G31: =IF(C31="Veículo(s) da própria frota.",0,INDEX(Equipamentos!B:K,MATCH(C31,Equipamentos!A:A,0),10)) -> 121.2906 | H31: 4.04302
A32: E9779 | B32: =VLOOKUP(A32,Equipamentos!$A:$K,2,FALSE) -> Grupo gerador - 113 kVA | C32: =IFERROR(INDEX('Tabelas 2 e 3 mob'!A:K,MATCH(A32,'Tabelas 2 e 3 mob'!A:A,0),9),"ERRO") -> Veículo(s) da própria frota. | D32: 1 | E32: 2 | F32: 0 | G32: =IF(C32="Veículo(s) da própria frota.",0,INDEX(Equipamentos!B:K,MATCH(C32,Equipamentos!A:A,0),10)) -> 0 | H32: 0
A33: E9559 | B33: =VLOOKUP(A33,Equipamentos!$A:$K,2,FALSE) -> Aquecedor de fluido térmico - 12 kW | C33: =IFERROR(INDEX('Tabelas 2 e 3 mob'!A:K,MATCH(A33,'Tabelas 2 e 3 mob'!A:A,0),9),"ERRO") -> Veículo(s) da própria frota. | D33: 1 | E33: 2 | F33: 0 | G33: =IF(C33="Veículo(s) da própria frota.",0,INDEX(Equipamentos!B:K,MATCH(C33,Equipamentos!A:A,0),10)) -> 0 | H33: 0
A34: E9584 | B34: =VLOOKUP(A34,Equipamentos!$A:$K,2,FALSE) -> Carregadeira de pneus com capacidade de 1,72 m³ - 113 kW | C34: =IFERROR(INDEX('Tabelas 2 e 3 mob'!A:K,MATCH(A34,'Tabelas 2 e 3 mob'!A:A,0),9),"ERRO") -> E9665 | D34: 1 | E34: 2 | F34: 1 | G34: =IF(C34="Veículo(s) da própria frota.",0,INDEX(Equipamentos!B:K,MATCH(C34,Equipamentos!A:A,0),10)) -> 121.2906 | H34: 4.04302
A35: E9021 | B35: =VLOOKUP(A35,Equipamentos!$A:$K,2,FALSE) -> Grupo gerador - 456 kVA | C35: =IFERROR(INDEX('Tabelas 2 e 3 mob'!A:K,MATCH(A35,'Tabelas 2 e 3 mob'!A:A,0),9),"ERRO") -> E9508 | D35: 1 | E35: 2 | F35: 1 | G35: =IF(C35="Veículo(s) da própria frota.",0,INDEX(Equipamentos!B:K,MATCH(C35,Equipamentos!A:A,0),10)) -> 67.6169 | H35: 2.253896667
A36: E9687 | B36: =VLOOKUP(A36,Equipamentos!$A:$K,2,FALSE) -> Caminhão carroceria com capacidade de 5 t - 115 kW | C36: =IFERROR(INDEX('Tabelas 2 e 3 mob'!A:K,MATCH(A36,'Tabelas 2 e 3 mob'!A:A,0),9),"ERRO") -> E9687 | D36: 1 | E36: 1 | F36: 1 | G36: =IF(C36="Veículo(s) da própria frota.",0,INDEX(Equipamentos!B:K,MATCH(C36,Equipamentos!A:A,0),10)) -> 56.0967 | H36: 0.934945
A37: E9667 | B37: =VLOOKUP(A37,Equipamentos!$A:$K,2,FALSE) -> Caminhão basculante com capacidade de 14 m³ - 188 kW | C37: =IFERROR(INDEX('Tabelas 2 e 3 mob'!A:K,MATCH(A37,'Tabelas 2 e 3 mob'!A:A,0),9),"ERRO") -> E9667 | D37: 1 | E37: 1 | F37: 1 | G37: =IF(C37="Veículo(s) da própria frota.",0,INDEX(Equipamentos!B:K,MATCH(C37,Equipamentos!A:A,0),10)) -> 90.5667 | H37: 1.509445
A38: E9644 | B38: =VLOOKUP(A38,Equipamentos!$A:$K,2,FALSE) -> Caminhão demarcador de faixas com sistema de pintura a frio - 28 kW/115 kW | C38: =IFERROR(INDEX('Tabelas 2 e 3 mob'!A:K,MATCH(A38,'Tabelas 2 e 3 mob'!A:A,0),9),"ERRO") -> E9644 | D38: 1 | E38: 1 | F38: 1 | G38: =IF(C38="Veículo(s) da própria frota.",0,INDEX(Equipamentos!B:K,MATCH(C38,Equipamentos!A:A,0),10)) -> 150.2002 | H38: 2.503336667
A39: E9592 | B39: =VLOOKUP(A39,Equipamentos!$A:$K,2,FALSE) -> Caminhão carroceria com capacidade de 15 t - 188 kW | C39: =IFERROR(INDEX('Tabelas 2 e 3 mob'!A:K,MATCH(A39,'Tabelas 2 e 3 mob'!A:A,0),9),"ERRO") -> E9592 | D39: 1 | E39: 1 | F39: 1 | G39: =IF(C39="Veículo(s) da própria frota.",0,INDEX(Equipamentos!B:K,MATCH(C39,Equipamentos!A:A,0),10)) -> 75.9563 | H39: 1.265938333
A40: E9540 | B40: =VLOOKUP(A40,Equipamentos!$A:$K,2,FALSE) -> Trator sobre esteiras com lâmina - 127 kW | C40: =IFERROR(INDEX('Tabelas 2 e 3 mob'!A:K,MATCH(A40,'Tabelas 2 e 3 mob'!A:A,0),9),"ERRO") -> E9018 | D40: 1 | E40: 2 | F40: 0.5 | G40: =IF(C40="Veículo(s) da própria frota.",0,INDEX(Equipamentos!B:K,MATCH(C40,Equipamentos!A:A,0),10)) -> 166.9692 | H40: 2.78282
A41: E9515 | B41: =VLOOKUP(A41,Equipamentos!$A:$K,2,FALSE) -> Escavadeira hidráulica sobre esteiras com caçamba com capacidade de 1,56 m³ - 118 kW | C41: =IFERROR(INDEX('Tabelas 2 e 3 mob'!A:K,MATCH(A41,'Tabelas 2 e 3 mob'!A:A,0),9),"ERRO") -> E9666 | D41: 1 | E41: 2 | F41: 1 | G41: =IF(C41="Veículo(s) da própria frota.",0,INDEX(Equipamentos!B:K,MATCH(C41,Equipamentos!A:A,0),10)) -> 125.8871 | H41: 4.196236667
A42: E9506 | B42: =VLOOKUP(A42,Equipamentos!$A:$K,2,FALSE) -> Caminhão basculante com capacidade de 6 m³ - 136 kW | C42: =IFERROR(INDEX('Tabelas 2 e 3 mob'!A:K,MATCH(A42,'Tabelas 2 e 3 mob'!A:A,0),9),"ERRO") -> E9506 | D42: 1 | E42: 1 | F42: 1 | G42: =IF(C42="Veículo(s) da própria frota.",0,INDEX(Equipamentos!B:K,MATCH(C42,Equipamentos!A:A,0),10)) -> 69.0269 | H42: 1.150448333
A43: E9256 | B43: =VLOOKUP(A43,Equipamentos!$A:$K,2,FALSE) -> Equipamento para pintura com cal rebocável com dois bicos aplicadores e capacidade de 2.200 l | C43: =IFERROR(INDEX('Tabelas 2 e 3 mob'!A:K,MATCH(A43,'Tabelas 2 e 3 mob'!A:A,0),9),"ERRO") -> Veículo(s) da própria frota. | D43: 1 | E43: 2 | F43: 0 | G43: =IF(C43="Veículo(s) da própria frota.",0,INDEX(Equipamentos!B:K,MATCH(C43,Equipamentos!A:A,0),10)) -> 0 | H43: 0
A44: E9156 | B44: =VLOOKUP(A44,Equipamentos!$A:$K,2,FALSE) -> Soprador de ar costal - 2,6 kW | C44: =IFERROR(INDEX('Tabelas 2 e 3 mob'!A:K,MATCH(A44,'Tabelas 2 e 3 mob'!A:A,0),9),"ERRO") -> Veículo(s) da própria frota. | D44: 1 | E44: 2 | F44: 0 | G44: =IF(C44="Veículo(s) da própria frota.",0,INDEX(Equipamentos!B:K,MATCH(C44,Equipamentos!A:A,0),10)) -> 0 | H44: 0
A45: E9146 | B45: =VLOOKUP(A45,Equipamentos!$A:$K,2,FALSE) -> Caminhão silo com capacidade de 30 m³ - 265 kW | C45: =IFERROR(INDEX('Tabelas 2 e 3 mob'!A:K,MATCH(A45,'Tabelas 2 e 3 mob'!A:A,0),9),"ERRO") -> E9146 | D45: 1 | E45: 1 | F45: 1 | G45: =IF(C45="Veículo(s) da própria frota.",0,INDEX(Equipamentos!B:K,MATCH(C45,Equipamentos!A:A,0),10)) -> 108.7388 | H45: 1.812313333
A46: E9010 | B46: =VLOOKUP(A46,Equipamentos!$A:$K,2,FALSE) -> Balança plataforma digital à bateria, com mesa de 75 x 75 cm e capacidade de 500 kg | C46: =IFERROR(INDEX('Tabelas 2 e 3 mob'!A:K,MATCH(A46,'Tabelas 2 e 3 mob'!A:A,0),9),"ERRO") -> Veículo(s) da própria frota. | D46: 1 | E46: 2 | F46: 0 | G46: =IF(C46="Veículo(s) da própria frota.",0,INDEX(Equipamentos!B:K,MATCH(C46,Equipamentos!A:A,0),10)) -> 0 | H46: 0
A47: E9519 | B47: =VLOOKUP(A47,Equipamentos!$A:$K,2,FALSE) -> Betoneira com motor a gasolina com capacidade de 600 l - 10 kW | C47: =IFERROR(INDEX('Tabelas 2 e 3 mob'!A:K,MATCH(A47,'Tabelas 2 e 3 mob'!A:A,0),9),"ERRO") -> Veículo(s) da própria frota. | D47: 1 | E47: 2 | F47: 0 | G47: =IF(C47="Veículo(s) da própria frota.",0,INDEX(Equipamentos!B:K,MATCH(C47,Equipamentos!A:A,0),10)) -> 0 | H47: 0
A48: E9071 | B48: =VLOOKUP(A48,Equipamentos!$A:$K,2,FALSE) -> Transportador manual carrinho de mão com capacidade de 80 l | C48: =IFERROR(INDEX('Tabelas 2 e 3 mob'!A:K,MATCH(A48,'Tabelas 2 e 3 mob'!A:A,0),9),"ERRO") -> Veículo(s) da própria frota. | D48: 1 | E48: 2 | F48: 0 | G48: =IF(C48="Veículo(s) da própria frota.",0,INDEX(Equipamentos!B:K,MATCH(C48,Equipamentos!A:A,0),10)) -> 0 | H48: 0
A49: E9064 | B49: =VLOOKUP(A49,Equipamentos!$A:$K,2,FALSE) -> Transportador manual gerica com capacidade de 180 l | C49: =IFERROR(INDEX('Tabelas 2 e 3 mob'!A:K,MATCH(A49,'Tabelas 2 e 3 mob'!A:A,0),9),"ERRO") -> Veículo(s) da própria frota. | D49: 1 | E49: 2 | F49: 0 | G49: =IF(C49="Veículo(s) da própria frota.",0,INDEX(Equipamentos!B:K,MATCH(C49,Equipamentos!A:A,0),10)) -> 0 | H49: 0
A50: E9066 | B50: =VLOOKUP(A50,Equipamentos!$A:$K,2,FALSE) -> Grupo gerador - 14 kVA | C50: =IFERROR(INDEX('Tabelas 2 e 3 mob'!A:K,MATCH(A50,'Tabelas 2 e 3 mob'!A:A,0),9),"ERRO") -> Veículo(s) da própria frota. | D50: 1 | E50: 2 | F50: 0 | G50: =IF(C50="Veículo(s) da própria frota.",0,INDEX(Equipamentos!B:K,MATCH(C50,Equipamentos!A:A,0),10)) -> 0 | H50: 0
A51: E9535 | B51: =VLOOKUP(A51,Equipamentos!$A:$K,2,FALSE) -> Serra circular com bancada - D = 30 cm - 4 kW | C51: =IFERROR(INDEX('Tabelas 2 e 3 mob'!A:K,MATCH(A51,'Tabelas 2 e 3 mob'!A:A,0),9),"ERRO") -> Veículo(s) da própria frota. | D51: 1 | E51: 2 | F51: 0 | G51: =IF(C51="Veículo(s) da própria frota.",0,INDEX(Equipamentos!B:K,MATCH(C51,Equipamentos!A:A,0),10)) -> 0 | H51: 0
A52: E9507 | B52: =VLOOKUP(A52,Equipamentos!$A:$K,2,FALSE) -> Plotadora de recorte com computador e programa computacional | C52: =IFERROR(INDEX('Tabelas 2 e 3 mob'!A:K,MATCH(A52,'Tabelas 2 e 3 mob'!A:A,0),9),"ERRO") -> Veículo(s) da própria frota. | D52: 1 | E52: 2 | F52: 0 | G52: =IF(C52="Veículo(s) da própria frota.",0,INDEX(Equipamentos!B:K,MATCH(C52,Equipamentos!A:A,0),10)) -> 0 | H52: 0
A53: E9568 | B53: =VLOOKUP(A53,Equipamentos!$A:$K,2,FALSE) -> Furadeira de impacto de 12,5 mm - 0,80 kW | C53: =IFERROR(INDEX('Tabelas 2 e 3 mob'!A:K,MATCH(A53,'Tabelas 2 e 3 mob'!A:A,0),9),"ERRO") -> Veículo(s) da própria frota. | D53: 1 | E53: 2 | F53: 0 | G53: =IF(C53="Veículo(s) da própria frota.",0,INDEX(Equipamentos!B:K,MATCH(C53,Equipamentos!A:A,0),10)) -> 0 | H53: 0
A54: E9753 | B54: =VLOOKUP(A54,Equipamentos!$A:$K,2,FALSE) -> Grupo gerador - 23 kVA | C54: =IFERROR(INDEX('Tabelas 2 e 3 mob'!A:K,MATCH(A54,'Tabelas 2 e 3 mob'!A:A,0),9),"ERRO") -> Veículo(s) da própria frota. | D54: 1 | E54: 2 | F54: 0 | G54: =IF(C54="Veículo(s) da própria frota.",0,INDEX(Equipamentos!B:K,MATCH(C54,Equipamentos!A:A,0),10)) -> 0 | H54: 0
A55: E9623 | B55: =VLOOKUP(A55,Equipamentos!$A:$K,2,FALSE) -> Máquina de bancada guilhotina - 4,00 kW | C55: =IFERROR(INDEX('Tabelas 2 e 3 mob'!A:K,MATCH(A55,'Tabelas 2 e 3 mob'!A:A,0),9),"ERRO") -> Veículo(s) da própria frota. | D55: 1 | E55: 2 | F55: 0 | G55: =IF(C55="Veículo(s) da própria frota.",0,INDEX(Equipamentos!B:K,MATCH(C55,Equipamentos!A:A,0),10)) -> 0 | H55: 0
A56: E9622 | B56: =VLOOKUP(A56,Equipamentos!$A:$K,2,FALSE) -> Máquina de bancada universal para corte de chapa - 1,50 kW | C56: =IFERROR(INDEX('Tabelas 2 e 3 mob'!A:K,MATCH(A56,'Tabelas 2 e 3 mob'!A:A,0),9),"ERRO") -> Veículo(s) da própria frota. | D56: 1 | E56: 2 | F56: 0 | G56: =IF(C56="Veículo(s) da própria frota.",0,INDEX(Equipamentos!B:K,MATCH(C56,Equipamentos!A:A,0),10)) -> 0 | H56: 0
A57: E9678 | B57: =VLOOKUP(A57,Equipamentos!$A:$K,2,FALSE) -> Fresadora a frio - 455 kW | C57: =IFERROR(INDEX('Tabelas 2 e 3 mob'!A:K,MATCH(A57,'Tabelas 2 e 3 mob'!A:A,0),9),"ERRO") -> E9666 | D57: 0 | E57: 2 | F57: 1 | G57: =IF(C57="Veículo(s) da própria frota.",0,INDEX(Equipamentos!B:K,MATCH(C57,Equipamentos!A:A,0),10)) -> 125.8871 | H57: 0
G58: TOTAL | H58: =SUM(H13:H57) -> 91.24073833
A61: CUSTO TOTAL MOBILIZAÇÃO E DESMOBILIZAÇÃO
A62: DESCRIÇÃO | B62: VALOR
A63: Custo Mobilização (km) | B63: =H58 -> 91.24073833
A64: BDI (%) | B64: =BDI!C17 -> 0.2339
A65: Custo Mobilização (R$/km) com BDI | B65: =B63+(B63*B64) -> 112.581947
A66: Total de Frentes | B66: ='MC MODULO'!G1 -> 17
A67: Custo Mobilização (frentes x distancia) | B67: =B65*H6*B66 -> 191389.31

Sheet Canteiro
A4: CANTEIRO DE OBRAS PARA CONSTRUÇAO RODOVIÁRIA
A5: Descrição dos serviços | B5: Tipo de container | C5: Unidade | D5: Quantidade | E5: Preço unitário (R$) | F5: Total (R$)
A6: Escritório e seção técnica
A7: =VLOOKUP(B7,'INSUMOS SINAPI'!A:E,2,0) -> LOCACAO DE CONTAINER 2,30 X 6,00 M, ALT. 2,50 M, PARA ESCRITORIO, SEM DIVISORIAS INTERNAS E SEM SANITARIO (NAO INCLUI MOBILIZACAO/DESMOBILIZACAO) | B7: 10776 | C7: und | D7: 1 | E7: =VLOOKUP(B7,'INSUMOS SINAPI'!A:E,5,0) -> 640.62 | F7: =TRUNC(D7*E7,2) -> 640.62
A8: Banheiro e vestiário
A9: =VLOOKUP(B9,'INSUMOS SINAPI'!A:E,2,0) -> LOCACAO DE CONTAINER 2,30 X 4,30 M, ALT. 2,50 M, PARA SANITARIO, COM 3 BACIAS, 4 CHUVEIROS, 1 LAVATORIO E 1 MICTORIO (NAO INCLUI MOBILIZACAO/DESMOBILIZACAO) | B9: 10777 | C9: und | D9: 1 | E9: =VLOOKUP(B9,'INSUMOS SINAPI'!A:E,5,0) -> 931.04 | F9: =TRUNC(D9*E9,2) -> 931.04
D10: TOTAL DO CANTEIRO | F10: =SUM(F7:F9) -> 1571.66
D11: DURAÇÃO (MESES) | E11: 12 | F11: =F10*E11 -> 18859.92
D12: BDI | F12: =BDI!C17 -> 0.2339
D13: TOTAL DO CANTEIRO (com BDI) | F13: =F11+(F11*F12) -> 23271.25529

Sheet CPU CODEVASF
A4: ='RESUMO MODULO TOTAL'!B1 -> CONTRATAÇÃO DE SERVIÇOS DE PAVIMENTAÇÃO ASFÁLTICA COM CONCRETO BETUMINOSO USINADO A QUENTE (CBUQ) EM VIAS URBANAS E RURAIS INSERIDAS NA ÁREA DE ATUAÇÃO DA CODEVASF, NO ESTADO DE ALAGOAS - REGIÃO 2
F5: BDI %: | G5: =BDI!$C$17 -> 0.2339
E6: Encargos Sociais: | G6: Horista | H6: Mensalista
G7: ='ENC. SOCIAIS'!E51/100 -> 1.1522 | H7: ='ENC. SOCIAIS'!F51/100 -> 0.7031
A8: COMPOSIÇÕES DE CUSTO UNITARIO
A9: CPU-12 | B9: CODEVASF | D9: Correção de vazamentos no ramal na rua sem pavimento com fornecimento do material hidráulico | E9: M | F9: COEF. | G9: PRECO UNITÁRIO (R$) | H9: TOTAL (R$)
A11: SICRO | B11: SICRO | C11: P9824 | D11: =VLOOKUP(C11,'Pessoal Sicro'!$A$5:$G$1048576,2,0) -> Servente | E11: H | F11: 0.2 | G11: =VLOOKUP(C11,'Pessoal Sicro'!$A$5:$G$1048576,6,0) -> 19.4893 | H11: =F11*G11 -> 3.89786
A12: SICRO | B12: SICRO | C12: P9807 | D12: =VLOOKUP(C12,'Pessoal Sicro'!$A$5:$G$1048576,2,0) -> Bombeiro hidráulico | E12: H | F12: 0.1 | G12: =VLOOKUP(C12,'Pessoal Sicro'!$A$5:$G$1048576,6,0) -> 29.7813 | H12: 2.97813
A13: INS. SINAPI | B13: SINAPI | C13: 9867 | D13: TUBO PVC, SOLDAVEL, DN 20 MM, AGUA FRIA (NBR-5648) | E13: m | F13: 1 | G13: =IFERROR(VLOOKUP(C13,'INSUMOS SINAPI'!A:E,5,FALSE),VLOOKUP(C13,'COMP Sint. Sinapi'!G:K,5,FALSE)) -> 4.01 | H13: 4.01
A14: INSUMO | B14: ORSE | C14: 10585 | D14: Arco de serra | E14: un | F14: 0.1 | G14: 19.9 | H14: 1.99
A15: INS. SINAPI | B15: SINAPI | C15: 3859 | D15: LUVA SOLDAVEL COM ROSCA, PVC, 20 MM X 1/2", PARA AGUA FRIA PREDIAL | E15: un | F15: 2 | G15: =IFERROR(VLOOKUP(C15,'INSUMOS SINAPI'!A:E,5,FALSE),VLOOKUP(C15,'COMP Sint. Sinapi'!G:K,5,FALSE)) -> 1.44 | H15: 2.88
E16: Sub total: | H16: =SUM(H11:H15) -> 15.75599
F17: BDI | G17: =BDI!$C$17 -> 0.2339 | H17: =H16*G17 -> 3.685326061
G18: Total Serviços: | H18: =H16+H17 -> 19.44131606
E19: =A9 -> CPU-12 | F19: PREÇO UNITÁRIO TOTAL: | H19: =H18 -> 19.44131606 | I19: =H16 -> 15.75599
A21: CPU-13 | B21: CODEVASF | D21: AQUISIÇÃO DE CIMENTO ASFALTICO CAP 50/70 | E21: t | F21: COEF. | G21: PRECO UNITÁRIO (R$) | H21: TOTAL (R$)
D23: CIMENTO ASFALTICO 50/70 | E23: t | F23: 1 | G23: =RESUMO_Transp!$V$17 -> 4475.099923 | H23: =F23*G23 -> 4475.099923
E24: Sub total: | H24: =SUM(H23) -> 4475.099923
F25: BDI | G25: 0.15 | H25: =H24*G25 -> 671.2649884
G26: Total Serviços: | H26: =H24+H25 -> 5146.364911
E27: =A21 -> CPU-13 | F27: PREÇO UNITÁRIO TOTAL: | H27: =H26 -> 5146.364911 | I27: =H24 -> 4475.099923
A29: CPU-14 | B29: CODEVASF | D29: AQUISIÇÃO DE EAI | E29: t | F29: COEF. | G29: PRECO UNITÁRIO (R$) | H29: TOTAL (R$)
D31: EAI | E31: t | F31: 1 | G31: =RESUMO_Transp!$V$35 -> 3111.918746 | H31: =F31*G31 -> 3111.918746
E32: Sub total: | H32: =SUM(H31) -> 3111.918746
F33: BDI | G33: 0.15 | H33: =H32*G33 -> 466.7878119
G34: Total Serviços: | H34: =H32+H33 -> 3578.706558
E35: =A29 -> CPU-14 | F35: PREÇO UNITÁRIO TOTAL: | H35: =H34 -> 3578.706558 | I35: =H32 -> 3111.918746
A37: CPU-15 | B37: CODEVASF | D37: AQUISIÇÃO DE EMULSÃO ASFÁLTICA RR-1C | E37: t | F37: COEF. | G37: PRECO UNITÁRIO (R$) | H37: TOTAL (R$)
D39: EMULSÃO ASFÁLTICA RR-1C | E39: t | F39: 1 | G39: =RESUMO_Transp!$V$42 -> 2932.238631 | H39: =F39*G39 -> 2932.238631
E40: Sub total: | H40: =SUM(H39) -> 2932.238631
F41: BDI | G41: 0.15 | H41: =ROUND(H40,2)*ROUND(G41,4) -> 439.836
G42: Total Serviços: | H42: =H40+H41 -> 3372.074631
E43: =A37 -> CPU-15 | F43: PREÇO UNITÁRIO TOTAL: | H43: =H42 -> 3372.074631 | I43: =H40 -> 2932.238631
A45: CPU-17 | B45: CODEVASF | D45: TRANSPORTE DE CIMENTO ASFALTICO CAP 50/70 | E45: t | F45: COEF. | G45: PRECO UNITÁRIO (R$) | H45: TOTAL (R$)
D47: TRANSPORTE DE CIMENTO ASFALTICO 50/70 | E47: t | F47: 1 | G47: =RESUMO_Transp!$U$17 -> 207.47 | H47: =F47*G47 -> 207.47
E48: Sub total: | H48: =SUM(H47) -> 207.47
F49: BDI | G49: 0.15 | H49: =H48*G49 -> 31.1205
G50: Total Serviços: | H50: =H48+H49 -> 238.5905
E51: =A45 -> CPU-17 | F51: PREÇO UNITÁRIO TOTAL: | H51: =H50 -> 238.5905 | I51: =H48 -> 207.47
A53: CPU-18 | B53: CODEVASF | D53: TRANSPORTE DE EAI | E53: t | F53: COEF. | G53: PRECO UNITÁRIO (R$) | H53: TOTAL (R$)
D55: TRANSPORTE DE EAI | E55: t | F55: 1 | G55: =RESUMO_Transp!$U$35 -> 1295.929468 | H55: =F55*G55 -> 1295.929468
E56: Sub total: | H56: =SUM(H55) -> 1295.929468
F57: BDI | G57: 0.15 | H57: =H56*G57 -> 194.3894202
G58: Total Serviços: | H58: =H56+H57 -> 1490.318888
E59: =A53 -> CPU-18 | F59: PREÇO UNITÁRIO TOTAL: | H59: =H58 -> 1490.318888 | I59: =H56 -> 1295.929468
A61: CPU-19 | B61: CODEVASF | D61: TRANSPORTE DE EMULSÃO ASFÁLTICA RR-1C | E61: t | F61: COEF. | G61: PRECO UNITÁRIO (R$) | H61: TOTAL (R$)
D63: TRANSPORTE DE EMULSÃO ASFÁLTICA RR-1C | E63: t | F63: 1 | G63: =RESUMO_Transp!$U$42 -> 1295.929468 | H63: =F63*G63 -> 1295.929468
E64: Sub total: | H64: =SUM(H63) -> 1295.929468
F65: BDI | G65: 0.15 | H65: =H64*G65 -> 194.3894202
G66: Total Serviços: | H66: =H64+H65 -> 1490.318888
E67: =A61 -> CPU-19 | F67: PREÇO UNITÁRIO TOTAL: | H67: =H66 -> 1490.318888 | I67: =H64 -> 1295.929468

Sheet Adm Local
A2: parcela fixa da administração local (mão de obra)
A3: Código | B3: Discriminação | C3: Unidade | D3: Quantidade | F3: Custo Unitário (R$) | H3: Custo Total (R$)
B4: Mão de Obra
B5: Gerência Técnica
B6: Geral
A7: ='Pessoal Sicro'!A116 -> P9955 | B7: Engenheiro chefe | C7: mês | D7: 0.5 | F7: =VLOOKUP(A7,'Pessoal Sicro'!$A$6:$G$118,6,0) -> 30407.4131 | H7: =F7*D7 -> 15203.70655
A8: ='Pessoal Sicro'!A32 -> P9842 | B8: Encarregado geral | C8: mês | D8: 0.5 | F8: =VLOOKUP(A8,'Pessoal Sicro'!$A$6:$G$118,6,0) -> 3637.3497 | H8: =F8*D8 -> 1818.67485
A9: ='Pessoal Sicro'!A72 -> P9907 | B9: Técnico de meio ambiente | C9: mês | D9: 0 | F9: =VLOOKUP(A9,'Pessoal Sicro'!$A$6:$G$118,6,0) -> 21273.4262 | H9: =F9*D9 -> 0
A10: ='Pessoal Sicro'!A109 -> P9948 | B10: Motorista | C10: mês | D10: 0 | F10: =VLOOKUP(A10,'Pessoal Sicro'!$A$6:$G$118,6,0) -> 5234.5662 | H10: =F10*D10 -> 0
A11: ='Pessoal Sicro'!A61 -> P9883 | B11: Secretária | C11: mês | D11: 0 | F11: =VLOOKUP(A11,'Pessoal Sicro'!$A$6:$G$118,6,0) -> 7537.6125 | H11: =F11*D11 -> 0
F12: Subtotal do Item 1.1 | H12: =SUM(H7:I11) -> 17022.3814
B13: Auxiliar
A14: ='Pessoal Sicro'!A107 -> P9946 | B14: Engenheiro auxiliar | C14: mês | D14: 1 | F14: =VLOOKUP(A14,'Pessoal Sicro'!$A$6:$G$118,6,0) -> 22006.231 | H14: =D14*F14 -> 22006.231
A15: ='Pessoal Sicro'!A75 -> P9910 | B15: Auxiliar técnico | C15: mês | D15: 0 | F15: =VLOOKUP(A15,'Pessoal Sicro'!$A$6:$G$118,6,0) -> 6115.7266 | H15: =D15*F15 -> 0
F16: Subtotal do Item 1.2 | H16: =SUM(H14:I15) -> 22006.231
B17: Gerência Administrativa
B18: Geral
A19: ='Pessoal Sicro'!A64 -> P9889 | B19: Chefe do setor administrativo | C19: mês | D19: 1 | F19: =VLOOKUP(A19,'Pessoal Sicro'!$A$6:$G$118,6,0) -> 7154.6869 | H19: =F19*D19 -> 7154.6869
A20: ='Pessoal Sicro'!A14 -> P9809 | B20: Encarregado administrativo | C20: mês | D20: 0 | F20: =VLOOKUP(A20,'Pessoal Sicro'!$A$6:$G$118,6,0) -> 7538.1643 | H20: =F20*D20 -> 0
A21: ='Pessoal Sicro'!A71 -> P9903 | B21: Porteiro | C21: mês | D21: 0 | F21: =VLOOKUP(A21,'Pessoal Sicro'!$A$6:$G$118,6,0) -> 4160.1726 | H21: =F21*D21 -> 0
A22: ='Pessoal Sicro'!A27 -> P9827 | B22: Vigia | C22: mês | D22: 0 | F22: =VLOOKUP(A22,'Pessoal Sicro'!$A$6:$G$118,6,0) -> 4311.3189 | H22: =F22*D22 -> 0
A23: ='Pessoal Sicro'!A109 -> P9948 | B23: Motorista | C23: mês | D23: 0 | F23: =VLOOKUP(A23,'Pessoal Sicro'!$A$6:$G$118,6,0) -> 5234.5662 | H23: =F23*D23 -> 0
F24: Subtotal do Item 1.3 | H24: =SUM(H19:I23) -> 7154.6869
B25: Auxiliar
A26: ='Pessoal Sicro'!A11 -> P9806 | B26: Auxiliar administrativo | C26: mês | D26: 1 | F26: =VLOOKUP(A26,'Pessoal Sicro'!$A$6:$G$118,6,0) -> 4014.0121 | H26: =F26*D26 -> 4014.0121
A27: ='Pessoal Sicro'!A33 -> P9843 | B27: Faxineiro | C27: mês | D27: 0 | F27: =VLOOKUP(A27,'Pessoal Sicro'!$A$6:$G$118,6,0) -> 23.1826 | H27: =F27*D27 -> 0
F28: Subtotal do Item 1.4 | H28: =SUM(H26:I27) -> 4014.0121
H29: Total da Mão de Obra da Parcela Fixa | I29: =H28+H24+H16+H12 -> 50197.3114
A31: parcela fixa da administração local (veículos)
A32: Código | B32: Discriminação | C32: Unidade | D32: Quantidade | E32: Utilização Produtiva | F32: Utilização Improdutiva | G32: Custo Horário Produtivo (R$) | H32: Custo Horário Improdutivo (R$) | I32: Custo Total (R$)
A33: 2 | B33: Veículos
B34: Gerência Técnica
A35: 2.1 | B35: Geral
A36: E9093 | B36: Veículo Leve 53 kw | C36: mês | D36: 1 | E36: 44 | F36: 176 | G36: =Equipamentos!J84 -> 34.9113 | H36: =Equipamentos!K84 -> 6.5642 | I36: =((E36*G36)+(F36*H36))*D36 -> 2691.3964
A37: E9560 | B37: Ônibus coletivo - 175 kw | C37: mês | D37: 0 | E37: 44 | F37: 176 | G37: =Equipamentos!J193 -> 70.1948 | H37: =Equipamentos!J193 -> 70.1948 | I37: =((E37*G37)+(F37*H37))*D37 -> 0
H38: Subtotal do Item 2 | I38: =SUM(I36:I37) -> 2691.3964
A39: 2.2 | B39: Auxiliar
A40: E9093 | B40: Veículo Leve 53 kw | C40: mês | D40: 0 | E40: 44 | F40: 176 | G40: =G36 -> 34.9113 | H40: =H36 -> 6.5642 | I40: =((E40*G40)+(F40*H40))*D40 -> 0
H41: Subtotal do Item 2 | I41: =SUM(I40) -> 0
A42: 2.3 | B42: Gerência Administrativa
A43: E9093 | B43: Veículo Leve 53 kw | C43: mês | D43: 0 | E43: 44 | F43: 176 | G43: =G36 -> 34.9113 | H43: =H36 -> 6.5642 | I43: =((E43*G43)+(F43*H43))*D43 -> 0
H44: Subtotal do Item 2 | I44: =I43 -> 0
H45: Total dos Veículos da Parcela Fixa | I45: =I44+I41+I38 -> 2691.3964
A47: Composição de custo da equipe de produção de terraplenagem
A48: Código | B48: Discriminação | C48: Unidade | D48: Quantidade | F48: Custo Unitário (R$) | H48: Custo Total (R$)
B49: Equipe de Produção de Terraplenagem
A50: 3.1 | B50: Mão de Obra
A51: ='Pessoal Sicro'!A65 -> P9892 | B51: Encarregado de produção | C51: mês | D51: 1 | F51: =VLOOKUP(A51,'Pessoal Sicro'!$A$6:$G$118,6,0) -> 32.6198 | H51: =F51*D51 -> 32.6198
F52: Subtotal do Item 3.1 | H52: =SUM(H51:H51) -> 32.6198
A53: Código | B53: Discriminação | C53: Unidade | D53: Quantidade | E53: Utilização Produtiva | F53: Utilização Improdutiva | G53: Custo Horário Produtivo (R$) | H53: Custo Horário Improdutivo (R$) | I53: Custo Total (R$)
A54: 3.2 | B54: Veículos
B55: Veículo Leve 53 kw | C55: mês | D55: 1 | E55: 44 | F55: 176 | G55: =G36 -> 34.9113 | H55: =H36 -> 6.5642 | I55: =((E55*G55)+(F55*H55))*D55 -> 2691.3964
H56: Subtotal do Item 3.2 | I56: =SUM(I55:I55) -> 2691.3964
H57: Total da Equipe de Produção de Terraplenagem | I57: =I56+H52 -> 2724.0162
A59: Composição de custo da equipe de produção de pavimentação
A60: Código | B60: Discriminação | C60: Unidade | D60: Quantidade | F60: Custo Unitário (R$) | H60: Custo Total (R$)
B61: Equipe de Produção de Pavimentação
A62: 3.1 | B62: Mão de Obra
A63: ='Pessoal Sicro'!$A$70 -> P9901 | B63: Encarregado de produção | C63: mês | D63: 1 | F63: =VLOOKUP(A63,'Pessoal Sicro'!$A$6:$G$118,6,0) -> 7054.6753 | H63: =F63*D63 -> 7054.6753
F64: Subtotal do Item 3.1 | H64: =SUM(H63:H63) -> 7054.6753
A65: Código | B65: Discriminação | C65: Unidade | D65: Quantidade | E65: Utilização Produtiva | F65: Utilização Improdutiva | G65: Custo Horário Produtivo (R$) | H65: Custo Horário Improdutivo (R$) | I65: Custo Total (R$)
A66: 3.2 | B66: Veículos
B67: Veículo Leve 53 kw | C67: mês | D67: 1 | E67: 44 | F67: 176 | G67: =$G$36 -> 34.9113 | H67: =$H$36 -> 6.5642 | I67: =((E67*G67)+(F67*H67))*D67 -> 2691.3964
H68: Subtotal do Item 3.2 | I68: =SUM(I67:I67) -> 2691.3964
H69: Total da Equipe de Produção de Pavimentação | I69: =I68+H64 -> 9746.0717
A71: Composição de custo da equipe de produção de drenagem
A72: Código | B72: Discriminação | C72: Unidade | D72: Quantidade | F72: Custo Unitário (R$) | H72: Custo Total (R$)
B73: Equipe de Produção de Pavimentação
A74: 3.1 | B74: Mão de Obra
A75: ='Pessoal Sicro'!$A$70 -> P9901 | B75: Encarregado de produção | C75: mês | D75: 1 | F75: =VLOOKUP(A75,'Pessoal Sicro'!$A$6:$G$118,6,0) -> 7054.6753 | H75: =F75*D75 -> 7054.6753
F76: Subtotal do Item 3.1 | H76: =SUM(H75:H75) -> 7054.6753
A77: Código | B77: Discriminação | C77: Unidade | D77: Quantidade | E77: Utilização Produtiva | F77: Utilização Improdutiva | G77: Custo Horário Produtivo (R$) | H77: Custo Horário Improdutivo (R$) | I77: Custo Total (R$)
A78: 3.2 | B78: Veículos
B79: Veículo Leve 53 kw | C79: mês | D79: 1 | E79: 44 | F79: 176 | G79: =$G$36 -> 34.9113 | H79: =$H$36 -> 6.5642 | I79: =((E79*G79)+(F79*H79))*D79 -> 2691.3964
H80: Subtotal do Item 3.2 | I80: =SUM(I79:I79) -> 2691.3964
H81: Total da Equipe de Produção de Pavimentação | I81: =I80+H76 -> 9746.0717
A83: Composição de custo da equipe de produção de sinalização
A84: Código | B84: Discriminação | C84: Unidade | D84: Quantidade | F84: Custo Unitário (R$) | H84: Custo Total (R$)
B85: Equipe de Produção de Pavimentação
A86: 3.1 | B86: Mão de Obra
A87: ='Pessoal Sicro'!$A$70 -> P9901 | B87: Encarregado de produção | C87: mês | D87: 1 | F87: =VLOOKUP(A87,'Pessoal Sicro'!$A$6:$G$118,6,0) -> 7054.6753 | H87: =F87*D87 -> 7054.6753
F88: Subtotal do Item 3.1 | H88: =SUM(H87:H87) -> 7054.6753
A89: Código | B89: Discriminação | C89: Unidade | D89: Quantidade | E89: Utilização Produtiva | F89: Utilização Improdutiva | G89: Custo Horário Produtivo (R$) | H89: Custo Horário Improdutivo (R$) | I89: Custo Total (R$)
A90: 3.2 | B90: Veículos
B91: Veículo Leve 53 kw | C91: mês | D91: 1 | E91: 44 | F91: 176 | G91: =$G$36 -> 34.9113 | H91: =$H$36 -> 6.5642 | I91: =((E91*G91)+(F91*H91))*D91 -> 2691.3964
H92: Subtotal do Item 3.2 | I92: =SUM(I91:I91) -> 2691.3964
H93: Total da Equipe de Produção de Pavimentação | I93: =I92+H88 -> 9746.0717
A95: Composição de custo da equipe topografia
A96: Código | B96: Discriminação | C96: Unidade | D96: Quantidade | F96: Custo Unitário (R$) | H96: Custo Total (R$)
B97: Equipe de Topografia
A98: 3.1 | B98: Mão de Obra
A99: ='Pessoal Sicro'!A110 -> P9949 | B99: Topográfo | C99: mês | D99: 1 | F99: =VLOOKUP(A99,'Pessoal Sicro'!$A$6:$G$118,6,0) -> 8112.9328 | H99: =F99*D99 -> 8112.9328
A100: ='Pessoal Sicro'!A111 -> P9950 | B100: Auxiliar de topografia | C100: mês | D100: 1 | F100: =VLOOKUP(A100,'Pessoal Sicro'!$A$6:$G$118,6,0) -> 5304.8271 | H100: =F100*D100 -> 5304.8271
F101: Subtotal do Item 3.1 | H101: =SUM(H99:I100) -> 13417.7599
A102: Código | B102: Discriminação | C102: Unidade | D102: Quantidade | E102: Utilização Produtiva | F102: Utilização Improdutiva | G102: Custo Horário Produtivo (R$) | H102: Custo Horário Improdutivo (R$) | I102: Custo Total (R$)
A103: 3.2 | B103: Veículos
B104: Veículo Leve 53 kw | C104: mês | D104: 1 | E104: 44 | F104: 176 | G104: =G36 -> 34.9113 | H104: =H36 -> 6.5642 | I104: =((E104*G104)+(F104*H104))*D104 -> 2691.3964
H105: Subtotal do Item 3.2 | I105: =SUM(I104:I104) -> 2691.3964
H106: Total da Equipe de Produção de Topografia | I106: =I105+H101 -> 16109.1563
A108: Composição de custo do setor de medicina e segurança do trabalho
A109: Código | B109: Discriminação | C109: Unidade | D109: Quantidade | F109: Custo Unitário (R$) | H109: Custo Total (R$)
A110: 4 | B110: Setor de Medicina e Segurança do Trabalho
A111: P9876 | B111: Técnico de segurança do trabalho | C111: mês | D111: 1 | F111: =VLOOKUP(A111,'Pessoal Sicro'!$A$6:$G$118,6,0) -> 6683.9744 | H111: =F111*D111 -> 6683.9744
A112: P9864 | B112: Engenheiro de segurança do trabalho | C112: mês | D112: 0 | F112: =VLOOKUP(A112,'Pessoal Sicro'!$A$6:$G$118,6,0) -> 22079.4072 | H112: =F112*D112 -> 0
A113: P9851 | B113: Médico do trabalho | C113: mês | D113: 0 | F113: =VLOOKUP(A113,'Pessoal Sicro'!$A$6:$G$118,6,0) -> 17869.1782 | H113: =F113*D113 -> 0
A114: P9951 | B114: Médico de câmara hiperbárica | C114: mês | D114: 0 | F114: =VLOOKUP(A114,'Pessoal Sicro'!$A$6:$G$118,6,0) -> 20289.3928 | H114: =F114*D114 -> 0
F115: Subtotal do Item 4 | H115: =SUM(H111:I114) -> 6683.9744
A117: Parcela Variável - Composição de custo da equipe de frente de serviço
A118: Código | B118: Discriminação | C118: Unidade | D118: Quantidade | F118: Custo Unitário (R$) | H118: Custo Total (R$)
A119: 5 | B119: Equipe de Frente de Serviço | C119: equipexmês
A120: P9875 | B120: Encarregado de Turma | C120: mês | D120: 1 | F120: =VLOOKUP(A120,'Pessoal Sicro'!$A$6:$G$118,6,0) -> 4896.6313 | H120: =F120*D120 -> 4896.6313
A121: P9804 | B121: Apontador | C121: mês | D121: 0.5 | F121: =VLOOKUP(A121,'Pessoal Sicro'!$A$6:$G$118,6,0) -> 4302.1203 | H121: =F121*D121 -> 2151.06015
F122: Subtotal do Item 5 | H122: =SUM(H120:I121) -> 7047.69145
A124: Parcela Variável - Composição de custo da equipe de frente de serviço (Terraplenagem) - Somente Compactação
A125: Código | B125: Discriminação | C125: Unidade | D125: Quantidade | F125: Produção Horária (und/h) | H125: Efs
A126: 5.1 | B126: Equipe de Frente de Serviço | C126: equipexmês
C127: mês | H127: =(D127)/(F127*182.49) -> 
C128: mês | H128: =(D128)/(F128*182.49) -> 
C129: mês | H129: =(D129)/(F129*182.49) -> 
F130: Total de Equipes para Terraplenagem | H130: =SUM(H129:I129) -> 
A132: Parcela Variável - Composição de custo da acompanhamento das frentes de serviço de pavimentação
A133: Código | B133: Discriminação | C133: Unidade | D133: Quantidade | F133: Produção Horária (und/h) | H133: Efs
A134: 5.2 | B134: Equipe de Frente de Serviço | C134: equipe x mês
A135: 4011463 | B135: =VLOOKUP(A135,'SINTÉTICO SICRO'!$A$4:$D$6373,2,0) -> Concreto asfáltico - faixa C - areia e brita comerciais | C135: m² | D135: ='RESUMO MODULO TOTAL'!J22 -> 28560 | F135: 99.6 | H135: =(D135)/(F135*182.49) -> 1.571302471
A136: 4011351 | B136: =VLOOKUP(A136,'SINTÉTICO SICRO'!$A$4:$D$6373,2,0) -> Imprimação com asfalto diluído | C136: m² | D136: ='RESUMO MODULO TOTAL'!J23 -> 238000 | F136: 1125 | H136: 1.159272045
A137: 4011353 | B137: =VLOOKUP(A137,'SINTÉTICO SICRO'!$A$4:$D$6373,2,0) -> Pintura de ligação | C137: m² | D137: ='RESUMO MODULO TOTAL'!J24 -> 238000 | F137: 1500 | H137: 0.869454034
A138: 4011268 | B138: =VLOOKUP(A138,'SINTÉTICO SICRO'!$A$4:$D$6373,2,0) -> Base estabilizada granulometricamente com mistura solo brita (70% - 30%) em usina com material de jazida e brita comercial | C138: m³ | D138: ='RESUMO MODULO TOTAL'!J25 -> 35700 | F138: 120.7 | H138: 1.620771812
A139: 4011235 | B139: =VLOOKUP(A139,'SINTÉTICO SICRO'!$A$4:$D$6373,2,0) -> Sub-base estabilizada granulometricamente com mistura solo brita (70% - 30%) em usina com material de jazida e brita comercial | C139: m³ | D139: ='RESUMO MODULO TOTAL'!J26 -> 35700 | F139: 120.7 | H139: 1.620771812
A140: 4011209 | B140: =VLOOKUP(A140,'SINTÉTICO SICRO'!$A$4:$D$6373,2,0) -> Regularização do subleito | C140: m² | D140: ='RESUMO MODULO TOTAL'!J27 -> 238000 | F140: 1121.33 | H140: 1.163066226
F141: Total de Equipes para Pavimentação | H141: =SUM(H135:I140) -> 8.004638399
A143: Parcela Variável - Composição de custo da acompanhamento das frentes de serviço de drenagem
A144: Código | B144: Discriminação | C144: Unidade | D144: Quantidade | F144: Efsdu | H144: Efs
A145: 5.3 | B145: Frentes de Serviço para Drenagem | C145: equipe x mês
A146: ='RESUMO MODULO TOTAL'!D41 -> 2003373 | B146: =VLOOKUP(A146,'SINTÉTICO SICRO'!$A$4:$D$6373,2,0) -> Meio-fio de concreto - MFC 03 - areia e brita comerciais - fôrma de madeira | C146: m | D146: ='RESUMO MODULO TOTAL'!J41 -> 68000 | F146: 0.00021 | H146: =D146*F146 -> 14.28
F147: Total de Equipes para Drenagem | H147: =H146 -> 14.28
A149: Parcela Variável - Composição de custo da acompanhamento das frentes de serviço de sinalização
A150: Código | B150: Discriminação | C150: Unidade | D150: Quantidade | F150: Produção Horária (und/h) | H150: Efs
A151: 5.4 | B151: Frentes de Serviço para Sinalização | C151: equipe x mês
A152: ='RESUMO MODULO TOTAL'!D36 -> 5213440 | B152: =VLOOKUP(A152,'SINTÉTICO SICRO'!$A$4:$D$6373,2,0) -> Placa de regulamentação em aço D = 0,60 m - película retrorrefletiva tipo I + SI - fornecimento e implantação | C152: Unidade | D152: ='RESUMO MODULO TOTAL'!J36 -> 102 | F152: 3 | H152: =0.2*((D152)/(F152*182.49)) -> 0.03726231574
A153: ='RESUMO MODULO TOTAL'!D37 -> 5213464 | B153: =VLOOKUP(A153,'SINTÉTICO SICRO'!$A$4:$D$6373,2,0) -> Placa de advertência em aço, lado de 0,60 m - película retrorrefletiva tipo I + SI - fornecimento e implantação | C153: Unidade | D153: ='RESUMO MODULO TOTAL'!J37 -> 102 | F153: 3 | H153: =0.2*((D153)/(F153*182.49)) -> 0.03726231574
A154: ='RESUMO MODULO TOTAL'!D38 -> 5213863 | B154: =VLOOKUP(A154,'SINTÉTICO SICRO'!$A$4:$D$6373,2,0) -> Suporte metálico galvanizado para placa de advertência ou regulamentação - lado ou diâmetro de 0,60 m - fornecimento e implantação | C154: Unidade | D154: ='RESUMO MODULO TOTAL'!J38 -> 204 | F154: 4.1 | H154: =0.2*((D154)/(F154*182.49)) -> 0.05453021816
A155: ='RESUMO MODULO TOTAL'!D39 -> 5213400 | B155: =VLOOKUP(A155,'SINTÉTICO SICRO'!$A$4:$D$6373,2,0) -> Pintura de faixa com tinta acrílica - espessura de 0,4 mm | C155: m² | D155: ='RESUMO MODULO TOTAL'!J39 -> 9520 | F155: 177.07 | H155: 0.05892273343
F156: Total de Equipes para Sinalização | H156: =SUM(H152:I155) -> 0.1879775831 | J156: =H156+H147 -> 14.46797758
A158: 3. PARCELA VARIÁVEL - EQUIPE DE CONTROLE TECNOLÓGICO
A159: LABORATÓRIO DE SOLOS
A160: Item | B160: Discriminação | F160: Unidade | G160: Quantidade | H160: Custo Unitário (R$) | I160: Custo Total (R$)
B161: Laboratório de Solos (equipe x mês)
B162: Mão de Obra
A163: P9858 | B163: Laboratorista | F163: func./mês | G163: 1 | H163: =VLOOKUP(A163,'Pessoal Sicro'!$A$6:$G$118,6,0) -> 6804.6372 | I163: =TRUNC(G163*H163,2) -> 6804.63
A164: P9833 | B164: Auxiliar de laboratório | F164: func./mês | G164: 1 | H164: =VLOOKUP(A164,'Pessoal Sicro'!$A$6:$G$118,6,0) -> 5271.6992 | I164: =TRUNC(G164*H164,2) -> 5271.69
H165: Subtotal do Item | I165: =SUM(I163:I164) -> 12076.32
A166: Item | B166: Discriminação | C166: Und | D166: Quant | E166: Utilização Produtiva | F166: Utilização Improdutiva | G166: Horário Produtivo (R$) | H166: Horário Improdutivo (R$) | I166: Total (R$)
B167: Equipe de Controle Tecnológico
B168: Veículos
A169: E9125 | B169: Van furgão a diesel - 93 kW | C169: veic./mês | D169: 0.5 | E169: 44 | F169: 176 | G169: =VLOOKUP(A169,Equipamentos!$A$4:$K$533,10,0) -> 82.5761 | H169: =VLOOKUP(A169,Equipamentos!$A$4:$K$533,11,0) -> 46.6276 | I169: =D169*((E169*G169)+(F169*H169)) -> 5919.903
H170: Subtotal do Item | I170: =SUM(I169:I169) -> 5919.903
H171: Total da Equipe do Laboratório de Solos | I171: =I165+I170 -> 17996.223
A173: 3. PARCELA VARIÁVEL - EQUIPE DE CONTROLE TECNOLÓGICO
A174: LABORATÓRIO DE ASFALTOS
A175: Item | B175: Discriminação | F175: Unidade | G175: Quantidade | H175: Custo Unitário (R$) | I175: Custo Total (R$)
B176: Laboratório de Solos (equipe x mês)
B177: Mão de Obra
A178: P9858 | B178: Laboratorista | F178: func./mês | G178: 1 | H178: =VLOOKUP(A178,'Pessoal Sicro'!$A$6:$G$118,6,0) -> 6804.6372 | I178: =TRUNC(G178*H178,2) -> 6804.63
A179: P9833 | B179: Auxiliar de laboratório | F179: func./mês | G179: 1 | H179: =VLOOKUP(A179,'Pessoal Sicro'!$A$6:$G$118,6,0) -> 5271.6992 | I179: =TRUNC(G179*H179,2) -> 5271.69
H180: Subtotal do Item | I180: =SUM(I178:I179) -> 12076.32
A181: Item | B181: Discriminação | C181: Und | D181: Quant | E181: Utilização Produtiva | F181: Utilização Improdutiva | G181: Horário Produtivo (R$) | H181: Horário Improdutivo (R$) | I181: Total (R$)
B182: Equipe de Controle Tecnológico
B183: Veículos
A184: E9125 | B184: Van furgão a diesel - 93 kW | C184: veic./mês | D184: 0.5 | E184: 44 | F184: 176 | G184: =VLOOKUP(A184,Equipamentos!$A$4:$K$533,10,0) -> 82.5761 | H184: =VLOOKUP(A184,Equipamentos!$A$4:$K$533,11,0) -> 46.6276 | I184: =D184*((E184*G184)+(F184*H184)) -> 5919.903
H185: Subtotal do Item | I185: =SUM(I184:I184) -> 5919.903
H186: Total da Equipe do Laboratório de Asfaltos | I186: =I180+I185 -> 17996.223
A188: Equipes de laboratório de solos para pavimentação
A189: Item | B189: Discriminação | F189: Und | G189: Quant | H189: QE | I189: Els
A190: ='RESUMO MODULO TOTAL'!D25 -> 4011268 | B190: =VLOOKUP(A190,'SINTÉTICO SICRO'!A:D,2,0) -> Base estabilizada granulometricamente com mistura solo brita (70% - 30%) em usina com material de jazida e brita comercial | F190: =VLOOKUP(A190,'SINTÉTICO SICRO'!A:D,3,0) -> m³ | G190: ='RESUMO MODULO TOTAL'!J25 -> 35700 | H190: 21900 | I190: =G190/H190 -> 1.630136986
A191: ='RESUMO MODULO TOTAL'!D26 -> 4011227 | B191: =VLOOKUP(A191,'SINTÉTICO SICRO'!A:D,2,0) -> Sub-base de solo estabilizado granulometricamente sem mistura com material de jazida | F191: =VLOOKUP(A191,'SINTÉTICO SICRO'!A:D,3,0) -> m³ | G191: ='RESUMO MODULO TOTAL'!J26 -> 35700 | H191: 21900 | I191: =G191/H191 -> 1.630136986
A192: ='RESUMO MODULO TOTAL'!D27 -> 4011209 | B192: =VLOOKUP(A192,'SINTÉTICO SICRO'!A:D,2,0) -> Regularização do subleito | F192: =VLOOKUP(A192,'SINTÉTICO SICRO'!A:D,3,0) -> m² | G192: ='RESUMO MODULO TOTAL'!J27 -> 238000 | H192: 21900 | I192: =G192/H192 -> 10.86757991
H193: Total de equipes de Laboratório de Solos para Pavimentação | I193: =SUM(I190:I192) -> 14.12785388
A195: Equipes de laboratório de Asfalto
A196: Item | B196: Discriminação | F196: Und | G196: Quant | H196: QE | I196: Ela
A197: ='RESUMO MODULO TOTAL'!D22 -> 4011463 | B197: =VLOOKUP(A197,'SINTÉTICO SICRO'!A:D,2,0) -> Concreto asfáltico - faixa C - areia e brita comerciais | F197: =VLOOKUP(A197,'SINTÉTICO SICRO'!A:D,3,0) -> t | G197: ='RESUMO MODULO TOTAL'!J22 -> 28560 | H197: 9000 | I197: =G197/H197 -> 3.173333333
A198: ='RESUMO MODULO TOTAL'!D23 -> 4011352 | B198: =VLOOKUP(A198,'SINTÉTICO SICRO'!A:D,2,0) -> Imprimação com emulsão asfáltica | F198: =VLOOKUP(A198,'SINTÉTICO SICRO'!A:D,3,0) -> m² | G198: ='RESUMO MODULO TOTAL'!J23 -> 238000 | H198: 1610000 | I198: =G198/H198 -> 0.147826087
A199: ='RESUMO MODULO TOTAL'!D24 -> 4011353 | B199: =VLOOKUP(A199,'SINTÉTICO SICRO'!A:D,2,0) -> Pintura de ligação | F199: =VLOOKUP(A199,'SINTÉTICO SICRO'!A:D,3,0) -> m² | G199: ='RESUMO MODULO TOTAL'!J24 -> 238000 | H199: 3610000 | I199: =G199/H199 -> 0.06592797784
H200: Total de equipes de Laboratório de Asfaltos | I200: =SUM(I197:I199) -> 3.387087398
A202: manutenção do canteiro de obras e acampamentos
A203: Código | B203: Discriminação | C203: Unidade | D203: Quantidade | F203: Custo Unitário (R$) | H203: Custo Total (R$)
B204: Manutenção do Canteiro de Obras e Acampamentos
A205: 6.1 | B205: Mão de Obra
A206: P9952 | B206: Pedreiro | C206: mês | D206: 0 | F206: =VLOOKUP(A206,'Pessoal Sicro'!$A$6:$G$118,6,0) -> 4249.3257 | H206: =F206*D206 -> 0
A207: P9954 | B207: Servente | C207: mês | D207: 0 | F207: =VLOOKUP(A207,'Pessoal Sicro'!$A$6:$G$118,6,0) -> 3610.4684 | H207: =F207*D207 -> 0
A208: P9953 | B208: Eletricista | C208: mês | D208: 0 | F208: =VLOOKUP(A208,'Pessoal Sicro'!$A$6:$G$118,6,0) -> 4835.5157 | H208: =F208*D208 -> 0
F209: Subtotal do Item 6.1 | H209: =SUM(H206:I208) -> 0
A211: Código | B211: Discriminação | C211: Unidade | D211: Quantidade | F211: Custo Produtivo (R$) | H211: Custo Total (R$)
A212: 6.2 | B212: Equipamentos
B213: Caminhão guindauto de 6 toneladas | C213: h/mês | D213: 0 | H213: =F213*D213 -> 0
B214: Caminhão tanque de 8.000 litros | C214: h/mês | D214: 0 | H214: =F214*D214 -> 0
A215: E9524 | B215: Motoniveladora | C215: h/mês | D215: 0 | F215: =Equipamentos!J168 -> 927.5563 | H215: =F215*D215 -> 0
F216: Subtotal do Item 6.2 | H216: =SUM(H213:I215) -> 0
G217: Total da Manutenção do Canteiro de Obras e Acampamentos | H217: =H216+H209 -> 0
A221: Resumo das parcelas de administração local
A222: Código | B222: Discriminação | C222: Unidade | D222: Quantidade | F222: Custo Unitário (R$) | H222: Custo Total (R$)
... 29 more rows

Sheet Projeto Executivo
A2: COMPOSIÇAO PREÇO PROJETO EXECUTIVO
A4: DISCRIMINAÇAO | F4: Pr. Unit. | G4: Pr. Total
A6: A· EOUIPE TECNICA | G6: =G7+G10 -> 14260.68429
B7: A. 1 - Pessoal de Nível Superior | C7: Unidade | D7: Quantitativo | E7: SICRO e Rel.Custos Gerais | G7: =G8+G9 -> 11517.4946
B8: Engenheiro | C8: mês | D8: 0.4 | E8: P9812 | F8: =VLOOKUP(E8,'Pessoal Sicro'!A:G,6,0) -> 23723.1535 | G8: =F8*D8 -> 9489.2614
B9: Topógrafo | C9: mês | D9: 0.25 | E9: P9949 | F9: =VLOOKUP(E9,'Pessoal Sicro'!A:G,6,0) -> 8112.9328 | G9: =F9*D9 -> 2028.2332
B10: A.2 - Pessoal de Nível Técnico e Aux. | G10: =G11+G12 -> 2743.189688
B11: Auxiliar de topógrafo | C11: mês | D11: 0.125 | E11: P9950 | F11: =VLOOKUP(E11,'Pessoal Sicro'!A:G,6,0) -> 5304.8271 | G11: =F11*D11 -> 663.1033875
B12: Auxiliar Técnico/Assistente de Engenharia | C12: mês | D12: 0.5 | E12: P9903 | F12: =VLOOKUP(E12,'Pessoal Sicro'!A:G,6,0) -> 4160.1726 | G12: =F12*D12 -> 2080.0863
A13: B - ENCARGOS SOCIAIS | G13: =G14 -> 0
B14: =CONCATENATE("Taxas ",'ENC. SOCIAIS'!E51,"%") -> Taxas 115,22% | C14: JÁ INCLUSAS EM "A"
A15: C - DESPESAS GERAIS | G15: =G16+G18+G17 -> 5099.695529
B16: C.1 - MATERIAIS DE CONSUMO | C16: Estimativa % como referência de equipe técnica com encargos sociais | D16: 0.03 | F16: =G6+G14 -> 14260.68429 | G16: =F16*D16 -> 427.8205286
B17: C.2 - VEÍCULOS (Veículo leve picape 4 x 4 com capacidade de 1,10 t - 147 kW) | C17: h | D17: 40 | E17: E9684 | F17: =VLOOKUP(E17,Equipamentos!A:K,10,0) -> 109.8215 | G17: =F17*D17 -> 4392.86
B18: C.3 - Estação total eletrônica com alcance máximo de 3.000 m | C18: h | D18: 55 | E18: E9553 | F18: =VLOOKUP(E18,Equipamentos!A:K,10,0) -> 5.073 | G18: =F18*D18 -> 279.015
A19: D - ENSAIOS | G19: =SUM(G20:G23) -> 3535.7592
B20: Laboratorista | C20: mês | D20: =1/4 -> 0.25 | E20: P9858 | F20: =VLOOKUP(E20,'Pessoal Sicro'!A:G,6,0) -> 6804.6372 | G20: =F20*D20 -> 1701.1593
B21: Auxiliar de Laboratório | C21: mês | D21: =1/8 -> 0.125 | E21: P9833 | F21: =VLOOKUP(E21,'Pessoal Sicro'!A:G,6,0) -> 5271.6992 | G21: =F21*D21 -> 658.9624
B22: Laboratório de solos | C22: mês | D22: =1/8 -> 0.125 | E22: B8957 | F22: =VLOOKUP(E22,'Tabelas 1 e 2'!C14:G23,5,0) -> 4179.16 | G22: =F22*D22 -> 522.395
B23: Laboratório de asfalto | C23: mês | D23: 0.125 | E23: B8955 | F23: =VLOOKUP(E23,'Tabelas 1 e 2'!C15:G24,5,0) -> 5225.94 | G23: =F23*D23 -> 653.2425
A24: I - SOMA (A+B+C+D) | G24: =G6+G13+G15+G19 -> 22896.13902
A25: II - CUSTOS ADMINISTRATIVOS | D25: =BDI!C17 -> 0.2339 | G25: =D25*G24 -> 5355.406916
A26: TOTAL | G26: =G24+G25 -> 28251.54593
F27: Por m²: | G27: =G26/('MC MODULO'!C1*'MC MODULO'!C2) -> 2.017967567

Sheet BDI
A2: OBRA:
A3: LOCAL:
A4: DATA BASE:
A5: DETALHAMENTO DO BDI - SEM DESONERAÇÃO
A6: ='RESUMO MODULO TOTAL'!B1 -> CONTRATAÇÃO DE SERVIÇOS DE PAVIMENTAÇÃO ASFÁLTICA COM CONCRETO BETUMINOSO USINADO A QUENTE (CBUQ) EM VIAS URBANAS E RURAIS INSERIDAS NA ÁREA DE ATUAÇÃO DA CODEVASF, NO ESTADO DE ALAGOAS - REGIÃO 2
A7: DESCRIÇÃO DOS SERVIÇOS | B7: PREÇO DE VENDA (%) | C7: CUSTO DIRETO (%)
A8: ADMINISTRAÇÃO CENTRAL | C8: 0.06
A9: DESPESA FINANCEIRAS | B9: 0.0102
A10: SEGUROS E GARANTIAS CONTRATUAIS | B10: 0.0025
A11: RISCOS | B11: 0.005
A12: LUCRO OPERACIONAL | C12: 0.07
A13: PIS | B13: 0.0065
A14: COFINS | B14: 0.03
A15: ISSQN | B15: 0.03
A16: Contribuição Previdenciaria | B16: 0
B17: BDI | C17: =ROUND((1+(C8+C12))/(1-(B9+B10+B11+B13+B14+B15+B16))-1,4) -> 0.2339
A18: Observação: O percentual de ISSQN aqui utilizado consiste apenas em um referencial médio.
B19: O valor real do ISSQN a ser adotado deve ser aquele proveniente das alíquotas dos municípios situados na área de
B20: influência das obras.
A55: DETALHAMENTO DO BDI DIFERENCIADO - SEM DESONERAÇÃO
A56: ='RESUMO MODULO TOTAL'!B1 -> CONTRATAÇÃO DE SERVIÇOS DE PAVIMENTAÇÃO ASFÁLTICA COM CONCRETO BETUMINOSO USINADO A QUENTE (CBUQ) EM VIAS URBANAS E RURAIS INSERIDAS NA ÁREA DE ATUAÇÃO DA CODEVASF, NO ESTADO DE ALAGOAS - REGIÃO 2
A58: DESCRIÇÃO DOS SERVIÇOS | B58: PREÇO DE VENDA (%) | C58: CUSTO DIRETO (%)
A59: ADMINISTRAÇÃO CENTRAL | C59: 0.0377
A60: DESPESA FINANCEIRAS | B60: 0.0102
A61: SEGUROS E GARANTIAS CONTRATUAIS | B61: 0.0025
A62: RISCOS | B62: 0.005
A63: LUCRO OPERACIONAL | C63: 0.05
A64: PIS | B64: 0.0065
A65: COFINS | B65: 0.03
A66: ISSQN | B66: 0
A67: Contribuição Previdenciaria | B67: 0
B68: BDI | C68: =ROUND((1+(C59+C63))/(1-(B60+B61+B62+B64+B65+B66+B67))-1,4) -> 0.15
A69: Fonte da composição, valores de referência e fórmula do BDI: Instrução Normativa N° 62/DNIT SEDE

Sheet ENC. SOCIAIS
A6: NOME DA CONCORRENTE:
A7: EDITAL:
A8: FOLHA:
A9: ='RESUMO MODULO TOTAL'!B1 -> CONTRATAÇÃO DE SERVIÇOS DE PAVIMENTAÇÃO ASFÁLTICA COM CONCRETO BETUMINOSO USINADO A QUENTE (CBUQ) EM VIAS URBANAS E RURAIS INSERIDAS NA ÁREA DE ATUAÇÃO DA CODEVASF, NO ESTADO DE ALAGOAS - REGIÃO 2
A11: DETALHAMENTO DOS ENCARGOS SOCIAIS (%)
A12: VIGÊNCIA A PARTIR DE 12/2022 | C12: COM DESONERAÇÃO | E12: SEM DESONERAÇÃO
C14: HORISTA | D14: MENSALISTA | E14: HORISTA | F14: MENSALISTA
A16: GRUPO A
A17: A1 | B17: INSS | C17: 0 | D17: 0 | E17: 20 | F17: 20
A18: A2 | B18: SESI | C18: 1.5 | D18: 1.5 | E18: 1.5 | F18: 1.5
A19: A3 | B19: SENAI | C19: 1 | D19: 1 | E19: 1 | F19: 1
A20: A4 | B20: INCRA | C20: 0.2 | D20: 0.2 | E20: 0.2 | F20: 0.2
A21: A5 | B21: SEBRAE | C21: 0.6 | D21: 0.6 | E21: 0.6 | F21: 0.6
A22: A6 | B22: Salário Educação | C22: 2.5 | D22: 2.5 | E22: 2.5 | F22: 2.5
A23: A7 | B23: Seguro Contra Acidentes de Trabalho | C23: 3 | D23: 3 | E23: 3 | F23: 3
A24: A8 | B24: FGTS | C24: 8 | D24: 8 | E24: 8 | F24: 8
A25: A9 | B25: SECONCI | C25: 1 | D25: 1 | E25: 0 | F25: 0
A26: A | B26: Total | C26: =SUM(C17:C25) -> 17.8 | D26: =SUM(D17:D25) -> 17.8 | E26: =SUM(E17:E25) -> 36.8 | F26: =SUM(F17:F25) -> 36.8
A27: GRUPO B
A28: B1 | B28: Repouso Semanal Remunerado | C28: 17.88 | D28: - | E28: 18.05 | F28: -
A29: B2 | B29: Feriados | C29: 3.94 | D29: - | E29: 4.67 | F29: -
A30: B3 | B30: Auxílio-enfermidade | C30: 0.91 | D30: 0.69 | E30: 0.86 | F30: 0.64
A31: B4 | B31: 13° salário | C31: 10.98 | D31: 8.33 | E31: 11.15 | F31: 8.33
A32: B5 | B32: Licença-paternidade | C32: 0.07 | D32: 0.06 | E32: 0.06 | F32: 0.04
A33: B6 | B33: Faltas Justificadas | C33: 0.73 | D33: 0.56 | E33: 0.74 | F33: 0.56
A34: B7 | B34: Dias de chuva | C34: 1.45 | D34: - | E34: 1.84 | F34: -
A35: B8 | B35: Auxílio Acidente de Trabalho | C35: 0.11 | D35: 0.09 | E35: 0.1 | F35: 0.08
A36: B9 | B36: Férias Gozadas | C36: 11.35 | D36: 8.62 | E36: 12.52 | F36: 9.36
A37: B10 | B37: Salário Maternidade | C37: 0.03 | D37: 0.03 | E37: 0.04 | F37: 0.03
A38: B | B38: Total | C38: =SUM(C28:C37) -> 47.45 | D38: =SUM(D28:D37) -> 18.38 | E38: =SUM(E28:E37) -> 50.03 | F38: =SUM(F28:F37) -> 19.04
A39: GRUPO C
A40: C1 | B40: Aviso Prévio Indenizado | C40: 6.76 | D40: 5.14 | E40: 4.85 | F40: 3.62
A41: C2 | B41: Aviso Prévio Trabalhado | C41: 0.16 | D41: 0.12 | E41: 0.11 | F41: 0.09
A42: C3 | B42: Férias Indenizadas | C42: 2.28 | D42: 1.73 | E42: 1.67 | F42: 1.25
A43: C4 | B43: Depósito Rescisão Sem Justa Causa | C43: 3.81 | D43: 2.89 | E43: 2.51 | F43: 1.88
A44: C5 | B44: Indenização Adicional | C44: 0.57 | D44: 0.43 | E44: 0.41 | F44: 0.3
A45: C | B45: Total | C45: =SUM(C40:C44) -> 13.58 | D45: =SUM(D40:D44) -> 10.31 | E45: =SUM(E40:E44) -> 9.55 | F45: =SUM(F40:F44) -> 7.14
A46: GRUPO D
A47: D1 | B47: Reincidência de A sobre B | C47: 8.45 | D47: 3.27 | E47: 18.41 | F47: 7.01
A48: D2 | B48: Reincidência de Grupo A sobre Aviso Prévio Trabalhado e Reincidência do FGTS sobre Aviso Prévio Indenizado | C48: 0.57 | D48: 0.43 | E48: 0.43 | F48: 0.32
A49: D | B49: Total | C49: =SUM(C47:C48) -> 9.02 | D49: =SUM(D47:D48) -> 3.7 | E49: =SUM(E47:E48) -> 18.84 | F49: =SUM(F47:F48) -> 7.33 | H49: Fonte: Sinapi Cálculos e Parâmetros 5ª Edição - Atualizada em Agosto 2023
A51: T O T A L (%) | C51: =C26+C38+C45+C49 -> 87.85 | D51: =D26+D38+D45+D49 -> 50.19 | E51: =E26+E38+E45+E49 -> 115.22 | F51: =F26+F38+F45+F49 -> 70.31

Sheet Transporte Cap 50-70
C2: MEMÓRIA DE CÁLCULO
C7: REAJUSTE | F7: TIPOLOGIA DO MATERIAL | I7: CIMENTOS ASFÁLTICOS CAP-50-70 | M7: IMPOSTOS | N7: COFINS | O7: 0.0065 | P7: 0.0065
G8: ÍNDICE DE PAVIMENTAÇÃO DNIT | H8: 2014-07-01 | I8: ÍNDICE INICIAL | J8: 270.237 | N8: PIS | O8: 0.03 | P8: 0.03 | T8: LEGENDA | AC8: As empresas tributadas pelo Lucro Presumido pagam 0,65% de PIS e 3% de COFINS
H9: 2024-03-01 | I9: ÍNDICE FINAL | J9: 567.092 | N9: ICMS | O9: 0.18 | P9: 0.18 | Q9: =1-(O9/1) -> 0.82 | R9: =1-(P9/1) -> 0.82 | S9: =1-(Q9/1) -> 0.18 | T9: ENTRADA DE DADOS | AC9: As empresas tributadas pelo Lucro Real pagam 1,65% de PIS e 7,60% de COFINS
G10: Data ANP | H10: 2024-03-01
C11: DATA-BASE | D11: PRODUTOS | E11: LOCALIDADES | J11: CUSTO ANP (R$/Kg) | L11: CUSTO ANP | M11: IMPOSTOS DO PRODUTO | N11: CUSTO DO PRODUTO COM IMPOSTOS | O11: DMT's | P11: DMT's FLUVIAL | Q11: CUSTO DO TRANSPORTE RODOVIA PAVIMENTADA | R11: CUSTO DO TRANSPORTE FLUVIAL | S11: CUSTO DO TRANSPORTE TOTAL | T11: ICMS | U11: ATUALIZAÇÃO DO CUSTO DE TRANSPORTE | V11: CUSTO DO TRANSPORTE RODOVIA PAVIMENTADA COM IMPOSTOS E ATUALIZAÇÃO MONETÁRIA | W11: PEDÁGIO | Y11: TOTAL TRANSPORTE | Z11: AQUISIÇÃO DO PRODUTO | AA11: TOTAL GERAL ( TRANSP + AQUISIÇÃO) | AC11: 1 | AD11: 2 | AE11: 3
C12: =H9 -> 2024-03-01 | E12: REFINARIAS | F12: ENDEREÇO | G12: ESTADO | H12: CIDADE | I12: DESTINO | J12: ESTADO | K12: REGIÃO | L12: R$/t | M12: R$/t | N12: R$/t | O12: KM | P12: KM | Q12: R$/t | R12: R$/t | S12: R$/t | T12: R$/t | U12: R$/t | V12: R$/t | W12: CUSTO | X12: R$/t | Y12: R$/t | Z12: R$/t | AA12: R$/t | AC12: TOTAL GERAL ( TRANSP + AQUISIÇÃO) | AD12: TOTAL TRANSPORTE | AE12: AQUISIÇÃO DO PRODUTO
B13: =AA13 -> 4682.569923 | C13: 1 | D13: =I7 -> CIMENTOS ASFÁLTICOS CAP-50-70 | E13: Refinaria Abreu e Lima | F13: Rodovia PE 60, Km 10 - Ipojuca - PE CEP:55590-000 | G13: Pernambuco | H13: IPOJUCA - PE | I13: Maceio - AL | J13: =VLOOKUP('Transporte Cap 50-70'!G13,OFFSET('ANP ESTADO'!$A$1,MATCH('Transporte Cap 50-70'!$I$7,'ANP ESTADO'!B:B,0)+MATCH('Transporte Cap 50-70'!$H$10,OFFSET('ANP ESTADO'!$A$1,MATCH('Transporte Cap 50-70'!$I$7,'ANP ESTADO'!B:B,0),0,100000,1),0),2,100000,2),2,FALSE) -> - | K13: =VLOOKUP($H$10,OFFSET('ANP REGIÃO'!$A$9,MATCH('Transporte Cap 50-70'!$I$7,'ANP REGIÃO'!A:A,0),1,10000,10000),MATCH('Transporte Cap 50-70'!AH13,'ANP REGIÃO'!$B$8:$G$8,0),FALSE) -> 3.506239923 | L13: =IF(AND(J13="-",K13="-"),"",IF(AND(J13<>0,K13="-"),J13*1000,IF(AND(J13="-",K13<>0),K13*1000,IF(AND(J13<>0,K13<>0),J13*1000,"")))) -> 3506.239923 | M13: =ROUND(((L13/(1-$O$7-$O$8-$O$9))-L13),2) -> 968.86 | N13: =L13+M13 -> 4475.099923 | O13: 214 | Q13: =ROUND((26.939+0.253*O13),2) -> 81.08 | S13: =Q13+R13 -> 81.08 | T13: =TRUNC(S13*($O$9/(1-$O$9)),2) -> 17.79 | U13: =TRUNC(IF($J$8="","",(($J$9-$J$8)/$J$8)*(S13+T13)),2) -> 108.6 | V13: =S13+T13+U13 -> 207.47 | W13: 0 | X13: =EVEN(' CONSUMO DE MAT. B TOTAL'!$P$13*2/28)*W13/' CONSUMO DE MAT. B TOTAL'!$P$13 -> 0 | Y13: =IF(AND(Q13="",T13=""),"",V13+X13) -> 207.47 | Z13: =IF(OR(L13="",M13=""),"",L13+M13) -> 4475.099923 | AA13: =IF(OR(Y13="",Z13=""),"",Y13+Z13) -> 4682.569923 | AC13: =AA13 -> 4682.569923 | AD13: =Y13 -> 207.47 | AE13: =Z13 -> 4475.099923 | AH13: =IF(OR(G13=$D$51,G13=$D$52,G13=$D$54,G13=$D$60,G13=$D$44,G13=$D$40,G13=$D$36,G13=$D$49,G13=$D$39),"NORDESTE",IF(OR(G13=$D$35,G13=$D$37,G13=$D$38,G13=$D$48,G13=$D$56,G13=$D$57,G13=$D$61),"NORTE",IF(OR(G13=$D$41,G13=$D$43,G13=$D$45,G13=$D$46),"CENTRO-OESTE",IF(OR(G13=$D$59,G13=$D$53,G13=$D$47,G13=$D$42),"SUDESTE",IF(OR(G13=$D$58,G13=$D$50,G13=$D$55),"SUL",""))))) -> NORDESTE
B14: =AA14 -> 4975.879923 | C14: 3 | E14: Refinaria Potiguar Clara Camarão | F14: Rodovia RN 221, KM 25 - Guamaré - RN CEP:59598-000 | G14: Rio Grande do Norte | H14: GUAMARÉ - RN | I14: Maceio - AL | J14: =VLOOKUP('Transporte Cap 50-70'!G14,OFFSET('ANP ESTADO'!$A$1,MATCH('Transporte Cap 50-70'!$I$7,'ANP ESTADO'!B:B,0)+MATCH('Transporte Cap 50-70'!$H$10,OFFSET('ANP ESTADO'!$A$1,MATCH('Transporte Cap 50-70'!$I$7,'ANP ESTADO'!B:B,0),0,100000,1),0),2,100000,2),2,FALSE) -> - | K14: =VLOOKUP($H$10,OFFSET('ANP REGIÃO'!$A$9,MATCH('Transporte Cap 50-70'!$I$7,'ANP REGIÃO'!A:A,0),1,10000,10000),MATCH('Transporte Cap 50-70'!AH14,'ANP REGIÃO'!$B$8:$G$8,0),FALSE) -> 3.506239923 | L14: =IF(AND(J14="-",K14=""),"",IF(AND(J14<>0,K14=""),J14*1000,IF(AND(J14="-",K14<>0),K14*1000,IF(AND(J14<>0,K14<>0),J14*1000,"")))) -> 3506.239923 | M14: =ROUND(((L14/(1-$O$7-$O$8-$O$9))-L14),2) -> 968.86 | N14: =L14+M14 -> 4475.099923 | O14: 667 | Q14: =ROUND((26.939+0.253*O14),2) -> 195.69 | S14: =Q14+R14 -> 195.69 | T14: =TRUNC(S14*($O$9/(1-$O$9)),2) -> 42.95 | U14: =TRUNC(IF($J$8="","",(($J$9-$J$8)/$J$8)*(S14+T14)),2) -> 262.14 | V14: =S14+T14+U14 -> 500.78 | W14: 0 | X14: =EVEN(' CONSUMO DE MAT. B TOTAL'!$P$13*2/28)*W14/' CONSUMO DE MAT. B TOTAL'!$P$13 -> 0 | Y14: 500.78 | Z14: 4475.099923 | AA14: =IF(OR(Y14="",Z14=""),"",Y14+Z14) -> 4975.879923 | AC14: =AA14 -> 4975.879923 | AD14: =Y14 -> 500.78 | AE14: =Z14 -> 4475.099923 | AH14: =IF(OR(G14=$D$51,G14=$D$52,G14=$D$54,G14=$D$60,G14=$D$44,G14=$D$40,G14=$D$36,G14=$D$49,G14=$D$39),"NORDESTE",IF(OR(G14=$D$35,G14=$D$37,G14=$D$38,G14=$D$48,G14=$D$56,G14=$D$57,G14=$D$61),"NORTE",IF(OR(G14=$D$41,G14=$D$43,G14=$D$45,G14=$D$46),"CENTRO-OESTE",IF(OR(G14=$D$59,G14=$D$53,G14=$D$47,G14=$D$42),"SUDESTE",IF(OR(G14=$D$58,G14=$D$50,G14=$D$55),"SUL",""))))) -> NORDESTE
B15: 4940.650417 | C15: 4 | E15: Refinaria Landulpho Alves (RLAM) | F15: Rodovia BA 523, KM 4 – Mataripe São Francisco do Conde - BA CEP:43900-000 | G15: Bahia | H15: SÃO FRANCISCO DO CONDE - BA | I15: Maceio - AL | J15: =VLOOKUP('Transporte Cap 50-70'!G15,OFFSET('ANP ESTADO'!$A$1,MATCH('Transporte Cap 50-70'!$I$7,'ANP ESTADO'!B:B,0)+MATCH('Transporte Cap 50-70'!$H$10,OFFSET('ANP ESTADO'!$A$1,MATCH('Transporte Cap 50-70'!$I$7,'ANP ESTADO'!B:B,0),0,100000,1),0),2,100000,2),2,FALSE) -> 3.525320417 | K15: =VLOOKUP($H$10,OFFSET('ANP REGIÃO'!$A$9,MATCH('Transporte Cap 50-70'!$I$7,'ANP REGIÃO'!A:A,0),1,10000,10000),MATCH('Transporte Cap 50-70'!AH15,'ANP REGIÃO'!$B$8:$G$8,0),FALSE) -> 3.506239923 | L15: 3525.320417 | M15: =ROUND(((L15/(1-$O$7-$O$8-$O$9))-L15),2) -> 974.13 | N15: 4499.450417 | O15: 575 | Q15: =ROUND((26.939+0.253*O15),2) -> 172.41 | S15: 172.41 | T15: 37.84 | U15: 230.95 | V15: 441.2 | W15: 0 | X15: =EVEN(' CONSUMO DE MAT. B TOTAL'!$P$13*2/28)*W15/' CONSUMO DE MAT. B TOTAL'!$P$13 -> 0 | Y15: 441.2 | Z15: 4499.450417 | AA15: 4940.650417 | AC15: 4940.650417 | AD15: 441.2 | AE15: 4499.450417 | AH15: NORDESTE
A16: 2403 | B16: 5138.509631 | C16: 5 | E16: Refinaria Lubrificantes e Derivados do Nordeste (Lubnor) | F16: Av. Leite Barbosa, s/nº - Mucuripe Fortaleza - Ceará CEP:60180-420 | G16: Ceará | H16: FORTALEZA - CE | I16: Maceio - AL | J16: =VLOOKUP('Transporte Cap 50-70'!G16,OFFSET('ANP ESTADO'!$A$1,MATCH('Transporte Cap 50-70'!$I$7,'ANP ESTADO'!B:B,0)+MATCH('Transporte Cap 50-70'!$H$10,OFFSET('ANP ESTADO'!$A$1,MATCH('Transporte Cap 50-70'!$I$7,'ANP ESTADO'!B:B,0),0,100000,1),0),2,100000,2),2,FALSE) -> 3.490599631 | K16: =VLOOKUP($H$10,OFFSET('ANP REGIÃO'!$A$9,MATCH('Transporte Cap 50-70'!$I$7,'ANP REGIÃO'!A:A,0),1,10000,10000),MATCH('Transporte Cap 50-70'!AH16,'ANP REGIÃO'!$B$8:$G$8,0),FALSE) -> 3.506239923 | L16: =IF(AND(J16="-",K16=""),"",IF(AND(J16<>0,K16=""),J16*1000,IF(AND(J16="-",K16<>0),K16*1000,IF(AND(J16<>0,K16<>0),J16*1000,"")))) -> 3490.599631 | M16: =ROUND(((L16/(1-$O$7-$O$8-$O$9))-L16),2) -> 964.54 | N16: 4455.139631 | O16: 949 | Q16: 267.04 | S16: 267.04 | T16: 58.61 | U16: 357.72 | V16: 683.37 | W16: 0 | X16: =EVEN(' CONSUMO DE MAT. B TOTAL'!$P$13*2/28)*W16/' CONSUMO DE MAT. B TOTAL'!$P$13 -> 0 | Y16: 683.37 | Z16: 4455.139631 | AA16: 5138.509631 | AC16: 5138.509631 | AD16: 683.37 | AE16: 4455.139631 | AH16: NORDESTE
B17: 5660.202298 | C17: 6 | E17: Refinaria Capuava (Recap) | F17: Av. Alberto Soares Sampaio, 2122-A Capuava – Mauá - SP | G17: São Paulo | H17: MAUÁ - SP | I17: Maceio - AL | J17: =VLOOKUP('Transporte Cap 50-70'!G17,OFFSET('ANP ESTADO'!$A$1,MATCH('Transporte Cap 50-70'!$I$7,'ANP ESTADO'!B:B,0)+MATCH('Transporte Cap 50-70'!$H$10,OFFSET('ANP ESTADO'!$A$1,MATCH('Transporte Cap 50-70'!$I$7,'ANP ESTADO'!B:B,0),0,100000,1),0),2,100000,2),2,FALSE) -> 3.136977681 | K17: =VLOOKUP($H$10,OFFSET('ANP REGIÃO'!$A$9,MATCH('Transporte Cap 50-70'!$I$7,'ANP REGIÃO'!A:A,0),1,10000,10000),MATCH('Transporte Cap 50-70'!AH17,'ANP REGIÃO'!$B$8:$G$8,0),FALSE) -> 3.139608082 | L17: 3136.977681 | M17: =ROUND(((L17/(1-$O$7-$O$8-$O$9))-L17),2) -> 866.82 | N17: 4003.797681 | O17: 2416 | Q17: 638.19 | S17: 638.19 | T17: 140.09 | U17: 854.93 | V17: 1633.21 | W17: 322.2 | X17: =EVEN(' CONSUMO DE MAT. B TOTAL'!$P$13*2/28)*W17/' CONSUMO DE MAT. B TOTAL'!$P$13 -> 23.19461749 | Y17: 1656.404617 | Z17: 4003.797681 | AA17: 5660.202298 | AC17: 5660.202298 | AD17: 1656.404617 | AE17: 4003.797681 | AH17: SUDESTE
B18: 5638.433265 | C18: 7 | E18: Refinaria Duque de Caxias (Reduc) | F18: Rodovia Washington Luiz, km 113,7 Campos Elíseos – Duque de Caxias - RJ CEP:25213-005 | G18: Rio de Janeiro | H18: DUQUE DE CAXIAS - RJ | I18: Maceio - AL | J18: =VLOOKUP('Transporte Cap 50-70'!G18,OFFSET('ANP ESTADO'!$A$1,MATCH('Transporte Cap 50-70'!$I$7,'ANP ESTADO'!B:B,0)+MATCH('Transporte Cap 50-70'!$H$10,OFFSET('ANP ESTADO'!$A$1,MATCH('Transporte Cap 50-70'!$I$7,'ANP ESTADO'!B:B,0),0,100000,1),0),2,100000,2),2,FALSE) -> 3.281380906 | K18: =VLOOKUP($H$10,OFFSET('ANP REGIÃO'!$A$9,MATCH('Transporte Cap 50-70'!$I$7,'ANP REGIÃO'!A:A,0),1,10000,10000),MATCH('Transporte Cap 50-70'!AH18,'ANP REGIÃO'!$B$8:$G$8,0),FALSE) -> 3.139608082 | L18: 3281.380906 | M18: 906.72 | N18: 4188.100906 | O18: 2065 | Q18: 549.38 | S18: 549.38 | T18: 120.59 | U18: 735.96 | V18: 1405.93 | W18: 616.8 | X18: =EVEN(' CONSUMO DE MAT. B TOTAL'!$P$13*2/28)*W18/' CONSUMO DE MAT. B TOTAL'!$P$13 -> 44.402359 | Y18: 1450.332359 | Z18: 4188.100906 | AA18: 5638.433265 | AC18: 5638.433265 | AD18: 1450.332359 | AE18: 4188.100906 | AH18: SUDESTE
B19: 6555.892953 | C19: 8 | E19: Refinaria Alberto Pasqualini (Refap) | F19: Avenida Getúlio Vargas, 11001 - Bairro Brigadeira Canoas - RS - Brasil CEP:92420-221 | G19: Rio Grande do Sul | H19: CANOAS - RS | I19: Maceio - AL | J19: =VLOOKUP('Transporte Cap 50-70'!G19,OFFSET('ANP ESTADO'!$A$1,MATCH('Transporte Cap 50-70'!$I$7,'ANP ESTADO'!B:B,0)+MATCH('Transporte Cap 50-70'!$H$10,OFFSET('ANP ESTADO'!$A$1,MATCH('Transporte Cap 50-70'!$I$7,'ANP ESTADO'!B:B,0),0,100000,1),0),2,100000,2),2,FALSE) -> 3.217937982 | K19: =VLOOKUP($H$10,OFFSET('ANP REGIÃO'!$A$9,MATCH('Transporte Cap 50-70'!$I$7,'ANP REGIÃO'!A:A,0),1,10000,10000),MATCH('Transporte Cap 50-70'!AH19,'ANP REGIÃO'!$B$8:$G$8,0),FALSE) -> 3.227378426 | L19: 3217.937982 | M19: 889.19 | N19: 4107.127982 | O19: 3556 | Q19: 926.61 | S19: 926.61 | T19: 203.4 | U19: 1241.31 | V19: 2371.32 | W19: 1075.8 | X19: =EVEN(' CONSUMO DE MAT. B TOTAL'!$P$13*2/28)*W19/' CONSUMO DE MAT. B TOTAL'!$P$13 -> 77.44497051 | Y19: 2448.764971 | Z19: 4107.127982 | AA19: 6555.892953 | AC19: 6555.892953 | AD19: 2448.764971 | AE19: 4107.127982 | AH19: SUL
B20: 6156.552131 | C20: 9 | E20: Unidade de Industrialização do Xisto (SIX) | F20: Rodovia do Xisto, BR 476, km 153 São Mateus do Sul – PR CEP 83900-000 | G20: Paraná | H20: SÃO MATEUS DO SUL - PR | I20: Maceio - AL | J20: =VLOOKUP('Transporte Cap 50-70'!G20,OFFSET('ANP ESTADO'!$A$1,MATCH('Transporte Cap 50-70'!$I$7,'ANP ESTADO'!B:B,0)+MATCH('Transporte Cap 50-70'!$H$10,OFFSET('ANP ESTADO'!$A$1,MATCH('Transporte Cap 50-70'!$I$7,'ANP ESTADO'!B:B,0),0,100000,1),0),2,100000,2),2,FALSE) -> 3.232925178 | K20: =VLOOKUP($H$10,OFFSET('ANP REGIÃO'!$A$9,MATCH('Transporte Cap 50-70'!$I$7,'ANP REGIÃO'!A:A,0),1,10000,10000),MATCH('Transporte Cap 50-70'!AH20,'ANP REGIÃO'!$B$8:$G$8,0),FALSE) -> 3.227378426 | L20: 3232.925178 | M20: 893.34 | N20: 4126.265178 | O20: 2955 | Q20: 774.55 | S20: 774.55 | T20: 170.02 | U20: 1037.6 | V20: 1982.17 | W20: 668.4 | X20: =EVEN(' CONSUMO DE MAT. B TOTAL'!$P$13*2/28)*W20/' CONSUMO DE MAT. B TOTAL'!$P$13 -> 48.11695324 | Y20: 2030.286953 | Z20: 4126.265178 | AA20: 6156.552131 | AC20: 6156.552131 | AD20: 2030.286953 | AE20: 4126.265178 | AH20: SUL
B21: 5248.933675 | C21: 10 | E21: Refinaria Gabriel Passos (Regap) | F21: Av. Refinaria Gabriel Passos, 690 Distrito Industrial Paulo Camilo Sul Betim - MG CEP:32669-205 | G21: Minas Gerais | H21: BETIM - MG | I21: Maceio - AL | J21: =VLOOKUP('Transporte Cap 50-70'!G21,OFFSET('ANP ESTADO'!$A$1,MATCH('Transporte Cap 50-70'!$I$7,'ANP ESTADO'!B:B,0)+MATCH('Transporte Cap 50-70'!$H$10,OFFSET('ANP ESTADO'!$A$1,MATCH('Transporte Cap 50-70'!$I$7,'ANP ESTADO'!B:B,0),0,100000,1),0),2,100000,2),2,FALSE) -> 3.120369824 | K21: =VLOOKUP($H$10,OFFSET('ANP REGIÃO'!$A$9,MATCH('Transporte Cap 50-70'!$I$7,'ANP REGIÃO'!A:A,0),1,10000,10000),MATCH('Transporte Cap 50-70'!AH21,'ANP REGIÃO'!$B$8:$G$8,0),FALSE) -> 3.139608082 | L21: 3120.369824 | M21: 862.23 | N21: 3982.599824 | O21: 1829 | Q21: 489.68 | S21: 489.68 | T21: 107.49 | U21: 655.99 | V21: 1253.16 | W21: 183 | X21: =EVEN(' CONSUMO DE MAT. B TOTAL'!$P$13*2/28)*W21/' CONSUMO DE MAT. B TOTAL'!$P$13 -> 13.17385165 | Y21: 1266.333852 | Z21: 3982.599824 | AA21: =IF(OR(Y21="",Z21=""),"",Y21+Z21) -> 5248.933675 | AC21: 5248.933675 | AD21: 1266.333852 | AE21: 3982.599824 | AH21: SUDESTE
B22: 6087.504941 | C22: 11 | E22: Refinaria Presidente Getúlio Vargas (Repar) | F22: Rodovia do Xisto, BR 476, km 16 Araucária - PR CEP:83707-440 | G22: Paraná | H22: ARAUCÁRIA - PR | I22: Maceio - AL | J22: =VLOOKUP('Transporte Cap 50-70'!G22,OFFSET('ANP ESTADO'!$A$1,MATCH('Transporte Cap 50-70'!$I$7,'ANP ESTADO'!B:B,0)+MATCH('Transporte Cap 50-70'!$H$10,OFFSET('ANP ESTADO'!$A$1,MATCH('Transporte Cap 50-70'!$I$7,'ANP ESTADO'!B:B,0),0,100000,1),0),2,100000,2),2,FALSE) -> 3.232925178 | K22: =VLOOKUP($H$10,OFFSET('ANP REGIÃO'!$A$9,MATCH('Transporte Cap 50-70'!$I$7,'ANP REGIÃO'!A:A,0),1,10000,10000),MATCH('Transporte Cap 50-70'!AH22,'ANP REGIÃO'!$B$8:$G$8,0),FALSE) -> 3.227378426 | L22: 3232.925178 | M22: 893.34 | N22: 4126.265178 | O22: 2856 | Q22: 749.51 | S22: 749.51 | T22: 164.52 | U22: 1004.06 | V22: 1918.09 | W22: 599.4 | X22: =EVEN(' CONSUMO DE MAT. B TOTAL'!$P$13*2/28)*W22/' CONSUMO DE MAT. B TOTAL'!$P$13 -> 43.14976327 | Y22: 1961.239763 | Z22: 4126.265178 | AA22: 6087.504941 | AC22: 6087.504941 | AD22: 1961.239763 | AE22: 4126.265178 | AH22: SUL
B23: 5720.412298 | C23: 12 | E23: Refinaria Presidente Bernardes (RPBC) | F23: Av. 9 de abril, 777 - Jardim das Indústrias Cubatão - SP CEP:11505-000 | G23: São Paulo | H23: CUBATÃO - SP | I23: Maceio - AL | J23: =VLOOKUP('Transporte Cap 50-70'!G23,OFFSET('ANP ESTADO'!$A$1,MATCH('Transporte Cap 50-70'!$I$7,'ANP ESTADO'!B:B,0)+MATCH('Transporte Cap 50-70'!$H$10,OFFSET('ANP ESTADO'!$A$1,MATCH('Transporte Cap 50-70'!$I$7,'ANP ESTADO'!B:B,0),0,100000,1),0),2,100000,2),2,FALSE) -> 3.136977681 | K23: =VLOOKUP($H$10,OFFSET('ANP REGIÃO'!$A$9,MATCH('Transporte Cap 50-70'!$I$7,'ANP REGIÃO'!A:A,0),1,10000,10000),MATCH('Transporte Cap 50-70'!AH23,'ANP REGIÃO'!$B$8:$G$8,0),FALSE) -> 3.139608082 | L23: 3136.977681 | M23: 866.82 | N23: 4003.797681 | O23: 2509 | Q23: 661.72 | S23: 661.72 | T23: 145.25 | U23: 886.45 | V23: 1693.42 | W23: 322.2 | X23: =EVEN(' CONSUMO DE MAT. B TOTAL'!$P$13*2/28)*W23/' CONSUMO DE MAT. B TOTAL'!$P$13 -> 23.19461749 | Y23: 1716.614617 | Z23: 4003.797681 | AA23: 5720.412298 | AC23: 5720.412298 | AD23: 1716.614617 | AE23: 4003.797681 | AH23: SUDESTE
B24: 5686.646433 | C24: 13 | E24: Refinaria de Paulínia (Replan) | F24: Rodovia SP 332 - Km. 130 Bonfim - Paulínia – SP CEP:13140-000 | G24: São Paulo | H24: PAULÍNIA - SP | I24: Maceio - AL | J24: =VLOOKUP('Transporte Cap 50-70'!G24,OFFSET('ANP ESTADO'!$A$1,MATCH('Transporte Cap 50-70'!$I$7,'ANP ESTADO'!B:B,0)+MATCH('Transporte Cap 50-70'!$H$10,OFFSET('ANP ESTADO'!$A$1,MATCH('Transporte Cap 50-70'!$I$7,'ANP ESTADO'!B:B,0),0,100000,1),0),2,100000,2),2,FALSE) -> 3.136977681 | K24: =VLOOKUP($H$10,OFFSET('ANP REGIÃO'!$A$9,MATCH('Transporte Cap 50-70'!$I$7,'ANP REGIÃO'!A:A,0),1,10000,10000),MATCH('Transporte Cap 50-70'!AH24,'ANP REGIÃO'!$B$8:$G$8,0),FALSE) -> 3.139608082 | L24: 3136.977681 | M24: 866.82 | N24: 4003.797681 | O24: 2443 | Q24: 645.02 | S24: 645.02 | T24: 141.58 | U24: 864.07 | V24: 1650.67 | W24: 447 | X24: =EVEN(' CONSUMO DE MAT. B TOTAL'!$P$13*2/28)*W24/' CONSUMO DE MAT. B TOTAL'!$P$13 -> 32.17875239 | Y24: 1682.848752 | Z24: 4003.797681 | AA24: 5686.646433 | AC24: 5686.646433 | AD24: 1682.848752 | AE24: 4003.797681 | AH24: SUDESTE
B25: 5615.016073 | C25: 14 | E25: Refinaria Henrique Lage (Revap) | F25: Rodovia Presidente Dutra, KM 143, S/N Bairro Jardim Diamante - São José dos Campos – SP CEP:12223-900 | G25: São Paulo | H25: SÃO JOSÉ DOS CAMPOS - SP | I25: Maceio - AL | J25: =VLOOKUP('Transporte Cap 50-70'!G25,OFFSET('ANP ESTADO'!$A$1,MATCH('Transporte Cap 50-70'!$I$7,'ANP ESTADO'!B:B,0)+MATCH('Transporte Cap 50-70'!$H$10,OFFSET('ANP ESTADO'!$A$1,MATCH('Transporte Cap 50-70'!$I$7,'ANP ESTADO'!B:B,0),0,100000,1),0),2,100000,2),2,FALSE) -> 3.136977681 | K25: =VLOOKUP($H$10,OFFSET('ANP REGIÃO'!$A$9,MATCH('Transporte Cap 50-70'!$I$7,'ANP REGIÃO'!A:A,0),1,10000,10000),MATCH('Transporte Cap 50-70'!AH25,'ANP REGIÃO'!$B$8:$G$8,0),FALSE) -> 3.139608082 | L25: 3136.977681 | M25: 866.82 | N25: 4003.797681 | O25: 2310 | Q25: 611.37 | S25: 611.37 | T25: 134.2 | U25: 819 | V25: 1564.57 | W25: 648 | X25: =EVEN(' CONSUMO DE MAT. B TOTAL'!$P$13*2/28)*W25/' CONSUMO DE MAT. B TOTAL'!$P$13 -> 46.64839272 | Y25: 1611.218393 | Z25: 4003.797681 | AA25: 5615.016073 | AC25: 5615.016073 | AD25: 1611.218393 | AE25: 4003.797681 | AH25: SUDESTE
D35: Acre
D36: Alagoas
D37: Amapá
D38: Amazonas
D39: Bahia
D40: Ceará
D41: Distrito Federal
D42: Espírito Santo
D43: Goiás
D44: Maranhão
D45: Mato Grosso
D46: Mato Grosso do Sul
D47: Minas Gerais
D48: Pará
D49: Paraíba
D50: Paraná
D51: Pernambuco
D52: Piauí
D53: Rio de Janeiro
D54: Rio Grande do Norte
D55: Rio Grande do Sul
D56: Rondônia
D57: Roraima
D58: Santa Catarina
D59: São Paulo
D60: Sergipe
D61: Tocantins
D65: ASFALTOS DILUÍDOS CM-30
D66: ASFALTOS DILUÍDOS CM-70
D67: ASFALTOS DILUÍDOS CR-250
D68: ASFALTOS DILUÍDOS CR-70
D69: CAP MODIFICADO POR BORRACHA DE PNEU AB22
D70: CAP MODIFICADO POR BORRACHA DE PNEU AB8
D71: CAP MODIFICADO POR POLÍMERO 55-75-E
D72: CAP MODIFICADO POR POLÍMERO 60-85-E
D73: CAP MODIFICADO POR POLÍMERO 65-90-E
D74: CIMENTOS ASFÁLTICOS CAP-150-200
D75: CIMENTOS ASFÁLTICOS CAP-30-45
D76: CIMENTOS ASFÁLTICOS CAP-50-70
D77: CIMENTOS ASFÁLTICOS CAP-85-100
D78: EMULSÃO ASFÁLTICA CATIÔNICA DE RUPTURA CONTROLADA PARA SERVIÇO DE LAMA ASFÁLTICA
D79: EMULSÃO ASFÁLTICA DE RUPTURA LENTA CATIÔNICA PARA SERVIÇO DE LAMA ASFÁLTICA
D80: EMULSÃO ASFÁLTICA DE RUPTURA LENTA DE CARGA NEUTRA PARA SERVIÇO DE LAMA ASFÁLTICA
D81: EMULSÃO ASFÁLTICA PARA SERVIÇO DE IMPRIMAÇÃO
D82: EMULSÕES ASF. MOD. POR POLÍMEROS RC1C-E
D83: EMULSÕES ASF. MOD. POR POLÍMEROS RL1C-E
D84: EMULSÕES ASF. MOD. POR POLÍMEROS RM1C-E
D85: EMULSÕES ASF. MOD. POR POLÍMEROS RR1C-E
D86: EMULSÕES ASF. MOD. POR POLÍMEROS RR2C-E
D87: EMULSÕES ASFÁLTICAS RL-1C
D88: EMULSÕES ASFÁLTICAS RM-1C
D89: EMULSÕES ASFÁLTICAS RM-2C
D90: EMULSÕES ASFÁLTICAS RR-1C
D91: EMULSÕES ASFÁLTICAS RR-2C

Sheet Transporte EAI
C2: MEMÓRIA DE CÁLCULO
C7: REAJUSTE | F7: TIPOLOGIA DO MATERIAL | I7: EMULSÃO ASFÁLTICA PARA SERVIÇO DE IMPRIMAÇÃO | M7: IMPOSTOS | N7: COFINS | O7: 0.0065 | P7: 0.0065
G8: ÍNDICE DE PAVIMENTAÇÃO DNIT | H8: 2014-07-01 | I8: ÍNDICE INICIAL | J8: 270.237 | N8: PIS | O8: 0.03 | P8: 0.03 | T8: LEGENDA | AC8: As empresas tributadas pelo Lucro Presumido pagam 0,65% de PIS e 3% de COFINS
H9: ='Transporte Cap 50-70'!H9 -> 2024-03-01 | I9: ÍNDICE FINAL | J9: ='Transporte Cap 50-70'!J9 -> 567.092 | N9: ICMS | O9: 0.18 | P9: 0.18 | Q9: =1-(O9/1) -> 0.82 | R9: =1-(P9/1) -> 0.82 | S9: =1-(Q9/1) -> 0.18 | T9: ENTRADA DE DADOS | AC9: As empresas tributadas pelo Lucro Real pagam 1,65% de PIS e 7,60% de COFINS
G10: Data ANP | H10: ='Transporte Cap 50-70'!H10 -> 2024-03-01
C11: DATA-BASE | D11: PRODUTOS | E11: LOCALIDADES | J11: CUSTO ANP (R$/Kg) | L11: CUSTO ANP | M11: IMPOSTOS DO PRODUTO | N11: CUSTO DO PRODUTO COM IMPOSTOS | O11: DMT's | P11: DMT'S FLUVIAL | Q11: CUSTO DO TRANSPORTE RODOVIA PAVIMENTADA | R11: CUSTO DO TRANSPORTE FLUVIAL | S11: CUSTO DO TRANSPORTE TOTAL | T11: ICMS | U11: ATUALIZAÇÃO DO CUSTO DE TRANSPORTE | V11: CUSTO DO TRANSPORTE RODOVIA PAVIMENTADA COM IMPOSTOS E ATUALIZAÇÃO MONETÁRIA | W11: PEDÁGIO | Y11: TOTAL TRANSPORTE | Z11: AQUISIÇÃO DO PRODUTO | AA11: TOTAL GERAL ( TRANSP + AQUISIÇÃO) | AC11: 1 | AD11: 2 | AE11: 3
C12: =H9 -> 2024-03-01 | E12: REFINARIAS | F12: ENDEREÇO | G12: ESTADO | H12: CIDADE | I12: DESTINO | J12: ESTADO | K12: REGIÃO | L12: R$/t | M12: R$/t | N12: R$/t | O12: KM | P12: KM | Q12: R$/t | R12: R$/t | S12: R$/t | T12: R$/t | U12: R$/t | V12: R$/t | W12: CUSTO | X12: R$/t | Y12: R$/t | Z12: R$/t | AA12: R$/t | AC12: TOTAL GERAL ( TRANSP + AQUISIÇÃO) | AD12: TOTAL TRANSPORTE | AE12: AQUISIÇÃO DO PRODUTO
B13: =AA13 -> 5108.724046 | C13: 1 | D13: =I7 -> EMULSÃO ASFÁLTICA PARA SERVIÇO DE IMPRIMAÇÃO | E13: 'CENTRO OESTE ASFALTOS LTDA. | F13: SETOR DE INFLAMÁVEIS, S/N TRECHO 02 - LOTE 1.100 - GUARÁ - CEP:71225-000 | G13: Distrito Federal | H13: BRASÍLIA - DF | I13: Maceio - AL | J13: =VLOOKUP(G13,OFFSET('ANP ESTADO'!$A$1,MATCH($I$7,'ANP ESTADO'!B:B,0)+MATCH($H$10,OFFSET('ANP ESTADO'!$A$1,MATCH($I$7,'ANP ESTADO'!B:B,0),0,100000,1),0),2,100000,2),2,FALSE) -> - | K13: =VLOOKUP($H$10,OFFSET('ANP REGIÃO'!$A$9,MATCH('Transporte EAI'!$I$7,'ANP REGIÃO'!A:A,0),1,10000,10000),MATCH('Transporte EAI'!AH13,'ANP REGIÃO'!$B$8:$G$8,0),FALSE) -> 2.981566259 | L13: =IF(AND(J13="-",K13="-"),"",IF(AND(J13<>0,K13="-"),J13*1000,IF(AND(J13="-",K13<>0),K13*1000,IF(AND(J13<>0,K13<>0),J13*1000,"")))) -> 2981.566259 | M13: =ROUND(((L13/(1-$O$7-$O$8-$O$9))-L13),2) -> 823.88 | N13: =L13+M13 -> 3805.446259 | O13: 1898 | Q13: =ROUND((26.939+0.253*O13),2) -> 507.13 | S13: =Q13+R13 -> 507.13 | T13: =TRUNC(S13*($O$9/(1-$O$9)),2) -> 111.32 | U13: =TRUNC(IF($J$8="","",(($J$9-$J$8)/$J$8)*(S13+T13)),2) -> 679.36 | V13: =S13+T13+U13 -> 1297.81 | W13: 73.2 | X13: =EVEN(' CONSUMO DE MAT. B TOTAL'!$P$11*2/28)*W13/' CONSUMO DE MAT. B TOTAL'!$P$11 -> 5.467787115 | Y13: =IF(AND(Q13="",T13=""),"",V13+X13) -> 1303.277787 | Z13: =IF(OR(L13="",M13=""),"",L13+M13) -> 3805.446259 | AA13: =IF(OR(Y13="",Z13=""),"",Y13+Z13) -> 5108.724046 | AC13: =AA13 -> 5108.724046 | AD13: =Y13 -> 1303.277787 | AE13: =Z13 -> 3805.446259 | AH13: =IF(OR(G13=$D$58,G13=$D$59,G13=$D$61,G13=$D$67,G13=$D$51,G13=$D$47,G13=$D$43,G13=$D$56,G13=$D$46),"NORDESTE",IF(OR(G13=$D$42,G13=$D$44,G13=$D$45,G13=$D$55,G13=$D$63,G13=$D$64,G13=$D$68),"NORTE",IF(OR(G13=$D$48,G13=$D$50,G13=$D$52,G13=$D$53),"CENTRO-OESTE",IF(OR(G13=$D$66,G13=$D$60,G13=$D$54,G13=$D$49),"SUDESTE",IF(OR(G13=$D$65,G13=$D$57,G13=$D$62),"SUL",""))))) -> CENTRO-OESTE
B14: =AA14 -> 5205.076483 | C14: 2 | E14: STRATURA ASFALTOS S/A | F14: AVENIDA PRESIDENTE WILSON, 08 - JUNDIAÍ - CEP:75115-100 | G14: Goiás | H14: ANÁPOLIS - GO | I14: Maceio - AL | J14: =VLOOKUP(G14,OFFSET('ANP ESTADO'!$A$1,MATCH($I$7,'ANP ESTADO'!B:B,0)+MATCH($H$10,OFFSET('ANP ESTADO'!$A$1,MATCH($I$7,'ANP ESTADO'!B:B,0),0,100000,1),0),2,100000,2),2,FALSE) -> - | K14: =VLOOKUP($H$10,OFFSET('ANP REGIÃO'!$A$9,MATCH('Transporte EAI'!$I$7,'ANP REGIÃO'!A:A,0),1,10000,10000),MATCH('Transporte EAI'!AH14,'ANP REGIÃO'!$B$8:$G$8,0),FALSE) -> 2.981566259 | L14: =IF(AND(J14="-",K14="-"),"",IF(AND(J14<>0,K14="-"),J14*1000,IF(AND(J14="-",K14<>0),K14*1000,IF(AND(J14<>0,K14<>0),J14*1000,"")))) -> 2981.566259 | M14: =ROUND(((L14/(1-$O$7-$O$8-$O$9))-L14),2) -> 823.88 | N14: =L14+M14 -> 3805.446259 | O14: 2042 | Q14: =ROUND((26.939+0.253*O14),2) -> 543.57 | S14: =Q14+R14 -> 543.57 | T14: =TRUNC(S14*($O$9/(1-$O$9)),2) -> 119.32 | U14: =TRUNC(IF($J$8="","",(($J$9-$J$8)/$J$8)*(S14+T14)),2) -> 728.18 | V14: =S14+T14+U14 -> 1391.07 | W14: 114.6 | X14: =EVEN(' CONSUMO DE MAT. B TOTAL'!$P$11*2/28)*W14/' CONSUMO DE MAT. B TOTAL'!$P$11 -> 8.56022409 | Y14: 1399.630224 | Z14: 3805.446259 | AA14: =IF(OR(Y14="",Z14=""),"",Y14+Z14) -> 5205.076483 | AC14: =AA14 -> 5205.076483 | AD14: =Y14 -> 1399.630224 | AE14: 3805.446259 | AH14: =IF(OR(G14=$D$58,G14=$D$59,G14=$D$61,G14=$D$67,G14=$D$51,G14=$D$47,G14=$D$43,G14=$D$56,G14=$D$46),"NORDESTE",IF(OR(G14=$D$42,G14=$D$44,G14=$D$45,G14=$D$55,G14=$D$63,G14=$D$64,G14=$D$68),"NORTE",IF(OR(G14=$D$48,G14=$D$50,G14=$D$52,G14=$D$53),"CENTRO-OESTE",IF(OR(G14=$D$66,G14=$D$60,G14=$D$54,G14=$D$49),"SUDESTE",IF(OR(G14=$D$65,G14=$D$57,G14=$D$62),"SUL",""))))) -> CENTRO-OESTE
B15: 5250.732197 | C15: 3 | E15: DISTRIBUIDORA BRASILEIRA DE ASFALTO SA - DISBRAL | F15: VIA PRIMARIA 8, S/N QD-18, MODS. 24/47 - DAIAG - CEP:74980-970 | G15: Goiás | H15: APARECIDA DE GOIANIA - GO | I15: Maceio - AL | J15: =VLOOKUP(G15,OFFSET('ANP ESTADO'!$A$1,MATCH($I$7,'ANP ESTADO'!B:B,0)+MATCH($H$10,OFFSET('ANP ESTADO'!$A$1,MATCH($I$7,'ANP ESTADO'!B:B,0),0,100000,1),0),2,100000,2),2,FALSE) -> - | K15: =VLOOKUP($H$10,OFFSET('ANP REGIÃO'!$A$9,MATCH('Transporte EAI'!$I$7,'ANP REGIÃO'!A:A,0),1,10000,10000),MATCH('Transporte EAI'!AH15,'ANP REGIÃO'!$B$8:$G$8,0),FALSE) -> 2.981566259 | L15: 2981.566259 | M15: 823.88 | N15: 3805.446259 | O15: 2109 | Q15: 560.52 | S15: 560.52 | T15: 123.04 | U15: 750.88 | V15: 1434.44 | W15: 145.2 | X15: =EVEN(' CONSUMO DE MAT. B TOTAL'!$P$11*2/28)*W15/' CONSUMO DE MAT. B TOTAL'!$P$11 -> 10.84593838 | Y15: 1445.285938 | Z15: 3805.446259 | AA15: 5250.732197 | AC15: 5250.732197 | AD15: 1445.285938 | AE15: 3805.446259 | AH15: CENTRO-OESTE
A16: 2403 | B16: 5254.246483 | C16: 4 | E16: INDÚSTRIA NACIONAL DE ASFALTOS LTDA. | F16: VIA PRIMEIRA E SEGUNDA 3, S/N.º LOTES 01 A 10 - DISTRITO AGROINDUSTRIAL - CEP:75370-000 | G16: Goiás | H16: GOIANIRA - GO | I16: Maceio - AL | J16: =VLOOKUP(G16,OFFSET('ANP ESTADO'!$A$1,MATCH($I$7,'ANP ESTADO'!B:B,0)+MATCH($H$10,OFFSET('ANP ESTADO'!$A$1,MATCH($I$7,'ANP ESTADO'!B:B,0),0,100000,1),0),2,100000,2),2,FALSE) -> - | K16: =VLOOKUP($H$10,OFFSET('ANP REGIÃO'!$A$9,MATCH('Transporte EAI'!$I$7,'ANP REGIÃO'!A:A,0),1,10000,10000),MATCH('Transporte EAI'!AH16,'ANP REGIÃO'!$B$8:$G$8,0),FALSE) -> 2.981566259 | L16: 2981.566259 | M16: 823.88 | N16: 3805.446259 | O16: 2118 | Q16: 562.79 | S16: 562.79 | T16: 123.53 | U16: 753.92 | V16: 1440.24 | W16: 114.6 | X16: =EVEN(' CONSUMO DE MAT. B TOTAL'!$P$11*2/28)*W16/' CONSUMO DE MAT. B TOTAL'!$P$11 -> 8.56022409 | Y16: 1448.800224 | Z16: 3805.446259 | AA16: 5254.246483 | AC16: 5254.246483 | AD16: 1448.800224 | AE16: 3805.446259 | AH16: CENTRO-OESTE
B17: 4540.991967 | C17: 5 | E17: STRATURA ASFALTOS S/A | F17: RUA VICTOR RODRIGUES RESENDE, 333 - DISTRITO IND. DE UBERLÂNDIA - CEP:38405-440 | G17: Minas Gerais | H17: UBERLANDIA - MG | I17: Maceio - AL | J17: =VLOOKUP(G17,OFFSET('ANP ESTADO'!$A$1,MATCH($I$7,'ANP ESTADO'!B:B,0)+MATCH($H$10,OFFSET('ANP ESTADO'!$A$1,MATCH($I$7,'ANP ESTADO'!B:B,0),0,100000,1),0),2,100000,2),2,FALSE) -> 2.438188746 | K17: =VLOOKUP($H$10,OFFSET('ANP REGIÃO'!$A$9,MATCH('Transporte EAI'!$I$7,'ANP REGIÃO'!A:A,0),1,10000,10000),MATCH('Transporte EAI'!AH17,'ANP REGIÃO'!$B$8:$G$8,0),FALSE) -> 2.473946832 | L17: 2438.188746 | M17: 673.73 | N17: 3111.918746 | O17: 2062 | Q17: 548.63 | S17: 548.63 | T17: 120.43 | U17: 734.96 | V17: 1404.02 | W17: 335.4 | X17: =EVEN(' CONSUMO DE MAT. B TOTAL'!$P$11*2/28)*W17/' CONSUMO DE MAT. B TOTAL'!$P$11 -> 25.05322129 | Y17: 1429.073221 | Z17: 3111.918746 | AA17: 4540.991967 | AC17: 4540.991967 | AD17: 1429.073221 | AE17: 3111.918746 | AH17: SUDESTE
B18: 4542.901967 | C18: 6 | E18: BETUNEL INDÚSTRIA E COMÉRCIO LTDA. | F18: RUA VICTOR RODRIGUES DE REZENDE, 185 - DISTRITO INDUSTRIAL - CEP:38402-334 | G18: Minas Gerais | H18: UBERLANDIA - MG | I18: Maceio - AL | J18: =VLOOKUP(G18,OFFSET('ANP ESTADO'!$A$1,MATCH($I$7,'ANP ESTADO'!B:B,0)+MATCH($H$10,OFFSET('ANP ESTADO'!$A$1,MATCH($I$7,'ANP ESTADO'!B:B,0),0,100000,1),0),2,100000,2),2,FALSE) -> 2.438188746 | K18: =VLOOKUP($H$10,OFFSET('ANP REGIÃO'!$A$9,MATCH('Transporte EAI'!$I$7,'ANP REGIÃO'!A:A,0),1,10000,10000),MATCH('Transporte EAI'!AH18,'ANP REGIÃO'!$B$8:$G$8,0),FALSE) -> 2.473946832 | L18: 2438.188746 | M18: 673.73 | N18: 3111.918746 | O18: 2065 | Q18: 549.38 | S18: 549.38 | T18: 120.59 | U18: 735.96 | V18: 1405.93 | W18: 335.4 | X18: =EVEN(' CONSUMO DE MAT. B TOTAL'!$P$11*2/28)*W18/' CONSUMO DE MAT. B TOTAL'!$P$11 -> 25.05322129 | Y18: 1430.983221 | Z18: 3111.918746 | AA18: 4542.901967 | AC18: 4542.901967 | AD18: 1430.983221 | AE18: 3111.918746 | AH18: SUDESTE
B19: 6130.045459 | C19: 7 | E19: ARAPETRO DISTRIBUIDORA DE PETRÓLEO LTDA. | F19: RUA 04, S/N° LOTES 17 A 20. - DISTRITO INDUSTRIAL 1/8 - CEP:78600-000 | G19: Mato Grosso | H19: BARRA DO GARCAS - MT | I19: Maceio - AL | J19: =VLOOKUP(G19,OFFSET('ANP ESTADO'!$A$1,MATCH($I$7,'ANP ESTADO'!B:B,0)+MATCH($H$10,OFFSET('ANP ESTADO'!$A$1,MATCH($I$7,'ANP ESTADO'!B:B,0),0,100000,1),0),2,100000,2),2,FALSE) -> 3.449095235 | K19: =VLOOKUP($H$10,OFFSET('ANP REGIÃO'!$A$9,MATCH('Transporte EAI'!$I$7,'ANP REGIÃO'!A:A,0),1,10000,10000),MATCH('Transporte EAI'!AH19,'ANP REGIÃO'!$B$8:$G$8,0),FALSE) -> 2.981566259 | L19: =IF(AND(J19="-",K19="-"),"",IF(AND(J19<>0,K19="-"),J19*1000,IF(AND(J19="-",K19<>0),K19*1000,IF(AND(J19<>0,K19<>0),J19*1000,"")))) -> 3449.095235 | M19: =ROUND(((L19/(1-$O$7-$O$8-$O$9))-L19),2) -> 953.07 | N19: 4402.165235 | O19: 2549 | Q19: 671.84 | S19: 671.84 | T19: 147.47 | U19: 900.01 | V19: 1719.32 | W19: 114.6 | X19: =EVEN(' CONSUMO DE MAT. B TOTAL'!$P$11*2/28)*W19/' CONSUMO DE MAT. B TOTAL'!$P$11 -> 8.56022409 | Y19: 1727.880224 | Z19: 4402.165235 | AA19: 6130.045459 | AH19: CENTRO-OESTE
B20: 4407.848214 | C20: 8 | E20: DISTRIBUIDORA BRASILEIRA DE ASFALTO SA - DISBRAL | F20: SÃO JUDAS TADEU, 288 - DISTRITO INDUSTRIAL - CEP:32450-000 | G20: Minas Gerais | H20: SARZEDO - MG | I20: Maceio - AL | J20: =VLOOKUP(G20,OFFSET('ANP ESTADO'!$A$1,MATCH($I$7,'ANP ESTADO'!B:B,0)+MATCH($H$10,OFFSET('ANP ESTADO'!$A$1,MATCH($I$7,'ANP ESTADO'!B:B,0),0,100000,1),0),2,100000,2),2,FALSE) -> 2.438188746 | K20: =VLOOKUP($H$10,OFFSET('ANP REGIÃO'!$A$9,MATCH('Transporte EAI'!$I$7,'ANP REGIÃO'!A:A,0),1,10000,10000),MATCH('Transporte EAI'!AH20,'ANP REGIÃO'!$B$8:$G$8,0),FALSE) -> 2.473946832 | L20: 2438.188746 | M20: 673.73 | N20: 3111.918746 | O20: 1874 | Q20: 501.06 | S20: 501.06 | T20: 109.98 | U20: 671.22 | V20: 1282.26 | W20: 183 | X20: =EVEN(' CONSUMO DE MAT. B TOTAL'!$P$11*2/28)*W20/' CONSUMO DE MAT. B TOTAL'!$P$11 -> 13.66946779 | Y20: 1295.929468 | Z20: 3111.918746 | AA20: 4407.848214 | AH20: SUDESTE
B21: 4701.479789 | C21: 9 | E21: 'INDÚSTRIA NACIONAL DE ASFALTOS LTDA. | F21: INDÚSTRIA NACIONAL DE ASFALTOS LTDA - CEP:77053-080 | G21: Tocantins | H21: PALMAS - TO | I21: Maceio - AL | J21: =VLOOKUP(G21,OFFSET('ANP ESTADO'!$A$1,MATCH($I$7,'ANP ESTADO'!B:B,0)+MATCH($H$10,OFFSET('ANP ESTADO'!$A$1,MATCH($I$7,'ANP ESTADO'!B:B,0),0,100000,1),0),2,100000,2),2,FALSE) -> - | K21: =VLOOKUP($H$10,OFFSET('ANP REGIÃO'!$A$9,MATCH('Transporte EAI'!$I$7,'ANP REGIÃO'!A:A,0),1,10000,10000),MATCH('Transporte EAI'!AH21,'ANP REGIÃO'!$B$8:$G$8,0),FALSE) -> 2.670205896 | L21: 2670.205896 | M21: 737.84 | N21: 3408.045896 | O21: 1887 | Q21: 504.35 | S21: 504.35 | T21: 110.71 | U21: 675.64 | V21: 1290.7 | W21: 36.6 | X21: =EVEN(' CONSUMO DE MAT. B TOTAL'!$P$11*2/28)*W21/' CONSUMO DE MAT. B TOTAL'!$P$11 -> 2.733893557 | Y21: 1293.433894 | Z21: 3408.045896 | AA21: 4701.479789 | AH21: NORTE
B22: 4904.583715 | C22: 10 | E22: 'NTA - NOVAS TÉCNICAS DE ASFALTOS S/A | F22: RUA SOFIA ATAURI FADIN, 150 SALA A - B. SANTA TEREZINHA - CEP:13140-000 | G22: São Paulo | H22: PAULINIA - SP | I22: Maceio - AL | J22: =VLOOKUP(G22,OFFSET('ANP ESTADO'!$A$1,MATCH($I$7,'ANP ESTADO'!B:B,0)+MATCH($H$10,OFFSET('ANP ESTADO'!$A$1,MATCH($I$7,'ANP ESTADO'!B:B,0),0,100000,1),0),2,100000,2),2,FALSE) -> 2.523284359 | K22: =VLOOKUP($H$10,OFFSET('ANP REGIÃO'!$A$9,MATCH('Transporte EAI'!$I$7,'ANP REGIÃO'!A:A,0),1,10000,10000),MATCH('Transporte EAI'!AH22,'ANP REGIÃO'!$B$8:$G$8,0),FALSE) -> 2.473946832 | L22: 2523.284359 | M22: =ROUND(((L22/(1-$O$7-$O$8-$O$9))-L22),2) -> 697.24 | N22: 3220.524359 | O22: 2443 | Q22: 645.02 | S22: 645.02 | T22: 141.58 | U22: 864.07 | V22: 1650.67 | W22: 447 | X22: =EVEN(' CONSUMO DE MAT. B TOTAL'!$P$11*2/28)*W22/' CONSUMO DE MAT. B TOTAL'!$P$11 -> 33.38935574 | Y22: 1684.059356 | Z22: 3220.524359 | AA22: 4904.583715 | AC22: 4904.583715 | AD22: 1684.059356 | AE22: 3220.524359 | AH22: SUDESTE
B23: 4869.351866 | C23: 11 | E23: COMPANHIA BRASILEIRA DE ASFALTOS DA AMAZÔNIA - IMPORTAÇÃO E EXPORTAÇÃO | F23: Avenida Doutor Olindo Dártora 2451, Galpão 02, Morro Grande - CEP:07726-555 | G23: São Paulo | H23: CAIEIRAS - SP | I23: Maceio - AL | J23: =VLOOKUP(G23,OFFSET('ANP ESTADO'!$A$1,MATCH($I$7,'ANP ESTADO'!B:B,0)+MATCH($H$10,OFFSET('ANP ESTADO'!$A$1,MATCH($I$7,'ANP ESTADO'!B:B,0),0,100000,1),0),2,100000,2),2,FALSE) -> 2.523284359 | K23: =VLOOKUP($H$10,OFFSET('ANP REGIÃO'!$A$9,MATCH('Transporte EAI'!$I$7,'ANP REGIÃO'!A:A,0),1,10000,10000),MATCH('Transporte EAI'!AH23,'ANP REGIÃO'!$B$8:$G$8,0),FALSE) -> 2.473946832 | L23: 2523.284359 | M23: =ROUND(((L23/(1-$O$7-$O$8-$O$9))-L23),2) -> 697.24 | N23: 3220.524359 | O23: 2405 | Q23: 635.4 | S23: 635.4 | T23: 139.47 | U23: 851.19 | V23: 1626.06 | W23: 304.8 | X23: =EVEN(' CONSUMO DE MAT. B TOTAL'!$P$11*2/28)*W23/' CONSUMO DE MAT. B TOTAL'!$P$11 -> 22.767507 | Y23: 1648.827507 | Z23: 3220.524359 | AA23: 4869.351866 | AH23: SUDESTE
B24: 5579.400521 | C24: 12 | E24: BETUNEL INDÚSTRIA E COMÉRCIO LTDA. | F24: R 16 , 82, Vila Nova Campo Grande - CEP:79.103-834 | G24: Mato Grosso do Sul | H24: CAMPO GRANDE - MS | I24: Maceio - AL | J24: =VLOOKUP(G24,OFFSET('ANP ESTADO'!$A$1,MATCH($I$7,'ANP ESTADO'!B:B,0)+MATCH($H$10,OFFSET('ANP ESTADO'!$A$1,MATCH($I$7,'ANP ESTADO'!B:B,0),0,100000,1),0),2,100000,2),2,FALSE) -> 2.8647473 | K24: =VLOOKUP($H$10,OFFSET('ANP REGIÃO'!$A$9,MATCH('Transporte EAI'!$I$7,'ANP REGIÃO'!A:A,0),1,10000,10000),MATCH('Transporte EAI'!AH24,'ANP REGIÃO'!$B$8:$G$8,0),FALSE) -> 2.981566259 | L24: 2864.7473 | M24: =ROUND(((L24/(1-$O$7-$O$8-$O$9))-L24),2) -> 791.6 | N24: 3656.3473 | O24: 2825 | Q24: 741.66 | S24: 741.66 | T24: 162.8 | U24: 993.54 | V24: 1898 | W24: 335.4 | X24: =EVEN(' CONSUMO DE MAT. B TOTAL'!$P$11*2/28)*W24/' CONSUMO DE MAT. B TOTAL'!$P$11 -> 25.05322129 | Y24: 1923.053221 | Z24: 3656.3473 | AA24: 5579.400521 | AH24: CENTRO-OESTE
B25: 6407.407308 | C25: 13 | E25: CENTRO OESTE ASFALTOS LTDA. | F25: RUA N, S/N.º LOTES 39/43 E LOTES 129/133 - DISTRITO INDUSTRIAL - CEP:78098-400 | G25: Mato Grosso | H25: CUIABA - MT | I25: Maceio - AL | J25: =VLOOKUP(G25,OFFSET('ANP ESTADO'!$A$1,MATCH($I$7,'ANP ESTADO'!B:B,0)+MATCH($H$10,OFFSET('ANP ESTADO'!$A$1,MATCH($I$7,'ANP ESTADO'!B:B,0),0,100000,1),0),2,100000,2),2,FALSE) -> 3.449095235 | K25: =VLOOKUP($H$10,OFFSET('ANP REGIÃO'!$A$9,MATCH('Transporte EAI'!$I$7,'ANP REGIÃO'!A:A,0),1,10000,10000),MATCH('Transporte EAI'!AH25,'ANP REGIÃO'!$B$8:$G$8,0),FALSE) -> 2.981566259 | L25: 3449.095235 | M25: 953.07 | N25: 4402.165235 | O25: 2961 | Q25: 776.07 | S25: 776.07 | T25: 170.35 | U25: 1039.64 | V25: 1986.06 | W25: 256.8 | X25: =EVEN(' CONSUMO DE MAT. B TOTAL'!$P$11*2/28)*W25/' CONSUMO DE MAT. B TOTAL'!$P$11 -> 19.18207283 | Y25: 2005.242073 | Z25: 4402.165235 | AA25: 6407.407308 | AH25: CENTRO-OESTE
B26: 6403.517308 | C26: 14 | E26: BETUNEL INDÚSTRIA E COMÉRCIO LTDA. | F26: RUA N ESQUINA COM RUA X, S/N QD. IND. 7 L 01/08 - DIST. IND. - CEP:78015-285 | G26: Mato Grosso | H26: CUIABA - MT | I26: Maceio - AL | J26: =VLOOKUP(G26,OFFSET('ANP ESTADO'!$A$1,MATCH($I$7,'ANP ESTADO'!B:B,0)+MATCH($H$10,OFFSET('ANP ESTADO'!$A$1,MATCH($I$7,'ANP ESTADO'!B:B,0),0,100000,1),0),2,100000,2),2,FALSE) -> 3.449095235 | K26: =VLOOKUP($H$10,OFFSET('ANP REGIÃO'!$A$9,MATCH('Transporte EAI'!$I$7,'ANP REGIÃO'!A:A,0),1,10000,10000),MATCH('Transporte EAI'!AH26,'ANP REGIÃO'!$B$8:$G$8,0),FALSE) -> 2.981566259 | L26: 3449.095235 | M26: 953.07 | N26: 4402.165235 | O26: 2955 | Q26: 774.55 | S26: 774.55 | T26: 170.02 | U26: 1037.6 | V26: 1982.17 | W26: 256.8 | X26: =EVEN(' CONSUMO DE MAT. B TOTAL'!$P$11*2/28)*W26/' CONSUMO DE MAT. B TOTAL'!$P$11 -> 19.18207283 | Y26: 2001.352073 | Z26: 4402.165235 | AA26: 6403.517308 | AH26: CENTRO-OESTE
B27: 6408.077308 | C27: 15 | E27: EMAM - EMULSÕES E TRANSPORTES LTDA. | F27: RODOVIA DOS IMIGRANTES, S/Nº KM 8,6 - - CEP:60035-351 | G27: Mato Grosso | H27: VARZEA GRANDE - MT | I27: Maceio - AL | J27: =VLOOKUP(G27,OFFSET('ANP ESTADO'!$A$1,MATCH($I$7,'ANP ESTADO'!B:B,0)+MATCH($H$10,OFFSET('ANP ESTADO'!$A$1,MATCH($I$7,'ANP ESTADO'!B:B,0),0,100000,1),0),2,100000,2),2,FALSE) -> 3.449095235 | K27: =VLOOKUP($H$10,OFFSET('ANP REGIÃO'!$A$9,MATCH('Transporte EAI'!$I$7,'ANP REGIÃO'!A:A,0),1,10000,10000),MATCH('Transporte EAI'!AH27,'ANP REGIÃO'!$B$8:$G$8,0),FALSE) -> 2.981566259 | L27: 3449.095235 | M27: 953.07 | N27: 4402.165235 | O27: 2962 | Q27: 776.33 | S27: 776.33 | T27: 170.41 | U27: 1039.99 | V27: 1986.73 | W27: 256.8 | X27: =EVEN(' CONSUMO DE MAT. B TOTAL'!$P$11*2/28)*W27/' CONSUMO DE MAT. B TOTAL'!$P$11 -> 19.18207283 | Y27: 2005.912073 | Z27: 4402.165235 | AA27: 6408.077308 | AC27: 6408.077308 | AD27: 2005.912073 | AE27: 4402.165235 | AH27: CENTRO-OESTE
B28: 4818.597721 | C28: 16 | E28: VIAPOL LTDA. | F28: VITO ARDITO, 6401 KM 118,5 - JARDIM CAMPO GRANDE - CEP:12282-535 | G28: São Paulo | H28: CACAPAVA - SP | I28: Maceio - AL | J28: =VLOOKUP(G28,OFFSET('ANP ESTADO'!$A$1,MATCH($I$7,'ANP ESTADO'!B:B,0)+MATCH($H$10,OFFSET('ANP ESTADO'!$A$1,MATCH($I$7,'ANP ESTADO'!B:B,0),0,100000,1),0),2,100000,2),2,FALSE) -> 2.523284359 | K28: =VLOOKUP($H$10,OFFSET('ANP REGIÃO'!$A$9,MATCH('Transporte EAI'!$I$7,'ANP REGIÃO'!A:A,0),1,10000,10000),MATCH('Transporte EAI'!AH28,'ANP REGIÃO'!$B$8:$G$8,0),FALSE) -> 2.473946832 | L28: 2523.284359 | M28: 697.24 | N28: 3220.524359 | O28: 2287 | Q28: 605.55 | S28: 605.55 | T28: 132.92 | U28: 811.2 | V28: 1549.67 | W28: 648 | X28: =EVEN(' CONSUMO DE MAT. B TOTAL'!$P$11*2/28)*W28/' CONSUMO DE MAT. B TOTAL'!$P$11 -> 48.40336134 | Y28: 1598.073361 | Z28: 3220.524359 | AA28: 4818.597721 | AC28: 4818.597721 | AD28: 1598.073361 | AE28: 3220.524359 | AH28: SUDESTE
B29: 4609.559661 | C29: 17 | E29: STRATURA ASFALTOS S/A | F29: RUA LUIS DE CAMÕES, 26 - CAMPOS ELÍSEOS - CEP:25225-030 | G29: Rio de Janeiro | H29: DUQUE DE CAXIAS - RJ | I29: Maceio - AL | J29: =VLOOKUP(G29,OFFSET('ANP ESTADO'!$A$1,MATCH($I$7,'ANP ESTADO'!B:B,0)+MATCH($H$10,OFFSET('ANP ESTADO'!$A$1,MATCH($I$7,'ANP ESTADO'!B:B,0),0,100000,1),0),2,100000,2),2,FALSE) -> - | K29: =VLOOKUP($H$10,OFFSET('ANP REGIÃO'!$A$9,MATCH('Transporte EAI'!$I$7,'ANP REGIÃO'!A:A,0),1,10000,10000),MATCH('Transporte EAI'!AH29,'ANP REGIÃO'!$B$8:$G$8,0),FALSE) -> 2.473946832 | L29: 2473.946832 | M29: 683.61 | N29: 3157.556832 | O29: 2065 | Q29: 549.38 | S29: 549.38 | T29: 120.59 | U29: 735.96 | V29: 1405.93 | W29: 616.8 | X29: =EVEN(' CONSUMO DE MAT. B TOTAL'!$P$11*2/28)*W29/' CONSUMO DE MAT. B TOTAL'!$P$11 -> 46.07282913 | Y29: 1452.002829 | Z29: 3157.556832 | AA29: 4609.559661 | AC29: 4609.559661 | AD29: 1452.002829 | AE29: 3157.556832 | AH29: SUDESTE
B30: 4619.269661 | C30: 18 | E30: PROBITEC - PRODUTOS BETUMINOSOS E TECNOLOGIA DE APLICAÇÃO LTDA. | F30: AVENIDA CANAL DA PAVUNA, 620 - PAVUNA - CEP:21535-630 | G30: Rio de Janeiro | H30: RIO DE JANEIRO - RJ | I30: Maceio - AL | J30: =VLOOKUP(G30,OFFSET('ANP ESTADO'!$A$1,MATCH($I$7,'ANP ESTADO'!B:B,0)+MATCH($H$10,OFFSET('ANP ESTADO'!$A$1,MATCH($I$7,'ANP ESTADO'!B:B,0),0,100000,1),0),2,100000,2),2,FALSE) -> - | K30: =VLOOKUP($H$10,OFFSET('ANP REGIÃO'!$A$9,MATCH('Transporte EAI'!$I$7,'ANP REGIÃO'!A:A,0),1,10000,10000),MATCH('Transporte EAI'!AH30,'ANP REGIÃO'!$B$8:$G$8,0),FALSE) -> 2.473946832 | L30: 2473.946832 | M30: 683.61 | N30: 3157.556832 | O30: 2080 | Q30: 553.18 | S30: 553.18 | T30: 121.42 | U30: 741.04 | V30: 1415.64 | W30: 616.8 | X30: =EVEN(' CONSUMO DE MAT. B TOTAL'!$P$11*2/28)*W30/' CONSUMO DE MAT. B TOTAL'!$P$11 -> 46.07282913 | Y30: 1461.712829 | Z30: 3157.556832 | AA30: 4619.269661 | AC30: 4619.269661 | AD30: 1461.712829 | AE30: 3157.556832 | AH30: SUDESTE
B31: 5297.597079 | C31: 19 | E31: CASA DO ASFALTO DISTRIBUIDORA, INDÚSTRIA E COMÉRCIO DE ASFALTO LTDA. | F31: BR 376, PARQUE INDUSTRIAL, S/N LOTE 6/7/7-A-3-1 - GL.PATR.MARIALVA - CEP:86990-000 | G31: Paraná | H31: MARIALVA - PR | I31: Maceio - AL | J31: =VLOOKUP(G31,OFFSET('ANP ESTADO'!$A$1,MATCH($I$7,'ANP ESTADO'!B:B,0)+MATCH($H$10,OFFSET('ANP ESTADO'!$A$1,MATCH($I$7,'ANP ESTADO'!B:B,0),0,100000,1),0),2,100000,2),2,FALSE) -> 2.638300188 | K31: =VLOOKUP($H$10,OFFSET('ANP REGIÃO'!$A$9,MATCH('Transporte EAI'!$I$7,'ANP REGIÃO'!A:A,0),1,10000,10000),MATCH('Transporte EAI'!AH31,'ANP REGIÃO'!$B$8:$G$8,0),FALSE) -> 2.639066026 | L31: 2638.300188 | M31: 729.03 | N31: 3367.330188 | O31: 2771 | Q31: 728 | S31: 728 | T31: 159.8 | U31: 975.24 | V31: 1863.04 | W31: 900 | X31: =EVEN(' CONSUMO DE MAT. B TOTAL'!$P$11*2/28)*W31/' CONSUMO DE MAT. B TOTAL'!$P$11 -> 67.22689076 | Y31: 1930.266891 | Z31: 3367.330188 | AA31: 5297.597079 | AC31: 5297.597079 | AD31: 1930.266891 | AE31: 3367.330188 | AH31: SUL
B32: 5340.74988 | C32: 20 | E32: PETROBRAS DISTRIBUIDORA S.A. | F32: RUA MAQUINISTA ELEODORO JACINTO, 100 - OFICINAS - CEP:84045-170 | G32: Paraná | H32: PONTA GROSSA - PR | I32: Maceio - AL | J32: =VLOOKUP(G32,OFFSET('ANP ESTADO'!$A$1,MATCH($I$7,'ANP ESTADO'!B:B,0)+MATCH($H$10,OFFSET('ANP ESTADO'!$A$1,MATCH($I$7,'ANP ESTADO'!B:B,0),0,100000,1),0),2,100000,2),2,FALSE) -> 2.638300188 | K32: =VLOOKUP($H$10,OFFSET('ANP REGIÃO'!$A$9,MATCH('Transporte EAI'!$I$7,'ANP REGIÃO'!A:A,0),1,10000,10000),MATCH('Transporte EAI'!AH32,'ANP REGIÃO'!$B$8:$G$8,0),FALSE) -> 2.639066026 | L32: 2638.300188 | M32: 729.03 | N32: 3367.330188 | O32: 2833 | Q32: 743.69 | S32: 743.69 | T32: 163.24 | U32: 996.26 | V32: 1903.19 | W32: 940.2 | X32: =EVEN(' CONSUMO DE MAT. B TOTAL'!$P$11*2/28)*W32/' CONSUMO DE MAT. B TOTAL'!$P$11 -> 70.22969188 | Y32: 1973.419692 | Z32: 3367.330188 | AA32: 5340.74988 | AC32: 5340.74988 | AD32: 1973.419692 | AE32: 3367.330188 | AH32: SUL
D42: Acre
D43: Alagoas
D44: Amapá
D45: Amazonas
D46: Bahia
D47: Ceará
D48: Distrito Federal
D49: Espírito Santo
D50: Goiás
D51: Maranhão
D52: Mato Grosso
D53: Mato Grosso do Sul
D54: Minas Gerais
D55: Pará
D56: Paraíba
D57: Paraná
D58: Pernambuco
D59: Piauí
D60: Rio de Janeiro
D61: Rio Grande do Norte
D62: Rio Grande do Sul
D63: Rondônia
D64: Roraima
D65: Santa Catarina
D66: São Paulo
D67: Sergipe
D68: Tocantins
D72: ASFALTOS DILUÍDOS CM-30
D73: ASFALTOS DILUÍDOS CM-70
D74: ASFALTOS DILUÍDOS CR-250
D75: ASFALTOS DILUÍDOS CR-70
D76: CAP MODIFICADO POR BORRACHA DE PNEU AB22
D77: CAP MODIFICADO POR BORRACHA DE PNEU AB8
D78: CAP MODIFICADO POR POLÍMERO 55-75-E
D79: CAP MODIFICADO POR POLÍMERO 60-85-E
D80: CAP MODIFICADO POR POLÍMERO 65-90-E
D81: CIMENTOS ASFÁLTICOS CAP-150-200
D82: CIMENTOS ASFÁLTICOS CAP-30-45
D83: CIMENTOS ASFÁLTICOS CAP-50-70
D84: CIMENTOS ASFÁLTICOS CAP-85-100
D85: EMULSÃO ASFÁLTICA CATIÔNICA DE RUPTURA CONTROLADA PARA SERVIÇO DE LAMA ASFÁLTICA
D86: EMULSÃO ASFÁLTICA DE RUPTURA LENTA CATIÔNICA PARA SERVIÇO DE LAMA ASFÁLTICA
D87: EMULSÃO ASFÁLTICA DE RUPTURA LENTA DE CARGA NEUTRA PARA SERVIÇO DE LAMA ASFÁLTICA
D88: EMULSÃO ASFÁLTICA PARA SERVIÇO DE IMPRIMAÇÃO
D89: EMULSÕES ASF. MOD. POR POLÍMEROS RC1C-E
D90: EMULSÕES ASF. MOD. POR POLÍMEROS RL1C-E
D91: EMULSÕES ASF. MOD. POR POLÍMEROS RM1C-E
D92: EMULSÕES ASF. MOD. POR POLÍMEROS RR1C-E
D93: EMULSÕES ASF. MOD. POR POLÍMEROS RR2C-E
D94: EMULSÕES ASFÁLTICAS RL-1C
D95: EMULSÕES ASFÁLTICAS RM-1C
D96: EMULSÕES ASFÁLTICAS RM-2C
D97: EMULSÕES ASFÁLTICAS RR-1C
D98: EMULSÕES ASFÁLTICAS RR-2C

Sheet Transporte RR-1C
C2: MEMÓRIA DE CÁLCULO
C7: REAJUSTE | F7: TIPOLOGIA DO MATERIAL | I7: EMULSÕES ASFÁLTICAS RR-1C | M7: IMPOSTOS | N7: COFINS | O7: 0.0065 | P7: 0.0065
G8: ÍNDICE DE PAVIMENTAÇÃO DNIT | H8: 2014-07-01 | I8: ÍNDICE INICIAL | J8: 270.237 | N8: PIS | O8: 0.03 | P8: 0.03 | T8: LEGENDA | AC8: As empresas tributadas pelo Lucro Presumido pagam 0,65% de PIS e 3% de COFINS
H9: ='Transporte Cap 50-70'!H9 -> 2024-03-01 | I9: ÍNDICE FINAL | J9: ='Transporte Cap 50-70'!J9 -> 567.092 | N9: ICMS | O9: 0.18 | P9: 0.18 | Q9: =1-(O9/1) -> 0.82 | R9: =1-(P9/1) -> 0.82 | S9: =1-(Q9/1) -> 0.18 | T9: ENTRADA DE DADOS | AC9: As empresas tributadas pelo Lucro Real pagam 1,65% de PIS e 7,60% de COFINS
G10: Data ANP | H10: ='Transporte Cap 50-70'!H10 -> 2024-03-01
C11: DATA-BASE | D11: PRODUTOS | E11: LOCALIDADES | J11: CUSTO ANP (R$/Kg) | L11: CUSTO ANP | M11: IMPOSTOS DO PRODUTO | N11: CUSTO DO PRODUTO COM IMPOSTOS | O11: DMT's | P11: DMT'S FLUVIAL | Q11: CUSTO DO TRANSPORTE RODOVIA PAVIMENTADA | R11: CUSTO DO TRANSPORTE FLUVIAL | S11: CUSTO DO TRANSPORTE TOTAL | T11: ICMS | U11: ATUALIZAÇÃO DO CUSTO DE TRANSPORTE | V11: CUSTO DO TRANSPORTE RODOVIA PAVIMENTADA COM IMPOSTOS E ATUALIZAÇÃO MONETÁRIA | W11: PEDÁGIO | Y11: TOTAL TRANSPORTE | Z11: AQUISIÇÃO DO PRODUTO | AA11: TOTAL GERAL ( TRANSP + AQUISIÇÃO) | AC11: 1 | AD11: 2 | AE11: 3
C12: =H9 -> 2024-03-01 | E12: REFINARIAS | F12: ENDEREÇO | G12: ESTADO | H12: CIDADE | I12: DESTINO | J12: ESTADO | K12: REGIÃO | L12: R$/t | M12: R$/t | N12: R$/t | O12: KM | P12: KM | Q12: R$/t | R12: R$/t | S12: R$/t | T12: R$/t | U12: R$/t | V12: R$/t | W12: CUSTO | X12: R$/t | Y12: R$/t | Z12: R$/t | AA12: R$/t | AC12: TOTAL GERAL ( TRANSP + AQUISIÇÃO) | AD12: TOTAL TRANSPORTE | AE12: AQUISIÇÃO DO PRODUTO
B13: =AA13 -> 4585.228949 | C13: 1 | D13: =I7 -> EMULSÕES ASFÁLTICAS RR-1C | E13: 'CENTRO OESTE ASFALTOS LTDA. | F13: SETOR DE INFLAMÁVEIS, S/N TRECHO 02 - LOTE 1.100 - GUARÁ - CEP:71225-000 | G13: Distrito Federal | H13: BRASÍLIA - DF | I13: ='Transporte EAI'!I13 -> Maceio - AL | J13: =VLOOKUP(G13,OFFSET('ANP ESTADO'!$A$1,MATCH($I$7,'ANP ESTADO'!B:B,0)+MATCH($H$10,OFFSET('ANP ESTADO'!$A$1,MATCH($I$7,'ANP ESTADO'!B:B,0),0,100000,1),0),2,100000,2),2,FALSE) -> - | K13: =VLOOKUP($H$10,OFFSET('ANP REGIÃO'!$A$9,MATCH('Transporte RR-1C'!$I$7,'ANP REGIÃO'!A:A,0),1,10000,10000),MATCH('Transporte RR-1C'!AH13,'ANP REGIÃO'!$B$8:$G$8,0),FALSE) -> 2.571411162 | L13: =IF(AND(J13="-",K13="-"),"",IF(AND(J13<>0,K13="-"),J13*1000,IF(AND(J13="-",K13<>0),K13*1000,IF(AND(J13<>0,K13<>0),J13*1000,"")))) -> 2571.411162 | M13: =ROUND(((L13/(1-$O$7-$O$8-$O$9))-L13),2) -> 710.54 | N13: =L13+M13 -> 3281.951162 | O13: ='Transporte EAI'!O13 -> 1898 | Q13: =ROUND((26.939+0.253*O13),2) -> 507.13 | S13: =Q13+R13 -> 507.13 | T13: =TRUNC(S13*($O$9/(1-$O$9)),2) -> 111.32 | U13: =TRUNC(IF($J$8="","",(($J$9-$J$8)/$J$8)*(S13+T13)),2) -> 679.36 | V13: =S13+T13+U13 -> 1297.81 | W13: ='Transporte EAI'!W13 -> 73.2 | X13: =EVEN(' CONSUMO DE MAT. B TOTAL'!$P$11*2/28)*W13/' CONSUMO DE MAT. B TOTAL'!$P$11 -> 5.467787115 | Y13: =IF(AND(Q13="",T13=""),"",V13+X13) -> 1303.277787 | Z13: =IF(OR(L13="",M13=""),"",L13+M13) -> 3281.951162 | AA13: =IF(OR(Y13="",Z13=""),"",Y13+Z13) -> 4585.228949 | AC13: =AA13 -> 4585.228949 | AD13: =Y13 -> 1303.277787 | AE13: =Z13 -> 3281.951162 | AH13: =IF(OR(G13=$D$58,G13=$D$59,G13=$D$61,G13=$D$67,G13=$D$51,G13=$D$47,G13=$D$43,G13=$D$56,G13=$D$46),"NORDESTE",IF(OR(G13=$D$42,G13=$D$44,G13=$D$45,G13=$D$55,G13=$D$63,G13=$D$64,G13=$D$68),"NORTE",IF(OR(G13=$D$48,G13=$D$50,G13=$D$52,G13=$D$53),"CENTRO-OESTE",IF(OR(G13=$D$66,G13=$D$60,G13=$D$54,G13=$D$49),"SUDESTE",IF(OR(G13=$D$65,G13=$D$57,G13=$D$62),"SUL",""))))) -> CENTRO-OESTE
B14: =AA14 -> 4565.757462 | C14: 2 | E14: STRATURA ASFALTOS S/A | F14: AVENIDA PRESIDENTE WILSON, 08 - JUNDIAÍ - CEP:75115-100 | G14: Goiás | H14: ANÁPOLIS - GO | I14: ='Transporte EAI'!I14 -> Maceio - AL | J14: =VLOOKUP(G14,OFFSET('ANP ESTADO'!$A$1,MATCH($I$7,'ANP ESTADO'!B:B,0)+MATCH($H$10,OFFSET('ANP ESTADO'!$A$1,MATCH($I$7,'ANP ESTADO'!B:B,0),0,100000,1),0),2,100000,2),2,FALSE) -> 2.480657238 | K14: =VLOOKUP($H$10,OFFSET('ANP REGIÃO'!$A$9,MATCH('Transporte RR-1C'!$I$7,'ANP REGIÃO'!A:A,0),1,10000,10000),MATCH('Transporte RR-1C'!AH14,'ANP REGIÃO'!$B$8:$G$8,0),FALSE) -> 2.571411162 | L14: =IF(AND(J14="-",K14="-"),"",IF(AND(J14<>0,K14="-"),J14*1000,IF(AND(J14="-",K14<>0),K14*1000,IF(AND(J14<>0,K14<>0),J14*1000,"")))) -> 2480.657238 | M14: =ROUND(((L14/(1-$O$7-$O$8-$O$9))-L14),2) -> 685.47 | N14: =L14+M14 -> 3166.127238 | O14: ='Transporte EAI'!O14 -> 2042 | Q14: =ROUND((26.939+0.253*O14),2) -> 543.57 | S14: =Q14+R14 -> 543.57 | T14: =TRUNC(S14*($O$9/(1-$O$9)),2) -> 119.32 | U14: =TRUNC(IF($J$8="","",(($J$9-$J$8)/$J$8)*(S14+T14)),2) -> 728.18 | V14: =S14+T14+U14 -> 1391.07 | W14: ='Transporte EAI'!W14 -> 114.6 | X14: =EVEN(' CONSUMO DE MAT. B TOTAL'!$P$11*2/28)*W14/' CONSUMO DE MAT. B TOTAL'!$P$11 -> 8.56022409 | Y14: 1399.630224 | Z14: 3166.127238 | AA14: =IF(OR(Y14="",Z14=""),"",Y14+Z14) -> 4565.757462 | AC14: =AA14 -> 4565.757462 | AD14: =Y14 -> 1399.630224 | AE14: 3166.127238 | AH14: =IF(OR(G14=$D$58,G14=$D$59,G14=$D$61,G14=$D$67,G14=$D$51,G14=$D$47,G14=$D$43,G14=$D$56,G14=$D$46),"NORDESTE",IF(OR(G14=$D$42,G14=$D$44,G14=$D$45,G14=$D$55,G14=$D$63,G14=$D$64,G14=$D$68),"NORTE",IF(OR(G14=$D$48,G14=$D$50,G14=$D$52,G14=$D$53),"CENTRO-OESTE",IF(OR(G14=$D$66,G14=$D$60,G14=$D$54,G14=$D$49),"SUDESTE",IF(OR(G14=$D$65,G14=$D$57,G14=$D$62),"SUL",""))))) -> CENTRO-OESTE
B15: 4611.413176 | C15: 3 | E15: DISTRIBUIDORA BRASILEIRA DE ASFALTO SA - DISBRAL | F15: VIA PRIMARIA 8, S/N QD-18, MODS. 24/47 - DAIAG - CEP:74980-970 | G15: Goiás | H15: APARECIDA DE GOIANIA - GO | I15: ='Transporte EAI'!I15 -> Maceio - AL | J15: =VLOOKUP(G15,OFFSET('ANP ESTADO'!$A$1,MATCH($I$7,'ANP ESTADO'!B:B,0)+MATCH($H$10,OFFSET('ANP ESTADO'!$A$1,MATCH($I$7,'ANP ESTADO'!B:B,0),0,100000,1),0),2,100000,2),2,FALSE) -> 2.480657238 | K15: =VLOOKUP($H$10,OFFSET('ANP REGIÃO'!$A$9,MATCH('Transporte RR-1C'!$I$7,'ANP REGIÃO'!A:A,0),1,10000,10000),MATCH('Transporte RR-1C'!AH15,'ANP REGIÃO'!$B$8:$G$8,0),FALSE) -> 2.571411162 | L15: 2480.657238 | M15: 685.47 | N15: 3166.127238 | O15: ='Transporte EAI'!O15 -> 2109 | Q15: 560.52 | S15: 560.52 | T15: 123.04 | U15: 750.88 | V15: 1434.44 | W15: ='Transporte EAI'!W15 -> 145.2 | X15: =EVEN(' CONSUMO DE MAT. B TOTAL'!$P$11*2/28)*W15/' CONSUMO DE MAT. B TOTAL'!$P$11 -> 10.84593838 | Y15: 1445.285938 | Z15: 3166.127238 | AA15: 4611.413176 | AC15: 4611.413176 | AD15: 1445.285938 | AE15: 3166.127238 | AH15: CENTRO-OESTE
A16: 2403 | B16: 4614.927462 | C16: 4 | E16: INDÚSTRIA NACIONAL DE ASFALTOS LTDA. | F16: VIA PRIMEIRA E SEGUNDA 3, S/N.º LOTES 01 A 10 - DISTRITO AGROINDUSTRIAL - CEP:75370-000 | G16: Goiás | H16: GOIANIRA - GO | I16: ='Transporte EAI'!I16 -> Maceio - AL | J16: =VLOOKUP(G16,OFFSET('ANP ESTADO'!$A$1,MATCH($I$7,'ANP ESTADO'!B:B,0)+MATCH($H$10,OFFSET('ANP ESTADO'!$A$1,MATCH($I$7,'ANP ESTADO'!B:B,0),0,100000,1),0),2,100000,2),2,FALSE) -> 2.480657238 | K16: =VLOOKUP($H$10,OFFSET('ANP REGIÃO'!$A$9,MATCH('Transporte RR-1C'!$I$7,'ANP REGIÃO'!A:A,0),1,10000,10000),MATCH('Transporte RR-1C'!AH16,'ANP REGIÃO'!$B$8:$G$8,0),FALSE) -> 2.571411162 | L16: 2480.657238 | M16: 685.47 | N16: 3166.127238 | O16: ='Transporte EAI'!O16 -> 2118 | Q16: 562.79 | S16: 562.79 | T16: 123.53 | U16: 753.92 | V16: 1440.24 | W16: ='Transporte EAI'!W16 -> 114.6 | X16: =EVEN(' CONSUMO DE MAT. B TOTAL'!$P$11*2/28)*W16/' CONSUMO DE MAT. B TOTAL'!$P$11 -> 8.56022409 | Y16: 1448.800224 | Z16: 3166.127238 | AA16: 4614.927462 | AC16: 4614.927462 | AD16: 1448.800224 | AE16: 3166.127238 | AH16: CENTRO-OESTE
B17: 4361.311852 | C17: 5 | E17: STRATURA ASFALTOS S/A | F17: RUA VICTOR RODRIGUES RESENDE, 333 - DISTRITO IND. DE UBERLÂNDIA - CEP:38405-440 | G17: Minas Gerais | H17: UBERLANDIA - MG | I17: ='Transporte EAI'!I17 -> Maceio - AL | J17: =VLOOKUP(G17,OFFSET('ANP ESTADO'!$A$1,MATCH($I$7,'ANP ESTADO'!B:B,0)+MATCH($H$10,OFFSET('ANP ESTADO'!$A$1,MATCH($I$7,'ANP ESTADO'!B:B,0),0,100000,1),0),2,100000,2),2,FALSE) -> 2.297408631 | K17: =VLOOKUP($H$10,OFFSET('ANP REGIÃO'!$A$9,MATCH('Transporte RR-1C'!$I$7,'ANP REGIÃO'!A:A,0),1,10000,10000),MATCH('Transporte RR-1C'!AH17,'ANP REGIÃO'!$B$8:$G$8,0),FALSE) -> 2.607436058 | L17: 2297.408631 | M17: 634.83 | N17: 2932.238631 | O17: ='Transporte EAI'!O17 -> 2062 | Q17: 548.63 | S17: 548.63 | T17: 120.43 | U17: 734.96 | V17: 1404.02 | W17: ='Transporte EAI'!W17 -> 335.4 | X17: =EVEN(' CONSUMO DE MAT. B TOTAL'!$P$11*2/28)*W17/' CONSUMO DE MAT. B TOTAL'!$P$11 -> 25.05322129 | Y17: 1429.073221 | Z17: 2932.238631 | AA17: 4361.311852 | AC17: 4361.311852 | AD17: 1429.073221 | AE17: 2932.238631 | AH17: SUDESTE
B18: 4363.221852 | C18: 6 | E18: BETUNEL INDÚSTRIA E COMÉRCIO LTDA. | F18: RUA VICTOR RODRIGUES DE REZENDE, 185 - DISTRITO INDUSTRIAL - CEP:38402-334 | G18: Minas Gerais | H18: UBERLANDIA - MG | I18: ='Transporte EAI'!I18 -> Maceio - AL | J18: =VLOOKUP(G18,OFFSET('ANP ESTADO'!$A$1,MATCH($I$7,'ANP ESTADO'!B:B,0)+MATCH($H$10,OFFSET('ANP ESTADO'!$A$1,MATCH($I$7,'ANP ESTADO'!B:B,0),0,100000,1),0),2,100000,2),2,FALSE) -> 2.297408631 | K18: =VLOOKUP($H$10,OFFSET('ANP REGIÃO'!$A$9,MATCH('Transporte RR-1C'!$I$7,'ANP REGIÃO'!A:A,0),1,10000,10000),MATCH('Transporte RR-1C'!AH18,'ANP REGIÃO'!$B$8:$G$8,0),FALSE) -> 2.607436058 | L18: 2297.408631 | M18: 634.83 | N18: 2932.238631 | O18: ='Transporte EAI'!O18 -> 2065 | Q18: 549.38 | S18: 549.38 | T18: 120.59 | U18: 735.96 | V18: 1405.93 | W18: ='Transporte EAI'!W18 -> 335.4 | X18: =EVEN(' CONSUMO DE MAT. B TOTAL'!$P$11*2/28)*W18/' CONSUMO DE MAT. B TOTAL'!$P$11 -> 25.05322129 | Y18: 1430.983221 | Z18: 2932.238631 | AA18: 4363.221852 | AC18: 4363.221852 | AD18: 1430.983221 | AE18: 2932.238631 | AH18: SUDESTE
B19: 6443.925583 | C19: 7 | E19: ARAPETRO DISTRIBUIDORA DE PETRÓLEO LTDA. | F19: RUA 04, S/N° LOTES 17 A 20. - DISTRITO INDUSTRIAL 1/8 - CEP:78600-000 | G19: Mato Grosso | H19: BARRA DO GARCAS - MT | I19: ='Transporte EAI'!I19 -> Maceio - AL | J19: =VLOOKUP(G19,OFFSET('ANP ESTADO'!$A$1,MATCH($I$7,'ANP ESTADO'!B:B,0)+MATCH($H$10,OFFSET('ANP ESTADO'!$A$1,MATCH($I$7,'ANP ESTADO'!B:B,0),0,100000,1),0),2,100000,2),2,FALSE) -> 3.695025359 | K19: =VLOOKUP($H$10,OFFSET('ANP REGIÃO'!$A$9,MATCH('Transporte RR-1C'!$I$7,'ANP REGIÃO'!A:A,0),1,10000,10000),MATCH('Transporte RR-1C'!AH19,'ANP REGIÃO'!$B$8:$G$8,0),FALSE) -> 2.571411162 | L19: =IF(AND(J19="-",K19="-"),"",IF(AND(J19<>0,K19="-"),J19*1000,IF(AND(J19="-",K19<>0),K19*1000,IF(AND(J19<>0,K19<>0),J19*1000,"")))) -> 3695.025359 | M19: =ROUND(((L19/(1-$O$7-$O$8-$O$9))-L19),2) -> 1021.02 | N19: 4716.045359 | O19: ='Transporte EAI'!O19 -> 2549 | Q19: 671.84 | S19: 671.84 | T19: 147.47 | U19: 900.01 | V19: 1719.32 | W19: ='Transporte EAI'!W19 -> 114.6 | X19: =EVEN(' CONSUMO DE MAT. B TOTAL'!$P$11*2/28)*W19/' CONSUMO DE MAT. B TOTAL'!$P$11 -> 8.56022409 | Y19: 1727.880224 | Z19: 4716.045359 | AA19: 6443.925583 | AH19: CENTRO-OESTE
B20: 4228.168099 | C20: 8 | E20: DISTRIBUIDORA BRASILEIRA DE ASFALTO SA - DISBRAL | F20: SÃO JUDAS TADEU, 288 - DISTRITO INDUSTRIAL - CEP:32450-000 | G20: Minas Gerais | H20: SARZEDO - MG | I20: ='Transporte EAI'!I20 -> Maceio - AL | J20: =VLOOKUP(G20,OFFSET('ANP ESTADO'!$A$1,MATCH($I$7,'ANP ESTADO'!B:B,0)+MATCH($H$10,OFFSET('ANP ESTADO'!$A$1,MATCH($I$7,'ANP ESTADO'!B:B,0),0,100000,1),0),2,100000,2),2,FALSE) -> 2.297408631 | K20: =VLOOKUP($H$10,OFFSET('ANP REGIÃO'!$A$9,MATCH('Transporte RR-1C'!$I$7,'ANP REGIÃO'!A:A,0),1,10000,10000),MATCH('Transporte RR-1C'!AH20,'ANP REGIÃO'!$B$8:$G$8,0),FALSE) -> 2.607436058 | L20: 2297.408631 | M20: 634.83 | N20: 2932.238631 | O20: ='Transporte EAI'!O20 -> 1874 | Q20: 501.06 | S20: 501.06 | T20: 109.98 | U20: 671.22 | V20: 1282.26 | W20: ='Transporte EAI'!W20 -> 183 | X20: =EVEN(' CONSUMO DE MAT. B TOTAL'!$P$11*2/28)*W20/' CONSUMO DE MAT. B TOTAL'!$P$11 -> 13.66946779 | Y20: 1295.929468 | Z20: 2932.238631 | AA20: 4228.168099 | AH20: SUDESTE
B21: 5802.180671 | C21: 9 | E21: 'INDÚSTRIA NACIONAL DE ASFALTOS LTDA. | F21: INDÚSTRIA NACIONAL DE ASFALTOS LTDA - CEP:77053-080 | G21: Tocantins | H21: PALMAS - TO | I21: ='Transporte EAI'!I21 -> Maceio - AL | J21: =VLOOKUP(G21,OFFSET('ANP ESTADO'!$A$1,MATCH($I$7,'ANP ESTADO'!B:B,0)+MATCH($H$10,OFFSET('ANP ESTADO'!$A$1,MATCH($I$7,'ANP ESTADO'!B:B,0),0,100000,1),0),2,100000,2),2,FALSE) -> - | K21: =VLOOKUP($H$10,OFFSET('ANP REGIÃO'!$A$9,MATCH('Transporte RR-1C'!$I$7,'ANP REGIÃO'!A:A,0),1,10000,10000),MATCH('Transporte RR-1C'!AH21,'ANP REGIÃO'!$B$8:$G$8,0),FALSE) -> 3.532606777 | L21: 3532.606777 | M21: 976.14 | N21: 4508.746777 | O21: ='Transporte EAI'!O21 -> 1887 | Q21: 504.35 | S21: 504.35 | T21: 110.71 | U21: 675.64 | V21: 1290.7 | W21: ='Transporte EAI'!W21 -> 36.6 | X21: =EVEN(' CONSUMO DE MAT. B TOTAL'!$P$11*2/28)*W21/' CONSUMO DE MAT. B TOTAL'!$P$11 -> 2.733893557 | Y21: 1293.433894 | Z21: 4508.746777 | AA21: 5802.180671 | AH21: NORTE
B22: 5428.060953 | C22: 10 | E22: 'NTA - NOVAS TÉCNICAS DE ASFALTOS S/A | F22: RUA SOFIA ATAURI FADIN, 150 SALA A - B. SANTA TEREZINHA - CEP:13140-000 | G22: São Paulo | H22: PAULINIA - SP | I22: ='Transporte EAI'!I22 -> Maceio - AL | J22: =VLOOKUP(G22,OFFSET('ANP ESTADO'!$A$1,MATCH($I$7,'ANP ESTADO'!B:B,0)+MATCH($H$10,OFFSET('ANP ESTADO'!$A$1,MATCH($I$7,'ANP ESTADO'!B:B,0),0,100000,1),0),2,100000,2),2,FALSE) -> 2.933421597 | K22: =VLOOKUP($H$10,OFFSET('ANP REGIÃO'!$A$9,MATCH('Transporte RR-1C'!$I$7,'ANP REGIÃO'!A:A,0),1,10000,10000),MATCH('Transporte RR-1C'!AH22,'ANP REGIÃO'!$B$8:$G$8,0),FALSE) -> 2.607436058 | L22: 2933.421597 | M22: =ROUND(((L22/(1-$O$7-$O$8-$O$9))-L22),2) -> 810.58 | N22: 3744.001597 | O22: ='Transporte EAI'!O22 -> 2443 | Q22: 645.02 | S22: 645.02 | T22: 141.58 | U22: 864.07 | V22: 1650.67 | W22: ='Transporte EAI'!W22 -> 447 | X22: =EVEN(' CONSUMO DE MAT. B TOTAL'!$P$11*2/28)*W22/' CONSUMO DE MAT. B TOTAL'!$P$11 -> 33.38935574 | Y22: 1684.059356 | Z22: 3744.001597 | AA22: 5428.060953 | AC22: 5428.060953 | AD22: 1684.059356 | AE22: 3744.001597 | AH22: SUDESTE
B23: 5392.829104 | C23: 11 | E23: COMPANHIA BRASILEIRA DE ASFALTOS DA AMAZÔNIA - IMPORTAÇÃO E EXPORTAÇÃO | F23: Avenida Doutor Olindo Dártora 2451, Galpão 02, Morro Grande - CEP:07726-555 | G23: São Paulo | H23: CAIEIRAS - SP | I23: ='Transporte EAI'!I23 -> Maceio - AL | J23: =VLOOKUP(G23,OFFSET('ANP ESTADO'!$A$1,MATCH($I$7,'ANP ESTADO'!B:B,0)+MATCH($H$10,OFFSET('ANP ESTADO'!$A$1,MATCH($I$7,'ANP ESTADO'!B:B,0),0,100000,1),0),2,100000,2),2,FALSE) -> 2.933421597 | K23: =VLOOKUP($H$10,OFFSET('ANP REGIÃO'!$A$9,MATCH('Transporte RR-1C'!$I$7,'ANP REGIÃO'!A:A,0),1,10000,10000),MATCH('Transporte RR-1C'!AH23,'ANP REGIÃO'!$B$8:$G$8,0),FALSE) -> 2.607436058 | L23: 2933.421597 | M23: =ROUND(((L23/(1-$O$7-$O$8-$O$9))-L23),2) -> 810.58 | N23: 3744.001597 | O23: ='Transporte EAI'!O23 -> 2405 | Q23: 635.4 | S23: 635.4 | T23: 139.47 | U23: 851.19 | V23: 1626.06 | W23: ='Transporte EAI'!W23 -> 304.8 | X23: =EVEN(' CONSUMO DE MAT. B TOTAL'!$P$11*2/28)*W23/' CONSUMO DE MAT. B TOTAL'!$P$11 -> 22.767507 | Y23: 1648.827507 | Z23: 3744.001597 | AA23: 5392.829104 | AH23: SUDESTE
B24: 5396.90917 | C24: 12 | E24: BETUNEL INDÚSTRIA E COMÉRCIO LTDA. | F24: R 16 , 82, Vila Nova Campo Grande - CEP:79.103-834 | G24: Mato Grosso do Sul | H24: CAMPO GRANDE - MS | I24: ='Transporte EAI'!I24 -> Maceio - AL | J24: =VLOOKUP(G24,OFFSET('ANP ESTADO'!$A$1,MATCH($I$7,'ANP ESTADO'!B:B,0)+MATCH($H$10,OFFSET('ANP ESTADO'!$A$1,MATCH($I$7,'ANP ESTADO'!B:B,0),0,100000,1),0),2,100000,2),2,FALSE) -> 2.721765949 | K24: =VLOOKUP($H$10,OFFSET('ANP REGIÃO'!$A$9,MATCH('Transporte RR-1C'!$I$7,'ANP REGIÃO'!A:A,0),1,10000,10000),MATCH('Transporte RR-1C'!AH24,'ANP REGIÃO'!$B$8:$G$8,0),FALSE) -> 2.571411162 | L24: 2721.765949 | M24: =ROUND(((L24/(1-$O$7-$O$8-$O$9))-L24),2) -> 752.09 | N24: 3473.855949 | O24: ='Transporte EAI'!O24 -> 2825 | Q24: 741.66 | S24: 741.66 | T24: 162.8 | U24: 993.54 | V24: 1898 | W24: ='Transporte EAI'!W24 -> 335.4 | X24: =EVEN(' CONSUMO DE MAT. B TOTAL'!$P$11*2/28)*W24/' CONSUMO DE MAT. B TOTAL'!$P$11 -> 25.05322129 | Y24: 1923.053221 | Z24: 3473.855949 | AA24: 5396.90917 | AH24: CENTRO-OESTE
B25: 6721.287432 | C25: 13 | E25: CENTRO OESTE ASFALTOS LTDA. | F25: RUA N, S/N.º LOTES 39/43 E LOTES 129/133 - DISTRITO INDUSTRIAL - CEP:78098-400 | G25: Mato Grosso | H25: CUIABA - MT | I25: ='Transporte EAI'!I25 -> Maceio - AL | J25: =VLOOKUP(G25,OFFSET('ANP ESTADO'!$A$1,MATCH($I$7,'ANP ESTADO'!B:B,0)+MATCH($H$10,OFFSET('ANP ESTADO'!$A$1,MATCH($I$7,'ANP ESTADO'!B:B,0),0,100000,1),0),2,100000,2),2,FALSE) -> 3.695025359 | K25: =VLOOKUP($H$10,OFFSET('ANP REGIÃO'!$A$9,MATCH('Transporte RR-1C'!$I$7,'ANP REGIÃO'!A:A,0),1,10000,10000),MATCH('Transporte RR-1C'!AH25,'ANP REGIÃO'!$B$8:$G$8,0),FALSE) -> 2.571411162 | L25: 3695.025359 | M25: 1021.02 | N25: 4716.045359 | O25: ='Transporte EAI'!O25 -> 2961 | Q25: 776.07 | S25: 776.07 | T25: 170.35 | U25: 1039.64 | V25: 1986.06 | W25: ='Transporte EAI'!W25 -> 256.8 | X25: =EVEN(' CONSUMO DE MAT. B TOTAL'!$P$11*2/28)*W25/' CONSUMO DE MAT. B TOTAL'!$P$11 -> 19.18207283 | Y25: 2005.242073 | Z25: 4716.045359 | AA25: 6721.287432 | AH25: CENTRO-OESTE
B26: 6717.397432 | C26: 14 | E26: BETUNEL INDÚSTRIA E COMÉRCIO LTDA. | F26: RUA N ESQUINA COM RUA X, S/N QD. IND. 7 L 01/08 - DIST. IND. - CEP:78015-285 | G26: Mato Grosso | H26: CUIABA - MT | I26: ='Transporte EAI'!I26 -> Maceio - AL | J26: =VLOOKUP(G26,OFFSET('ANP ESTADO'!$A$1,MATCH($I$7,'ANP ESTADO'!B:B,0)+MATCH($H$10,OFFSET('ANP ESTADO'!$A$1,MATCH($I$7,'ANP ESTADO'!B:B,0),0,100000,1),0),2,100000,2),2,FALSE) -> 3.695025359 | K26: =VLOOKUP($H$10,OFFSET('ANP REGIÃO'!$A$9,MATCH('Transporte RR-1C'!$I$7,'ANP REGIÃO'!A:A,0),1,10000,10000),MATCH('Transporte RR-1C'!AH26,'ANP REGIÃO'!$B$8:$G$8,0),FALSE) -> 2.571411162 | L26: 3695.025359 | M26: 1021.02 | N26: 4716.045359 | O26: ='Transporte EAI'!O26 -> 2955 | Q26: 774.55 | S26: 774.55 | T26: 170.02 | U26: 1037.6 | V26: 1982.17 | W26: ='Transporte EAI'!W26 -> 256.8 | X26: =EVEN(' CONSUMO DE MAT. B TOTAL'!$P$11*2/28)*W26/' CONSUMO DE MAT. B TOTAL'!$P$11 -> 19.18207283 | Y26: 2001.352073 | Z26: 4716.045359 | AA26: 6717.397432 | AH26: CENTRO-OESTE
B27: 6721.957432 | C27: 15 | E27: EMAM - EMULSÕES E TRANSPORTES LTDA. | F27: RODOVIA DOS IMIGRANTES, S/Nº KM 8,6 - - CEP:60035-351 | G27: Mato Grosso | H27: VARZEA GRANDE - MT | I27: ='Transporte EAI'!I27 -> Maceio - AL | J27: =VLOOKUP(G27,OFFSET('ANP ESTADO'!$A$1,MATCH($I$7,'ANP ESTADO'!B:B,0)+MATCH($H$10,OFFSET('ANP ESTADO'!$A$1,MATCH($I$7,'ANP ESTADO'!B:B,0),0,100000,1),0),2,100000,2),2,FALSE) -> 3.695025359 | K27: =VLOOKUP($H$10,OFFSET('ANP REGIÃO'!$A$9,MATCH('Transporte RR-1C'!$I$7,'ANP REGIÃO'!A:A,0),1,10000,10000),MATCH('Transporte RR-1C'!AH27,'ANP REGIÃO'!$B$8:$G$8,0),FALSE) -> 2.571411162 | L27: 3695.025359 | M27: =ROUND(((L27/(1-$O$7-$O$8-$O$9))-L27),2) -> 1021.02 | N27: 4716.045359 | O27: ='Transporte EAI'!O27 -> 2962 | Q27: 776.33 | S27: 776.33 | T27: 170.41 | U27: 1039.99 | V27: 1986.73 | W27: ='Transporte EAI'!W27 -> 256.8 | X27: =EVEN(' CONSUMO DE MAT. B TOTAL'!$P$11*2/28)*W27/' CONSUMO DE MAT. B TOTAL'!$P$11 -> 19.18207283 | Y27: 2005.912073 | Z27: 4716.045359 | AA27: 6721.957432 | AC27: 6721.957432 | AD27: 2005.912073 | AE27: 4716.045359 | AH27: CENTRO-OESTE
B28: 5342.074958 | C28: 16 | E28: VIAPOL LTDA. | F28: VITO ARDITO, 6401 KM 118,5 - JARDIM CAMPO GRANDE - CEP:12282-535 | G28: São Paulo | H28: CACAPAVA - SP | I28: ='Transporte EAI'!I28 -> Maceio - AL | J28: =VLOOKUP(G28,OFFSET('ANP ESTADO'!$A$1,MATCH($I$7,'ANP ESTADO'!B:B,0)+MATCH($H$10,OFFSET('ANP ESTADO'!$A$1,MATCH($I$7,'ANP ESTADO'!B:B,0),0,100000,1),0),2,100000,2),2,FALSE) -> 2.933421597 | K28: =VLOOKUP($H$10,OFFSET('ANP REGIÃO'!$A$9,MATCH('Transporte RR-1C'!$I$7,'ANP REGIÃO'!A:A,0),1,10000,10000),MATCH('Transporte RR-1C'!AH28,'ANP REGIÃO'!$B$8:$G$8,0),FALSE) -> 2.607436058 | L28: 2933.421597 | M28: 810.58 | N28: 3744.001597 | O28: ='Transporte EAI'!O28 -> 2287 | Q28: 605.55 | S28: 605.55 | T28: 132.92 | U28: 811.2 | V28: 1549.67 | W28: ='Transporte EAI'!W28 -> 648 | X28: =EVEN(' CONSUMO DE MAT. B TOTAL'!$P$11*2/28)*W28/' CONSUMO DE MAT. B TOTAL'!$P$11 -> 48.40336134 | Y28: 1598.073361 | Z28: 3744.001597 | AA28: 5342.074958 | AC28: 5342.074958 | AD28: 1598.073361 | AE28: 3744.001597 | AH28: SUDESTE
B29: 4779.938887 | C29: 17 | E29: STRATURA ASFALTOS S/A | F29: RUA LUIS DE CAMÕES, 26 - CAMPOS ELÍSEOS - CEP:25225-030 | G29: Rio de Janeiro | H29: DUQUE DE CAXIAS - RJ | I29: ='Transporte EAI'!I29 -> Maceio - AL | J29: =VLOOKUP(G29,OFFSET('ANP ESTADO'!$A$1,MATCH($I$7,'ANP ESTADO'!B:B,0)+MATCH($H$10,OFFSET('ANP ESTADO'!$A$1,MATCH($I$7,'ANP ESTADO'!B:B,0),0,100000,1),0),2,100000,2),2,FALSE) -> - | K29: =VLOOKUP($H$10,OFFSET('ANP REGIÃO'!$A$9,MATCH('Transporte RR-1C'!$I$7,'ANP REGIÃO'!A:A,0),1,10000,10000),MATCH('Transporte RR-1C'!AH29,'ANP REGIÃO'!$B$8:$G$8,0),FALSE) -> 2.607436058 | L29: 2607.436058 | M29: 720.5 | N29: 3327.936058 | O29: ='Transporte EAI'!O29 -> 2065 | Q29: 549.38 | S29: 549.38 | T29: 120.59 | U29: 735.96 | V29: 1405.93 | W29: ='Transporte EAI'!W29 -> 616.8 | X29: =EVEN(' CONSUMO DE MAT. B TOTAL'!$P$11*2/28)*W29/' CONSUMO DE MAT. B TOTAL'!$P$11 -> 46.07282913 | Y29: 1452.002829 | Z29: 3327.936058 | AA29: 4779.938887 | AC29: 4779.938887 | AD29: 1452.002829 | AE29: 3327.936058 | AH29: SUDESTE
B30: 4789.648887 | C30: 18 | E30: PROBITEC - PRODUTOS BETUMINOSOS E TECNOLOGIA DE APLICAÇÃO LTDA. | F30: AVENIDA CANAL DA PAVUNA, 620 - PAVUNA - CEP:21535-630 | G30: Rio de Janeiro | H30: RIO DE JANEIRO - RJ | I30: ='Transporte EAI'!I30 -> Maceio - AL | J30: =VLOOKUP(G30,OFFSET('ANP ESTADO'!$A$1,MATCH($I$7,'ANP ESTADO'!B:B,0)+MATCH($H$10,OFFSET('ANP ESTADO'!$A$1,MATCH($I$7,'ANP ESTADO'!B:B,0),0,100000,1),0),2,100000,2),2,FALSE) -> - | K30: =VLOOKUP($H$10,OFFSET('ANP REGIÃO'!$A$9,MATCH('Transporte RR-1C'!$I$7,'ANP REGIÃO'!A:A,0),1,10000,10000),MATCH('Transporte RR-1C'!AH30,'ANP REGIÃO'!$B$8:$G$8,0),FALSE) -> 2.607436058 | L30: 2607.436058 | M30: 720.5 | N30: 3327.936058 | O30: ='Transporte EAI'!O30 -> 2080 | Q30: 553.18 | S30: 553.18 | T30: 121.42 | U30: 741.04 | V30: 1415.64 | W30: ='Transporte EAI'!W30 -> 616.8 | X30: =EVEN(' CONSUMO DE MAT. B TOTAL'!$P$11*2/28)*W30/' CONSUMO DE MAT. B TOTAL'!$P$11 -> 46.07282913 | Y30: 1461.712829 | Z30: 3327.936058 | AA30: 4789.648887 | AC30: 4789.648887 | AD30: 1461.712829 | AE30: 3327.936058 | AH30: SUDESTE
B31: 4980.669672 | C31: 19 | E31: CASA DO ASFALTO DISTRIBUIDORA, INDÚSTRIA E COMÉRCIO DE ASFALTO LTDA. | F31: BR 376, PARQUE INDUSTRIAL, S/N LOTE 6/7/7-A-3-1 - GL.PATR.MARIALVA - CEP:86990-000 | G31: Paraná | H31: MARIALVA - PR | I31: ='Transporte EAI'!I31 -> Maceio - AL | J31: =VLOOKUP(G31,OFFSET('ANP ESTADO'!$A$1,MATCH($I$7,'ANP ESTADO'!B:B,0)+MATCH($H$10,OFFSET('ANP ESTADO'!$A$1,MATCH($I$7,'ANP ESTADO'!B:B,0),0,100000,1),0),2,100000,2),2,FALSE) -> 2.389992781 | K31: =VLOOKUP($H$10,OFFSET('ANP REGIÃO'!$A$9,MATCH('Transporte RR-1C'!$I$7,'ANP REGIÃO'!A:A,0),1,10000,10000),MATCH('Transporte RR-1C'!AH31,'ANP REGIÃO'!$B$8:$G$8,0),FALSE) -> 2.409302726 | L31: 2389.992781 | M31: 660.41 | N31: 3050.402781 | O31: ='Transporte EAI'!O31 -> 2771 | Q31: 728 | S31: 728 | T31: 159.8 | U31: 975.24 | V31: 1863.04 | W31: ='Transporte EAI'!W31 -> 900 | X31: =EVEN(' CONSUMO DE MAT. B TOTAL'!$P$11*2/28)*W31/' CONSUMO DE MAT. B TOTAL'!$P$11 -> 67.22689076 | Y31: 1930.266891 | Z31: 3050.402781 | AA31: 4980.669672 | AC31: 4980.669672 | AD31: 1930.266891 | AE31: 3050.402781 | AH31: SUL
B32: 5023.822473 | C32: 20 | E32: PETROBRAS DISTRIBUIDORA S.A. | F32: RUA MAQUINISTA ELEODORO JACINTO, 100 - OFICINAS - CEP:84045-170 | G32: Paraná | H32: PONTA GROSSA - PR | I32: ='Transporte EAI'!I32 -> Maceio - AL | J32: =VLOOKUP(G32,OFFSET('ANP ESTADO'!$A$1,MATCH($I$7,'ANP ESTADO'!B:B,0)+MATCH($H$10,OFFSET('ANP ESTADO'!$A$1,MATCH($I$7,'ANP ESTADO'!B:B,0),0,100000,1),0),2,100000,2),2,FALSE) -> 2.389992781 | K32: =VLOOKUP($H$10,OFFSET('ANP REGIÃO'!$A$9,MATCH('Transporte RR-1C'!$I$7,'ANP REGIÃO'!A:A,0),1,10000,10000),MATCH('Transporte RR-1C'!AH32,'ANP REGIÃO'!$B$8:$G$8,0),FALSE) -> 2.409302726 | L32: 2389.992781 | M32: 660.41 | N32: 3050.402781 | O32: ='Transporte EAI'!O32 -> 2833 | Q32: 743.69 | S32: 743.69 | T32: 163.24 | U32: 996.26 | V32: 1903.19 | W32: ='Transporte EAI'!W32 -> 940.2 | X32: =EVEN(' CONSUMO DE MAT. B TOTAL'!$P$11*2/28)*W32/' CONSUMO DE MAT. B TOTAL'!$P$11 -> 70.22969188 | Y32: 1973.419692 | Z32: 3050.402781 | AA32: 5023.822473 | AC32: 5023.822473 | AD32: 1973.419692 | AE32: 3050.402781 | AH32: SUL
D42: Acre
D43: Alagoas
D44: Amapá
D45: Amazonas
D46: Bahia
D47: Ceará
D48: Distrito Federal
D49: Espírito Santo
D50: Goiás
D51: Maranhão
D52: Mato Grosso
D53: Mato Grosso do Sul
D54: Minas Gerais
D55: Pará
D56: Paraíba
D57: Paraná
D58: Pernambuco
D59: Piauí
D60: Rio de Janeiro
D61: Rio Grande do Norte
D62: Rio Grande do Sul
D63: Rondônia
D64: Roraima
D65: Santa Catarina
D66: São Paulo
D67: Sergipe
D68: Tocantins
D72: ASFALTOS DILUÍDOS CM-30
D73: ASFALTOS DILUÍDOS CM-70
D74: ASFALTOS DILUÍDOS CR-250
D75: ASFALTOS DILUÍDOS CR-70
D76: CAP MODIFICADO POR BORRACHA DE PNEU AB22
D77: CAP MODIFICADO POR BORRACHA DE PNEU AB8
D78: CAP MODIFICADO POR POLÍMERO 55-75-E
D79: CAP MODIFICADO POR POLÍMERO 60-85-E
D80: CAP MODIFICADO POR POLÍMERO 65-90-E
D81: CIMENTOS ASFÁLTICOS CAP-150-200
D82: CIMENTOS ASFÁLTICOS CAP-30-45
D83: CIMENTOS ASFÁLTICOS CAP-50-70
D84: CIMENTOS ASFÁLTICOS CAP-85-100
D85: EMULSÃO ASFÁLTICA CATIÔNICA DE RUPTURA CONTROLADA PARA SERVIÇO DE LAMA ASFÁLTICA
D86: EMULSÃO ASFÁLTICA DE RUPTURA LENTA CATIÔNICA PARA SERVIÇO DE LAMA ASFÁLTICA
D87: EMULSÃO ASFÁLTICA DE RUPTURA LENTA DE CARGA NEUTRA PARA SERVIÇO DE LAMA ASFÁLTICA
D88: EMULSÃO ASFÁLTICA PARA SERVIÇO DE IMPRIMAÇÃO
D89: EMULSÕES ASF. MOD. POR POLÍMEROS RC1C-E
D90: EMULSÕES ASF. MOD. POR POLÍMEROS RL1C-E
D91: EMULSÕES ASF. MOD. POR POLÍMEROS RM1C-E
D92: EMULSÕES ASF. MOD. POR POLÍMEROS RR1C-E
D93: EMULSÕES ASF. MOD. POR POLÍMEROS RR2C-E
D94: EMULSÕES ASFÁLTICAS RL-1C
D95: EMULSÕES ASFÁLTICAS RM-1C
D96: EMULSÕES ASFÁLTICAS RM-2C
D97: EMULSÕES ASFÁLTICAS RR-1C
D98: EMULSÕES ASFÁLTICAS RR-2C

Sheet RESUMO_Transp
B11: ÍNDICE DE PAVIMENTAÇÃO DNIT | E11: TIPOLOGIA DO MATERIAL | G11: LIGANTE BETUMINOSO | K11: IMPOSTOS | L11: COFINS | M11: ='Transporte Cap 50-70'!O7 -> 0.0065 | N11: ='Transporte Cap 50-70'!P7 -> 0.0065
C12: DATA INICIAL | F12: 2014-07-01 | G12: ÍNDICE INICIAL | H12: ='Transporte Cap 50-70'!J8 -> 270.237 | L12: PIS | M12: ='Transporte Cap 50-70'!O8 -> 0.03 | N12: ='Transporte Cap 50-70'!P8 -> 0.03 | P12: LEGENDA
C13: DATA FINAL | F13: 2023-10-01 | G13: ÍNDICE FINAL | H13: ='Transporte Cap 50-70'!J9 -> 567.092 | L13: ICMS | M13: ='Transporte Cap 50-70'!O9 -> 0.18 | N13: ='Transporte Cap 50-70'!P9 -> 0.18 | P13: ENTRADA DE DADOS
B15: DATA-BASE | C15: PRODUTOS | D15: LOCALIDADES | H15: CUSTO ANP (R$/Kg) | J15: CUSTO ANP | K15: IMPOSTOS DO PRODUTO | L15: CUSTO DO PRODUTO COM IMPOSTOS | M15: DMT's | N15: DMT's | O15: CUSTO DO TRANSPORTE TOTAL | P15: ICMS | Q15: ATUALIZAÇÃO DO CUSTO DE TRANSPORTE | R15: CUSTO DO TRANSPORTE RODOVIA PAVIMENTADA COM IMPOSTOS E ATUALIZAÇÃO MONETÁRIA | S15: PEDÁGIO | U15: TOTAL TRANSPORTE | V15: TOTAL PRODUTO | W15: TOTAL GERAL
B16: =F13 -> 2023-10-01 | D16: REFINARIAS | E16: ENDEREÇO | F16: ORIGEM REFINARIAS / DISTRIBUIDORAS | G16: DESTINO | H16: ESTADO | I16: REGIÃO | J16: R$/t | K16: R$/t | L16: R$/t | M16: KM | N16: KM | O16: R$/t | P16: R$/t | Q16: R$/t | R16: R$/t | S16: CUSTO POR EIXO | T16: R$/t | U16: R$/t | V16: R$/t | W16: R$/t
B17: 1 | C17: CAP 50/70 | D17: Refinaria Abreu e Lima | E17: Rodovia PE 60, Km 10 - Ipojuca - PE CEP:55590-000 | F17: =VLOOKUP($W17,'Transporte Cap 50-70'!$B:$AA,7,FALSE) -> IPOJUCA - PE | G17: =VLOOKUP($W17,'Transporte Cap 50-70'!$B:$AA,8,FALSE) -> Maceio - AL | H17: =VLOOKUP($W17,'Transporte Cap 50-70'!$B:$AA,9,FALSE) -> - | I17: =VLOOKUP($W17,'Transporte Cap 50-70'!$B:$AA,10,FALSE) -> 3.506239923 | J17: =VLOOKUP($W17,'Transporte Cap 50-70'!$B:$AA,11,FALSE) -> 3506.239923 | K17: =VLOOKUP($W17,'Transporte Cap 50-70'!$B:$AA,12,FALSE) -> 968.86 | L17: =VLOOKUP($W17,'Transporte Cap 50-70'!$B:$AA,13,FALSE) -> 4475.099923 | M17: =VLOOKUP($W17,'Transporte Cap 50-70'!$B$13:$AA$25,14,FALSE) -> 214 | N17: =VLOOKUP($W17,'Transporte Cap 50-70'!$B:$AA,15,FALSE) -> 0 | O17: =VLOOKUP($W17,'Transporte Cap 50-70'!$B:$AA,18,FALSE) -> 81.08 | P17: =VLOOKUP($W17,'Transporte Cap 50-70'!$B:$AA,19,FALSE) -> 17.79 | Q17: =VLOOKUP($W17,'Transporte Cap 50-70'!$B:$AA,20,FALSE) -> 108.6 | R17: =VLOOKUP($W17,'Transporte Cap 50-70'!$B:$AA,21,FALSE) -> 207.47 | S17: =VLOOKUP($W17,'Transporte Cap 50-70'!$B:$AA,22,FALSE) -> 0 | T17: =VLOOKUP($W17,'Transporte Cap 50-70'!$B:$AA,23,FALSE) -> 0 | U17: =VLOOKUP($W17,'Transporte Cap 50-70'!$B:$AA,24,FALSE) -> 207.47 | V17: =VLOOKUP($W17,'Transporte Cap 50-70'!$B:$AA,25,FALSE) -> 4475.099923 | W17: =SMALL('Transporte Cap 50-70'!$AA$13:$AA$25,1) -> 4682.569923
B18: 2 | D18: Refinaria Potiguar Clara Camarão | E18: Rodovia RN 221, KM 25 - Guamaré - RN CEP:59598-000 | F18: =VLOOKUP($W18,'Transporte Cap 50-70'!$B:$AA,7,FALSE) -> SÃO FRANCISCO DO CONDE - BA | G18: =VLOOKUP($W18,'Transporte Cap 50-70'!$B:$AA,8,FALSE) -> Maceio - AL | H18: =VLOOKUP($W18,'Transporte Cap 50-70'!$B:$AA,9,FALSE) -> 3.525320417 | I18: =VLOOKUP($W18,'Transporte Cap 50-70'!$B:$AA,10,FALSE) -> 3.506239923 | J18: =VLOOKUP($W18,'Transporte Cap 50-70'!$B:$AA,11,FALSE) -> 3525.320417 | K18: =VLOOKUP($W18,'Transporte Cap 50-70'!$B:$AA,12,FALSE) -> 974.13 | L18: =VLOOKUP($W18,'Transporte Cap 50-70'!$B:$AA,13,FALSE) -> 4499.450417 | M18: =VLOOKUP($W18,'Transporte Cap 50-70'!$B$13:$AA$25,14,FALSE) -> 575 | N18: =VLOOKUP($W18,'Transporte Cap 50-70'!$B:$AA,15,FALSE) -> 0 | O18: =VLOOKUP($W18,'Transporte Cap 50-70'!$B:$AA,18,FALSE) -> 172.41 | P18: =VLOOKUP($W18,'Transporte Cap 50-70'!$B:$AA,19,FALSE) -> 37.84 | Q18: =VLOOKUP($W18,'Transporte Cap 50-70'!$B:$AA,20,FALSE) -> 230.95 | R18: =VLOOKUP($W18,'Transporte Cap 50-70'!$B:$AA,21,FALSE) -> 441.2 | S18: =VLOOKUP($W18,'Transporte Cap 50-70'!$B:$AA,22,FALSE) -> 0 | T18: =VLOOKUP($W18,'Transporte Cap 50-70'!$B:$AA,23,FALSE) -> 0 | U18: =VLOOKUP($W18,'Transporte Cap 50-70'!$B:$AA,24,FALSE) -> 441.2 | V18: =VLOOKUP($W18,'Transporte Cap 50-70'!$B:$AA,25,FALSE) -> 4499.450417 | W18: =SMALL('Transporte Cap 50-70'!$AA$13:$AA$25,2) -> 4940.650417
B19: 3 | D19: Complexo Petroquímico do Rio de Janeiro (Comperj) | E19: Rodovia Estadual RJ-116 - Km 5,2 - Acesso A-1, s/n, Complemento Sambaetiba - Zona Urbana do 4º Distrito de Itaboraí - RJ CEP:24841-203 | F19: =VLOOKUP($W19,'Transporte Cap 50-70'!$B:$AA,7,FALSE) -> GUAMARÉ - RN | G19: =VLOOKUP($W19,'Transporte Cap 50-70'!$B:$AA,8,FALSE) -> Maceio - AL | H19: =VLOOKUP($W19,'Transporte Cap 50-70'!$B:$AA,9,FALSE) -> - | I19: =VLOOKUP($W19,'Transporte Cap 50-70'!$B:$AA,10,FALSE) -> 3.506239923 | J19: =VLOOKUP($W19,'Transporte Cap 50-70'!$B:$AA,11,FALSE) -> 3506.239923 | K19: =VLOOKUP($W19,'Transporte Cap 50-70'!$B:$AA,12,FALSE) -> 968.86 | L19: =VLOOKUP($W19,'Transporte Cap 50-70'!$B:$AA,13,FALSE) -> 4475.099923 | M19: =VLOOKUP($W19,'Transporte Cap 50-70'!$B$13:$AA$25,14,FALSE) -> 667 | N19: =VLOOKUP($W19,'Transporte Cap 50-70'!$B:$AA,15,FALSE) -> 0 | O19: =VLOOKUP($W19,'Transporte Cap 50-70'!$B:$AA,18,FALSE) -> 195.69 | P19: =VLOOKUP($W19,'Transporte Cap 50-70'!$B:$AA,19,FALSE) -> 42.95 | Q19: =VLOOKUP($W19,'Transporte Cap 50-70'!$B:$AA,20,FALSE) -> 262.14 | R19: =VLOOKUP($W19,'Transporte Cap 50-70'!$B:$AA,21,FALSE) -> 500.78 | S19: =VLOOKUP($W19,'Transporte Cap 50-70'!$B:$AA,22,FALSE) -> 0 | T19: =VLOOKUP($W19,'Transporte Cap 50-70'!$B:$AA,23,FALSE) -> 0 | U19: =VLOOKUP($W19,'Transporte Cap 50-70'!$B:$AA,24,FALSE) -> 500.78 | V19: =VLOOKUP($W19,'Transporte Cap 50-70'!$B:$AA,25,FALSE) -> 4475.099923 | W19: =SMALL('Transporte Cap 50-70'!$AA$13:$AA$25,3) -> 4975.879923
B20: 4 | F20: =VLOOKUP($W20,'Transporte Cap 50-70'!$B:$AA,7,FALSE) -> FORTALEZA - CE | G20: =VLOOKUP($W20,'Transporte Cap 50-70'!$B:$AA,8,FALSE) -> Maceio - AL | H20: =VLOOKUP($W20,'Transporte Cap 50-70'!$B:$AA,9,FALSE) -> 3.490599631 | I20: =VLOOKUP($W20,'Transporte Cap 50-70'!$B:$AA,10,FALSE) -> 3.506239923 | J20: =VLOOKUP($W20,'Transporte Cap 50-70'!$B:$AA,11,FALSE) -> 3490.599631 | K20: =VLOOKUP($W20,'Transporte Cap 50-70'!$B:$AA,12,FALSE) -> 964.54 | L20: =VLOOKUP($W20,'Transporte Cap 50-70'!$B:$AA,13,FALSE) -> 4455.139631 | M20: =VLOOKUP($W20,'Transporte Cap 50-70'!$B$13:$AA$25,14,FALSE) -> 949 | N20: =VLOOKUP($W20,'Transporte Cap 50-70'!$B:$AA,15,FALSE) -> 0 | O20: =VLOOKUP($W20,'Transporte Cap 50-70'!$B:$AA,18,FALSE) -> 267.04 | P20: =VLOOKUP($W20,'Transporte Cap 50-70'!$B:$AA,19,FALSE) -> 58.61 | Q20: =VLOOKUP($W20,'Transporte Cap 50-70'!$B:$AA,20,FALSE) -> 357.72 | R20: =VLOOKUP($W20,'Transporte Cap 50-70'!$B:$AA,21,FALSE) -> 683.37 | S20: =VLOOKUP($W20,'Transporte Cap 50-70'!$B:$AA,22,FALSE) -> 0 | T20: =VLOOKUP($W20,'Transporte Cap 50-70'!$B:$AA,23,FALSE) -> 0 | U20: =VLOOKUP($W20,'Transporte Cap 50-70'!$B:$AA,24,FALSE) -> 683.37 | V20: =VLOOKUP($W20,'Transporte Cap 50-70'!$B:$AA,25,FALSE) -> 4455.139631 | W20: =SMALL('Transporte Cap 50-70'!$AA$13:$AA$25,4) -> 5138.509631
B21: 5 | F21: =VLOOKUP($W21,'Transporte Cap 50-70'!$B:$AA,7,FALSE) -> BETIM - MG | G21: =VLOOKUP($W21,'Transporte Cap 50-70'!$B:$AA,8,FALSE) -> Maceio - AL | H21: =VLOOKUP($W21,'Transporte Cap 50-70'!$B:$AA,9,FALSE) -> 3.120369824 | I21: =VLOOKUP($W21,'Transporte Cap 50-70'!$B:$AA,10,FALSE) -> 3.139608082 | J21: =VLOOKUP($W21,'Transporte Cap 50-70'!$B:$AA,11,FALSE) -> 3120.369824 | K21: =VLOOKUP($W21,'Transporte Cap 50-70'!$B:$AA,12,FALSE) -> 862.23 | L21: =VLOOKUP($W21,'Transporte Cap 50-70'!$B:$AA,13,FALSE) -> 3982.599824 | M21: =VLOOKUP($W21,'Transporte Cap 50-70'!$B$13:$AA$25,14,FALSE) -> 1829 | N21: =VLOOKUP($W21,'Transporte Cap 50-70'!$B:$AA,15,FALSE) -> 0 | O21: =VLOOKUP($W21,'Transporte Cap 50-70'!$B:$AA,18,FALSE) -> 489.68 | P21: =VLOOKUP($W21,'Transporte Cap 50-70'!$B:$AA,19,FALSE) -> 107.49 | Q21: =VLOOKUP($W21,'Transporte Cap 50-70'!$B:$AA,20,FALSE) -> 655.99 | R21: =VLOOKUP($W21,'Transporte Cap 50-70'!$B:$AA,21,FALSE) -> 1253.16 | S21: =VLOOKUP($W21,'Transporte Cap 50-70'!$B:$AA,22,FALSE) -> 183 | T21: =VLOOKUP($W21,'Transporte Cap 50-70'!$B:$AA,23,FALSE) -> 13.17385165 | U21: =VLOOKUP($W21,'Transporte Cap 50-70'!$B:$AA,24,FALSE) -> 1266.333852 | V21: =VLOOKUP($W21,'Transporte Cap 50-70'!$B:$AA,25,FALSE) -> 3982.599824 | W21: =SMALL('Transporte Cap 50-70'!$AA$13:$AA$25,5) -> 5248.933675
B22: 6 | F22: =VLOOKUP($W22,'Transporte Cap 50-70'!$B:$AA,7,FALSE) -> SÃO JOSÉ DOS CAMPOS - SP | G22: =VLOOKUP($W22,'Transporte Cap 50-70'!$B:$AA,8,FALSE) -> Maceio - AL | H22: =VLOOKUP($W22,'Transporte Cap 50-70'!$B:$AA,9,FALSE) -> 3.136977681 | I22: =VLOOKUP($W22,'Transporte Cap 50-70'!$B:$AA,10,FALSE) -> 3.139608082 | J22: =VLOOKUP($W22,'Transporte Cap 50-70'!$B:$AA,11,FALSE) -> 3136.977681 | K22: =VLOOKUP($W22,'Transporte Cap 50-70'!$B:$AA,12,FALSE) -> 866.82 | L22: =VLOOKUP($W22,'Transporte Cap 50-70'!$B:$AA,13,FALSE) -> 4003.797681 | M22: =VLOOKUP($W22,'Transporte Cap 50-70'!$B$13:$AA$25,14,FALSE) -> 2310 | N22: =VLOOKUP($W22,'Transporte Cap 50-70'!$B:$AA,15,FALSE) -> 0 | O22: =VLOOKUP($W22,'Transporte Cap 50-70'!$B:$AA,18,FALSE) -> 611.37 | P22: =VLOOKUP($W22,'Transporte Cap 50-70'!$B:$AA,19,FALSE) -> 134.2 | Q22: =VLOOKUP($W22,'Transporte Cap 50-70'!$B:$AA,20,FALSE) -> 819 | R22: =VLOOKUP($W22,'Transporte Cap 50-70'!$B:$AA,21,FALSE) -> 1564.57 | S22: =VLOOKUP($W22,'Transporte Cap 50-70'!$B:$AA,22,FALSE) -> 648 | T22: =VLOOKUP($W22,'Transporte Cap 50-70'!$B:$AA,23,FALSE) -> 46.64839272 | U22: =VLOOKUP($W22,'Transporte Cap 50-70'!$B:$AA,24,FALSE) -> 1611.218393 | V22: =VLOOKUP($W22,'Transporte Cap 50-70'!$B:$AA,25,FALSE) -> 4003.797681 | W22: =SMALL('Transporte Cap 50-70'!$AA$13:$AA$25,6) -> 5615.016073
O23: =VLOOKUP($W23,'Transporte Cap 50-70'!$B:$AA,18,FALSE) ->  | R23: =VLOOKUP($W23,'Transporte Cap 50-70'!$B:$AA,21,FALSE) -> 
O24: =VLOOKUP($W24,'Transporte Cap 50-70'!$B:$AA,18,FALSE) ->  | R24: =VLOOKUP($W24,'Transporte Cap 50-70'!$B:$AA,21,FALSE) -> 
O25: =VLOOKUP($W25,'Transporte Cap 50-70'!$B:$AA,18,FALSE) ->  | R25: =VLOOKUP($W25,'Transporte Cap 50-70'!$B:$AA,21,FALSE) -> 
O26: =VLOOKUP($W26,'Transporte Cap 50-70'!$B:$AA,18,FALSE) ->  | R26: =VLOOKUP($W26,'Transporte Cap 50-70'!$B:$AA,21,FALSE) -> 
O27: =VLOOKUP($W27,'Transporte Cap 50-70'!$B:$AA,18,FALSE) ->  | R27: =VLOOKUP($W27,'Transporte Cap 50-70'!$B:$AA,21,FALSE) -> 
B28: 1 | C28: CAP MODIF. C/ POLÍMERO 60/85 | D28: Refinaria Abreu e Lima | E28: Rodovia PE 60, Km 10 - Ipojuca - PE CEP:55590-000 | F28: Transporte EAI'! | G28: Palmas - TO | H28: 2.261894948 | I28: 2.353413905 | J28: 2261.894948 | K28: 393.19 | L28: 2655.084948 | M28: 1181 | N28: 1181 | O28: =VLOOKUP($W28,'Transporte Cap 50-70'!$B:$AA,18,FALSE) ->  | P28: 44.41 | Q28: 202.55 | R28: =VLOOKUP($W28,'Transporte Cap 50-70'!$B:$AA,21,FALSE) ->  | S28: 102 | T28: 102 | U28: 674.69 | V28: 2655.084948 | W28: 3329.774948
B29: 2 | D29: Refinaria Potiguar Clara Camarão | E29: Rodovia RN 221, KM 25 - Guamaré - RN CEP:59598-000 | F29: UBERLANDIA - MG | G29: Palmas - TO | H29: 2.261894948 | I29: 2.353413905 | J29: 2261.894948 | K29: 393.19 | L29: 2655.084948 | M29: 1182 | N29: 1182 | O29: =VLOOKUP($W29,'Transporte Cap 50-70'!$B:$AA,18,FALSE) ->  | P29: 44.45 | Q29: 202.71 | R29: =VLOOKUP($W29,'Transporte Cap 50-70'!$B:$AA,21,FALSE) ->  | S29: 102 | T29: 102 | U29: 675.14 | V29: 2655.084948 | W29: 3330.224948
B30: 3 | D30: Complexo Petroquímico do Rio de Janeiro (Comperj) | E30: Rodovia Estadual RJ-116 - Km 5,2 - Acesso A-1, s/n, Complemento Sambaetiba - Zona Urbana do 4º Distrito de Itaboraí - RJ CEP:24841-203 | F30: GOIANIRA - GO | G30: Palmas - TO | I30: 2.555206955 | J30: 2555.206955 | K30: 444.18 | L30: 2999.386955 | M30: 814 | N30: 814 | O30: =VLOOKUP($W30,'Transporte Cap 50-70'!$B:$AA,18,FALSE) ->  | P30: 31.75 | Q30: 144.81 | R30: =VLOOKUP($W30,'Transporte Cap 50-70'!$B:$AA,21,FALSE) ->  | S30: 0 | T30: 0 | U30: 409.44 | V30: 2999.386955 | W30: 3408.826955
B31: 4 | F31: BRASÍLIA - DF | G31: Palmas - TO | I31: 2.555206955 | J31: 2555.206955 | K31: 444.18 | L31: 2999.386955 | M31: 822 | N31: 822 | O31: =VLOOKUP($W31,'Transporte Cap 50-70'!$B:$AA,18,FALSE) ->  | P31: 32.03 | Q31: 146.07 | R31: =VLOOKUP($W31,'Transporte Cap 50-70'!$B:$AA,21,FALSE) ->  | S31: 0 | T31: 0 | U31: 413 | V31: 2999.386955 | W31: 3412.386955
B32: 5 | F32: APARECIDA DE GOIANIA - GO | G32: Palmas - TO | I32: 2.555206955 | J32: 2555.206955 | K32: 444.18 | L32: 2999.386955 | M32: 842 | N32: 842 | O32: =VLOOKUP($W32,'Transporte Cap 50-70'!$B:$AA,18,FALSE) ->  | P32: 32.72 | Q32: 149.22 | R32: =VLOOKUP($W32,'Transporte Cap 50-70'!$B:$AA,21,FALSE) ->  | S32: 0 | T32: 0 | U32: 421.9 | V32: 2999.386955 | W32: 3421.286955
B33: 6 | F33: ANÁPOLIS - GO | G33: Palmas - TO | I33: 2.555206955 | J33: 2555.206955 | K33: 444.18 | L33: 2999.386955 | M33: 950 | N33: 950 | O33: =VLOOKUP($W33,'Transporte Cap 50-70'!$B:$AA,18,FALSE) ->  | P33: 36.44 | Q33: 166.21 | R33: =VLOOKUP($W33,'Transporte Cap 50-70'!$B:$AA,21,FALSE) ->  | S33: 0 | T33: 0 | U33: 469.93 | V33: 2999.386955 | W33: 3469.316955
B35: 1 | C35: EAI | D35: Refinaria Abreu e Lima | E35: Rodovia PE 60, Km 10 - Ipojuca - PE CEP:55590-000 | F35: =VLOOKUP($W35,'Transporte EAI'!$B$13:$AA$32,7,FALSE) -> SARZEDO - MG | G35: =VLOOKUP($W35,'Transporte EAI'!$B$13:$AA$32,8,FALSE) -> Maceio - AL | H35: =VLOOKUP($W35,'Transporte EAI'!$B$13:$AA$32,9,FALSE) -> 2.438188746 | I35: =VLOOKUP($W35,'Transporte EAI'!$B$13:$AA$32,10,FALSE) -> 2.473946832 | J35: =VLOOKUP($W35,'Transporte EAI'!$B$13:$AA$32,11,FALSE) -> 2438.188746 | K35: =VLOOKUP($W35,'Transporte EAI'!$B$13:$AA$32,12,FALSE) -> 673.73 | L35: =VLOOKUP($W35,'Transporte EAI'!$B$13:$AA$32,13,FALSE) -> 3111.918746 | M35: =VLOOKUP($W35,'Transporte EAI'!$B$13:$AA$32,14,FALSE) -> 1874 | N35: =VLOOKUP($W35,'Transporte EAI'!$B$13:$AA$32,15,FALSE) -> 0 | O35: =VLOOKUP($W35,'Transporte EAI'!$B$13:$AA$32,18,FALSE) -> 501.06 | P35: =VLOOKUP($W35,'Transporte EAI'!$B$13:$AA$32,19,FALSE) -> 109.98 | Q35: =VLOOKUP($W35,'Transporte EAI'!$B$13:$AA$32,20,FALSE) -> 671.22 | R35: =VLOOKUP($W35,'Transporte EAI'!$B$13:$AA$32,21,FALSE) -> 1282.26 | S35: =VLOOKUP($W35,'Transporte EAI'!$B$13:$AA$32,22,FALSE) -> 183 | T35: =VLOOKUP($W35,'Transporte EAI'!$B$13:$AA$32,23,FALSE) -> 13.66946779 | U35: =VLOOKUP($W35,'Transporte EAI'!$B$13:$AA$32,24,FALSE) -> 1295.929468 | V35: =VLOOKUP($W35,'Transporte EAI'!$B$13:$AA$32,25,FALSE) -> 3111.918746 | W35: =SMALL('Transporte EAI'!$AA$13:$AA$32,1) -> 4407.848214
B36: 2 | D36: Refinaria Potiguar Clara Camarão | E36: Rodovia RN 221, KM 25 - Guamaré - RN CEP:59598-000 | F36: =VLOOKUP($W36,'Transporte EAI'!$B$13:$AA$32,7,FALSE) -> UBERLANDIA - MG | G36: =VLOOKUP($W36,'Transporte EAI'!$B$13:$AA$32,8,FALSE) -> Maceio - AL | H36: =VLOOKUP($W36,'Transporte EAI'!$B$13:$AA$32,9,FALSE) -> 2.438188746 | I36: =VLOOKUP($W36,'Transporte EAI'!$B$13:$AA$32,10,FALSE) -> 2.473946832 | J36: =VLOOKUP($W36,'Transporte EAI'!$B$13:$AA$32,11,FALSE) -> 2438.188746 | K36: =VLOOKUP($W36,'Transporte EAI'!$B$13:$AA$32,12,FALSE) -> 673.73 | L36: =VLOOKUP($W36,'Transporte EAI'!$B$13:$AA$32,13,FALSE) -> 3111.918746 | M36: =VLOOKUP($W36,'Transporte EAI'!$B$13:$AA$32,14,FALSE) -> 2062 | N36: =VLOOKUP($W36,'Transporte EAI'!$B$13:$AA$32,15,FALSE) -> 0 | O36: =VLOOKUP($W36,'Transporte EAI'!$B$13:$AA$32,18,FALSE) -> 548.63 | P36: =VLOOKUP($W36,'Transporte EAI'!$B$13:$AA$32,19,FALSE) -> 120.43 | Q36: =VLOOKUP($W36,'Transporte EAI'!$B$13:$AA$32,20,FALSE) -> 734.96 | R36: =VLOOKUP($W36,'Transporte EAI'!$B$13:$AA$32,21,FALSE) -> 1404.02 | S36: =VLOOKUP($W36,'Transporte EAI'!$B$13:$AA$32,22,FALSE) -> 335.4 | T36: =VLOOKUP($W36,'Transporte EAI'!$B$13:$AA$32,23,FALSE) -> 25.05322129 | U36: =VLOOKUP($W36,'Transporte EAI'!$B$13:$AA$32,24,FALSE) -> 1429.073221 | V36: =VLOOKUP($W36,'Transporte EAI'!$B:$AA,25,FALSE) -> 3111.918746 | W36: =SMALL('Transporte EAI'!$AA$13:$AA$32,2) -> 4540.991967
B37: 3 | D37: Complexo Petroquímico do Rio de Janeiro (Comperj) | E37: Rodovia Estadual RJ-116 - Km 5,2 - Acesso A-1, s/n, Complemento Sambaetiba - Zona Urbana do 4º Distrito de Itaboraí - RJ CEP:24841-203 | F37: =VLOOKUP($W37,'Transporte EAI'!$B$13:$AA$32,7,FALSE) -> UBERLANDIA - MG | G37: =VLOOKUP($W37,'Transporte EAI'!$B$13:$AA$32,8,FALSE) -> Maceio - AL | H37: =VLOOKUP($W37,'Transporte EAI'!$B$13:$AA$32,9,FALSE) -> 2.438188746 | I37: =VLOOKUP($W37,'Transporte EAI'!$B$13:$AA$32,10,FALSE) -> 2.473946832 | J37: =VLOOKUP($W37,'Transporte EAI'!$B$13:$AA$32,11,FALSE) -> 2438.188746 | K37: =VLOOKUP($W37,'Transporte EAI'!$B$13:$AA$32,12,FALSE) -> 673.73 | L37: =VLOOKUP($W37,'Transporte EAI'!$B$13:$AA$32,13,FALSE) -> 3111.918746 | M37: =VLOOKUP($W37,'Transporte EAI'!$B$13:$AA$32,14,FALSE) -> 2065 | N37: =VLOOKUP($W37,'Transporte EAI'!$B$13:$AA$32,15,FALSE) -> 0 | O37: =VLOOKUP($W37,'Transporte EAI'!$B$13:$AA$32,18,FALSE) -> 549.38 | P37: =VLOOKUP($W37,'Transporte EAI'!$B$13:$AA$32,19,FALSE) -> 120.59 | Q37: =VLOOKUP($W37,'Transporte EAI'!$B$13:$AA$32,20,FALSE) -> 735.96 | R37: =VLOOKUP($W37,'Transporte EAI'!$B$13:$AA$32,21,FALSE) -> 1405.93 | S37: =VLOOKUP($W37,'Transporte EAI'!$B$13:$AA$32,22,FALSE) -> 335.4 | T37: =VLOOKUP($W37,'Transporte EAI'!$B$13:$AA$32,23,FALSE) -> 25.05322129 | U37: =VLOOKUP($W37,'Transporte EAI'!$B$13:$AA$32,24,FALSE) -> 1430.983221 | V37: =VLOOKUP($W37,'Transporte EAI'!$B:$AA,25,FALSE) -> 3111.918746 | W37: =SMALL('Transporte EAI'!$AA$13:$AA$32,3) -> 4542.901967
B38: 4 | F38: =VLOOKUP($W38,'Transporte EAI'!$B$13:$AA$32,7,FALSE) -> DUQUE DE CAXIAS - RJ | G38: =VLOOKUP($W38,'Transporte EAI'!$B$13:$AA$32,8,FALSE) -> Maceio - AL | H38: =VLOOKUP($W38,'Transporte EAI'!$B$13:$AA$32,9,FALSE) -> - | I38: =VLOOKUP($W38,'Transporte EAI'!$B$13:$AA$32,10,FALSE) -> 2.473946832 | J38: =VLOOKUP($W38,'Transporte EAI'!$B$13:$AA$32,11,FALSE) -> 2473.946832 | K38: =VLOOKUP($W38,'Transporte EAI'!$B$13:$AA$32,12,FALSE) -> 683.61 | L38: =VLOOKUP($W38,'Transporte EAI'!$B$13:$AA$32,13,FALSE) -> 3157.556832 | M38: =VLOOKUP($W38,'Transporte EAI'!$B$13:$AA$32,14,FALSE) -> 2065 | N38: =VLOOKUP($W38,'Transporte EAI'!$B$13:$AA$32,15,FALSE) -> 0 | O38: =VLOOKUP($W38,'Transporte EAI'!$B$13:$AA$32,18,FALSE) -> 549.38 | P38: =VLOOKUP($W38,'Transporte EAI'!$B$13:$AA$32,19,FALSE) -> 120.59 | Q38: =VLOOKUP($W38,'Transporte EAI'!$B$13:$AA$32,20,FALSE) -> 735.96 | R38: =VLOOKUP($W38,'Transporte EAI'!$B$13:$AA$32,21,FALSE) -> 1405.93 | S38: =VLOOKUP($W38,'Transporte EAI'!$B$13:$AA$32,22,FALSE) -> 616.8 | T38: =VLOOKUP($W38,'Transporte EAI'!$B$13:$AA$32,23,FALSE) -> 46.07282913 | U38: =VLOOKUP($W38,'Transporte EAI'!$B$13:$AA$32,24,FALSE) -> 1452.002829 | V38: =VLOOKUP($W38,'Transporte EAI'!$B:$AA,25,FALSE) -> 3157.556832 | W38: =SMALL('Transporte EAI'!$AA$13:$AA$32,4) -> 4609.559661
B39: 5 | F39: =VLOOKUP($W39,'Transporte EAI'!$B$13:$AA$32,7,FALSE) -> RIO DE JANEIRO - RJ | G39: =VLOOKUP($W39,'Transporte EAI'!$B$13:$AA$32,8,FALSE) -> Maceio - AL | H39: =VLOOKUP($W39,'Transporte EAI'!$B$13:$AA$32,9,FALSE) -> - | I39: =VLOOKUP($W39,'Transporte EAI'!$B$13:$AA$32,10,FALSE) -> 2.473946832 | J39: =VLOOKUP($W39,'Transporte EAI'!$B$13:$AA$32,11,FALSE) -> 2473.946832 | K39: =VLOOKUP($W39,'Transporte EAI'!$B$13:$AA$32,12,FALSE) -> 683.61 | L39: =VLOOKUP($W39,'Transporte EAI'!$B$13:$AA$32,13,FALSE) -> 3157.556832 | M39: =VLOOKUP($W39,'Transporte EAI'!$B$13:$AA$32,14,FALSE) -> 2080 | N39: =VLOOKUP($W39,'Transporte EAI'!$B$13:$AA$32,15,FALSE) -> 0 | O39: =VLOOKUP($W39,'Transporte EAI'!$B$13:$AA$32,18,FALSE) -> 553.18 | P39: =VLOOKUP($W39,'Transporte EAI'!$B$13:$AA$32,19,FALSE) -> 121.42 | Q39: =VLOOKUP($W39,'Transporte EAI'!$B$13:$AA$32,20,FALSE) -> 741.04 | R39: =VLOOKUP($W39,'Transporte EAI'!$B$13:$AA$32,21,FALSE) -> 1415.64 | S39: =VLOOKUP($W39,'Transporte EAI'!$B$13:$AA$32,22,FALSE) -> 616.8 | T39: =VLOOKUP($W39,'Transporte EAI'!$B$13:$AA$32,23,FALSE) -> 46.07282913 | U39: =VLOOKUP($W39,'Transporte EAI'!$B$13:$AA$32,24,FALSE) -> 1461.712829 | V39: =VLOOKUP($W39,'Transporte EAI'!$B:$AA,25,FALSE) -> 3157.556832 | W39: =SMALL('Transporte EAI'!$AA$13:$AA$32,5) -> 4619.269661
B40: 6 | F40: =VLOOKUP($W40,'Transporte EAI'!$B$13:$AA$32,7,FALSE) -> PALMAS - TO | G40: =VLOOKUP($W40,'Transporte EAI'!$B$13:$AA$32,8,FALSE) -> Maceio - AL | H40: =VLOOKUP($W40,'Transporte EAI'!$B$13:$AA$32,9,FALSE) -> - | I40: =VLOOKUP($W40,'Transporte EAI'!$B$13:$AA$32,10,FALSE) -> 2.670205896 | J40: =VLOOKUP($W40,'Transporte EAI'!$B$13:$AA$32,11,FALSE) -> 2670.205896 | K40: =VLOOKUP($W40,'Transporte EAI'!$B$13:$AA$32,12,FALSE) -> 737.84 | L40: =VLOOKUP($W40,'Transporte EAI'!$B$13:$AA$32,13,FALSE) -> 3408.045896 | M40: =VLOOKUP($W40,'Transporte EAI'!$B$13:$AA$32,14,FALSE) -> 1887 | N40: =VLOOKUP($W40,'Transporte EAI'!$B$13:$AA$32,15,FALSE) -> 0 | O40: =VLOOKUP($W40,'Transporte EAI'!$B$13:$AA$32,18,FALSE) -> 504.35 | P40: =VLOOKUP($W40,'Transporte EAI'!$B$13:$AA$32,19,FALSE) -> 110.71 | Q40: =VLOOKUP($W40,'Transporte EAI'!$B$13:$AA$32,20,FALSE) -> 675.64 | R40: =VLOOKUP($W40,'Transporte EAI'!$B$13:$AA$32,21,FALSE) -> 1290.7 | S40: =VLOOKUP($W40,'Transporte EAI'!$B$13:$AA$32,22,FALSE) -> 36.6 | T40: =VLOOKUP($W40,'Transporte EAI'!$B$13:$AA$32,23,FALSE) -> 2.733893557 | U40: =VLOOKUP($W40,'Transporte EAI'!$B$13:$AA$32,24,FALSE) -> 1293.433894 | V40: =VLOOKUP($W40,'Transporte EAI'!$B:$AA,25,FALSE) -> 3408.045896 | W40: =SMALL('Transporte EAI'!$AA$13:$AA$32,6) -> 4701.479789
B42: 1 | C42: RR1-C | D42: Refinaria Abreu e Lima | E42: Rodovia PE 60, Km 10 - Ipojuca - PE CEP:55590-000 | F42: =VLOOKUP($W42,'Transporte RR-1C'!$B:$AA,7,FALSE) -> SARZEDO - MG | G42: =VLOOKUP($W42,'Transporte RR-1C'!$B:$AA,8,FALSE) -> Maceio - AL | H42: =VLOOKUP($W42,'Transporte RR-1C'!$B:$AA,9,FALSE) -> 2.297408631 | I42: =VLOOKUP($W42,'Transporte RR-1C'!$B:$AA,10,FALSE) -> 2.607436058 | J42: =VLOOKUP($W42,'Transporte RR-1C'!$B:$AA,11,FALSE) -> 2297.408631 | K42: =VLOOKUP($W42,'Transporte RR-1C'!$B:$AA,12,FALSE) -> 634.83 | L42: =VLOOKUP($W42,'Transporte RR-1C'!$B:$AA,13,FALSE) -> 2932.238631 | M42: =VLOOKUP($W42,'Transporte RR-1C'!$B:$AA,14,FALSE) -> 1874 | N42: =VLOOKUP($W42,'Transporte RR-1C'!$B:$AA,15,FALSE) -> 0 | O42: =VLOOKUP($W42,'Transporte RR-1C'!$B:$AA,18,FALSE) -> 501.06 | P42: =VLOOKUP($W42,'Transporte RR-1C'!$B:$AA,19,FALSE) -> 109.98 | Q42: =VLOOKUP($W42,'Transporte RR-1C'!$B:$AA,20,FALSE) -> 671.22 | R42: =VLOOKUP($W42,'Transporte RR-1C'!$B:$AA,21,FALSE) -> 1282.26 | S42: =VLOOKUP($W42,'Transporte RR-1C'!$B:$AA,22,FALSE) -> 183 | T42: =VLOOKUP($W42,'Transporte RR-1C'!$B:$AA,23,FALSE) -> 13.66946779 | U42: =VLOOKUP($W42,'Transporte RR-1C'!$B:$AA,24,FALSE) -> 1295.929468 | V42: =VLOOKUP($W42,'Transporte RR-1C'!$B:$AA,25,FALSE) -> 2932.238631 | W42: =SMALL('Transporte RR-1C'!$AA$13:$AA$32,1) -> 4228.168099
B43: 2 | D43: Refinaria Potiguar Clara Camarão | E43: Rodovia RN 221, KM 25 - Guamaré - RN CEP:59598-000 | F43: =VLOOKUP($W43,'Transporte RR-1C'!$B:$AA,7,FALSE) -> UBERLANDIA - MG | G43: =VLOOKUP($W43,'Transporte RR-1C'!$B:$AA,8,FALSE) -> Maceio - AL | H43: =VLOOKUP($W43,'Transporte RR-1C'!$B:$AA,9,FALSE) -> 2.297408631 | I43: =VLOOKUP($W43,'Transporte RR-1C'!$B:$AA,10,FALSE) -> 2.607436058 | J43: =VLOOKUP($W43,'Transporte RR-1C'!$B:$AA,11,FALSE) -> 2297.408631 | K43: =VLOOKUP($W43,'Transporte RR-1C'!$B:$AA,12,FALSE) -> 634.83 | L43: =VLOOKUP($W43,'Transporte RR-1C'!$B:$AA,13,FALSE) -> 2932.238631 | M43: =VLOOKUP($W43,'Transporte RR-1C'!$B:$AA,14,FALSE) -> 2062 | N43: =VLOOKUP($W43,'Transporte RR-1C'!$B:$AA,15,FALSE) -> 0 | O43: =VLOOKUP($W43,'Transporte RR-1C'!$B:$AA,18,FALSE) -> 548.63 | P43: =VLOOKUP($W43,'Transporte RR-1C'!$B:$AA,19,FALSE) -> 120.43 | Q43: =VLOOKUP($W43,'Transporte RR-1C'!$B:$AA,20,FALSE) -> 734.96 | R43: =VLOOKUP($W43,'Transporte RR-1C'!$B:$AA,21,FALSE) -> 1404.02 | S43: =VLOOKUP($W43,'Transporte RR-1C'!$B:$AA,22,FALSE) -> 335.4 | T43: =VLOOKUP($W43,'Transporte RR-1C'!$B:$AA,23,FALSE) -> 25.05322129 | U43: =VLOOKUP($W43,'Transporte RR-1C'!$B:$AA,24,FALSE) -> 1429.073221 | V43: =VLOOKUP($W43,'Transporte RR-1C'!$B:$AA,25,FALSE) -> 2932.238631 | W43: =SMALL('Transporte RR-1C'!$AA$13:$AA$32,2) -> 4361.311852
B44: 3 | D44: Complexo Petroquímico do Rio de Janeiro (Comperj) | E44: Rodovia Estadual RJ-116 - Km 5,2 - Acesso A-1, s/n, Complemento Sambaetiba - Zona Urbana do 4º Distrito de Itaboraí - RJ CEP:24841-203 | F44: =VLOOKUP($W44,'Transporte RR-1C'!$B:$AA,7,FALSE) -> UBERLANDIA - MG | G44: =VLOOKUP($W44,'Transporte RR-1C'!$B:$AA,8,FALSE) -> Maceio - AL | H44: =VLOOKUP($W44,'Transporte RR-1C'!$B:$AA,9,FALSE) -> 2.297408631 | I44: =VLOOKUP($W44,'Transporte RR-1C'!$B:$AA,10,FALSE) -> 2.607436058 | J44: =VLOOKUP($W44,'Transporte RR-1C'!$B:$AA,11,FALSE) -> 2297.408631 | K44: =VLOOKUP($W44,'Transporte RR-1C'!$B:$AA,12,FALSE) -> 634.83 | L44: =VLOOKUP($W44,'Transporte RR-1C'!$B:$AA,13,FALSE) -> 2932.238631 | M44: =VLOOKUP($W44,'Transporte RR-1C'!$B:$AA,14,FALSE) -> 2065 | N44: =VLOOKUP($W44,'Transporte RR-1C'!$B:$AA,15,FALSE) -> 0 | O44: =VLOOKUP($W44,'Transporte RR-1C'!$B:$AA,18,FALSE) -> 549.38 | P44: =VLOOKUP($W44,'Transporte RR-1C'!$B:$AA,19,FALSE) -> 120.59 | Q44: =VLOOKUP($W44,'Transporte RR-1C'!$B:$AA,20,FALSE) -> 735.96 | R44: =VLOOKUP($W44,'Transporte RR-1C'!$B:$AA,21,FALSE) -> 1405.93 | S44: =VLOOKUP($W44,'Transporte RR-1C'!$B:$AA,22,FALSE) -> 335.4 | T44: =VLOOKUP($W44,'Transporte RR-1C'!$B:$AA,23,FALSE) -> 25.05322129 | U44: =VLOOKUP($W44,'Transporte RR-1C'!$B:$AA,24,FALSE) -> 1430.983221 | V44: =VLOOKUP($W44,'Transporte RR-1C'!$B:$AA,25,FALSE) -> 2932.238631 | W44: =SMALL('Transporte RR-1C'!$AA$13:$AA$32,3) -> 4363.221852
B45: 4 | D45: Refinaria Abreu e Lima | E45: Rodovia PE 60, Km 10 - Ipojuca - PE CEP:55590-000 | F45: =VLOOKUP($W45,'Transporte RR-1C'!$B:$AA,7,FALSE) -> ANÁPOLIS - GO | G45: =VLOOKUP($W45,'Transporte RR-1C'!$B:$AA,8,FALSE) -> Maceio - AL | H45: =VLOOKUP($W45,'Transporte RR-1C'!$B:$AA,9,FALSE) -> 2.480657238 | I45: =VLOOKUP($W45,'Transporte RR-1C'!$B:$AA,10,FALSE) -> 2.571411162 | J45: =VLOOKUP($W45,'Transporte RR-1C'!$B:$AA,11,FALSE) -> 2480.657238 | K45: =VLOOKUP($W45,'Transporte RR-1C'!$B:$AA,12,FALSE) -> 685.47 | L45: =VLOOKUP($W45,'Transporte RR-1C'!$B:$AA,13,FALSE) -> 3166.127238 | M45: =VLOOKUP($W45,'Transporte RR-1C'!$B:$AA,14,FALSE) -> 2042 | N45: =VLOOKUP($W45,'Transporte RR-1C'!$B:$AA,15,FALSE) -> 0 | O45: =VLOOKUP($W45,'Transporte RR-1C'!$B:$AA,18,FALSE) -> 543.57 | P45: =VLOOKUP($W45,'Transporte RR-1C'!$B:$AA,19,FALSE) -> 119.32 | Q45: =VLOOKUP($W45,'Transporte RR-1C'!$B:$AA,20,FALSE) -> 728.18 | R45: =VLOOKUP($W45,'Transporte RR-1C'!$B:$AA,21,FALSE) -> 1391.07 | S45: =VLOOKUP($W45,'Transporte RR-1C'!$B:$AA,22,FALSE) -> 114.6 | T45: =VLOOKUP($W45,'Transporte RR-1C'!$B:$AA,23,FALSE) -> 8.56022409 | U45: =VLOOKUP($W45,'Transporte RR-1C'!$B:$AA,24,FALSE) -> 1399.630224 | V45: =VLOOKUP($W45,'Transporte RR-1C'!$B:$AA,25,FALSE) -> 3166.127238 | W45: =SMALL('Transporte RR-1C'!$AA$13:$AA$32,4) -> 4565.757462
B46: 5 | D46: Refinaria Potiguar Clara Camarão | E46: Rodovia RN 221, KM 25 - Guamaré - RN CEP:59598-000 | F46: =VLOOKUP($W46,'Transporte RR-1C'!$B:$AA,7,FALSE) -> BRASÍLIA - DF | G46: =VLOOKUP($W46,'Transporte RR-1C'!$B:$AA,8,FALSE) -> Maceio - AL | H46: =VLOOKUP($W46,'Transporte RR-1C'!$B:$AA,9,FALSE) -> - | I46: =VLOOKUP($W46,'Transporte RR-1C'!$B:$AA,10,FALSE) -> 2.571411162 | J46: =VLOOKUP($W46,'Transporte RR-1C'!$B:$AA,11,FALSE) -> 2571.411162 | K46: =VLOOKUP($W46,'Transporte RR-1C'!$B:$AA,12,FALSE) -> 710.54 | L46: =VLOOKUP($W46,'Transporte RR-1C'!$B:$AA,13,FALSE) -> 3281.951162 | M46: =VLOOKUP($W46,'Transporte RR-1C'!$B:$AA,14,FALSE) -> 1898 | N46: =VLOOKUP($W46,'Transporte RR-1C'!$B:$AA,15,FALSE) -> 0 | O46: =VLOOKUP($W46,'Transporte RR-1C'!$B:$AA,18,FALSE) -> 507.13 | P46: =VLOOKUP($W46,'Transporte RR-1C'!$B:$AA,19,FALSE) -> 111.32 | Q46: =VLOOKUP($W46,'Transporte RR-1C'!$B:$AA,20,FALSE) -> 679.36 | R46: =VLOOKUP($W46,'Transporte RR-1C'!$B:$AA,21,FALSE) -> 1297.81 | S46: =VLOOKUP($W46,'Transporte RR-1C'!$B:$AA,22,FALSE) -> 73.2 | T46: =VLOOKUP($W46,'Transporte RR-1C'!$B:$AA,23,FALSE) -> 5.467787115 | U46: =VLOOKUP($W46,'Transporte RR-1C'!$B:$AA,24,FALSE) -> 1303.277787 | V46: =VLOOKUP($W46,'Transporte RR-1C'!$B:$AA,25,FALSE) -> 3281.951162 | W46: =SMALL('Transporte RR-1C'!$AA$13:$AA$32,5) -> 4585.228949
B47: 6 | D47: Complexo Petroquímico do Rio de Janeiro (Comperj) | E47: Rodovia Estadual RJ-116 - Km 5,2 - Acesso A-1, s/n, Complemento Sambaetiba - Zona Urbana do 4º Distrito de Itaboraí - RJ CEP:24841-203 | F47: =VLOOKUP($W47,'Transporte RR-1C'!$B:$AA,7,FALSE) -> APARECIDA DE GOIANIA - GO | G47: =VLOOKUP($W47,'Transporte RR-1C'!$B:$AA,8,FALSE) -> Maceio - AL | H47: =VLOOKUP($W47,'Transporte RR-1C'!$B:$AA,9,FALSE) -> 2.480657238 | I47: =VLOOKUP($W47,'Transporte RR-1C'!$B:$AA,10,FALSE) -> 2.571411162 | J47: =VLOOKUP($W47,'Transporte RR-1C'!$B:$AA,11,FALSE) -> 2480.657238 | K47: =VLOOKUP($W47,'Transporte RR-1C'!$B:$AA,12,FALSE) -> 685.47 | L47: =VLOOKUP($W47,'Transporte RR-1C'!$B:$AA,13,FALSE) -> 3166.127238 | M47: =VLOOKUP($W47,'Transporte RR-1C'!$B:$AA,14,FALSE) -> 2109 | N47: =VLOOKUP($W47,'Transporte RR-1C'!$B:$AA,15,FALSE) -> 0 | O47: =VLOOKUP($W47,'Transporte RR-1C'!$B:$AA,18,FALSE) -> 560.52 | P47: =VLOOKUP($W47,'Transporte RR-1C'!$B:$AA,19,FALSE) -> 123.04 | Q47: =VLOOKUP($W47,'Transporte RR-1C'!$B:$AA,20,FALSE) -> 750.88 | R47: =VLOOKUP($W47,'Transporte RR-1C'!$B:$AA,21,FALSE) -> 1434.44 | S47: =VLOOKUP($W47,'Transporte RR-1C'!$B:$AA,22,FALSE) -> 145.2 | T47: =VLOOKUP($W47,'Transporte RR-1C'!$B:$AA,23,FALSE) -> 10.84593838 | U47: =VLOOKUP($W47,'Transporte RR-1C'!$B:$AA,24,FALSE) -> 1445.285938 | V47: =VLOOKUP($W47,'Transporte RR-1C'!$B:$AA,25,FALSE) -> 3166.127238 | W47: =SMALL('Transporte RR-1C'!$AA$13:$AA$32,6) -> 4611.413176

Sheet MOMENTO DE TRANSPORTE - PRINC
B5: ='RESUMO MODULO TOTAL'!B1 -> CONTRATAÇÃO DE SERVIÇOS DE PAVIMENTAÇÃO ASFÁLTICA COM CONCRETO BETUMINOSO USINADO A QUENTE (CBUQ) EM VIAS URBANAS E RURAIS INSERIDAS NA ÁREA DE ATUAÇÃO DA CODEVASF, NO ESTADO DE ALAGOAS - REGIÃO 2
B6: DATA BASE: | C6: ='RESUMO MODULO TOTAL'!N2 -> Alagoas - Janeiro/2024
C8: RESUMO DO TRANSPORTE PRINCIPAL
B9: CODIGO | C9: DESCRIÇÃO | D9: TKM
B10: 5914359 | C10: =VLOOKUP(B10,'SINTÉTICO SICRO'!$A:$D,2,0) -> Transporte com caminhão basculante de 10 m³ - rodovia em leito natural | D10: =ROUND(SUMIF('MOMENTO DE TRANSPORTE - PRINC'!A:A,B10,'MOMENTO DE TRANSPORTE - PRINC'!K:K),2) -> 529289.27
B11: 5914374 | C11: =VLOOKUP(B11,'SINTÉTICO SICRO'!$A:$D,2,0) -> Transporte com caminhão basculante de 10 m³ - rodovia em revestimento primário | D11: =ROUND(SUMIF('MOMENTO DE TRANSPORTE - PRINC'!A:A,B11,'MOMENTO DE TRANSPORTE - PRINC'!K:K),2) -> 529289.27
B12: 5914389 | C12: =VLOOKUP(B12,'SINTÉTICO SICRO'!$A:$D,2,0) -> Transporte com caminhão basculante de 10 m³ - rodovia pavimentada | D12: =ROUND(SUMIF('MOMENTO DE TRANSPORTE - PRINC'!A:A,B12,'MOMENTO DE TRANSPORTE - PRINC'!K:K),2) -> 4234314.17
B13: 5914449 | C13: =VLOOKUP(B13,'SINTÉTICO SICRO'!$A:$D,2,0) -> Transporte com caminhão carroceria de 15 t - rodovia em leito natural | D13: =ROUND(SUMIF('MOMENTO DE TRANSPORTE - PRINC'!A:A,B13,'MOMENTO DE TRANSPORTE - PRINC'!K:K),2) -> 0
B14: 5914464 | C14: =VLOOKUP(B14,'SINTÉTICO SICRO'!$A:$D,2,0) -> Transporte com caminhão carroceria de 15 t - rodovia em revestimento primário | D14: =ROUND(SUMIF('MOMENTO DE TRANSPORTE - PRINC'!A:A,B14,'MOMENTO DE TRANSPORTE - PRINC'!K:K),2) -> 0
B15: 5914479 | C15: =VLOOKUP(B15,'SINTÉTICO SICRO'!$A:$D,2,0) -> Transporte com caminhão carroceria de 15 t - rodovia pavimentada | D15: =ROUND(SUMIF('MOMENTO DE TRANSPORTE - PRINC'!A:A,B15,'MOMENTO DE TRANSPORTE - PRINC'!K:K),2) -> 0
B16: 5914364 | C16: =VLOOKUP(B16,'SINTÉTICO SICRO'!$A:$D,2,0) -> Transporte de cimento ou cal hidratada a granel com caminhão silo de 30 m³ - rodovia em leito natural | D16: =ROUND(SUMIF('MOMENTO DE TRANSPORTE - PRINC'!A:A,B16,'MOMENTO DE TRANSPORTE - PRINC'!K:K),2) -> 0
B17: 5914365 | C17: =VLOOKUP(B17,'SINTÉTICO SICRO'!$A:$D,2,0) -> Transporte de cimento ou cal hidratada a granel com caminhão silo de 30 m³ - rodovia em revestimento primário | D17: =ROUND(SUMIF('MOMENTO DE TRANSPORTE - PRINC'!A:A,B17,'MOMENTO DE TRANSPORTE - PRINC'!K:K),2) -> 0
B18: 5914366 | C18: =VLOOKUP(B18,'SINTÉTICO SICRO'!$A:$D,2,0) -> Transporte de cimento ou cal hidratada a granel com caminhão silo de 30 m³ - rodovia pavimentada | D18: =ROUND(SUMIF('MOMENTO DE TRANSPORTE - PRINC'!A:A,B18,'MOMENTO DE TRANSPORTE - PRINC'!K:K),2) -> 0
B20: TIPO (P, RP ou LN) | C20: DMT ESTIMADA (DISTRIBUIÇÃO DO ITEM NA PISTA
B21: P | C21: 30 | D21: Fica a cargo de cada SR colocar a distancia de distribuição
B24: SISTEMA DE CUSTOS REFERENCIAIS DE OBRAS - SICRO
B25: Custo Unitário de Referência | I25: Quantitativo | K25: t
B26: 4011463 | C26: Concreto asfáltico - faixa C - areia e brita comerciais | I26: =SUMIF('RESUMO MODULO TOTAL'!D:D,B26,'RESUMO MODULO TOTAL'!J:J)*0.8 -> 22848
B27: D - ATIVIDADES AUXILIARES | D27: Quantidade | E27: Unidade
B28: 6416078 | C28: Usinagem de concreto asfáltico - faixa C - areia e brita comerciais | D28: 1.02 | E28: t
B30: F - MOMENTO DE TRANSPORTE | D30: Quantidade | E30: Unidade | F30: CÓDIGO TRANSPORTE
F31: LN | G31: RP | H31: P | I31: TIPO (P, RP ou LN) | J31: DMT ESTIMADA (km) | K31: QUANTITATIVO TOTAL DE TRANSPORTE (tkm)
A32: =IF(I32="P",H32,IF(I32="RP",G32,IF(I32="LN",F32,""))) -> 5914389 | B32: 6416078 | C32: Usinagem de concreto asfáltico - faixa C - areia e brita comerciais - Caminhão basculante 10 m³ | D32: 1.02 | E32: tkm | F32: 5914359 | G32: 5914374 | H32: 5914389 | I32: =$B$21 -> P | J32: =$C$21 -> 30 | K32: =IF(ISBLANK(J32),"",J32*D32)*I26 -> 699148.8
B34: Obs.
B37: SISTEMA DE CUSTOS REFERENCIAIS DE OBRAS - SICRO
B38: Custo Unitário de Referência | I38: Quantitativo | K38: m³
B39: 4011268 | C39: Base estabilizada granulometricamente com mistura solo brita (70% - 30%) em usina com material de jazida e brita comercial | I39: =SUMIF('RESUMO MODULO TOTAL'!D:D,B39,'RESUMO MODULO TOTAL'!J:J)*0.8 -> 28560
B40: D - ATIVIDADES AUXILIARES | D40: Quantidade | E40: Unidade
B41: 6416030 | C41: Usinagem de solo brita (70% - 30%) com material de jazida e brita comercial em usina de 300 t/h | D41: 1 | E41: m³
B43: F - MOMENTO DE TRANSPORTE | D43: Quantidade | E43: Unidade | F43: CÓDIGO TRANSPORTE
F44: LN | G44: RP | H44: P | I44: TIPO (P, RP ou LN) | J44: DMT ESTIMADA (km) | K44: QUANTITATIVO TOTAL DE TRANSPORTE (tkm)
A45: =IF(I45="P",H45,IF(I45="RP",G45,IF(I45="LN",F45,""))) -> 5914389 | B45: 6416030 | C45: Usinagem de solo brita (70% - 30%) com material de jazida e brita comercial em usina de 300 t/h - Caminhão basculante 10 m³ | D45: 2.063 | E45: tkm | F45: 5914359 | G45: 5914374 | H45: 5914389 | I45: =$B$21 -> P | J45: =$C$21 -> 30 | K45: =IF(ISBLANK(J45),"",J45*D45)*I39 -> 1767578.4
B47: Obs.
B49: SISTEMA DE CUSTOS REFERENCIAIS DE OBRAS - SICRO
B50: Custo Unitário de Referência | I50: Quantitativo | K50: m³
B51: 4011227 | C51: Sub-base de solo estabilizado granulometricamente sem mistura com material de jazida | I51: =SUMIF('RESUMO MODULO TOTAL'!D:D,B51,'RESUMO MODULO TOTAL'!J:J)*0.8 -> 28560
B52: D - ATIVIDADES AUXILIARES | D52: Quantidade | E52: Unidade
B53: 4016096 | C53: Escavação e carga de material de jazida com escavadeira hidráulica de 1,56 m³ | D53: 1.10027 | E53: m³
B55: F - MOMENTO DE TRANSPORTE | D55: Quantidade | E55: Unidade | F55: CÓDIGO TRANSPORTE
F56: LN | G56: RP | H56: P | I56: TIPO (P, RP ou LN) | J56: DMT ESTIMADA (km) | K56: QUANTITATIVO TOTAL DE TRANSPORTE (tkm)
A57: =IF(I57="P",H57,IF(I57="RP",G57,IF(I57="LN",F57,""))) -> 5914389 | B57: 4016096 | C57: Escavação e carga de material de jazida com escavadeira hidráulica de 1,56 m³ - Caminhão basculante 10 m³ | D57: 2.06301 | E57: tkm | F57: 5914359 | G57: 5914374 | H57: 5914389 | I57: =$B$21 -> P | J57: =$C$21 -> 30 | K57: =IF(ISBLANK(J57),"",J57*D57)*I51 -> 1767586.968
B59: Obs.
B61: SISTEMA DE CUSTOS REFERENCIAIS DE OBRAS - SICRO
B62: Custo Unitário de Referência | I62: Quantitativo | K62: m
B63: 2003373 | C63: Meio-fio de concreto - MFC 03 - areia e brita comerciais - fôrma de madeira | I63: =SUMIF('RESUMO MODULO TOTAL'!D:D,B63,'RESUMO MODULO TOTAL'!J:J)*0.8 -> 54400
B64: D - ATIVIDADES AUXILIARES | D64: Quantidade | E64: Unidade
B65: 1107892 | C65: Concreto fck = 20 MPa - confecção em betoneira e lançamento manual - areia e brita comerciais | D65: 0.042 | E65: m³
B66: 2003842 | C66: Enchimento de junta de concreto com argamassa asfáltica de densidade 1.700 kg/m³ - espessura de 1 cm | D66: 0.0595 | E66: kg
B67: 4805750 | C67: Escavação manual em material de 1ª categoria na profundidade de até 1 m | D67: 0.03 | E67: m³
B68: 3103302 | C68: Fôrmas de tábuas de pinho para dispositivos de drenagem - utilização de 3 vezes - confecção, instalação e retirada | D68: 0.0867 | E68: m²
B70: F - MOMENTO DE TRANSPORTE | D70: Quantidade | E70: Unidade | F70: CÓDIGO TRANSPORTE
F71: LN | G71: RP | H71: P | I71: TIPO (P, RP ou LN) | J71: DMT ESTIMADA (km) | K71: QUANTITATIVO TOTAL DE TRANSPORTE (tkm)
B74: TIPO (P, RP ou LN) | C74: DMT ESTIMADA (DISTRIBUIÇÃO DO ITEM NA PISTA
B75: LN | C75: =C21 -> 30
B78: SISTEMA DE CUSTOS REFERENCIAIS DE OBRAS - SICRO
B79: Custo Unitário de Referência | I79: Quantitativo | K79: t
B80: 4011463 | C80: Concreto asfáltico - faixa C - areia e brita comerciais | I80: =SUMIF('RESUMO MODULO TOTAL'!D:D,B80,'RESUMO MODULO TOTAL'!J:J)*0.1 -> 2856
B81: D - ATIVIDADES AUXILIARES | D81: Quantidade | E81: Unidade
B82: 6416078 | C82: Usinagem de concreto asfáltico - faixa C - areia e brita comerciais | D82: 1.02 | E82: t
B84: F - MOMENTO DE TRANSPORTE | D84: Quantidade | E84: Unidade | F84: CÓDIGO TRANSPORTE
F85: LN | G85: RP | H85: P | I85: TIPO (P, RP ou LN) | J85: DMT ESTIMADA (km) | K85: QUANTITATIVO TOTAL DE TRANSPORTE (tkm)
A86: =IF(I86="P",H86,IF(I86="RP",G86,IF(I86="LN",F86,""))) -> 5914359 | B86: 6416078 | C86: Usinagem de concreto asfáltico - faixa C - areia e brita comerciais - Caminhão basculante 10 m³ | D86: 1.02 | E86: tkm | F86: 5914359 | G86: 5914374 | H86: 5914389 | I86: =$B$75 -> LN | J86: =$C$21 -> 30 | K86: =IF(ISBLANK(J86),"",J86*D86)*I80 -> 87393.6
B88: Obs.
B91: SISTEMA DE CUSTOS REFERENCIAIS DE OBRAS - SICRO
B92: Custo Unitário de Referência | I92: Quantitativo | K92: m³
B93: 4011268 | C93: Base estabilizada granulometricamente com mistura solo brita (70% - 30%) em usina com material de jazida e brita comercial | I93: =SUMIF('RESUMO MODULO TOTAL'!D:D,B93,'RESUMO MODULO TOTAL'!J:J)*0.1 -> 3570
B94: D - ATIVIDADES AUXILIARES | D94: Quantidade | E94: Unidade
B95: 6416030 | C95: Usinagem de solo brita (70% - 30%) com material de jazida e brita comercial em usina de 300 t/h | D95: 1 | E95: m³
B97: F - MOMENTO DE TRANSPORTE | D97: Quantidade | E97: Unidade | F97: CÓDIGO TRANSPORTE
F98: LN | G98: RP | H98: P | I98: TIPO (P, RP ou LN) | J98: DMT ESTIMADA (km) | K98: QUANTITATIVO TOTAL DE TRANSPORTE (tkm)
A99: =IF(I99="P",H99,IF(I99="RP",G99,IF(I99="LN",F99,""))) -> 5914359 | B99: 6416030 | C99: Usinagem de solo brita (70% - 30%) com material de jazida e brita comercial em usina de 300 t/h - Caminhão basculante 10 m³ | D99: 2.063 | E99: tkm | F99: 5914359 | G99: 5914374 | H99: 5914389 | I99: =$B$75 -> LN | J99: =$C$21 -> 30 | K99: =IF(ISBLANK(J99),"",J99*D99)*I93 -> 220947.3
B101: Obs.
B103: SISTEMA DE CUSTOS REFERENCIAIS DE OBRAS - SICRO
B104: Custo Unitário de Referência | I104: Quantitativo | K104: m³
B105: 4011227 | C105: Sub-base de solo estabilizado granulometricamente sem mistura com material de jazida | I105: =SUMIF('RESUMO MODULO TOTAL'!D:D,B105,'RESUMO MODULO TOTAL'!J:J)*0.1 -> 3570
B106: D - ATIVIDADES AUXILIARES | D106: Quantidade | E106: Unidade
B107: 4016096 | C107: Escavação e carga de material de jazida com escavadeira hidráulica de 1,56 m³ | D107: 1.10027 | E107: m³
B109: F - MOMENTO DE TRANSPORTE | D109: Quantidade | E109: Unidade | F109: CÓDIGO TRANSPORTE
F110: LN | G110: RP | H110: P | I110: TIPO (P, RP ou LN) | J110: DMT ESTIMADA (km) | K110: QUANTITATIVO TOTAL DE TRANSPORTE (tkm)
A111: =IF(I111="P",H111,IF(I111="RP",G111,IF(I111="LN",F111,""))) -> 5914359 | B111: 4016096 | C111: Escavação e carga de material de jazida com escavadeira hidráulica de 1,56 m³ - Caminhão basculante 10 m³ | D111: 2.06301 | E111: tkm | F111: 5914359 | G111: 5914374 | H111: 5914389 | I111: =$B$75 -> LN | J111: =$C$21 -> 30 | K111: =IF(ISBLANK(J111),"",J111*D111)*I105 -> 220948.371
B113: Obs.
B115: SISTEMA DE CUSTOS REFERENCIAIS DE OBRAS - SICRO
B116: Custo Unitário de Referência | I116: Quantitativo | K116: m
B117: 2003373 | C117: Meio-fio de concreto - MFC 03 - areia e brita comerciais - fôrma de madeira | I117: =SUMIF('RESUMO MODULO TOTAL'!D:D,B117,'RESUMO MODULO TOTAL'!J:J)*0.1 -> 6800
B118: D - ATIVIDADES AUXILIARES | D118: Quantidade | E118: Unidade
B119: 1107892 | C119: Concreto fck = 20 MPa - confecção em betoneira e lançamento manual - areia e brita comerciais | D119: 0.042 | E119: m³
B120: 2003842 | C120: Enchimento de junta de concreto com argamassa asfáltica de densidade 1.700 kg/m³ - espessura de 1 cm | D120: 0.0595 | E120: kg
B121: 4805750 | C121: Escavação manual em material de 1ª categoria na profundidade de até 1 m | D121: 0.03 | E121: m³
B122: 3103302 | C122: Fôrmas de tábuas de pinho para dispositivos de drenagem - utilização de 3 vezes - confecção, instalação e retirada | D122: 0.0867 | E122: m²
B124: F - MOMENTO DE TRANSPORTE | D124: Quantidade | E124: Unidade | F124: CÓDIGO TRANSPORTE
F125: LN | G125: RP | H125: P | I125: TIPO (P, RP ou LN) | J125: DMT ESTIMADA (km) | K125: QUANTITATIVO TOTAL DE TRANSPORTE (tkm)
B129: TIPO (P, RP ou LN) | C129: DMT ESTIMADA (DISTRIBUIÇÃO DO ITEM NA PISTA
B130: RP | C130: 30
B133: SISTEMA DE CUSTOS REFERENCIAIS DE OBRAS - SICRO
B134: Custo Unitário de Referência | I134: Quantitativo | K134: t
B135: 4011463 | C135: Concreto asfáltico - faixa C - areia e brita comerciais | I135: =SUMIF('RESUMO MODULO TOTAL'!D:D,B135,'RESUMO MODULO TOTAL'!J:J)*0.1 -> 2856
B136: D - ATIVIDADES AUXILIARES | D136: Quantidade | E136: Unidade
B137: 6416078 | C137: Usinagem de concreto asfáltico - faixa C - areia e brita comerciais | D137: 1.02 | E137: t
B139: F - MOMENTO DE TRANSPORTE | D139: Quantidade | E139: Unidade | F139: CÓDIGO TRANSPORTE
F140: LN | G140: RP | H140: P | I140: TIPO (P, RP ou LN) | J140: DMT ESTIMADA (km) | K140: QUANTITATIVO TOTAL DE TRANSPORTE (tkm)
A141: =IF(I141="P",H141,IF(I141="RP",G141,IF(I141="LN",F141,""))) -> 5914374 | B141: 6416078 | C141: Usinagem de concreto asfáltico - faixa C - areia e brita comerciais - Caminhão basculante 10 m³ | D141: 1.02 | E141: tkm | F141: 5914359 | G141: 5914374 | H141: 5914389 | I141: =$B$130 -> RP | J141: =$C$21 -> 30 | K141: =IF(ISBLANK(J141),"",J141*D141)*I135 -> 87393.6
B143: Obs.
B146: SISTEMA DE CUSTOS REFERENCIAIS DE OBRAS - SICRO
B147: Custo Unitário de Referência | I147: Quantitativo | K147: m³
B148: 4011268 | C148: Base estabilizada granulometricamente com mistura solo brita (70% - 30%) em usina com material de jazida e brita comercial | I148: =SUMIF('RESUMO MODULO TOTAL'!D:D,B148,'RESUMO MODULO TOTAL'!J:J)*0.1 -> 3570
B149: D - ATIVIDADES AUXILIARES | D149: Quantidade | E149: Unidade
B150: 6416030 | C150: Usinagem de solo brita (70% - 30%) com material de jazida e brita comercial em usina de 300 t/h | D150: 1 | E150: m³
B152: F - MOMENTO DE TRANSPORTE | D152: Quantidade | E152: Unidade | F152: CÓDIGO TRANSPORTE
F153: LN | G153: RP | H153: P | I153: TIPO (P, RP ou LN) | J153: DMT ESTIMADA (km) | K153: QUANTITATIVO TOTAL DE TRANSPORTE (tkm)
A154: =IF(I154="P",H154,IF(I154="RP",G154,IF(I154="LN",F154,""))) -> 5914374 | B154: 6416030 | C154: Usinagem de solo brita (70% - 30%) com material de jazida e brita comercial em usina de 300 t/h - Caminhão basculante 10 m³ | D154: 2.063 | E154: tkm | F154: 5914359 | G154: 5914374 | H154: 5914389 | I154: =$B$130 -> RP | J154: =$C$21 -> 30 | K154: =IF(ISBLANK(J154),"",J154*D154)*I148 -> 220947.3
B156: Obs.
B158: SISTEMA DE CUSTOS REFERENCIAIS DE OBRAS - SICRO
B159: Custo Unitário de Referência | I159: Quantitativo | K159: m³
B160: 4011227 | C160: Sub-base de solo estabilizado granulometricamente sem mistura com material de jazida | I160: =SUMIF('RESUMO MODULO TOTAL'!D:D,B160,'RESUMO MODULO TOTAL'!J:J)*0.1 -> 3570
B161: D - ATIVIDADES AUXILIARES | D161: Quantidade | E161: Unidade
B162: 4016096 | C162: Escavação e carga de material de jazida com escavadeira hidráulica de 1,56 m³ | D162: 1.10027 | E162: m³
B164: F - MOMENTO DE TRANSPORTE | D164: Quantidade | E164: Unidade | F164: CÓDIGO TRANSPORTE
F165: LN | G165: RP | H165: P | I165: TIPO (P, RP ou LN) | J165: DMT ESTIMADA (km) | K165: QUANTITATIVO TOTAL DE TRANSPORTE (tkm)
A166: =IF(I166="P",H166,IF(I166="RP",G166,IF(I166="LN",F166,""))) -> 5914374 | B166: 4016096 | C166: Escavação e carga de material de jazida com escavadeira hidráulica de 1,56 m³ - Caminhão basculante 10 m³ | D166: 2.06301 | E166: tkm | F166: 5914359 | G166: 5914374 | H166: 5914389 | I166: =$B$130 -> RP | J166: =$C$21 -> 30 | K166: =IF(ISBLANK(J166),"",J166*D166)*I160 -> 220948.371
B168: Obs.
B170: SISTEMA DE CUSTOS REFERENCIAIS DE OBRAS - SICRO
B171: Custo Unitário de Referência | I171: Quantitativo | K171: m
B172: 2003373 | C172: Meio-fio de concreto - MFC 03 - areia e brita comerciais - fôrma de madeira | I172: =SUMIF('RESUMO MODULO TOTAL'!D:D,B172,'RESUMO MODULO TOTAL'!J:J)*0.1 -> 6800
B173: D - ATIVIDADES AUXILIARES | D173: Quantidade | E173: Unidade
B174: 1107892 | C174: Concreto fck = 20 MPa - confecção em betoneira e lançamento manual - areia e brita comerciais | D174: 0.042 | E174: m³
B175: 2003842 | C175: Enchimento de junta de concreto com argamassa asfáltica de densidade 1.700 kg/m³ - espessura de 1 cm | D175: 0.0595 | E175: kg
B176: 4805750 | C176: Escavação manual em material de 1ª categoria na profundidade de até 1 m | D176: 0.03 | E176: m³
B177: 3103302 | C177: Fôrmas de tábuas de pinho para dispositivos de drenagem - utilização de 3 vezes - confecção, instalação e retirada | D177: 0.0867 | E177: m²
B179: F - MOMENTO DE TRANSPORTE | D179: Quantidade | E179: Unidade | F179: CÓDIGO TRANSPORTE
F180: LN | G180: RP | H180: P | I180: TIPO (P, RP ou LN) | J180: DMT ESTIMADA (km) | K180: QUANTITATIVO TOTAL DE TRANSPORTE (tkm)

Sheet MOMENTO DE TRANSPORTE - AUX
B5: ='RESUMO MODULO TOTAL'!B1 -> CONTRATAÇÃO DE SERVIÇOS DE PAVIMENTAÇÃO ASFÁLTICA COM CONCRETO BETUMINOSO USINADO A QUENTE (CBUQ) EM VIAS URBANAS E RURAIS INSERIDAS NA ÁREA DE ATUAÇÃO DA CODEVASF, NO ESTADO DE ALAGOAS - REGIÃO 2
B6: DATA BASE: | C6: ='RESUMO MODULO TOTAL'!N2 -> Alagoas - Janeiro/2024
C8: RESUMO DO TRANSPORTE AUXILIAR
B9: CODIGO | C9: DESCRIÇÃO | D9: TKM
B10: 5914359 | C10: =VLOOKUP(B10,'SINTÉTICO SICRO'!$A:$D,2,0) -> Transporte com caminhão basculante de 10 m³ - rodovia em leito natural | D10: =ROUND(SUMIF($A:$A,B10,$K:$K),2) -> 2523938.89
B11: 5914374 | C11: =VLOOKUP(B11,'SINTÉTICO SICRO'!$A:$D,2,0) -> Transporte com caminhão basculante de 10 m³ - rodovia em revestimento primário | D11: 2523938.89
B12: 5914389 | C12: =VLOOKUP(B12,'SINTÉTICO SICRO'!$A:$D,2,0) -> Transporte com caminhão basculante de 10 m³ - rodovia pavimentada | D12: 2523938.89
B13: 5914449 | C13: =VLOOKUP(B13,'SINTÉTICO SICRO'!$A:$D,2,0) -> Transporte com caminhão carroceria de 15 t - rodovia em leito natural | D13: 21362.78
B14: 5914464 | C14: =VLOOKUP(B14,'SINTÉTICO SICRO'!$A:$D,2,0) -> Transporte com caminhão carroceria de 15 t - rodovia em revestimento primário | D14: 21362.78
B15: 5914479 | C15: =VLOOKUP(B15,'SINTÉTICO SICRO'!$A:$D,2,0) -> Transporte com caminhão carroceria de 15 t - rodovia pavimentada | D15: 21362.78
B16: 5914364 | C16: =VLOOKUP(B16,'SINTÉTICO SICRO'!$A:$D,2,0) -> Transporte de cimento ou cal hidratada a granel com caminhão silo de 30 m³ - rodovia em leito natural | D16: 39292.16
B17: 5914365 | C17: =VLOOKUP(B17,'SINTÉTICO SICRO'!$A:$D,2,0) -> Transporte de cimento ou cal hidratada a granel com caminhão silo de 30 m³ - rodovia em revestimento primário | D17: 39292.16
B18: 5914366 | C18: =VLOOKUP(B18,'SINTÉTICO SICRO'!$A:$D,2,0) -> Transporte de cimento ou cal hidratada a granel com caminhão silo de 30 m³ - rodovia pavimentada | D18: 39292.16
B20: TIPO (P, RP ou LN) | C20: DMT ATÉ 50 KM NÃO DEVE SER PAGA | D20: DMT ACIMA DE 50 KM
B21: P | C21: 0 | D21: 30 | E21: Fica a cargo de cada SR colocar a distancia de distribuição
B23: SISTEMA DE CUSTOS REFERENCIAIS DE OBRAS - SICRO | I23: Quantitivo
B24: Custo Unitário de Referência | E24: =$C$6 -> Alagoas - Janeiro/2024 | I24: (Coeficiente na composição principal) x (quantidade da principal no orçamento) | K24: t
B25: 6416078 | C25: Usinagem de concreto asfáltico - faixa C - areia e brita comerciais | I25: ='MOMENTO DE TRANSPORTE - PRINC'!D28*(VLOOKUP(C34,'RESUMO MODULO TOTAL'!D:O,7,FALSE)*0.8) -> 23304.96
B26: F - MOMENTO DE TRANSPORTE | D26: Quantidade | E26: Unidade | F26: DMT
F27: LN | G27: RP | H27: P | I27: TIPO (P, RP ou LN) | J27: DMT ESTIMADA (km) | K27: QUANTITATIVO TOTAL DE TRANSPORTE DE MATERIAL (tkm)
A28: =IF(I28="P",H28,IF(I28="RP",G28,IF(I28="LN",F28,""))) -> 5914389 | B28: M0028 | C28: Areia média - Caminhão basculante 10 m³ | D28: 0.48713 | E28: tkm | F28: 5914359 | G28: 5914374 | H28: 5914389 | I28: =$B$21 -> P | J28: =$D$21 -> 30 | K28: =IF(ISBLANK(J28),"",J28*(D28*$I$25)) -> 340576.3549
A29: =IF(I29="P",H29,IF(I29="RP",G29,IF(I29="LN",F29,""))) -> 5914389 | B29: M0005 | C29: Brita 0 - Caminhão basculante 10 m³ | D29: 0.09368 | E29: tkm | F29: 5914359 | G29: 5914374 | H29: 5914389 | I29: =$B$21 -> P | J29: =$D$21 -> 30 | K29: =IF(ISBLANK(J29),"",J29*(D29*$I$25)) -> 65496.25958
A30: 5914389 | B30: M0191 | C30: Brita 1 - Caminhão basculante 10 m³ | D30: 0.09368 | E30: tkm | F30: 5914359 | G30: 5914374 | H30: 5914389 | I30: P | J30: 30 | K30: =IF(ISBLANK(J30),"",J30*(D30*$I$25)) -> 65496.25958
A31: 5914366 | B31: M0344 | C31: Cal hidratada - a granel - Caminhão silo 30 m³ | D31: 0.0562 | E31: tkm | F31: 5914364 | G31: 5914365 | H31: 5914366 | I31: P | J31: 30 | K31: =IF(ISBLANK(J31),"",J31*(D31*$I$25)) -> 39292.16256
A32: 5914389 | B32: M1103 | C32: Pedrisco - Caminhão basculante 10 m³ | D32: 0.20609 | E32: tkm | F32: 5914359 | G32: 5914374 | H32: 5914389 | I32: P | J32: 30 | K32: =IF(ISBLANK(J32),"",J32*(D32*$I$25)) -> 144087.5762
B34: PRINCIPAL: | C34: 4011463
B35: SISTEMA DE CUSTOS REFERENCIAIS DE OBRAS - SICRO | I35: Quantitivo
B36: Custo Unitário de Referência | E36: =$C$6 -> Alagoas - Janeiro/2024 | I36: (Coeficiente na composição principal) x (quantidade da principal no orçamento) | K36: m³
B37: 6416030 | C37: Usinagem de solo brita (70% - 30%) com material de jazida e brita comercial em usina de 300 t/h | I37: ='MOMENTO DE TRANSPORTE - PRINC'!D41*(VLOOKUP(C43,'RESUMO MODULO TOTAL'!D:O,7,FALSE)*0.8) -> 28560
B38: F - MOMENTO DE TRANSPORTE | D38: Quantidade | E38: Unidade | F38: DMT
F39: LN | G39: RP | H39: P | I39: TIPO (P, RP ou LN) | J39: DMT ESTIMADA (km) | K39: QUANTITATIVO TOTAL DE TRANSPORTE DE MATERIAL (tkm)
A40: =IF(I40="P",H40,IF(I40="RP",G40,IF(I40="LN",F40,""))) -> 5914389 | B40: 4016096 | C40: Escavação e carga de material de jazida com escavadeira hidráulica de 1,56 m³ - Caminhão basculante 10 m³ | D40: 1.44411 | E40: tkm | F40: 5914359 | G40: 5914374 | H40: 5914389 | I40: =$B$21 -> P | J40: =$D$21 -> 30 | K40: =IF(ISBLANK(J40),"",J40*(D40*$I$37)) -> 1237313.448
A41: =IF(I41="P",H41,IF(I41="RP",G41,IF(I41="LN",F41,""))) -> 5914389 | B41: M0191 | C41: Brita 1 - Caminhão basculante 10 m³ | D41: 0.6189 | E41: tkm | F41: 5914359 | G41: 5914374 | H41: 5914389 | I41: P | J41: 30 | K41: =IF(ISBLANK(J41),"",J41*(D41*$I$37)) -> 530273.52
A42: =IF(I42="P",H42,IF(I42="RP",G42,IF(I42="LN",F42,""))) -> 
B43: PRINCIPAL: | C43: 4011268
B46: SISTEMA DE CUSTOS REFERENCIAIS DE OBRAS - SICRO | I46: Quantitivo
B47: Custo Unitário de Referência | E47: =$C$6 -> Alagoas - Janeiro/2024 | I47: (Coeficiente na composição principal) x (quantidade da principal no orçamento) | K47: m³
B48: 1107892 | C48: Concreto fck = 20 MPa - confecção em betoneira e lançamento manual - areia e brita comerciais | I48: ='MOMENTO DE TRANSPORTE - PRINC'!D65*(VLOOKUP(C57,'RESUMO MODULO TOTAL'!D:O,7,FALSE)*0.8) -> 2284.8
B49: F - MOMENTO DE TRANSPORTE | D49: Quantidade | E49: Unidade | F49: DMT
F50: LN | G50: RP | H50: P | I50: TIPO (P, RP ou LN) | J50: DMT ESTIMADA (km) | K50: QUANTITATIVO TOTAL DE TRANSPORTE DE MATERIAL (tkm)
A51: =IF(I51="P",H51,IF(I51="RP",G51,IF(I51="LN",F51,""))) -> 5914479 | B51: M0030 | C51: Aditivo plastificante e retardador de pega para concreto e argamassa - Caminhão carroceria 15 t | D51: 0.00085 | E51: tkm | F51: 5914449 | G51: 5914464 | H51: 5914479 | I51: =$B$21 -> P | J51: =$D$21 -> 30 | K51: =IF(ISBLANK(J51),"",J51*(D51*$I$48)) -> 58.2624
A52: =IF(I52="P",H52,IF(I52="RP",G52,IF(I52="LN",F52,""))) -> 5914389 | B52: M0082 | C52: Areia média lavada - Caminhão basculante 10 m³ | D52: 0.95001 | E52: tkm | F52: 5914359 | G52: 5914374 | H52: 5914389 | I52: =$B$21 -> P | J52: =$D$21 -> 30 | K52: =IF(ISBLANK(J52),"",J52*(D52*$I$48)) -> 65117.48544
A53: 5914389 | B53: M0191 | C53: Brita 1 - Caminhão basculante 10 m³ | D53: 0.55131 | E53: tkm | F53: 5914359 | G53: 5914374 | H53: 5914389 | I53: P | J53: 30 | K53: =IF(ISBLANK(J53),"",J53*(D53*$I$48)) -> 37788.99264
A54: 5914389 | B54: M0192 | C54: Brita 2 - Caminhão basculante 10 m³ | D54: 0.55131 | E54: tkm | F54: 5914359 | G54: 5914374 | H54: 5914389 | I54: P | J54: 30 | K54: =IF(ISBLANK(J54),"",J54*(D54*$I$48)) -> 37788.99264
A55: 5914479 | B55: M0424 | C55: Cimento Portland CP II - 32 - saco - Caminhão carroceria 15 t | D55: 0.28215 | E55: tkm | F55: 5914449 | G55: 5914464 | H55: 5914479 | I55: P | J55: 30 | K55: =IF(ISBLANK(J55),"",J55*(D55*$I$48)) -> 19339.6896
B57: PRINCIPAL: | C57: 2003373
B59: SISTEMA DE CUSTOS REFERENCIAIS DE OBRAS - SICRO | I59: Quantitivo
B60: Custo Unitário de Referência | E60: =$C$6 -> Alagoas - Janeiro/2024 | I60: (Coeficiente na composição principal) x (quantidade da principal no orçamento) | K60: kg
B61: 2003842 | C61: Enchimento de junta de concreto com argamassa asfáltica de densidade 1.700 kg/m³ - espessura de 1 cm | I61: ='MOMENTO DE TRANSPORTE - PRINC'!D66*(VLOOKUP(C66,'RESUMO MODULO TOTAL'!D:O,7,FALSE)*0.8) -> 3236.8
B62: F - MOMENTO DE TRANSPORTE | D62: Quantidade | E62: Unidade | F62: DMT
F63: LN | G63: RP | H63: P | I63: TIPO (P, RP ou LN) | J63: DMT ESTIMADA (km) | K63: QUANTITATIVO TOTAL DE TRANSPORTE DE MATERIAL (tkm)
A64: =IF(I64="P",H64,IF(I64="RP",G64,IF(I64="LN",F64,""))) -> 5914479 | B64: M2158 | C64: Argamassa asfáltica - Caminhão carroceria com capacidade de 15 t - 188 Kw | D64: 0.001 | E64: tkm | F64: 5914449 | G64: 5914464 | H64: 5914479 | I64: =$B$21 -> P | J64: =$D$21 -> 30 | K64: =IF(ISBLANK(J64),"",J64*(D64*$I$61)) -> 97.104
B66: PRINCIPAL: | C66: 2003373
B68: SISTEMA DE CUSTOS REFERENCIAIS DE OBRAS - SICRO | I68: Quantitivo
B69: Custo Unitário de Referência | E69: =$C$6 -> Alagoas - Janeiro/2024 | I69: (Coeficiente na composição principal) x (quantidade da principal no orçamento) | K69: m²
B70: 3103302 | C70: Fôrmas de tábuas de pinho para dispositivos de drenagem - utilização de 3 vezes - confecção, instalação e retirada | I70: ='MOMENTO DE TRANSPORTE - PRINC'!D68*(VLOOKUP(C78,'RESUMO MODULO TOTAL'!D:O,7,FALSE)*0.8) -> 4716.48
B71: F - MOMENTO DE TRANSPORTE | D71: Quantidade | E71: Unidade | F71: DMT
F72: LN | G72: RP | H72: P | I72: TIPO (P, RP ou LN) | J72: DMT ESTIMADA (km) | K72: QUANTITATIVO TOTAL DE TRANSPORTE DE MATERIAL (tkm)
A73: =IF(I73="P",H73,IF(I73="RP",G73,IF(I73="LN",F73,""))) -> 5914479 | B73: M0560 | C73: Desmoldante para fôrmas de madeira - Caminhão carroceria com capacidade de 15 t - 188 Kw | D73: 2e-05 | E73: tkm | F73: 5914449 | G73: 5914464 | H73: 5914479 | I73: =$B$21 -> P | J73: =$D$21 -> 30 | K73: =IF(ISBLANK(J73),"",J73*(D73*$I$70)) -> 2.829888
A74: =IF(I74="P",H74,IF(I74="RP",G74,IF(I74="LN",F74,""))) -> 5914479 | B74: M1205 | C74: Prego de ferro - Caminhão carroceria com capacidade de 15 t - 188 kW | D74: 3e-05 | E74: tkm | F74: 5914449 | G74: 5914464 | H74: 5914479 | I74: P | J74: 30 | K74: =IF(ISBLANK(J74),"",J74*(D74*$I$70)) -> 4.244832
A75: 5914479 | B75: M0290 | C75: Tábua - E = 2,5 cm e L = 10 cm - Caminhão carroceria com capacidade de 15 t - 188 kW | D75: 0.00304 | E75: tkm | F75: 5914449 | G75: 5914464 | H75: 5914479 | I75: P | J75: 30 | K75: =IF(ISBLANK(J75),"",J75*(D75*$I$70)) -> 430.142976
A76: 5914479 | B76: M1429 | C76: Tábua de pinho de terceira - E = 2,5 cm - Caminhão carroceria com capacidade de 15 t - 188 kW | D76: 0.01011 | E76: tkm | F76: 5914449 | G76: 5914464 | H76: 5914479 | I76: P | J76: 30 | K76: =IF(ISBLANK(J76),"",J76*(D76*$I$70)) -> 1430.508384
B78: PRINCIPAL: | C78: 2003373
A80: =IF(I80="P",H80,IF(I80="RP",G80,IF(I80="LN",F80,""))) -> 
B81: TIPO (P, RP ou LN) | C81: DMT ATÉ 50 KM NÃO DEVE SER PAGA | D81: DMT ACIMA DE 50 KM
B82: LN | C82: 0 | D82: =D21 -> 30
B84: SISTEMA DE CUSTOS REFERENCIAIS DE OBRAS - SICRO | I84: Quantitivo
B85: Custo Unitário de Referência | E85: =$C$6 -> Alagoas - Janeiro/2024 | I85: (Coeficiente na composição principal) x (quantidade da principal no orçamento) | K85: t
B86: 6416078 | C86: Usinagem de concreto asfáltico - faixa C - areia e brita comerciais | I86: ='MOMENTO DE TRANSPORTE - PRINC'!D28*(VLOOKUP(C95,'RESUMO MODULO TOTAL'!D:O,7,FALSE)*0.1) -> 2913.12
B87: F - MOMENTO DE TRANSPORTE | D87: Quantidade | E87: Unidade | F87: DMT
F88: LN | G88: RP | H88: P | I88: TIPO (P, RP ou LN) | J88: DMT ESTIMADA (km) | K88: QUANTITATIVO TOTAL DE TRANSPORTE DE MATERIAL (tkm)
A89: =IF(I89="P",H89,IF(I89="RP",G89,IF(I89="LN",F89,""))) -> 5914359 | B89: M0028 | C89: Areia média - Caminhão basculante 10 m³ | D89: 0.48713 | E89: tkm | F89: 5914359 | G89: 5914374 | H89: 5914389 | I89: =$B$82 -> LN | J89: =$D$82 -> 30 | K89: =IF(ISBLANK(J89),"",J89*(D89*$I$25)) -> 340576.3549
A90: =IF(I90="P",H90,IF(I90="RP",G90,IF(I90="LN",F90,""))) -> 5914359 | B90: M0005 | C90: Brita 0 - Caminhão basculante 10 m³ | D90: 0.09368 | E90: tkm | F90: 5914359 | G90: 5914374 | H90: 5914389 | I90: =$B$82 -> LN | J90: =$D$82 -> 30 | K90: =IF(ISBLANK(J90),"",J90*(D90*$I$25)) -> 65496.25958
A91: 5914359 | B91: M0191 | C91: Brita 1 - Caminhão basculante 10 m³ | D91: 0.09368 | E91: tkm | F91: 5914359 | G91: 5914374 | H91: 5914389 | I91: =$B$82 -> LN | J91: =$D$82 -> 30 | K91: =IF(ISBLANK(J91),"",J91*(D91*$I$25)) -> 65496.25958
A92: 5914364 | B92: M0344 | C92: Cal hidratada - a granel - Caminhão silo 30 m³ | D92: 0.0562 | E92: tkm | F92: 5914364 | G92: 5914365 | H92: 5914366 | I92: =$B$82 -> LN | J92: =$D$82 -> 30 | K92: =IF(ISBLANK(J92),"",J92*(D92*$I$25)) -> 39292.16256
A93: 5914359 | B93: M1103 | C93: Pedrisco - Caminhão basculante 10 m³ | D93: 0.20609 | E93: tkm | F93: 5914359 | G93: 5914374 | H93: 5914389 | I93: =$B$82 -> LN | J93: =$D$82 -> 30 | K93: =IF(ISBLANK(J93),"",J93*(D93*$I$25)) -> 144087.5762
B95: PRINCIPAL: | C95: 4011463
B96: SISTEMA DE CUSTOS REFERENCIAIS DE OBRAS - SICRO | I96: Quantitivo
B97: Custo Unitário de Referência | E97: =$C$6 -> Alagoas - Janeiro/2024 | I97: (Coeficiente na composição principal) x (quantidade da principal no orçamento) | K97: m³
B98: 6416030 | C98: Usinagem de solo brita (70% - 30%) com material de jazida e brita comercial em usina de 300 t/h | I98: ='MOMENTO DE TRANSPORTE - PRINC'!D41*(VLOOKUP(C104,'RESUMO MODULO TOTAL'!D:O,7,FALSE)*0.1) -> 3570
B99: F - MOMENTO DE TRANSPORTE | D99: Quantidade | E99: Unidade | F99: DMT
F100: LN | G100: RP | H100: P | I100: TIPO (P, RP ou LN) | J100: DMT ESTIMADA (km) | K100: QUANTITATIVO TOTAL DE TRANSPORTE DE MATERIAL (tkm)
A101: =IF(I101="P",H101,IF(I101="RP",G101,IF(I101="LN",F101,""))) -> 5914359 | B101: 4016096 | C101: Escavação e carga de material de jazida com escavadeira hidráulica de 1,56 m³ - Caminhão basculante 10 m³ | D101: 1.44411 | E101: tkm | F101: 5914359 | G101: 5914374 | H101: 5914389 | I101: =$B$82 -> LN | J101: =$D$82 -> 30 | K101: =IF(ISBLANK(J101),"",J101*(D101*$I$37)) -> 1237313.448
A102: =IF(I102="P",H102,IF(I102="RP",G102,IF(I102="LN",F102,""))) -> 5914359 | B102: M0191 | C102: Brita 1 - Caminhão basculante 10 m³ | D102: 0.6189 | E102: tkm | F102: 5914359 | G102: 5914374 | H102: 5914389 | I102: =$B$82 -> LN | J102: =$D$82 -> 30 | K102: =IF(ISBLANK(J102),"",J102*(D102*$I$37)) -> 530273.52
A103: =IF(I103="P",H103,IF(I103="RP",G103,IF(I103="LN",F103,""))) -> 
B104: PRINCIPAL: | C104: 4011268
B106: SISTEMA DE CUSTOS REFERENCIAIS DE OBRAS - SICRO | I106: Quantitivo
B107: Custo Unitário de Referência | E107: =$C$6 -> Alagoas - Janeiro/2024 | I107: (Coeficiente na composição principal) x (quantidade da principal no orçamento) | K107: m³
B108: 1107892 | C108: Concreto fck = 20 MPa - confecção em betoneira e lançamento manual - areia e brita comerciais | I108: ='MOMENTO DE TRANSPORTE - PRINC'!D65*(VLOOKUP(C117,'RESUMO MODULO TOTAL'!D:O,7,FALSE)*0.1) -> 285.6
B109: F - MOMENTO DE TRANSPORTE | D109: Quantidade | E109: Unidade | F109: DMT
F110: LN | G110: RP | H110: P | I110: TIPO (P, RP ou LN) | J110: DMT ESTIMADA (km) | K110: QUANTITATIVO TOTAL DE TRANSPORTE DE MATERIAL (tkm)
A111: =IF(I111="P",H111,IF(I111="RP",G111,IF(I111="LN",F111,""))) -> 5914449 | B111: M0030 | C111: Aditivo plastificante e retardador de pega para concreto e argamassa - Caminhão carroceria 15 t | D111: 0.00085 | E111: tkm | F111: 5914449 | G111: 5914464 | H111: 5914479 | I111: =$B$82 -> LN | J111: =$D$82 -> 30 | K111: =IF(ISBLANK(J111),"",J111*(D111*$I$48)) -> 58.2624
A112: =IF(I112="P",H112,IF(I112="RP",G112,IF(I112="LN",F112,""))) -> 5914359 | B112: M0082 | C112: Areia média lavada - Caminhão basculante 10 m³ | D112: 0.95001 | E112: tkm | F112: 5914359 | G112: 5914374 | H112: 5914389 | I112: =$B$82 -> LN | J112: =$D$82 -> 30 | K112: =IF(ISBLANK(J112),"",J112*(D112*$I$48)) -> 65117.48544
A113: 5914359 | B113: M0191 | C113: Brita 1 - Caminhão basculante 10 m³ | D113: 0.55131 | E113: tkm | F113: 5914359 | G113: 5914374 | H113: 5914389 | I113: =$B$82 -> LN | J113: =$D$82 -> 30 | K113: =IF(ISBLANK(J113),"",J113*(D113*$I$48)) -> 37788.99264
A114: 5914359 | B114: M0192 | C114: Brita 2 - Caminhão basculante 10 m³ | D114: 0.55131 | E114: tkm | F114: 5914359 | G114: 5914374 | H114: 5914389 | I114: =$B$82 -> LN | J114: =$D$82 -> 30 | K114: =IF(ISBLANK(J114),"",J114*(D114*$I$48)) -> 37788.99264
A115: 5914449 | B115: M0424 | C115: Cimento Portland CP II - 32 - saco - Caminhão carroceria 15 t | D115: 0.28215 | E115: tkm | F115: 5914449 | G115: 5914464 | H115: 5914479 | I115: =$B$82 -> LN | J115: =$D$82 -> 30 | K115: =IF(ISBLANK(J115),"",J115*(D115*$I$48)) -> 19339.6896
B117: PRINCIPAL: | C117: 2003373
B119: SISTEMA DE CUSTOS REFERENCIAIS DE OBRAS - SICRO | I119: Quantitivo
B120: Custo Unitário de Referência | E120: =$C$6 -> Alagoas - Janeiro/2024 | I120: (Coeficiente na composição principal) x (quantidade da principal no orçamento) | K120: kg
B121: 2003842 | C121: Enchimento de junta de concreto com argamassa asfáltica de densidade 1.700 kg/m³ - espessura de 1 cm | I121: ='MOMENTO DE TRANSPORTE - PRINC'!D66*(VLOOKUP(C126,'RESUMO MODULO TOTAL'!D:O,7,FALSE)*0.1) -> 404.6
B122: F - MOMENTO DE TRANSPORTE | D122: Quantidade | E122: Unidade | F122: DMT
F123: LN | G123: RP | H123: P | I123: TIPO (P, RP ou LN) | J123: DMT ESTIMADA (km) | K123: QUANTITATIVO TOTAL DE TRANSPORTE DE MATERIAL (tkm)
A124: =IF(I124="P",H124,IF(I124="RP",G124,IF(I124="LN",F124,""))) -> 5914449 | B124: M2158 | C124: Argamassa asfáltica - Caminhão carroceria com capacidade de 15 t - 188 Kw | D124: 0.001 | E124: tkm | F124: 5914449 | G124: 5914464 | H124: 5914479 | I124: =$B$82 -> LN | J124: =$D$82 -> 30 | K124: =IF(ISBLANK(J124),"",J124*(D124*$I$61)) -> 97.104
B126: PRINCIPAL: | C126: 2003373
B128: SISTEMA DE CUSTOS REFERENCIAIS DE OBRAS - SICRO | I128: Quantitivo
B129: Custo Unitário de Referência | E129: =$C$6 -> Alagoas - Janeiro/2024 | I129: (Coeficiente na composição principal) x (quantidade da principal no orçamento) | K129: m²
B130: 3103302 | C130: Fôrmas de tábuas de pinho para dispositivos de drenagem - utilização de 3 vezes - confecção, instalação e retirada | I130: ='MOMENTO DE TRANSPORTE - PRINC'!D68*(VLOOKUP(C138,'RESUMO MODULO TOTAL'!D:O,7,FALSE)*0.1) -> 589.56
B131: F - MOMENTO DE TRANSPORTE | D131: Quantidade | E131: Unidade | F131: DMT
F132: LN | G132: RP | H132: P | I132: TIPO (P, RP ou LN) | J132: DMT ESTIMADA (km) | K132: QUANTITATIVO TOTAL DE TRANSPORTE DE MATERIAL (tkm)
A133: =IF(I133="P",H133,IF(I133="RP",G133,IF(I133="LN",F133,""))) -> 5914449 | B133: M0560 | C133: Desmoldante para fôrmas de madeira - Caminhão carroceria com capacidade de 15 t - 188 Kw | D133: 2e-05 | E133: tkm | F133: 5914449 | G133: 5914464 | H133: 5914479 | I133: =$B$82 -> LN | J133: =$D$82 -> 30 | K133: =IF(ISBLANK(J133),"",J133*(D133*$I$70)) -> 2.829888
A134: =IF(I134="P",H134,IF(I134="RP",G134,IF(I134="LN",F134,""))) -> 5914449 | B134: M1205 | C134: Prego de ferro - Caminhão carroceria com capacidade de 15 t - 188 kW | D134: 3e-05 | E134: tkm | F134: 5914449 | G134: 5914464 | H134: 5914479 | I134: =$B$82 -> LN | J134: =$D$82 -> 30 | K134: =IF(ISBLANK(J134),"",J134*(D134*$I$70)) -> 4.244832
A135: 5914449 | B135: M0290 | C135: Tábua - E = 2,5 cm e L = 10 cm - Caminhão carroceria com capacidade de 15 t - 188 kW | D135: 0.00304 | E135: tkm | F135: 5914449 | G135: 5914464 | H135: 5914479 | I135: =$B$82 -> LN | J135: =$D$82 -> 30 | K135: =IF(ISBLANK(J135),"",J135*(D135*$I$70)) -> 430.142976
A136: 5914449 | B136: M1429 | C136: Tábua de pinho de terceira - E = 2,5 cm - Caminhão carroceria com capacidade de 15 t - 188 kW | D136: 0.01011 | E136: tkm | F136: 5914449 | G136: 5914464 | H136: 5914479 | I136: =$B$82 -> LN | J136: =$D$82 -> 30 | K136: =IF(ISBLANK(J136),"",J136*(D136*$I$70)) -> 1430.508384
B138: PRINCIPAL: | C138: 2003373
B141: TIPO (P, RP ou LN) | C141: DMT ATÉ 50 KM NÃO DEVE SER PAGA | D141: DMT ACIMA DE 50 KM
B142: RP | C142: 0 | D142: =D21 -> 30
B144: SISTEMA DE CUSTOS REFERENCIAIS DE OBRAS - SICRO | I144: Quantitivo
B145: Custo Unitário de Referência | E145: =$C$6 -> Alagoas - Janeiro/2024 | I145: (Coeficiente na composição principal) x (quantidade da principal no orçamento) | K145: t
B146: 6416078 | C146: Usinagem de concreto asfáltico - faixa C - areia e brita comerciais | I146: ='MOMENTO DE TRANSPORTE - PRINC'!D28*(VLOOKUP(C155,'RESUMO MODULO TOTAL'!D:O,7,FALSE)*0.1) -> 2913.12
B147: F - MOMENTO DE TRANSPORTE | D147: Quantidade | E147: Unidade | F147: DMT
F148: LN | G148: RP | H148: P | I148: TIPO (P, RP ou LN) | J148: DMT ESTIMADA (km) | K148: QUANTITATIVO TOTAL DE TRANSPORTE DE MATERIAL (tkm)
A149: =IF(I149="P",H149,IF(I149="RP",G149,IF(I149="LN",F149,""))) -> 5914374 | B149: M0028 | C149: Areia média - Caminhão basculante 10 m³ | D149: 0.48713 | E149: tkm | F149: 5914359 | G149: 5914374 | H149: 5914389 | I149: =$B$142 -> RP | J149: =$D$142 -> 30 | K149: =IF(ISBLANK(J149),"",J149*(D149*$I$25)) -> 340576.3549
A150: =IF(I150="P",H150,IF(I150="RP",G150,IF(I150="LN",F150,""))) -> 5914374 | B150: M0005 | C150: Brita 0 - Caminhão basculante 10 m³ | D150: 0.09368 | E150: tkm | F150: 5914359 | G150: 5914374 | H150: 5914389 | I150: =$B$142 -> RP | J150: =$D$142 -> 30 | K150: =IF(ISBLANK(J150),"",J150*(D150*$I$25)) -> 65496.25958
A151: 5914374 | B151: M0191 | C151: Brita 1 - Caminhão basculante 10 m³ | D151: 0.09368 | E151: tkm | F151: 5914359 | G151: 5914374 | H151: 5914389 | I151: =$B$142 -> RP | J151: =$D$142 -> 30 | K151: =IF(ISBLANK(J151),"",J151*(D151*$I$25)) -> 65496.25958
A152: 5914365 | B152: M0344 | C152: Cal hidratada - a granel - Caminhão silo 30 m³ | D152: 0.0562 | E152: tkm | F152: 5914364 | G152: 5914365 | H152: 5914366 | I152: =$B$142 -> RP | J152: =$D$142 -> 30 | K152: =IF(ISBLANK(J152),"",J152*(D152*$I$25)) -> 39292.16256
A153: 5914374 | B153: M1103 | C153: Pedrisco - Caminhão basculante 10 m³ | D153: 0.20609 | E153: tkm | F153: 5914359 | G153: 5914374 | H153: 5914389 | I153: =$B$142 -> RP | J153: =$D$142 -> 30 | K153: =IF(ISBLANK(J153),"",J153*(D153*$I$25)) -> 144087.5762
B155: PRINCIPAL: | C155: 4011463
B157: SISTEMA DE CUSTOS REFERENCIAIS DE OBRAS - SICRO | I157: Quantitivo
B158: Custo Unitário de Referência | E158: =$C$6 -> Alagoas - Janeiro/2024 | I158: (Coeficiente na composição principal) x (quantidade da principal no orçamento) | K158: m³
B159: 6416030 | C159: Usinagem de solo brita (70% - 30%) com material de jazida e brita comercial em usina de 300 t/h | I159: ='MOMENTO DE TRANSPORTE - PRINC'!D41*(VLOOKUP(C165,'RESUMO MODULO TOTAL'!D:O,7,FALSE)*0.1) -> 3570
B160: F - MOMENTO DE TRANSPORTE | D160: Quantidade | E160: Unidade | F160: DMT
F161: LN | G161: RP | H161: P | I161: TIPO (P, RP ou LN) | J161: DMT ESTIMADA (km) | K161: QUANTITATIVO TOTAL DE TRANSPORTE DE MATERIAL (tkm)
A162: =IF(I162="P",H162,IF(I162="RP",G162,IF(I162="LN",F162,""))) -> 5914374 | B162: 4016096 | C162: Escavação e carga de material de jazida com escavadeira hidráulica de 1,56 m³ - Caminhão basculante 10 m³ | D162: 1.44411 | E162: tkm | F162: 5914359 | G162: 5914374 | H162: 5914389 | I162: =$B$142 -> RP | J162: =$D$142 -> 30 | K162: =IF(ISBLANK(J162),"",J162*(D162*$I$37)) -> 1237313.448
A163: =IF(I163="P",H163,IF(I163="RP",G163,IF(I163="LN",F163,""))) -> 5914374 | B163: M0191 | C163: Brita 1 - Caminhão basculante 10 m³ | D163: 0.6189 | E163: tkm | F163: 5914359 | G163: 5914374 | H163: 5914389 | I163: =$B$142 -> RP | J163: =$D$142 -> 30 | K163: =IF(ISBLANK(J163),"",J163*(D163*$I$37)) -> 530273.52
A164: =IF(I164="P",H164,IF(I164="RP",G164,IF(I164="LN",F164,""))) -> 
B165: PRINCIPAL: | C165: 4011268
B167: SISTEMA DE CUSTOS REFERENCIAIS DE OBRAS - SICRO | I167: Quantitivo
B168: Custo Unitário de Referência | E168: =$C$6 -> Alagoas - Janeiro/2024 | I168: (Coeficiente na composição principal) x (quantidade da principal no orçamento) | K168: m³
B169: 1107892 | C169: Concreto fck = 20 MPa - confecção em betoneira e lançamento manual - areia e brita comerciais | I169: ='MOMENTO DE TRANSPORTE - PRINC'!D65*(VLOOKUP(C178,'RESUMO MODULO TOTAL'!D:O,7,FALSE)*0.1) -> 285.6
B170: F - MOMENTO DE TRANSPORTE | D170: Quantidade | E170: Unidade | F170: DMT
F171: LN | G171: RP | H171: P | I171: TIPO (P, RP ou LN) | J171: DMT ESTIMADA (km) | K171: QUANTITATIVO TOTAL DE TRANSPORTE DE MATERIAL (tkm)
A172: =IF(I172="P",H172,IF(I172="RP",G172,IF(I172="LN",F172,""))) -> 5914464 | B172: M0030 | C172: Aditivo plastificante e retardador de pega para concreto e argamassa - Caminhão carroceria 15 t | D172: 0.00085 | E172: tkm | F172: 5914449 | G172: 5914464 | H172: 5914479 | I172: =$B$142 -> RP | J172: =$D$142 -> 30 | K172: =IF(ISBLANK(J172),"",J172*(D172*$I$48)) -> 58.2624
A173: =IF(I173="P",H173,IF(I173="RP",G173,IF(I173="LN",F173,""))) -> 5914374 | B173: M0082 | C173: Areia média lavada - Caminhão basculante 10 m³ | D173: 0.95001 | E173: tkm | F173: 5914359 | G173: 5914374 | H173: 5914389 | I173: =$B$142 -> RP | J173: =$D$142 -> 30 | K173: =IF(ISBLANK(J173),"",J173*(D173*$I$48)) -> 65117.48544
A174: 5914374 | B174: M0191 | C174: Brita 1 - Caminhão basculante 10 m³ | D174: 0.55131 | E174: tkm | F174: 5914359 | G174: 5914374 | H174: 5914389 | I174: =$B$142 -> RP | J174: =$D$142 -> 30 | K174: =IF(ISBLANK(J174),"",J174*(D174*$I$48)) -> 37788.99264
A175: 5914374 | B175: M0192 | C175: Brita 2 - Caminhão basculante 10 m³ | D175: 0.55131 | E175: tkm | F175: 5914359 | G175: 5914374 | H175: 5914389 | I175: =$B$142 -> RP | J175: =$D$142 -> 30 | K175: =IF(ISBLANK(J175),"",J175*(D175*$I$48)) -> 37788.99264
A176: 5914464 | B176: M0424 | C176: Cimento Portland CP II - 32 - saco - Caminhão carroceria 15 t | D176: 0.28215 | E176: tkm | F176: 5914449 | G176: 5914464 | H176: 5914479 | I176: =$B$142 -> RP | J176: =$D$142 -> 30 | K176: =IF(ISBLANK(J176),"",J176*(D176*$I$48)) -> 19339.6896
B178: PRINCIPAL: | C178: 2003373
B180: SISTEMA DE CUSTOS REFERENCIAIS DE OBRAS - SICRO | I180: Quantitivo
B181: Custo Unitário de Referência | E181: =$C$6 -> Alagoas - Janeiro/2024 | I181: (Coeficiente na composição principal) x (quantidade da principal no orçamento) | K181: kg
B182: 2003842 | C182: Enchimento de junta de concreto com argamassa asfáltica de densidade 1.700 kg/m³ - espessura de 1 cm | I182: ='MOMENTO DE TRANSPORTE - PRINC'!D66*(VLOOKUP(C187,'RESUMO MODULO TOTAL'!D:O,7,FALSE)*0.1) -> 404.6
B183: F - MOMENTO DE TRANSPORTE | D183: Quantidade | E183: Unidade | F183: DMT
F184: LN | G184: RP | H184: P | I184: TIPO (P, RP ou LN) | J184: DMT ESTIMADA (km) | K184: QUANTITATIVO TOTAL DE TRANSPORTE DE MATERIAL (tkm)
A185: =IF(I185="P",H185,IF(I185="RP",G185,IF(I185="LN",F185,""))) -> 5914464 | B185: M2158 | C185: Argamassa asfáltica - Caminhão carroceria com capacidade de 15 t - 188 Kw | D185: 0.001 | E185: tkm | F185: 5914449 | G185: 5914464 | H185: 5914479 | I185: =$B$142 -> RP | J185: =$D$142 -> 30 | K185: =IF(ISBLANK(J185),"",J185*(D185*$I$61)) -> 97.104
B187: PRINCIPAL: | C187: 2003373
B189: SISTEMA DE CUSTOS REFERENCIAIS DE OBRAS - SICRO | I189: Quantitivo
B190: Custo Unitário de Referência | E190: =$C$6 -> Alagoas - Janeiro/2024 | I190: (Coeficiente na composição principal) x (quantidade da principal no orçamento) | K190: m²
B191: 3103302 | C191: Fôrmas de tábuas de pinho para dispositivos de drenagem - utilização de 3 vezes - confecção, instalação e retirada | I191: ='MOMENTO DE TRANSPORTE - PRINC'!D68*(VLOOKUP(C199,'RESUMO MODULO TOTAL'!D:O,7,FALSE)*0.1) -> 589.56
B192: F - MOMENTO DE TRANSPORTE | D192: Quantidade | E192: Unidade | F192: DMT
F193: LN | G193: RP | H193: P | I193: TIPO (P, RP ou LN) | J193: DMT ESTIMADA (km) | K193: QUANTITATIVO TOTAL DE TRANSPORTE DE MATERIAL (tkm)
A194: =IF(I194="P",H194,IF(I194="RP",G194,IF(I194="LN",F194,""))) -> 5914464 | B194: M0560 | C194: Desmoldante para fôrmas de madeira - Caminhão carroceria com capacidade de 15 t - 188 Kw | D194: 2e-05 | E194: tkm | F194: 5914449 | G194: 5914464 | H194: 5914479 | I194: =$B$142 -> RP | J194: =$D$142 -> 30 | K194: =IF(ISBLANK(J194),"",J194*(D194*$I$70)) -> 2.829888
A195: =IF(I195="P",H195,IF(I195="RP",G195,IF(I195="LN",F195,""))) -> 5914464 | B195: M1205 | C195: Prego de ferro - Caminhão carroceria com capacidade de 15 t - 188 kW | D195: 3e-05 | E195: tkm | F195: 5914449 | G195: 5914464 | H195: 5914479 | I195: =$B$142 -> RP | J195: =$D$142 -> 30 | K195: =IF(ISBLANK(J195),"",J195*(D195*$I$70)) -> 4.244832
A196: 5914464 | B196: M0290 | C196: Tábua - E = 2,5 cm e L = 10 cm - Caminhão carroceria com capacidade de 15 t - 188 kW | D196: 0.00304 | E196: tkm | F196: 5914449 | G196: 5914464 | H196: 5914479 | I196: =$B$142 -> RP | J196: =$D$142 -> 30 | K196: =IF(ISBLANK(J196),"",J196*(D196*$I$70)) -> 430.142976
A197: 5914464 | B197: M1429 | C197: Tábua de pinho de terceira - E = 2,5 cm - Caminhão carroceria com capacidade de 15 t - 188 kW | D197: 0.01011 | E197: tkm | F197: 5914449 | G197: 5914464 | H197: 5914479 | I197: =$B$142 -> RP | J197: =$D$142 -> 30 | K197: =IF(ISBLANK(J197),"",J197*(D197*$I$70)) -> 1430.508384
B199: PRINCIPAL: | C199: 2003373

Sheet MC MODULO
A1: Extensão | B1: = | C1: 2000 | D1: m | F1: QUANTIDADE DE MODULOS | G1: 17
A2: Largura | B2: = | C2: 7 | D2: m
A4: Extensão | B4: = | C4: 2 | D4: km
B6: MOBUILIZAÇÃO
A7: 1 | B7: Implantação da obra
B9: Módulos(un) | D9: Módulos(un)
B10: =G1 -> 17 | C10: = | D10: =B10 -> 17
A12: 2 | B12: Administração da obra
B14: Módulos(un) | D14: Módulos(un)
B15: =G1 -> 17 | C15: = | D15: =B15 -> 17
A17: 3 | B17: Canteiro de Obras e Almoxarifado
B19: Módulos(un) | D19: Módulos(un)
B20: =G1 -> 17 | C20: = | D20: =B20 -> 17
A22: 4 | B22: Placa de Obra em Chapa de Aço Galvanizado
B24: Módulos(un) | C24: Comprimento(m) | D24: Largura (m) | H24: Total de Area de placa (m²)
B25: =G1 -> 17 | C25: 2 | D25: 4 | H25: =C25*D25*B25*2 -> 272
B27: TERRAPLENAGEM
A29: 5 | B29: serviços topográficos para pavimentação, inclusive notas de serviços, acompanhamento e greide
B31: Extensão (m) | D31: Largura (m) | H31: area (m2)
B32: =C1*$G$1 -> 34000 | C32: x | D32: =$C$2 -> 7 | G32: = | H32: =B32*D32 -> 238000
A34: 6 | B34: Escavação, carga e transporte de material de 1ª categoria - DMT de 1.000 a 1.200 m - caminho de serviço em leito natural - com escavadeira e caminhão basculante de 14 m³
B36: Extensão (m) | D36: Largura (m) | F36: Espessura (m) | H36: Volume (m3)
B37: =C1*$G$1 -> 34000 | C37: x | D37: =$C$2 -> 7 | E37: x | F37: 0.35 | G37: = | H37: =B37*D37*F37 -> 83300
A41: 7 | B41: Espalhamento de material em bota-fora
B43: Extensão (m) | D43: Largura (m) | F43: Espessura (m) | H43: Volume (m3)
B44: =C1*$G$1 -> 34000 | C44: x | D44: =$C$2 -> 7 | E44: x | F44: 0.35 | G44: = | H44: =B44*D44*F44 -> 83300
B46: PAVIMENTAÇÃO
A48: 8 | B48: Concreto asfáltico - faixa C - areia e brita comerciais
B50: Extensão (m) | C50: Largura (m) | D50: Espessura (m) | E50: Densidade (t/m³) | H50: Volume (t)
B51: =$C$1*G1 -> 34000 | C51: =$C$2 -> 7 | D51: 0.05 | E51: 2.4 | G51: = | H51: =B51*C51*D51*E51 -> 28560
A54: 9 | B54: Imprimação com emulsão asfáltica
B56: Extensão (m) | D56: Largura (m) | H56: area (m2)
B57: =$C$1*G1 -> 34000 | C57: x | D57: =$C$2 -> 7 | G57: = | H57: =B57*D57 -> 238000
A60: 10 | B60: Pintura de ligação
B62: Extensão (m) | D62: Largura (m) | H62: area (m2)
B63: =$C$1*G1 -> 34000 | C63: x | D63: =$C$2 -> 7 | G63: = | H63: =B63*D63 -> 238000
A65: 11 | B65: Base ou sub-base de brita graduada com brita comercial
B67: Extensão (m) | D67: Largura (m) | F67: Espessura (m) | H67: Volume (m3)
B68: =C1*$G$1 -> 34000 | C68: x | D68: =$C$2 -> 7 | E68: x | F68: 0.15 | G68: = | H68: =B68*D68*F68 -> 35700
A71: 12 | B71: Sub-base estabilizada granulometricamente com mistura de solos na pista com material de jazida
B73: Extensão (m) | D73: Largura (m) | F73: Espessura (m) | H73: Volume (m3)
B74: =C1*$G$1 -> 34000 | C74: x | D74: =$C$2 -> 7 | E74: x | F74: 0.15 | G74: = | H74: =B74*D74*F74 -> 35700
A77: 13 | B77: Regularização do subleito
B79: Extensão (m) | D79: Largura (m) | H79: area (m2)
B80: =C1*$G$1 -> 34000 | C80: x | D80: =$C$2 -> 7 | G80: = | H80: =B80*D80 -> 238000
B82: SINALIZAÇÃO
A84: 20 | B84: Fornecimento e implantação de placa de regulamentação em aço D = 0,60 m - película retrorrefletiva tipo I + SI
B86: Extensão (km) | D86: Quant. (un) | H86: Quant. (un)
B87: =$C$4*$G$1 -> 34 | C87: x | D87: 3 | G87: = | H87: =B87*D87 -> 102
A89: 20 | B89: Placa de advertência em aço, lado de 0,60 m - película retrorrefletiva tipo I + SI - fornecimento e implantação
B91: Extensão (km) | D91: Quant. (un) | H91: Quant. (un)
B92: =$C$4*$G$1 -> 34 | C92: x | D92: 3 | G92: = | H92: =B92*D92 -> 102
A95: 21 | B95: Fornecimento e implantação de suporte metálico galvanizado para placa de regulamentação - D = 0,60 m
B97: Extensão (km) | D97: Quant. (un) | H97: Quant. (un)
B98: =$C$4*$G$1 -> 34 | C98: x | D98: =D87 -> 3 | G98: = | H98: =H87+H92 -> 204
A100: 22 | B100: Pintura de faixa com tinta acrílica - espessura de 0,4 mm (bordos)
B102: Extensão (m) | D102: Espessura (m) | H102: Quant. (m²)
B103: =C1*G1 -> 34000 | C103: x | D103: 0.1 | G103: = | H103: =B103*D103*2 -> 6800
B105: Pintura de faixa com tinta acrílica - espessura de 0,4 mm (faixa central)
H107: Quant. (m²)
H108: =H103*0.4 -> 2720
B111: DRENAGEM
A112: 23 | B112: Meio-fio de concreto - MFC 03 - areia e brita comerciais - fôrma de madeira
B114: Extensão (m) | D114: Quant. (un) | H114: Extensão(m)
B115: =$C$1*$G$1 -> 34000 | C115: x | D115: 2 | G115: = | H115: =B115*D115 -> 68000
A117: 19 | B117: Caiação mecanizada com fixador de cal
B119: Extensão (m) | D119: Perimetro (m) | H119: Area (m²)
B120: =$C$1*$G$1 -> 34000 | C120: x | D120: =0.24 -> 0.24 | G120: = | H120: =B120*D120 -> 8160
B123: SERVIÇOS COMPLEMENTARES
A124: 24
B126: Extensão (m) | D126: Largura (m) | G126: 0.1 | H126: extensão (m)
B127: =$C$1*G1 -> 34000 | C127: x | D127: 1 | E127: x | G127: = | H127: =G126*B127 -> 3400
B130: PROJETO EXECUTIVO
A131: 25 | B131: Projeto Executivo
B133: Extensão (m) | D133: Largura (m) | F133: Quant. (un) | H133: Área (m²)
B134: =$C$1*G1 -> 34000 | C134: x | D134: =C2 -> 7 | E134: x | F134: 1 | G134: = | H134: =B134*D134 -> 238000
B136: CONTROLE TECNOLOGICO - OBRA
A137: 26 | B137: Projeto Executivo
B139: Extensão (m) | D139: Largura (m) | F139: Quant. (un) | H139: meses
G140: = | H140: =0.5*G1 -> 8.5
F145: Perímetro caiação = 0,09 + 0,15

Sheet ANP ESTADO
A1: Agência Nacional do Petróleo, Gás Natural e Biocombustíveis
A2: Superintendência de Defesa da Concorrência
A5: PREÇO MÉDIO MENSAL PONDERADO PRATICADO PELOS DISTRIBUIDORES DE PRODUTOS ASFÁLTICOS (R$/KG)
A7: Importante: | B7: Quando não houver declaração de venda do produto selecionado, ou quando a declaração de venda do produto ocorrer por menos de 03 (três) distribuidoras, a tabela indicará campo vazio.
A8: Mês | B8: Produto | C8: Estado | D8: Preço
A9: 2013-01-01 | B9: ASFALTOS DILUÍDOS CM-30 | C9: Acre | D9: -
A10: 2013-01-01 | B10: ASFALTOS DILUÍDOS CM-30 | C10: Alagoas | D10: -
A11: 2013-01-01 | B11: ASFALTOS DILUÍDOS CM-30 | C11: Amapá | D11: -
A12: 2013-01-01 | B12: ASFALTOS DILUÍDOS CM-30 | C12: Amazonas | D12: 1.453527021
A13: 2013-01-01 | B13: ASFALTOS DILUÍDOS CM-30 | C13: Bahia | D13: 1.464044142
A14: 2013-01-01 | B14: ASFALTOS DILUÍDOS CM-30 | C14: Ceará | D14: 1.447997934
A15: 2013-01-01 | B15: ASFALTOS DILUÍDOS CM-30 | C15: Distrito Federal | D15: -
A16: 2013-01-01 | B16: ASFALTOS DILUÍDOS CM-30 | C16: Espírito Santo | D16: -
A17: 2013-01-01 | B17: ASFALTOS DILUÍDOS CM-30 | C17: Goiás | D17: 1.686383065
A18: 2013-01-01 | B18: ASFALTOS DILUÍDOS CM-30 | C18: Maranhão | D18: -
A19: 2013-01-01 | B19: ASFALTOS DILUÍDOS CM-30 | C19: Mato Grosso | D19: -
A20: 2013-01-01 | B20: ASFALTOS DILUÍDOS CM-30 | C20: Mato Grosso do Sul | D20: -
A21: 2013-01-01 | B21: ASFALTOS DILUÍDOS CM-30 | C21: Minas Gerais | D21: 1.451106114
A22: 2013-01-01 | B22: ASFALTOS DILUÍDOS CM-30 | C22: Pará | D22: -
A23: 2013-01-01 | B23: ASFALTOS DILUÍDOS CM-30 | C23: Paraíba | D23: -
A24: 2013-01-01 | B24: ASFALTOS DILUÍDOS CM-30 | C24: Paraná | D24: 1.520125031
A25: 2013-01-01 | B25: ASFALTOS DILUÍDOS CM-30 | C25: Pernambuco | D25: -
A26: 2013-01-01 | B26: ASFALTOS DILUÍDOS CM-30 | C26: Piauí | D26: -
A27: 2013-01-01 | B27: ASFALTOS DILUÍDOS CM-30 | C27: Rio de Janeiro | D27: 1.330475106
A28: 2013-01-01 | B28: ASFALTOS DILUÍDOS CM-30 | C28: Rio Grande do Norte | D28: -
A29: 2013-01-01 | B29: ASFALTOS DILUÍDOS CM-30 | C29: Rio Grande do Sul | D29: 1.598611074
A30: 2013-01-01 | B30: ASFALTOS DILUÍDOS CM-30 | C30: Rondônia | D30: -
A31: 2013-01-01 | B31: ASFALTOS DILUÍDOS CM-30 | C31: Roraima | D31: -
A32: 2013-01-01 | B32: ASFALTOS DILUÍDOS CM-30 | C32: Santa Catarina | D32: -
A33: 2013-01-01 | B33: ASFALTOS DILUÍDOS CM-30 | C33: São Paulo | D33: 1.471008423
A34: 2013-01-01 | B34: ASFALTOS DILUÍDOS CM-30 | C34: Sergipe | D34: -
A35: 2013-01-01 | B35: ASFALTOS DILUÍDOS CM-30 | C35: Tocantins | D35: -
A36: 2013-02-01 | B36: ASFALTOS DILUÍDOS CM-30 | C36: Acre | D36: -
A37: 2013-02-01 | B37: ASFALTOS DILUÍDOS CM-30 | C37: Alagoas | D37: -
A38: 2013-02-01 | B38: ASFALTOS DILUÍDOS CM-30 | C38: Amapá | D38: -
A39: 2013-02-01 | B39: ASFALTOS DILUÍDOS CM-30 | C39: Amazonas | D39: 1.485578179
A40: 2013-02-01 | B40: ASFALTOS DILUÍDOS CM-30 | C40: Bahia | D40: 1.457014101
A41: 2013-02-01 | B41: ASFALTOS DILUÍDOS CM-30 | C41: Ceará | D41: 1.413192336
A42: 2013-02-01 | B42: ASFALTOS DILUÍDOS CM-30 | C42: Distrito Federal | D42: -
A43: 2013-02-01 | B43: ASFALTOS DILUÍDOS CM-30 | C43: Espírito Santo | D43: -
A44: 2013-02-01 | B44: ASFALTOS DILUÍDOS CM-30 | C44: Goiás | D44: 1.667459711
A45: 2013-02-01 | B45: ASFALTOS DILUÍDOS CM-30 | C45: Maranhão | D45: -
A46: 2013-02-01 | B46: ASFALTOS DILUÍDOS CM-30 | C46: Mato Grosso | D46: -
A47: 2013-02-01 | B47: ASFALTOS DILUÍDOS CM-30 | C47: Mato Grosso do Sul | D47: -
A48: 2013-02-01 | B48: ASFALTOS DILUÍDOS CM-30 | C48: Minas Gerais | D48: 1.452121117
A49: 2013-02-01 | B49: ASFALTOS DILUÍDOS CM-30 | C49: Pará | D49: -
A50: 2013-02-01 | B50: ASFALTOS DILUÍDOS CM-30 | C50: Paraíba | D50: -
A51: 2013-02-01 | B51: ASFALTOS DILUÍDOS CM-30 | C51: Paraná | D51: 1.493783173
A52: 2013-02-01 | B52: ASFALTOS DILUÍDOS CM-30 | C52: Pernambuco | D52: -
A53: 2013-02-01 | B53: ASFALTOS DILUÍDOS CM-30 | C53: Piauí | D53: -
A54: 2013-02-01 | B54: ASFALTOS DILUÍDOS CM-30 | C54: Rio de Janeiro | D54: 1.418234901
A55: 2013-02-01 | B55: ASFALTOS DILUÍDOS CM-30 | C55: Rio Grande do Norte | D55: -
A56: 2013-02-01 | B56: ASFALTOS DILUÍDOS CM-30 | C56: Rio Grande do Sul | D56: 1.435861782
A57: 2013-02-01 | B57: ASFALTOS DILUÍDOS CM-30 | C57: Rondônia | D57: -
A58: 2013-02-01 | B58: ASFALTOS DILUÍDOS CM-30 | C58: Roraima | D58: -
A59: 2013-02-01 | B59: ASFALTOS DILUÍDOS CM-30 | C59: Santa Catarina | D59: -
A60: 2013-02-01 | B60: ASFALTOS DILUÍDOS CM-30 | C60: São Paulo | D60: 1.434190204
A61: 2013-02-01 | B61: ASFALTOS DILUÍDOS CM-30 | C61: Sergipe | D61: -
A62: 2013-02-01 | B62: ASFALTOS DILUÍDOS CM-30 | C62: Tocantins | D62: -
A63: 2013-03-01 | B63: ASFALTOS DILUÍDOS CM-30 | C63: Acre | D63: -
A64: 2013-03-01 | B64: ASFALTOS DILUÍDOS CM-30 | C64: Alagoas | D64: -
A65: 2013-03-01 | B65: ASFALTOS DILUÍDOS CM-30 | C65: Amapá | D65: -
A66: 2013-03-01 | B66: ASFALTOS DILUÍDOS CM-30 | C66: Amazonas | D66: 1.507923921
A67: 2013-03-01 | B67: ASFALTOS DILUÍDOS CM-30 | C67: Bahia | D67: 1.449440325
A68: 2013-03-01 | B68: ASFALTOS DILUÍDOS CM-30 | C68: Ceará | D68: 1.401607485
A69: 2013-03-01 | B69: ASFALTOS DILUÍDOS CM-30 | C69: Distrito Federal | D69: -
A70: 2013-03-01 | B70: ASFALTOS DILUÍDOS CM-30 | C70: Espírito Santo | D70: -
A71: 2013-03-01 | B71: ASFALTOS DILUÍDOS CM-30 | C71: Goiás | D71: 1.661758701
A72: 2013-03-01 | B72: ASFALTOS DILUÍDOS CM-30 | C72: Maranhão | D72: -
A73: 2013-03-01 | B73: ASFALTOS DILUÍDOS CM-30 | C73: Mato Grosso | D73: -
A74: 2013-03-01 | B74: ASFALTOS DILUÍDOS CM-30 | C74: Mato Grosso do Sul | D74: -
A75: 2013-03-01 | B75: ASFALTOS DILUÍDOS CM-30 | C75: Minas Gerais | D75: 1.44324333
A76: 2013-03-01 | B76: ASFALTOS DILUÍDOS CM-30 | C76: Pará | D76: -
A77: 2013-03-01 | B77: ASFALTOS DILUÍDOS CM-30 | C77: Paraíba | D77: -
A78: 2013-03-01 | B78: ASFALTOS DILUÍDOS CM-30 | C78: Paraná | D78: 1.468995996
A79: 2013-03-01 | B79: ASFALTOS DILUÍDOS CM-30 | C79: Pernambuco | D79: -
A80: 2013-03-01 | B80: ASFALTOS DILUÍDOS CM-30 | C80: Piauí | D80: -
A81: 2013-03-01 | B81: ASFALTOS DILUÍDOS CM-30 | C81: Rio de Janeiro | D81: 1.438055574
A82: 2013-03-01 | B82: ASFALTOS DILUÍDOS CM-30 | C82: Rio Grande do Norte | D82: -
A83: 2013-03-01 | B83: ASFALTOS DILUÍDOS CM-30 | C83: Rio Grande do Sul | D83: 1.581425878
A84: 2013-03-01 | B84: ASFALTOS DILUÍDOS CM-30 | C84: Rondônia | D84: -
A85: 2013-03-01 | B85: ASFALTOS DILUÍDOS CM-30 | C85: Roraima | D85: -
A86: 2013-03-01 | B86: ASFALTOS DILUÍDOS CM-30 | C86: Santa Catarina | D86: -
A87: 2013-03-01 | B87: ASFALTOS DILUÍDOS CM-30 | C87: São Paulo | D87: 1.466061702
A88: 2013-03-01 | B88: ASFALTOS DILUÍDOS CM-30 | C88: Sergipe | D88: -
A89: 2013-03-01 | B89: ASFALTOS DILUÍDOS CM-30 | C89: Tocantins | D89: -
A90: 2013-04-01 | B90: ASFALTOS DILUÍDOS CM-30 | C90: Acre | D90: -
A91: 2013-04-01 | B91: ASFALTOS DILUÍDOS CM-30 | C91: Alagoas | D91: -
A92: 2013-04-01 | B92: ASFALTOS DILUÍDOS CM-30 | C92: Amapá | D92: -
A93: 2013-04-01 | B93: ASFALTOS DILUÍDOS CM-30 | C93: Amazonas | D93: 1.484796656
A94: 2013-04-01 | B94: ASFALTOS DILUÍDOS CM-30 | C94: Bahia | D94: 1.454836546
A95: 2013-04-01 | B95: ASFALTOS DILUÍDOS CM-30 | C95: Ceará | D95: 1.387073962
A96: 2013-04-01 | B96: ASFALTOS DILUÍDOS CM-30 | C96: Distrito Federal | D96: -
A97: 2013-04-01 | B97: ASFALTOS DILUÍDOS CM-30 | C97: Espírito Santo | D97: -
A98: 2013-04-01 | B98: ASFALTOS DILUÍDOS CM-30 | C98: Goiás | D98: 1.673481836
A99: 2013-04-01 | B99: ASFALTOS DILUÍDOS CM-30 | C99: Maranhão | D99: -
A100: 2013-04-01 | B100: ASFALTOS DILUÍDOS CM-30 | C100: Mato Grosso | D100: 1.921938422
A101: 2013-04-01 | B101: ASFALTOS DILUÍDOS CM-30 | C101: Mato Grosso do Sul | D101: -
A102: 2013-04-01 | B102: ASFALTOS DILUÍDOS CM-30 | C102: Minas Gerais | D102: 1.456556683
A103: 2013-04-01 | B103: ASFALTOS DILUÍDOS CM-30 | C103: Pará | D103: -
A104: 2013-04-01 | B104: ASFALTOS DILUÍDOS CM-30 | C104: Paraíba | D104: -
A105: 2013-04-01 | B105: ASFALTOS DILUÍDOS CM-30 | C105: Paraná | D105: 1.534419498
A106: 2013-04-01 | B106: ASFALTOS DILUÍDOS CM-30 | C106: Pernambuco | D106: -
A107: 2013-04-01 | B107: ASFALTOS DILUÍDOS CM-30 | C107: Piauí | D107: -
A108: 2013-04-01 | B108: ASFALTOS DILUÍDOS CM-30 | C108: Rio de Janeiro | D108: 1.418419516
A109: 2013-04-01 | B109: ASFALTOS DILUÍDOS CM-30 | C109: Rio Grande do Norte | D109: -
A110: 2013-04-01 | B110: ASFALTOS DILUÍDOS CM-30 | C110: Rio Grande do Sul | D110: 1.572582456
A111: 2013-04-01 | B111: ASFALTOS DILUÍDOS CM-30 | C111: Rondônia | D111: -
A112: 2013-04-01 | B112: ASFALTOS DILUÍDOS CM-30 | C112: Roraima | D112: -
A113: 2013-04-01 | B113: ASFALTOS DILUÍDOS CM-30 | C113: Santa Catarina | D113: -
A114: 2013-04-01 | B114: ASFALTOS DILUÍDOS CM-30 | C114: São Paulo | D114: 1.475764348
A115: 2013-04-01 | B115: ASFALTOS DILUÍDOS CM-30 | C115: Sergipe | D115: -
A116: 2013-04-01 | B116: ASFALTOS DILUÍDOS CM-30 | C116: Tocantins | D116: -
A117: 2013-05-01 | B117: ASFALTOS DILUÍDOS CM-30 | C117: Acre | D117: -
A118: 2013-05-01 | B118: ASFALTOS DILUÍDOS CM-30 | C118: Alagoas | D118: -
A119: 2013-05-01 | B119: ASFALTOS DILUÍDOS CM-30 | C119: Amapá | D119: -
A120: 2013-05-01 | B120: ASFALTOS DILUÍDOS CM-30 | C120: Amazonas | D120: -
A121: 2013-05-01 | B121: ASFALTOS DILUÍDOS CM-30 | C121: Bahia | D121: 1.492587424
A122: 2013-05-01 | B122: ASFALTOS DILUÍDOS CM-30 | C122: Ceará | D122: 1.376263021
A123: 2013-05-01 | B123: ASFALTOS DILUÍDOS CM-30 | C123: Distrito Federal | D123: -
A124: 2013-05-01 | B124: ASFALTOS DILUÍDOS CM-30 | C124: Espírito Santo | D124: -
A125: 2013-05-01 | B125: ASFALTOS DILUÍDOS CM-30 | C125: Goiás | D125: 1.668214819
A126: 2013-05-01 | B126: ASFALTOS DILUÍDOS CM-30 | C126: Maranhão | D126: -
A127: 2013-05-01 | B127: ASFALTOS DILUÍDOS CM-30 | C127: Mato Grosso | D127: 1.903098159
A128: 2013-05-01 | B128: ASFALTOS DILUÍDOS CM-30 | C128: Mato Grosso do Sul | D128: -
A129: 2013-05-01 | B129: ASFALTOS DILUÍDOS CM-30 | C129: Minas Gerais | D129: 1.464709716
A130: 2013-05-01 | B130: ASFALTOS DILUÍDOS CM-30 | C130: Pará | D130: -
A131: 2013-05-01 | B131: ASFALTOS DILUÍDOS CM-30 | C131: Paraíba | D131: -
A132: 2013-05-01 | B132: ASFALTOS DILUÍDOS CM-30 | C132: Paraná | D132: 1.489027849
A133: 2013-05-01 | B133: ASFALTOS DILUÍDOS CM-30 | C133: Pernambuco | D133: -
A134: 2013-05-01 | B134: ASFALTOS DILUÍDOS CM-30 | C134: Piauí | D134: -
A135: 2013-05-01 | B135: ASFALTOS DILUÍDOS CM-30 | C135: Rio de Janeiro | D135: 1.399256048
A136: 2013-05-01 | B136: ASFALTOS DILUÍDOS CM-30 | C136: Rio Grande do Norte | D136: -
A137: 2013-05-01 | B137: ASFALTOS DILUÍDOS CM-30 | C137: Rio Grande do Sul | D137: 1.539636961
A138: 2013-05-01 | B138: ASFALTOS DILUÍDOS CM-30 | C138: Rondônia | D138: -
A139: 2013-05-01 | B139: ASFALTOS DILUÍDOS CM-30 | C139: Roraima | D139: -
A140: 2013-05-01 | B140: ASFALTOS DILUÍDOS CM-30 | C140: Santa Catarina | D140: -
A141: 2013-05-01 | B141: ASFALTOS DILUÍDOS CM-30 | C141: São Paulo | D141: 1.451215936
A142: 2013-05-01 | B142: ASFALTOS DILUÍDOS CM-30 | C142: Sergipe | D142: -
A143: 2013-05-01 | B143: ASFALTOS DILUÍDOS CM-30 | C143: Tocantins | D143: -
A144: 2013-06-01 | B144: ASFALTOS DILUÍDOS CM-30 | C144: Acre | D144: -
A145: 2013-06-01 | B145: ASFALTOS DILUÍDOS CM-30 | C145: Alagoas | D145: -
A146: 2013-06-01 | B146: ASFALTOS DILUÍDOS CM-30 | C146: Amapá | D146: -
A147: 2013-06-01 | B147: ASFALTOS DILUÍDOS CM-30 | C147: Amazonas | D147: 1.586325818
A148: 2013-06-01 | B148: ASFALTOS DILUÍDOS CM-30 | C148: Bahia | D148: 1.44812907
A149: 2013-06-01 | B149: ASFALTOS DILUÍDOS CM-30 | C149: Ceará | D149: 1.382700989
A150: 2013-06-01 | B150: ASFALTOS DILUÍDOS CM-30 | C150: Distrito Federal | D150: -
A151: 2013-06-01 | B151: ASFALTOS DILUÍDOS CM-30 | C151: Espírito Santo | D151: -
A152: 2013-06-01 | B152: ASFALTOS DILUÍDOS CM-30 | C152: Goiás | D152: 1.699613867
A153: 2013-06-01 | B153: ASFALTOS DILUÍDOS CM-30 | C153: Maranhão | D153: -
A154: 2013-06-01 | B154: ASFALTOS DILUÍDOS CM-30 | C154: Mato Grosso | D154: 1.915975658
A155: 2013-06-01 | B155: ASFALTOS DILUÍDOS CM-30 | C155: Mato Grosso do Sul | D155: -
A156: 2013-06-01 | B156: ASFALTOS DILUÍDOS CM-30 | C156: Minas Gerais | D156: 1.475366896
A157: 2013-06-01 | B157: ASFALTOS DILUÍDOS CM-30 | C157: Pará | D157: -
A158: 2013-06-01 | B158: ASFALTOS DILUÍDOS CM-30 | C158: Paraíba | D158: -
A159: 2013-06-01 | B159: ASFALTOS DILUÍDOS CM-30 | C159: Paraná | D159: 1.432166974
A160: 2013-06-01 | B160: ASFALTOS DILUÍDOS CM-30 | C160: Pernambuco | D160: -
A161: 2013-06-01 | B161: ASFALTOS DILUÍDOS CM-30 | C161: Piauí | D161: -
A162: 2013-06-01 | B162: ASFALTOS DILUÍDOS CM-30 | C162: Rio de Janeiro | D162: 1.527420226
A163: 2013-06-01 | B163: ASFALTOS DILUÍDOS CM-30 | C163: Rio Grande do Norte | D163: -
A164: 2013-06-01 | B164: ASFALTOS DILUÍDOS CM-30 | C164: Rio Grande do Sul | D164: 1.59868349
A165: 2013-06-01 | B165: ASFALTOS DILUÍDOS CM-30 | C165: Rondônia | D165: -
A166: 2013-06-01 | B166: ASFALTOS DILUÍDOS CM-30 | C166: Roraima | D166: -
A167: 2013-06-01 | B167: ASFALTOS DILUÍDOS CM-30 | C167: Santa Catarina | D167: -
A168: 2013-06-01 | B168: ASFALTOS DILUÍDOS CM-30 | C168: São Paulo | D168: 1.432748187
A169: 2013-06-01 | B169: ASFALTOS DILUÍDOS CM-30 | C169: Sergipe | D169: -
A170: 2013-06-01 | B170: ASFALTOS DILUÍDOS CM-30 | C170: Tocantins | D170: -
A171: 2013-07-01 | B171: ASFALTOS DILUÍDOS CM-30 | C171: Acre | D171: -
A172: 2013-07-01 | B172: ASFALTOS DILUÍDOS CM-30 | C172: Alagoas | D172: -
A173: 2013-07-01 | B173: ASFALTOS DILUÍDOS CM-30 | C173: Amapá | D173: -
A174: 2013-07-01 | B174: ASFALTOS DILUÍDOS CM-30 | C174: Amazonas | D174: 1.509890931
A175: 2013-07-01 | B175: ASFALTOS DILUÍDOS CM-30 | C175: Bahia | D175: 1.436150016
A176: 2013-07-01 | B176: ASFALTOS DILUÍDOS CM-30 | C176: Ceará | D176: 1.424835845
A177: 2013-07-01 | B177: ASFALTOS DILUÍDOS CM-30 | C177: Distrito Federal | D177: -
A178: 2013-07-01 | B178: ASFALTOS DILUÍDOS CM-30 | C178: Espírito Santo | D178: -
A179: 2013-07-01 | B179: ASFALTOS DILUÍDOS CM-30 | C179: Goiás | D179: 1.663778454
A180: 2013-07-01 | B180: ASFALTOS DILUÍDOS CM-30 | C180: Maranhão | D180: -
A181: 2013-07-01 | B181: ASFALTOS DILUÍDOS CM-30 | C181: Mato Grosso | D181: 1.930589551
A182: 2013-07-01 | B182: ASFALTOS DILUÍDOS CM-30 | C182: Mato Grosso do Sul | D182: -
A183: 2013-07-01 | B183: ASFALTOS DILUÍDOS CM-30 | C183: Minas Gerais | D183: 1.476572352
A184: 2013-07-01 | B184: ASFALTOS DILUÍDOS CM-30 | C184: Pará | D184: -
A185: 2013-07-01 | B185: ASFALTOS DILUÍDOS CM-30 | C185: Paraíba | D185: -
A186: 2013-07-01 | B186: ASFALTOS DILUÍDOS CM-30 | C186: Paraná | D186: 1.477167274
A187: 2013-07-01 | B187: ASFALTOS DILUÍDOS CM-30 | C187: Pernambuco | D187: -
A188: 2013-07-01 | B188: ASFALTOS DILUÍDOS CM-30 | C188: Piauí | D188: -
A189: 2013-07-01 | B189: ASFALTOS DILUÍDOS CM-30 | C189: Rio de Janeiro | D189: 1.584464713
A190: 2013-07-01 | B190: ASFALTOS DILUÍDOS CM-30 | C190: Rio Grande do Norte | D190: -
A191: 2013-07-01 | B191: ASFALTOS DILUÍDOS CM-30 | C191: Rio Grande do Sul | D191: 1.612487925
A192: 2013-07-01 | B192: ASFALTOS DILUÍDOS CM-30 | C192: Rondônia | D192: -
A193: 2013-07-01 | B193: ASFALTOS DILUÍDOS CM-30 | C193: Roraima | D193: -
A194: 2013-07-01 | B194: ASFALTOS DILUÍDOS CM-30 | C194: Santa Catarina | D194: -
A195: 2013-07-01 | B195: ASFALTOS DILUÍDOS CM-30 | C195: São Paulo | D195: 1.507844909
A196: 2013-07-01 | B196: ASFALTOS DILUÍDOS CM-30 | C196: Sergipe | D196: -
A197: 2013-07-01 | B197: ASFALTOS DILUÍDOS CM-30 | C197: Tocantins | D197: -
A198: 2013-08-01 | B198: ASFALTOS DILUÍDOS CM-30 | C198: Acre | D198: -
A199: 2013-08-01 | B199: ASFALTOS DILUÍDOS CM-30 | C199: Alagoas | D199: -
A200: 2013-08-01 | B200: ASFALTOS DILUÍDOS CM-30 | C200: Amapá | D200: -
A201: 2013-08-01 | B201: ASFALTOS DILUÍDOS CM-30 | C201: Amazonas | D201: 1.509275641
A202: 2013-08-01 | B202: ASFALTOS DILUÍDOS CM-30 | C202: Bahia | D202: 1.416699323
A203: 2013-08-01 | B203: ASFALTOS DILUÍDOS CM-30 | C203: Ceará | D203: 1.447403364
... 4297 more rows

Sheet ANP REGIÃO
A1: Agência Nacional do Petróleo, Gás Natural e Biocombustíveis
A2: Superintendência de Defesa da Concorrência
A6: PREÇO MÉDIO MENSAL PONDERADO PRATICADO PELOS DISTRIBUIDORES DE PRODUTOS ASFÁLTICOS (R$/KG)
A8: Produto | B8: Mês | C8: Norte | D8: Nordeste | E8: Centro-Oeste | F8: Sudeste | G8: Sul | H8: Brasil
A9: ASFALTOS DILUÍDOS CM-30 | B9: 2008-11-01 | C9: 1.775468292 | D9: 1.55087853 | E9: 2.022143291 | F9: 1.55449367 | G9: 1.584532899 | H9: 1.64286837
A10: ASFALTOS DILUÍDOS CM-30 | B10: 2008-12-01 | C10: 1.806837667 | D10: 1.509118192 | E10: 2.013020124 | F10: 1.610902223 | G10: 1.607187591 | H10: 1.637581471
A11: ASFALTOS DILUÍDOS CM-30 | B11: 2009-01-01 | C11: 1.497052858 | D11: 1.504296346 | E11: 1.963097671 | F11: 1.524672247 | G11: 1.585137209 | H11: 1.564945876
A12: ASFALTOS DILUÍDOS CM-30 | B12: 2009-02-01 | C12: 1.42787112 | D12: 1.497693283 | E12: 1.981065098 | F12: 1.583490231 | G12: 1.595924062 | H12: 1.565451036
A13: ASFALTOS DILUÍDOS CM-30 | B13: 2009-03-01 | C13: 1.404941405 | D13: 1.497647987 | E13: 1.893430263 | F13: 1.52754782 | G13: 1.588720029 | H13: 1.532713147
A14: ASFALTOS DILUÍDOS CM-30 | B14: 2009-04-01 | C14: 1.410510748 | D14: 1.484826261 | E14: 1.909226429 | F14: 1.464149371 | G14: 1.553831928 | H14: 1.516717648
A15: ASFALTOS DILUÍDOS CM-30 | B15: 2009-05-01 | C15: 1.480355678 | D15: 1.466898928 | E15: 1.891590435 | F15: 1.435443718 | G15: 1.54161118 | H15: 1.537574371
A16: ASFALTOS DILUÍDOS CM-30 | B16: 2009-06-01 | C16: 1.580751039 | D16: 1.444888837 | E16: 1.842074119 | F16: 1.424264315 | G16: 1.501526696 | H16: 1.541315575
A17: ASFALTOS DILUÍDOS CM-30 | B17: 2009-07-01 | C17: 1.905432476 | D17: 1.482618211 | E17: 1.949046345 | F17: 1.584435299 | G17: 1.610310436 | H17: 1.651032523
A18: ASFALTOS DILUÍDOS CM-30 | B18: 2009-08-01 | C18: 1.716995184 | D18: 1.423854915 | E18: 1.712385478 | F18: 1.418000805 | G18: 1.520643497 | H18: 1.504911469
A19: ASFALTOS DILUÍDOS CM-30 | B19: 2009-09-01 | C19: 1.64329494 | D19: 1.445317761 | E19: 1.731518803 | F19: 1.419374251 | G19: 1.500735895 | H19: 1.50552312
A20: ASFALTOS DILUÍDOS CM-30 | B20: 2009-10-01 | C20: 1.588031924 | D20: 1.458932649 | E20: 1.762015056 | F20: 1.429024419 | G20: 1.513753831 | H20: 1.511681904
A21: ASFALTOS DILUÍDOS CM-30 | B21: 2009-11-01 | C21: 1.639348604 | D21: 1.449059777 | E21: 1.772650817 | F21: 1.434122677 | G21: 1.526043188 | H21: 1.499657392
A22: ASFALTOS DILUÍDOS CM-30 | B22: 2009-12-01 | C22: 1.664266853 | D22: 1.441966636 | E22: 1.890574802 | F22: 1.429077727 | G22: 1.520539334 | H22: 1.508864598
A23: ASFALTOS DILUÍDOS CM-30 | B23: 2010-01-01 | C23: 1.842506144 | D23: 1.454977129 | E23: 1.865022447 | F23: 1.414817608 | G23: 1.474450765 | H23: 1.497735227
A24: ASFALTOS DILUÍDOS CM-30 | B24: 2010-02-01 | C24: 1.709886915 | D24: 1.442956487 | E24: 1.919844741 | F24: 1.433146251 | G24: 1.500882448 | H24: 1.496542251
A25: ASFALTOS DILUÍDOS CM-30 | B25: 2010-03-01 | C25: 1.535743416 | D25: 1.448880499 | E25: 1.935062728 | F25: 1.435026116 | G25: 1.480618635 | H25: 1.486789802
A26: ASFALTOS DILUÍDOS CM-30 | B26: 2010-04-01 | C26: 1.710046479 | D26: 1.440300254 | E26: 1.911935961 | F26: 1.421102153 | G26: 1.481270937 | H26: 1.511086431
A27: ASFALTOS DILUÍDOS CM-30 | B27: 2010-05-01 | C27: 1.755610465 | D27: 1.435277221 | E27: 1.873293889 | F27: 1.406944432 | G27: 1.48177605 | H27: 1.537170565
A28: ASFALTOS DILUÍDOS CM-30 | B28: 2010-06-01 | C28: 1.602224314 | D28: 1.396004336 | E28: 1.731734721 | F28: 1.399996227 | G28: 1.49193962 | H28: 1.498073418
A29: ASFALTOS DILUÍDOS CM-30 | B29: 2010-07-01 | C29: 1.559901627 | D29: 1.381016708 | E29: 1.732688214 | F29: 1.402904856 | G29: 1.473854427 | H29: 1.490075269
A30: ASFALTOS DILUÍDOS CM-30 | B30: 2010-08-01 | C30: 1.526639389 | D30: 1.38817836 | E30: 1.738946087 | F30: 1.398751236 | G30: 1.455749849 | H30: 1.495828516
A31: ASFALTOS DILUÍDOS CM-30 | B31: 2010-09-01 | C31: 1.565378829 | D31: 1.408204664 | E31: 1.757027378 | F31: 1.411642875 | G31: 1.487257745 | H31: 1.512257128
A32: ASFALTOS DILUÍDOS CM-30 | B32: 2010-10-01 | C32: 1.481711294 | D32: 1.404357715 | E32: 1.751159947 | F32: 1.403489437 | G32: 1.469340847 | H32: 1.49988826
A33: ASFALTOS DILUÍDOS CM-30 | B33: 2010-11-01 | C33: 1.519267672 | D33: 1.410130904 | E33: 1.779405625 | F33: 1.421283822 | G33: 1.458559112 | H33: 1.481658635
A34: ASFALTOS DILUÍDOS CM-30 | B34: 2010-12-01 | C34: 1.559287556 | D34: 1.40982051 | E34: 1.825185618 | F34: 1.417673572 | G34: 1.473243884 | H34: 1.469113031
A35: ASFALTOS DILUÍDOS CM-30 | B35: 2011-01-01 | C35: 1.525923305 | D35: 1.445794092 | E35: 1.774600924 | F35: 1.403274235 | G35: 1.466002814 | H35: 1.457256066
A36: ASFALTOS DILUÍDOS CM-30 | B36: 2011-02-01 | C36: 1.552825112 | D36: 1.392094259 | E36: 1.763836123 | F36: 1.385194937 | G36: 1.44955884 | H36: 1.426250478
A37: ASFALTOS DILUÍDOS CM-30 | B37: 2011-03-01 | C37: 1.469219693 | D37: 1.369442916 | E37: 1.696017922 | F37: 1.353812804 | G37: 1.435170694 | H37: 1.400130249
A38: ASFALTOS DILUÍDOS CM-30 | B38: 2011-04-01 | C38: 1.470570262 | D38: 1.373220492 | E38: 1.650829394 | F38: 1.345928103 | G38: 1.42199894 | H38: 1.400493522
A39: ASFALTOS DILUÍDOS CM-30 | B39: 2011-05-01 | C39: 1.428528955 | D39: 1.322646267 | E39: 1.700380913 | F39: 1.345068163 | G39: 1.439361431 | H39: 1.428058019
A40: ASFALTOS DILUÍDOS CM-30 | B40: 2011-06-01 | C40: 1.407622163 | D40: 1.305708657 | E40: 1.741843669 | F40: 1.354620495 | G40: 1.399501693 | H40: 1.44029982
A41: ASFALTOS DILUÍDOS CM-30 | B41: 2011-07-01 | C41: 1.259234065 | D41: 1.312033305 | E41: 1.737489696 | F41: 1.33656388 | G41: 1.422474887 | H41: 1.420839252
A42: ASFALTOS DILUÍDOS CM-30 | B42: 2011-08-01 | C42: 1.470680061 | D42: 1.299778765 | E42: 1.727443485 | F42: 1.341477821 | G42: 1.353018352 | H42: 1.425675534
A43: ASFALTOS DILUÍDOS CM-30 | B43: 2011-09-01 | C43: 1.56132872 | D43: 1.321196084 | E43: 1.729821548 | F43: 1.357451483 | G43: 1.395684798 | H43: 1.455202413
A44: ASFALTOS DILUÍDOS CM-30 | B44: 2011-10-01 | C44: 1.520569722 | D44: 1.326218736 | E44: 1.71738046 | F44: 1.332691392 | G44: 1.3577774 | H44: 1.442295871
A45: ASFALTOS DILUÍDOS CM-30 | B45: 2011-11-01 | C45: 1.465886334 | D45: 1.337041154 | E45: 1.741004886 | F45: 1.345486103 | G45: 1.447580565 | H45: 1.445354137
A46: ASFALTOS DILUÍDOS CM-30 | B46: 2011-12-01 | C46: 1.470883899 | D46: 1.335587636 | E46: 1.778724141 | F46: 1.408293068 | G46: 1.428112306 | H46: 1.422418604
A47: ASFALTOS DILUÍDOS CM-30 | B47: 2012-01-01 | C47: 1.384955015 | D47: 1.350130156 | E47: 1.780783883 | F47: 1.421354107 | G47: 1.430352474 | H47: 1.394658167
A48: ASFALTOS DILUÍDOS CM-30 | B48: 2012-02-01 | C48: 1.332181678 | D48: 1.368143891 | E48: 1.741020394 | F48: 1.400200985 | G48: 1.425400986 | H48: 1.410605707
A49: ASFALTOS DILUÍDOS CM-30 | B49: 2012-03-01 | C49: 1.411621867 | D49: 1.349122214 | E49: 1.620096006 | F49: 1.393295764 | G49: 1.406130569 | H49: 1.409768786
A50: ASFALTOS DILUÍDOS CM-30 | B50: 2012-04-01 | C50: 1.549007912 | D50: 1.383976456 | E50: 1.640712752 | F50: 1.404716397 | G50: 1.440617793 | H50: 1.45608482
A51: ASFALTOS DILUÍDOS CM-30 | B51: 2012-05-01 | C51: 1.596178941 | D51: 1.386362272 | E51: 1.712061183 | F51: 1.39923955 | G51: 1.448350887 | H51: 1.498461969
A52: ASFALTOS DILUÍDOS CM-30 | B52: 2012-06-01 | C52: 1.701432576 | D52: 1.388053518 | E52: 1.740352007 | F52: 1.422118749 | G52: 1.449196072 | H52: 1.527722717
A53: ASFALTOS DILUÍDOS CM-30 | B53: 2012-07-01 | C53: 1.652026742 | D53: 1.39436857 | E53: 1.718644846 | F53: 1.439670261 | G53: 1.46187567 | H53: 1.523069159
A54: ASFALTOS DILUÍDOS CM-30 | B54: 2012-08-01 | C54: 1.689998835 | D54: 1.40333785 | E54: 1.741895041 | F54: 1.421723369 | G54: 1.445685799 | H54: 1.536533078
A55: ASFALTOS DILUÍDOS CM-30 | B55: 2012-09-01 | C55: 1.690177972 | D55: 1.421500003 | E55: 1.780920724 | F55: 1.445180432 | G55: 1.483645866 | H55: 1.549410653
A56: ASFALTOS DILUÍDOS CM-30 | B56: 2012-10-01 | C56: 1.574840342 | D56: 1.417066109 | E56: 1.794832036 | F56: 1.451304526 | G56: 1.482037109 | H56: 1.550631802
A57: ASFALTOS DILUÍDOS CM-30 | B57: 2012-11-01 | C57: 1.655163526 | D57: 1.455878748 | E57: 1.840129766 | F57: 1.461204615 | G57: 1.483499722 | H57: 1.552500776
A58: ASFALTOS DILUÍDOS CM-30 | B58: 2012-12-01 | C58: 1.714876125 | D58: 1.435854741 | E58: 1.804066573 | F58: 1.45222765 | G58: 1.509417648 | H58: 1.523411999
A59: ASFALTOS DILUÍDOS CM-30 | B59: 2013-01-01 | C59: 1.495776335 | D59: 1.449494588 | E59: 1.854050525 | F59: 1.44638752 | G59: 1.563753675 | H59: 1.502137259
A60: ASFALTOS DILUÍDOS CM-30 | B60: 2013-02-01 | C60: 1.635067666 | D60: 1.420609638 | E60: 1.731071498 | F60: 1.442746356 | G60: 1.461828405 | H60: 1.4739561
A61: ASFALTOS DILUÍDOS CM-30 | B61: 2013-03-01 | C61: 1.646229098 | D61: 1.413299983 | E61: 1.83828087 | F61: 1.450015152 | G61: 1.525760413 | H61: 1.506542904
A62: ASFALTOS DILUÍDOS CM-30 | B62: 2013-04-01 | C62: 1.581864474 | D62: 1.399189564 | E62: 1.793825113 | F62: 1.458704755 | G62: 1.551913702 | H62: 1.523623636
A63: ASFALTOS DILUÍDOS CM-30 | B63: 2013-05-01 | C63: 1.815646773 | D63: 1.390143517 | E63: 1.812783313 | F63: 1.44951052 | G63: 1.504233457 | H63: 1.549918592
A64: ASFALTOS DILUÍDOS CM-30 | B64: 2013-06-01 | C64: 1.631101583 | D64: 1.383186536 | E64: 1.816642105 | F64: 1.474232641 | G64: 1.503043689 | H64: 1.581049429
A65: ASFALTOS DILUÍDOS CM-30 | B65: 2013-07-01 | C65: 1.86596563 | D65: 1.422051117 | E65: 1.793072753 | F65: 1.498018808 | G65: 1.533391901 | H65: 1.59880513
A66: ASFALTOS DILUÍDOS CM-30 | B66: 2013-08-01 | C66: 1.700325546 | D66: 1.435094415 | E66: 1.821452614 | F66: 1.511722868 | G66: 1.530793596 | H66: 1.606176585
A67: ASFALTOS DILUÍDOS CM-30 | B67: 2013-09-01 | C67: 1.562873733 | D67: 1.472197748 | E67: 1.879842712 | F67: 1.542652867 | G67: 1.490667543 | H67: 1.627945893
A68: ASFALTOS DILUÍDOS CM-30 | B68: 2013-10-01 | C68: 1.648504013 | D68: 1.472152345 | E68: 1.825494997 | F68: 1.501177682 | G68: 1.48378912 | H68: 1.597538775
A69: ASFALTOS DILUÍDOS CM-30 | B69: 2013-11-01 | C69: 1.619179062 | D69: 1.486413317 | E69: 1.844012679 | F69: 1.496326809 | G69: 1.506096878 | H69: 1.581665844
A70: ASFALTOS DILUÍDOS CM-30 | B70: 2013-12-01 | C70: 1.633358293 | D70: 1.494818097 | E70: 1.897197176 | F70: 1.502864538 | G70: 1.517074296 | H70: 1.572475244
A71: ASFALTOS DILUÍDOS CM-30 | B71: 2014-01-01 | C71: 1.688311265 | D71: 1.494181305 | E71: 1.798355903 | F71: 1.484202293 | G71: 1.533353813 | H71: 1.542909737
A72: ASFALTOS DILUÍDOS CM-30 | B72: 2014-02-01 | C72: 1.598304434 | D72: 1.479706587 | E72: 1.814390215 | F72: 1.514829392 | G72: 1.522800588 | H72: 1.528970287
A73: ASFALTOS DILUÍDOS CM-30 | B73: 2014-03-01 | C73: 1.648287687 | D73: 1.472852501 | E73: 1.76657319 | F73: 1.513020673 | G73: 1.506185248 | H73: 1.530181178
A74: ASFALTOS DILUÍDOS CM-30 | B74: 2014-04-01 | C74: 1.534459987 | D74: 1.493898767 | E74: 1.757271278 | F74: 1.533021309 | G74: 1.524275274 | H74: 1.550566305
A75: ASFALTOS DILUÍDOS CM-30 | B75: 2014-05-01 | C75: 1.58658327 | D75: 1.490834685 | E75: 1.804339251 | F75: 1.501138131 | G75: 1.567043824 | H75: 1.586452272
A76: ASFALTOS DILUÍDOS CM-30 | B76: 2014-06-01 | C76: 1.658277164 | D76: 1.505801121 | E76: 1.839593445 | F76: 1.5068632 | G76: 1.523776953 | H76: 1.636070702
A77: ASFALTOS DILUÍDOS CM-30 | B77: 2014-07-01 | C77: 1.890299542 | D77: 1.500730514 | E77: 1.708277865 | F77: 1.487293964 | G77: 1.505956069 | H77: 1.587065158
A78: ASFALTOS DILUÍDOS CM-30 | B78: 2014-08-01 | C78: 1.632741832 | D78: 1.501945324 | E78: 1.671203189 | F78: 1.482359341 | G78: 1.506327366 | H78: 1.557910377
A79: ASFALTOS DILUÍDOS CM-30 | B79: 2014-09-01 | C79: 1.66956717 | D79: 1.546830427 | E79: 1.864797016 | F79: 1.496764585 | G79: 1.570533242 | H79: 1.639281057
A80: ASFALTOS DILUÍDOS CM-30 | B80: 2014-10-01 | C80: 1.742876916 | D80: 1.508978569 | E80: 1.746650466 | F80: 1.470773645 | G80: 1.454273462 | H80: 1.57912022
A81: ASFALTOS DILUÍDOS CM-30 | B81: 2014-11-01 | C81: 1.864723419 | D81: 1.57943059 | E81: 1.749156218 | F81: 1.465084479 | G81: 1.529147988 | H81: 1.601359821
A82: ASFALTOS DILUÍDOS CM-30 | B82: 2014-12-01 | C82: 1.812671914 | D82: 1.704844348 | E82: 1.963310066 | F82: 1.623676702 | G82: 1.649644659 | H82: 1.718826981
A83: ASFALTOS DILUÍDOS CM-30 | B83: 2015-01-01 | C83: 2.154807062 | D83: 2.023760447 | E83: 2.318863736 | F83: 1.866588967 | G83: 1.898380434 | H83: 2.007792032
A84: ASFALTOS DILUÍDOS CM-30 | B84: 2015-02-01 | C84: 2.260238625 | D84: 2.005673765 | E84: 2.393875762 | F84: 1.854519766 | G84: 1.927395107 | H84: 2.007653781
A85: ASFALTOS DILUÍDOS CM-30 | B85: 2015-03-01 | C85: 2.124176462 | D85: 1.968822849 | E85: 2.279643254 | F85: 1.887760911 | G85: 1.930217145 | H85: 1.984816916
A86: ASFALTOS DILUÍDOS CM-30 | B86: 2015-04-01 | C86: 2.030049505 | D86: 2.001506448 | E86: 2.379118903 | F86: 1.85245167 | G86: 1.949025254 | H86: 1.98064321
A87: ASFALTOS DILUÍDOS CM-30 | B87: 2015-05-01 | C87: 2.507271651 | D87: 1.946869908 | E87: 2.254758192 | F87: 1.807470001 | G87: 2.016929536 | H87: 2.005474234
A88: ASFALTOS DILUÍDOS CM-30 | B88: 2015-06-01 | C88: 2.248320042 | D88: 1.944259736 | E88: 2.314331796 | F88: 1.846998595 | G88: 1.968565125 | H88: 2.042581344
A89: ASFALTOS DILUÍDOS CM-30 | B89: 2015-07-01 | C89: 1.992222758 | D89: 1.992791635 | E89: 2.046769953 | F89: 1.782648603 | G89: 1.931671385 | H89: 1.942627362
A90: ASFALTOS DILUÍDOS CM-30 | B90: 2015-08-01 | C90: 2.307605931 | D90: 2.038089127 | E90: 2.252748105 | F90: 1.828097705 | G90: 1.939824481 | H90: 2.08193616
A91: ASFALTOS DILUÍDOS CM-30 | B91: 2015-09-01 | C91: 2.314289704 | D91: 2.095307531 | E91: 2.344561987 | F91: 1.942551091 | G91: 2.005352614 | H91: 2.168175541
A92: ASFALTOS DILUÍDOS CM-30 | B92: 2015-10-01 | C92: 2.329456663 | D92: 2.170570012 | E92: 2.43273012 | F92: 2.035624751 | G92: 2.110261148 | H92: 2.237533782
A93: ASFALTOS DILUÍDOS CM-30 | B93: 2015-11-01 | C93: 2.606056566 | D93: 2.437098304 | E93: 2.711612141 | F93: 2.280113896 | G93: 2.326446297 | H93: 2.474998781
A94: ASFALTOS DILUÍDOS CM-30 | B94: 2015-12-01 | C94: 2.635374006 | D94: 2.395920309 | E94: 2.693528386 | F94: 2.272528129 | G94: 2.330740659 | H94: 2.452848156
A95: ASFALTOS DILUÍDOS CM-30 | B95: 2016-01-01 | C95: 2.715863993 | D95: 2.373861647 | E95: 2.844670602 | F95: 2.263650658 | G95: 2.232631691 | H95: 2.400563394
A96: ASFALTOS DILUÍDOS CM-30 | B96: 2016-02-01 | C96: 2.80468316 | D96: 2.466846816 | E96: 2.791787007 | F96: 2.295637115 | G96: 2.346556173 | H96: 2.464348548
A97: ASFALTOS DILUÍDOS CM-30 | B97: 2016-03-01 | C97: 2.5805021 | D97: 2.470678753 | E97: 2.707688025 | F97: 2.235301999 | G97: 2.383115972 | H97: 2.423563924
A98: ASFALTOS DILUÍDOS CM-30 | B98: 2016-04-01 | C98: 2.942006312 | D98: 2.740742032 | E98: 2.759071855 | F98: 2.544439178 | G98: 2.710751632 | H98: 2.680274833
A99: ASFALTOS DILUÍDOS CM-30 | B99: 2016-05-01 | C99: 3.010579472 | D99: 2.650277047 | E99: 2.857121361 | F99: 2.575583152 | G99: 2.770413362 | H99: 2.70973327
A100: ASFALTOS DILUÍDOS CM-30 | B100: 2016-06-01 | C100: 2.909179844 | D100: 2.621385041 | E100: 2.943487281 | F100: 2.659109515 | G100: 2.684759555 | H100: 2.743619517
A101: ASFALTOS DILUÍDOS CM-30 | B101: 2016-07-01 | C101: 2.985740381 | D101: 2.591644045 | E101: 2.98927803 | F101: 2.604396599 | G101: 2.660884423 | H101: 2.745135539
A102: ASFALTOS DILUÍDOS CM-30 | B102: 2016-08-01 | C102: 2.935243919 | D102: 2.623917329 | E102: 2.970490854 | F102: 2.679486504 | G102: 2.727025649 | H102: 2.781385962
A103: ASFALTOS DILUÍDOS CM-30 | B103: 2016-09-01 | C103: 2.649136821 | D103: 2.521054851 | E103: 2.781583925 | F103: 2.51393313 | G103: 2.371271501 | H103: 2.595617128
A104: ASFALTOS DILUÍDOS CM-30 | B104: 2016-10-01 | C104: 2.626109257 | D104: 2.444469093 | E104: 2.781617873 | F104: 2.507383127 | G104: 2.38325399 | H104: 2.566999037
A105: ASFALTOS DILUÍDOS CM-30 | B105: 2016-11-01 | C105: 2.535087408 | D105: 2.374145527 | E105: 2.952768674 | F105: 2.481263765 | G105: 2.382206771 | H105: 2.542842366
A106: ASFALTOS DILUÍDOS CM-30 | B106: 2016-12-01 | C106: 2.50039107 | D106: 2.253413483 | E106: 3.038519458 | F106: 2.589438892 | G106: 2.395593424 | H106: 2.476439295
A107: ASFALTOS DILUÍDOS CM-30 | B107: 2017-01-01 | C107: 2.392875504 | D107: 2.232695674 | E107: 3.089080971 | F107: 2.535744039 | G107: 2.378694833 | H107: 2.374216192
A108: ASFALTOS DILUÍDOS CM-30 | B108: 2017-02-01 | C108: 2.68039414 | D108: 2.271897225 | E108: 2.764408032 | F108: 2.573933685 | G108: 2.384644398 | H108: 2.470721466
A109: ASFALTOS DILUÍDOS CM-30 | B109: 2017-03-01 | C109: 2.23884121 | D109: 2.386958079 | E109: 2.667220252 | F109: 2.372165947 | G109: 2.30121887 | H109: 2.378796986
A110: ASFALTOS DILUÍDOS CM-30 | B110: 2017-04-01 | C110: 2.420191398 | D110: 2.307969596 | E110: 2.794093014 | F110: 2.258409912 | G110: 2.256434297 | H110: 2.380268484
A111: ASFALTOS DILUÍDOS CM-30 | B111: 2017-05-01 | C111: 2.432106692 | D111: 2.167919128 | E111: 2.699836936 | F111: 2.255387192 | G111: 2.204026958 | H111: 2.361515909
A112: ASFALTOS DILUÍDOS CM-30 | B112: 2017-06-01 | C112: 2.428301776 | D112: 2.181938689 | E112: 2.756672055 | F112: 2.234549022 | G112: 2.305778546 | H112: 2.44553453
A113: ASFALTOS DILUÍDOS CM-30 | B113: 2017-07-01 | C113: 2.453752061 | D113: 2.218075334 | E113: 2.694625022 | F113: 2.414329247 | G113: 2.269601102 | H113: 2.473436106
A114: ASFALTOS DILUÍDOS CM-30 | B114: 2017-08-01 | C114: 2.447930976 | D114: 2.153112031 | E114: 2.595349952 | F114: 2.302919065 | G114: 2.170148667 | H114: 2.380876423
A115: ASFALTOS DILUÍDOS CM-30 | B115: 2017-09-01 | C115: 2.494551504 | D115: 2.14243989 | E115: 2.623166503 | F115: 2.371308095 | G115: 2.303698507 | H115: 2.393542204
A116: ASFALTOS DILUÍDOS CM-30 | B116: 2017-10-01 | C116: 2.349953944 | D116: 2.18056004 | E116: 2.614160957 | F116: 2.415254962 | G116: 2.20079573 | H116: 2.367947121
A117: ASFALTOS DILUÍDOS CM-30 | B117: 2017-11-01 | C117: 2.670126991 | D117: 2.433169195 | E117: 2.908627464 | F117: 2.58469482 | G117: 2.415192709 | H117: 2.602101348
A118: ASFALTOS DILUÍDOS CM-30 | B118: 2017-12-01 | C118: 2.587352645 | D118: 2.425358882 | E118: 2.906633765 | F118: 2.602890298 | G118: 2.42288976 | H118: 2.531764464
A119: ASFALTOS DILUÍDOS CM-30 | B119: 2018-01-01 | C119: 2.950360755 | D119: 2.662862923 | E119: 2.875953993 | F119: 2.620738484 | G119: 2.646955252 | H119: 2.735956369
A120: ASFALTOS DILUÍDOS CM-30 | B120: 2018-02-01 | C120: 2.677899567 | D120: 2.672498164 | E120: 2.942595474 | F120: 2.62043113 | G120: 2.567885662 | H120: 2.668369933
A121: ASFALTOS DILUÍDOS CM-30 | B121: 2018-03-01 | C121: 2.733363025 | D121: 2.589050022 | E121: 2.809172556 | F121: 2.561928393 | G121: 2.575946067 | H121: 2.634876584
A122: ASFALTOS DILUÍDOS CM-30 | B122: 2018-04-01 | C122: 2.75780112 | D122: 2.669553602 | E122: 2.773908242 | F122: 2.59547006 | G122: 2.556042394 | H122: 2.6643302
A123: ASFALTOS DILUÍDOS CM-30 | B123: 2018-05-01 | C123: 2.841213362 | D123: 2.672025877 | E123: 2.884501482 | F123: 2.686718021 | G123: 2.736485103 | H123: 2.77737896
A124: ASFALTOS DILUÍDOS CM-30 | B124: 2018-06-01 | C124: 3.008444789 | D124: 2.919605178 | E124: 3.158454886 | F124: 2.84673108 | G124: 2.953523993 | H124: 2.982291635
A125: ASFALTOS DILUÍDOS CM-30 | B125: 2018-07-01 | C125: 3.268237549 | D125: 3.036524094 | E125: 3.399360399 | F125: 3.026467598 | G125: 3.19779631 | H125: 3.164126546
A126: ASFALTOS DILUÍDOS CM-30 | B126: 2018-08-01 | C126: 3.56441315 | D126: 3.415193769 | E126: 3.707706206 | F126: 3.425079349 | G126: 3.356722461 | H126: 3.515558112
A127: ASFALTOS DILUÍDOS CM-30 | B127: 2018-09-01 | C127: 3.173913778 | D127: 3.445064118 | E127: 3.73526324 | F127: 3.385816186 | G127: 3.607309454 | H127: 3.483238429
A128: ASFALTOS DILUÍDOS CM-30 | B128: 2018-10-01 | C128: 3.487778119 | D128: 3.460508804 | E128: 3.721444057 | F128: 3.432525565 | G128: 3.60602088 | H128: 3.545390344
A129: ASFALTOS DILUÍDOS CM-30 | B129: 2018-11-01 | C129: 4.047272484 | D129: 3.814893312 | E129: 4.280131586 | F129: 4.178126777 | G129: 3.967681367 | H129: 3.990147183
A130: ASFALTOS DILUÍDOS CM-30 | B130: 2018-12-01 | C130: 3.951491146 | D130: 3.967113195 | E130: 4.341144202 | F130: 3.916766066 | G130: 3.911993357 | H130: 3.999742654
A131: ASFALTOS DILUÍDOS CM-30 | B131: 2019-01-01 | C131: 3.796855325 | D131: 3.870018889 | E131: 4.201901762 | F131: 3.954196997 | G131: 3.976786028 | H131: 3.933951911
A132: ASFALTOS DILUÍDOS CM-30 | B132: 2019-02-01 | C132: 3.516584073 | D132: 4.090361178 | E132: 4.498422953 | F132: 4.469942475 | G132: 4.254590254 | H132: 4.188544679
A133: ASFALTOS DILUÍDOS CM-30 | B133: 2019-03-01 | C133: 4.216758117 | D133: 4.361910728 | E133: 4.907194889 | F133: 4.398717729 | G133: 4.290823922 | H133: 4.360295279
A134: ASFALTOS DILUÍDOS CM-30 | B134: 2019-04-01 | C134: 4.281648205 | D134: 4.234661428 | E134: 4.531627215 | F134: 4.43722653 | G134: 4.466881471 | H134: 4.38082044
A135: ASFALTOS DILUÍDOS CM-30 | B135: 2019-05-01 | C135: 4.287644659 | D135: 4.190699738 | E135: 4.857910872 | F135: 4.267461963 | G135: 4.633806379 | H135: 4.366402151
A136: ASFALTOS DILUÍDOS CM-30 | B136: 2019-06-01 | C136: 4.475609892 | D136: 3.965052934 | E136: 4.66272934 | F136: 4.350600604 | G136: 4.211229921 | H136: 4.319323669
A137: ASFALTOS DILUÍDOS CM-30 | B137: 2019-07-01 | C137: 4.394498989 | D137: 4.058039305 | E137: 4.834221945 | F137: 4.094659414 | G137: 4.233003281 | H137: 4.346977757
A138: ASFALTOS DILUÍDOS CM-30 | B138: 2019-08-01 | C138: 4.48173504 | D138: 3.910662496 | E138: 4.576329081 | F138: 4.11161654 | G138: 4.255419985 | H138: 4.258345083
A139: ASFALTOS DILUÍDOS CM-30 | B139: 2019-09-01 | C139: 4.439578796 | D139: 3.859904896 | E139: 4.495256968 | F139: 4.111321475 | G139: 4.117359152 | H139: 4.251607085
A140: ASFALTOS DILUÍDOS CM-30 | B140: 2019-10-01 | C140: 4.335888631 | D140: 3.772324962 | E140: 4.459242357 | F140: 4.056084115 | G140: 3.942458011 | H140: 4.07740702
A141: ASFALTOS DILUÍDOS CM-30 | B141: 2019-11-01 | C141: 4.316238692 | D141: 3.910245509 | E141: 4.581841077 | F141: 4.07902404 | G141: 4.106621274 | H141: 4.094561212
A142: ASFALTOS DILUÍDOS CM-30 | B142: 2019-12-01 | C142: 4.199435972 | D142: 3.980119663 | E142: 4.673774805 | F142: 4.434268142 | G142: 3.986410312 | H142: 4.164691616
A143: ASFALTOS DILUÍDOS CM-30 | B143: 2020-01-01 | C143: 3.59298003 | D143: 3.895320617 | E143: 4.685420623 | F143: 4.387074674 | G143: 4.124467668 | H143: 4.053338937
A144: ASFALTOS DILUÍDOS CM-30 | B144: 2020-02-01 | C144: 3.642667016 | D144: 3.877395187 | E144: 4.438194543 | F144: 3.699944607 | G144: 3.778164011 | H144: 3.839010438
A145: ASFALTOS DILUÍDOS CM-30 | B145: 2020-03-01 | C145: 4.676668339 | D145: 3.791138977 | E145: 4.289222343 | F145: 3.718402734 | G145: 3.60908619 | H145: 3.93117068
A146: ASFALTOS DILUÍDOS CM-30 | B146: 2020-04-01 | C146: 4.313362837 | D146: 3.6957655 | E146: 4.255395321 | F146: 3.865895531 | G146: 3.732253382 | H146: 3.964125211
A147: ASFALTOS DILUÍDOS CM-30 | B147: 2020-05-01 | C147: 3.249134658 | D147: 3.637769912 | E147: 4.113544882 | F147: 3.760550026 | G147: 3.710618099 | H147: 3.65617504
A148: ASFALTOS DILUÍDOS CM-30 | B148: 2020-06-01 | C148: 4.017903076 | D148: 3.567031492 | E148: 4.277369171 | F148: 3.937886485 | G148: 3.625830069 | H148: 3.924524506
A149: ASFALTOS DILUÍDOS CM-30 | B149: 2020-07-01 | C149: 3.840497509 | D149: 3.51327048 | E149: 4.21549069 | F149: 3.954223886 | G149: 3.688841275 | H149: 3.843774448
A150: ASFALTOS DILUÍDOS CM-30 | B150: 2020-08-01 | C150: 4.174467203 | D150: 3.465394219 | E150: 4.277710211 | F150: 4.06746494 | G150: 3.62858863 | H150: 3.947166917
A151: ASFALTOS DILUÍDOS CM-30 | B151: 2020-09-01 | C151: 4.167371331 | D151: 3.746360816 | E151: 4.167424356 | F151: 3.795621791 | G151: 3.627729935 | H151: 3.973129945
A152: ASFALTOS DILUÍDOS CM-30 | B152: 2020-10-01 | C152: 4.408099527 | D152: 3.718989878 | E152: 4.278979192 | F152: 4.008746906 | G152: 3.591048183 | H152: 4.03964377
A153: ASFALTOS DILUÍDOS CM-30 | B153: 2020-11-01 | C153: 4.056306006 | D153: 3.969209281 | E153: 4.547900893 | F153: 4.27945542 | G153: 3.973347244 | H153: 4.175826149
A154: ASFALTOS DILUÍDOS CM-30 | B154: 2020-12-01 | C154: 4.132064138 | D154: 3.851632751 | E154: 4.426704386 | F154: 3.906236422 | G154: 3.8709398 | H154: 4.035347374
A155: ASFALTOS DILUÍDOS CM-30 | B155: 2021-01-01 | C155: 3.489836333 | D155: 3.951525937 | E155: 4.628269702 | F155: 4.011577011 | G155: 3.935136638 | H155: 3.917092391
A156: ASFALTOS DILUÍDOS CM-30 | B156: 2021-02-01 | C156: 4.099318116 | D156: 4.267109523 | E156: 4.832061615 | F156: 4.414202706 | G156: 4.149048932 | H156: 4.26819704
A157: ASFALTOS DILUÍDOS CM-30 | B157: 2021-03-01 | C157: 4.528355792 | D157: 4.239831731 | E157: 4.926314562 | F157: 4.269697839 | G157: 4.130655409 | H157: 4.377833785
A158: ASFALTOS DILUÍDOS CM-30 | B158: 2021-04-01 | C158: 4.349271867 | D158: 4.086995154 | E158: 4.477597522 | F158: 4.156113398 | G158: 4.044189822 | H158: 4.253361798
A159: ASFALTOS DILUÍDOS CM-30 | B159: 2021-05-01 | C159: 4.488889413 | D159: 4.707945815 | E159: 5.101489686 | F159: 4.784034896 | G159: 4.523986615 | H159: 4.790548085
A160: ASFALTOS DILUÍDOS CM-30 | B160: 2021-06-01 | C160: 4.010467711 | D160: 4.479592126 | E160: 5.113041212 | F160: 4.779739905 | G160: 4.721214307 | H160: 4.764890884
A161: ASFALTOS DILUÍDOS CM-30 | B161: 2021-07-01 | C161: 4.752234128 | D161: 4.559350506 | E161: 5.004758283 | F161: 4.80272972 | G161: 4.748550678 | H161: 4.817586047
A162: ASFALTOS DILUÍDOS CM-30 | B162: 2021-08-01 | C162: 5.085284532 | D162: 4.772501255 | E162: 5.198537142 | F162: 5.244735259 | G162: 4.76131175 | H162: 5.0981692
A163: ASFALTOS DILUÍDOS CM-30 | B163: 2021-09-01 | C163: 5.110300267 | D163: 4.538072365 | E163: 5.241721185 | F163: 5.017144197 | G163: 4.862861245 | H163: 5.016958886
A164: ASFALTOS DILUÍDOS CM-30 | B164: 2021-10-01 | C164: 5.080697261 | D164: 4.66826742 | E164: 5.119544199 | F164: 5.384779065 | G164: 4.658516432 | H164: 5.021294312
A165: ASFALTOS DILUÍDOS CM-30 | B165: 2021-11-01 | C165: 5.436518753 | D165: 5.08776781 | E165: 5.150063985 | F165: 5.634257884 | G165: 5.174530131 | H165: 5.228141289
A166: ASFALTOS DILUÍDOS CM-30 | B166: 2021-12-01 | C166: 5.184291386 | D166: 4.975486975 | E166: 5.572122251 | F166: 6.135655205 | G166: 5.01180992 | H166: 5.339565801
A167: ASFALTOS DILUÍDOS CM-30 | B167: 2022-01-01 | C167: 4.928191974 | D167: 5.023555623 | E167: 6.018407512 | F167: 5.214773026 | G167: 5.481979244 | H167: 5.250789679
A168: ASFALTOS DILUÍDOS CM-30 | B168: 2022-02-01 | C168: 5.545684189 | D168: 5.708628413 | E168: 6.011065894 | F168: 4.8651 | G168: 5.763367147 | H168: 5.736057428
A169: ASFALTOS DILUÍDOS CM-30 | B169: 2022-03-01 | C169: 6.326844735 | D169: 5.644687904 | E169: 5.930807225 | F169: 6.181141143 | G169: 5.498041682 | H169: 5.922781038
A170: ASFALTOS DILUÍDOS CM-30 | B170: 2022-04-01 | C170: 5.974220681 | D170: 5.832747324 | E170: 6.206692615 | F170: 5.720329997 | G170: 6.17800291 | H170: 6.012354229
A171: ASFALTOS DILUÍDOS CM-30 | B171: 2022-05-01 | C171: 5.354015586 | D171: 5.464335309 | E171: 6.007611639 | F171: 5.995095583 | G171: 5.49095009 | H171: 5.670722744
A172: ASFALTOS DILUÍDOS CM-30 | B172: 2022-06-01 | C172: 5.802443798 | D172: 5.316964203 | E172: 5.25267889 | F172: 5.813931518 | G172: 5.644996328 | H172: 5.469498687
A173: ASFALTOS DILUÍDOS CM-30 | B173: 2022-07-01 | C173: 5.965614765 | D173: 5.829314879 | E173: 5.919099711 | F173: 5.742484775 | G173: 5.674430543 | H173: 5.862020702
A174: ASFALTOS DILUÍDOS CM-30 | B174: 2022-08-01 | C174: 6.424230463 | D174: 5.758256878 | E174: 5.752352843 | F174: 5.791905352 | G174: 5.31271724 | H174: 5.823186051
A175: ASFALTOS DILUÍDOS CM-30 | B175: 2022-09-01 | C175: 5.540097074 | D175: 5.609921619 | E175: 5.963592489 | F175: 5.302181194 | G175: 4.977929161 | H175: 5.699429921
A176: ASFALTOS DILUÍDOS CM-30 | B176: 2022-10-01 | C176: 4.785670999 | D176: 4.727521094 | E176: 5.339105147 | F176: 4.851160007 | G176: 4.532580513 | H176: 5.041661715
A177: ASFALTOS DILUÍDOS CM-30 | B177: 2022-11-01 | C177: 7.765855923 | D177: 4.775654982 | E177: 5.237626127 | F177: 4.636383138 | G177: 4.460593179 | H177: 5.074993862
A178: ASFALTOS DILUÍDOS CM-30 | B178: 2022-12-01 | C178: 4.65725 | D178: 4.966905362 | E178: 5.655161554 | F178: 4.840935672 | G178: 4.661007861 | H178: 5.11324949
A179: ASFALTOS DILUÍDOS CM-30 | B179: 2023-01-01 | C179: 4.948950319 | D179: 5.056264922 | E179: 5.359597966 | F179: 4.426497959 | G179: 4.103267888 | H179: 4.715605129
A180: ASFALTOS DILUÍDOS CM-30 | B180: 2023-02-01 | C180: 5.407494667 | D180: 4.335771195 | E180: 4.746646601 | F180: 4.674884727 | G180: 4.014547173 | H180: 4.417800736
A181: ASFALTOS DILUÍDOS CM-30 | B181: 2023-03-01 | C181: 4.99131 | D181: 4.01354912 | E181: 4.74625028 | F181: 4.08071937 | G181: 4.082484954 | H181: 4.270345723
A182: ASFALTOS DILUÍDOS CM-30 | B182: 2023-04-01 | C182: 4.438479015 | D182: 4.094201354 | E182: 5.135816186 | F182: 4.368265095 | G182: 3.859308149 | H182: 4.153818797
A183: ASFALTOS DILUÍDOS CM-30 | B183: 2023-05-01 | C183: 5.018589297 | D183: 4.506282643 | E183: 5.616638293 | F183: 4.034756925 | G183: 4.063701717 | H183: 4.686492725
A184: ASFALTOS DILUÍDOS CM-30 | B184: 2023-06-01 | C184: 4.439644526 | D184: 4.495805354 | E184: 5.228174524 | F184: 3.772028745 | G184: 4.009042073 | H184: 4.588045148
A185: ASFALTOS DILUÍDOS CM-30 | B185: 2023-07-01 | C185: 4.360399352 | D185: 4.250187634 | E185: 6.188049155 | F185: 3.699216781 | G185: 4.315773768 | H185: 4.790717553
A186: ASFALTOS DILUÍDOS CM-30 | B186: 2023-08-01 | C186: 4.043215999 | D186: 4.100901709 | E186: 5.414198228 | F186: 3.964297949 | G186: 4.055989778 | H186: 4.607810697
A187: ASFALTOS DILUÍDOS CM-30 | B187: 2023-09-01 | C187: 5.69501625 | D187: 4.358586276 | E187: 5.187252517 | F187: 4.112508656 | G187: 4.211646236 | H187: 4.748640211
A188: ASFALTOS DILUÍDOS CM-30 | B188: 2023-10-01 | C188: 5.685185 | D188: 4.294075647 | E188: 4.912919476 | F188: 4.365095101 | G188: 4.257370162 | H188: 4.609445905
A189: ASFALTOS DILUÍDOS CM-30 | B189: 2023-11-01 | C189: 4.815085397 | D189: 4.345599447 | E189: 5.404502747 | F189: 4.045271104 | G189: 4.164697405 | H189: 4.781498943
A190: ASFALTOS DILUÍDOS CM-30 | B190: 2023-12-01 | C190: 5.411492308 | D190: 4.700043896 | E190: 5.306415734 | F190: 4.313216862 | G190: 4.188732062 | H190: 4.664845353
A191: ASFALTOS DILUÍDOS CM-30 | B191: 2024-01-01 | C191: 3.716178391 | D191: 4.395163811 | E191: 4.888126947 | F191: 3.977196797 | G191: 4.057095331 | H191: 4.290228903
A192: ASFALTOS DILUÍDOS CM-30 | B192: 2024-02-01 | C192: 5.349588571 | D192: 4.281881871 | E192: 5.36118056 | F192: 4.287786155 | G192: 4.151112946 | H192: 4.366194996
A193: ASFALTOS DILUÍDOS CM-30 | B193: 2024-03-01 | C193: 6.437624165 | D193: 4.512948358 | E193: 4.994035932 | F193: 4.680610304 | G193: 4.197388123 | H193: 4.725137967
A194: ASFALTOS DILUÍDOS CM-70 | B194: 2008-11-01 | C194: *** | D194: *** | E194: *** | F194: *** | G194: *** | H194: ***
A195: ASFALTOS DILUÍDOS CM-70 | B195: 2008-12-01 | C195: *** | D195: *** | E195: *** | F195: *** | G195: *** | H195: ***
A196: ASFALTOS DILUÍDOS CM-70 | B196: 2009-01-01 | C196: *** | D196: *** | E196: *** | F196: *** | G196: *** | H196: ***
A197: ASFALTOS DILUÍDOS CM-70 | B197: 2009-02-01 | C197: *** | D197: *** | E197: *** | F197: *** | G197: *** | H197: ***
A198: ASFALTOS DILUÍDOS CM-70 | B198: 2009-03-01 | C198: *** | D198: *** | E198: *** | F198: *** | G198: *** | H198: ***
A199: ASFALTOS DILUÍDOS CM-70 | B199: 2009-04-01 | C199: *** | D199: *** | E199: *** | F199: *** | G199: *** | H199: ***
A200: ASFALTOS DILUÍDOS CM-70 | B200: 2009-05-01 | C200: *** | D200: *** | E200: *** | F200: *** | G200: *** | H200: ***
A201: ASFALTOS DILUÍDOS CM-70 | B201: 2009-06-01 | C201: *** | D201: *** | E201: *** | F201: *** | G201: *** | H201: ***
A202: ASFALTOS DILUÍDOS CM-70 | B202: 2009-07-01 | C202: *** | D202: *** | E202: *** | F202: *** | G202: *** | H202: ***
A203: ASFALTOS DILUÍDOS CM-70 | B203: 2009-08-01 | C203: *** | D203: *** | E203: *** | F203: *** | G203: *** | H203: ***
A204: ASFALTOS DILUÍDOS CM-70 | B204: 2009-09-01 | C204: *** | D204: *** | E204: *** | F204: *** | G204: *** | H204: ***
... 4492 more rows

Sheet MATERIAL SICRO
A1: CGCIT | B1: SISTEMA DE CUSTOS REFERENCIAIS DE OBRAS - SICRO | D1: DNIT
B2: Alagoas - Janeiro/2024
A3: Código | B3: Descrição | C3: Unidade | D3: Preço Unitário (R$)
A4: M0003 | B4: Aço CA 25 | C4: kg | D4: 7.1213
A5: M0004 | B5: Aço CA 50 | C5: kg | D5: 6.7574
A6: M0005 | B6: Brita 0 | C6: m³ | D6: 163.4728
A7: M0006 | B7: Fibra de poliamida para concreto | C7: kg | D7: 27.8225
A8: M0007 | B8: Fibra de aço para concreto | C8: kg | D8: 13.7419
A9: M0008 | B9: Detergente líquido neutro | C9: l | D9: 4.6193
A10: M0009 | B10: Aço CP 175 RB | C10: kg | D10: 9.2037
A11: M0010 | B11: Aditivo superplastificante para concreto e argamassa | C11: kg | D11: 16.2138
A12: M0011 | B12: Aditivo modificador de viscosidade para concreto e argamassa | C12: kg | D12: 11.109
A13: M0012 | B13: Silicato de alumínio | C13: kg | D13: 1.8905
A14: M0013 | B14: Grampo de ancoragem em aço CA 50 - D = 12,5 mm | C14: kg | D14: 6.7574
A15: M0014 | B15: Aço CA 60 | C15: kg | D15: 8.428
A16: M0015 | B16: Espoleta elétrica Nº 8 - D = 6,0 mm | C16: un | D16: 22.2137
A17: M0016 | B17: Grampo sargento em ferro fundido tipo C com abertura útil de 105 mm (4") | C17: un | D17: 51.8128
A18: M0017 | B18: Saco de aniagem ou de ráfia de 50 kg - C = 95 cm e L = 65 cm | C18: un | D18: 2.7903
A19: M0018 | B19: Grampo pesado em aço-carbono para cabo de aço - D = 13 mm (1/2") | C19: un | D19: 18.4584
A20: M0019 | B20: Esticador em aço tipo olhal x olhal para cabo de aço - D = 13 mm | C20: un | D20: 148.2472
A21: M0020 | B21: Grampo de ancoragem em aço CA 50 - D = 6,3 mm | C21: kg | D21: 7.6643
A22: M0021 | B22: Herbicida glifosato para áreas contínuas | C22: l | D22: 28.7381
A23: M0025 | B23: Adesivo plástico para tubos de PVC | C23: kg | D23: 50.3704
A24: M0026 | B24: Aditivo aglutinante para argamassa | C24: l | D24: 8.3609
A25: M0028 | B25: Areia média | C25: m³ | D25: 116.147
A26: M0029 | B26: Sílica ativa para concreto e argamassa (microssílica) | C26: kg | D26: 1.9527
A27: M0030 | B27: Aditivo plastificante e retardador de pega para concreto e argamassa | C27: kg | D27: 7.2536
A28: M0032 | B28: Adesivo de contato para laminado elastoplástico | C28: kg | D28: 49.3255
A29: M0035 | B29: Diluente tipo aguarrás para tintas e vernizes | C29: l | D29: 15.2171
A30: M0039 | B30: Gasolina comum | C30: l | D30: 4.9828
A31: M0041 | B31: Contêiner com 2 banheiros - L = 2,44 m e C = 6,09 m (1 TEU) | C31: un | D31: 85632.7219
A32: M0042 | B32: Contêiner com janela - L = 2,44 m e C = 6,09 m (1 TEU) | C32: un | D32: 61103.7313
A33: M0043 | B33: Óleo diesel | C33: l | D33: 5.1141
A34: M0044 | B34: Abrasivo de vidro com granulometria de 210 a 420 micra | C34: kg | D34: 8.9466
A35: M0045 | B35: Barreira plástica monobloco para canalização de trânsito - C = 100 cm, L = 50 cm e H = 55 cm | C35: un | D35: 501.6386
A36: M0046 | B36: Barreira plástica para canalização de trânsito - C = 60 cm, L = 45 cm e H = 60 cm | C36: un | D36: 314.6655
A37: M0047 | B37: Cone de sinalização em polietileno - H = 75 cm e base quadrada de 40 x 40 cm | C37: un | D37: 104.1215
A38: M0048 | B38: Balizador cônico refletivo em polietileno semiflexível - H = 114 cm e base octogonal de D = 40 cm | C38: un | D38: 143.8626
A39: M0049 | B39: Delimitador de tráfego flexível com chumbador e duas faixas refletivas - H = 77 cm e D = 21 cm | C39: un | D39: 178.565
A40: M0050 | B40: Aditivo natural tipo goma xantana para hidrossemeadura | C40: kg | D40: 97.7557
A41: M0051 | B41: Cilindro canalizador de tráfego em polietileno - H = 117 cm e base quadrada de 60 x 60 cm | C41: un | D41: 199.0084
A42: M0052 | B42: Fita adesiva de PVC - L = 50 mm e C = 50 m | C42: m | D42: 0.103
A43: M0053 | B43: Tela plástica em polipropileno na cor laranja para tapume - L = 1,2 m | C43: m | D43: 1.9761
A44: M0054 | B44: Fita zebrada de cor laranja e branca - L = 7 a 8 cm | C44: m | D44: 0.0769
A45: M0055 | B45: Barreira plástica articulável modular - C = 240 cm e H = 100 cm | C45: un | D45: 1271.6218
A46: M0056 | B46: Ferramenta de corte para removedora de faixa de sinalização (Smith Cutter) | C46: un | D46: 6996.7751
A47: M0057 | B47: Contêiner com janela - L = 4,88 m e C = 6,09 m (1 TEU duplo) | C47: un | D47: 115975.902
A48: M0058 | B48: Contêiner com janela e 2 banheiros - L = 4,88 m e C = 6,09 m (1 TEU duplo) | C48: un | D48: 120514.3632
A49: M0059 | B49: Contêiner com revestimento térmico, janela e banheiro - L = 2,44 m e C = 6,09 m (1 TEU) | C49: un | D49: 82529.2793
A50: M0060 | B50: Contêiner com janela - L = 2,44 m e C = 4,58 m (3/4 TEU) | C50: un | D50: 51141.0891
A51: M0065 | B51: Contêiner com janela e banheiro - L = 2,44 m e 4,58 m (3/4 TEU) | C51: un | D51: 64327.4742
A52: M0066 | B52: Contêiner com revestimento térmico, janela e banheiro - L = 2,44 m e C = 12,90 m (2 TEU) | C52: un | D52: 105103.6172
A53: M0067 | B53: Tubo PEAD PE 100 PN 10 com flanges - D = 160 mm | C53: m | D53: 174.002
A54: M0068 | B54: Caibro de pinho - L = 7,5 cm e E = 10,0 cm | C54: m | D54: 23.0208
A55: M0069 | B55: Arame farpado em aço galvanizado - D = 1,60 mm | C55: m | D55: 0.84
A56: M0071 | B56: Contêiner com 3 janelas para guarita - L = 2,44 m e C = 3,05 m (1/2 TEU) | C56: un | D56: 38422.0925
A57: M0072 | B57: Arame liso em aço galvanizado - D = 2,10 mm (14 BWG) | C57: kg | D57: 19.5231
A58: M0073 | B58: Muda de árvore com altura de 0,30 a 0,80 m | C58: un | D58: 14.2073
A59: M0074 | B59: Muda de arbusto com altura até 0,50 m | C59: un | D59: 21.407
A60: M0075 | B60: Arame liso recozido em aço-carbono - D = 1,24 mm (18 BWG) | C60: kg | D60: 10.0043
A61: M0076 | B61: Disco de corte abrasivo para policorte - D = 300 mm | C61: un | D61: 15.3476
A62: M0080 | B62: Areia fina | C62: m³ | D62: 126.1564
A63: M0081 | B63: Areia grossa | C63: m³ | D63: 114.0972
A64: M0082 | B64: Areia média lavada | C64: m³ | D64: 123.802
A65: M0083 | B65: Argamassa pré-dosada para grauteamento | C65: kg | D65: 1.6997
A66: M0084 | B66: Argamassa pré-dosada autoadensável para grauteamento | C66: kg | D66: 1.4244
A67: M0085 | B67: Ancoragem ativa para 4 cordoalhas - D = 12,7 mm | C67: un | D67: 382.0759
A68: M0086 | B68: Ancoragem ativa para 6 cordoalhas - D = 12,7 mm | C68: un | D68: 491.0717
A69: M0087 | B69: Ancoragem ativa para 7 cordoalhas - D = 12,7 mm | C69: un | D69: 567.8112
A70: M0088 | B70: Ancoragem ativa para 8 cordoalhas - D = 12,7 mm | C70: un | D70: 664.0591
A71: M0089 | B71: Ancoragem ativa para 9 cordoalhas - D = 12,7 mm | C71: un | D71: 750.5177
A72: M0091 | B72: Ancoragem ativa para 10 cordoalhas - D = 12,7 mm | C72: un | D72: 829.5961
A73: M0092 | B73: Ancoragem ativa para 12 cordoalhas - D = 12,7 mm | C73: un | D73: 1050.7175
A74: M0093 | B74: Ancoragem ativa para 15 cordoalhas - D = 12,7 mm | C74: un | D74: 1456.553
A75: M0094 | B75: Ancoragem ativa para 19 cordoalhas - D = 12,7 mm | C75: un | D75: 1853.4146
A76: M0098 | B76: Bambu com diâmetro médio de 10 cm | C76: m | D76: 20.9386
A77: M0099 | B77: Equipamentos para a fábrica de dormentes de concreto protendido | C77: ISF | D77: 560.139
A78: M0100 | B78: Ancoragem ativa para 22 cordoalhas - D = 12,7 mm | C78: un | D78: 2397.1865
A79: M0101 | B79: Ancoragem ativa para 27 cordoalhas - D = 12,7 mm | C79: un | D79: 2916.4574
A80: M0102 | B80: Ancoragem ativa para 31 cordoalhas - D = 12,7 mm | C80: un | D80: 3149.197
A81: M0103 | B81: Aditivo acelerador de pega para concreto e argamassa projetados | C81: kg | D81: 6.9352
A82: M0104 | B82: Asfalto diluído de petróleo - CM-30 | C82: t | D82: -
A83: M0105 | B83: Ancoragem ativa para 4 cordoalhas - D = 15,2 mm | C83: un | D83: 471.362
A84: M0106 | B84: Ancoragem ativa para 6 cordoalhas - D = 15,2 mm | C84: un | D84: 624.1995
A85: M0107 | B85: Geocomposto para drenagem | C85: m² | D85: 36.9647
A86: M0108 | B86: Ancoragem ativa para 7 cordoalhas - D = 15,2 mm | C86: un | D86: 735.7331
A87: M0109 | B87: Geodreno vertical - L = 10 cm e E = 5 mm | C87: m | D87: 4.9565
A88: M0110 | B88: Ancoragem ativa para 10 cordoalhas - D = 15,2 mm | C88: un | D88: 1134.1888
A89: M0111 | B89: Ancoragem ativa para 9 cordoalhas - D = 15,2 mm | C89: un | D89: 1009.6362
A90: M0112 | B90: Disco diamantado segmentado para corte de pavimento - D = 1.000 mm | C90: un | D90: 5880.7144
A91: M0113 | B91: Ancoragem ativa para 12 cordoalhas - D = 15,2 mm | C91: un | D91: 1388.4593
A92: M0114 | B92: Disco diamantado segmentado para corte de pavimento - D = 1.500 mm | C92: un | D92: 26164.6342
A93: M0115 | B93: Biomanta vegetal de fibras de coco entrelaçadas com fios de polipropileno biodegradáveis - densidade 0,4 kg/m² | C93: m² | D93: 6.5
A94: M0116 | B94: Mangote flangeado de borracha reforçada com lonas sintéticas - C = 1,80 m e D = 0,30 m | C94: un | D94: 16613.2939
A95: M0117 | B95: Mangote flangeado de borracha reforçada com lonas sintéticas - C = 1,80 m e D = 0,40 m | C95: un | D95: 21922.4683
A96: M0118 | B96: Mangote flangeado de borracha reforçada com lonas sintéticas - C = 1,80 m e D = 0,45 m | C96: un | D96: 25485.6701
A97: M0119 | B97: Mangote flangeado de borracha reforçada com lonas sintéticas - C = 1,80 m e D = 0,50 m | C97: un | D97: 27828.6321
A98: M0120 | B98: Tubo PEAD PE 100 PN 8 com flanges - D = 250 mm | C98: m | D98: 322.9936
A99: M0121 | B99: Tubo PEAD PE 100 PN 8 com flanges - D = 400 mm | C99: m | D99: 2069.9629
A100: M0122 | B100: Tubo PEAD PE 100 PN 8 com flanges - D = 450 mm | C100: m | D100: 2598.5789
A101: M0123 | B101: Tubo PEAD PE 100 PN 8 com flanges - D = 500 mm | C101: m | D101: 2910.3166
A102: M0124 | B102: Flutuador bipartido em polietileno com núcleo de espuma em poliuretano para tubos - D = 0,30 m | C102: un | D102: 4340.3755
A103: M0125 | B103: Flutuador bipartido em polietileno com núcleo de espuma em poliuretano para tubos - D = 0,40 m | C103: un | D103: 5959.895
A104: M0126 | B104: Flutuador bipartido em polietileno com núcleo de espuma em poliuretano para tubos - D = 0,45 m | C104: un | D104: 6837.345
A105: M0127 | B105: Flutuador bipartido em polietileno com núcleo de espuma em poliuretano para tubos - D = 0,50 m | C105: un | D105: 7379.8235
A106: M0128 | B106: Biomanta vegetal de fibras de palha entrelaçadas com fios de polipropileno biodegradáveis - densidade 0,6 kg/m² | C106: m² | D106: 5.7
A107: M0129 | B107: Retentor de sedimento em fibras vegetais - D = 20 cm | C107: m | D107: 56.7993
A108: M0130 | B108: Ancoragem ativa para 15 cordoalhas - D = 15,2 mm | C108: un | D108: 1823.7614
A109: M0131 | B109: Tubo PEAD corrugado com paredes estruturadas para drenagem - D = 400 mm | C109: m | D109: 209.8873
A110: M0132 | B110: Tubo PEAD corrugado com paredes estruturadas para drenagem - D = 450 mm | C110: m | D110: 231.0842
A111: M0133 | B111: Tubo PEAD corrugado com paredes estruturadas para drenagem - D = 500 mm | C111: m | D111: 334.4404
A112: M0134 | B112: Tubo PEAD corrugado com paredes estruturadas para drenagem - D = 600 mm | C112: m | D112: 502.3737
A113: M0135 | B113: Tubo PEAD corrugado com paredes estruturadas para drenagem - D = 750 mm | C113: m | D113: 656.361
A114: M0136 | B114: Tubo PEAD corrugado com paredes estruturadas para drenagem - D = 800 mm | C114: m | D114: 735.1767
A115: M0137 | B115: Tubo PEAD corrugado com paredes estruturadas para drenagem - D = 900 mm | C115: m | D115: 1026.3393
A116: M0138 | B116: Ancoragem ativa para 19 cordoalhas - D = 15,2 mm | C116: un | D116: 2375.6903
A117: M0139 | B117: Tubo PEAD corrugado com paredes estruturadas para drenagem - D = 1.000 mm | C117: m | D117: 1314.2982
A118: M0140 | B118: Bentonita | C118: kg | D118: 2.5988
A119: M0141 | B119: Tubo PEAD corrugado com paredes estruturadas para drenagem - D = 1.050 mm | C119: m | D119: 1302.6336
A120: M0142 | B120: Tubo PEAD corrugado com paredes estruturadas para drenagem - D = 1.200 mm | C120: m | D120: 1738.4866
A121: M0143 | B121: Tubo PEAD corrugado com paredes estruturadas para drenagem - D = 1.500 mm | C121: m | D121: 2039.0004
A122: M0145 | B122: Ancoragem ativa para 22 cordoalhas - D = 15,2 mm | C122: un | D122: 3071.4309
A123: M0146 | B123: Ancoragem ativa para 27 cordoalhas - D = 15,2 mm | C123: un | D123: 4026.9413
A124: M0148 | B124: Ancoragem ativa para lajes para 1 cordoalha - D = 12,7 mm | C124: un | D124: 89.6467
A125: M0151 | B125: Ancoragem ativa para lajes para 2 cordoalhas - D = 12,7 mm | C125: un | D125: 166.7767
A126: M0152 | B126: Ancoragem ativa para lajes para 3 cordoalhas - D = 12,7 mm | C126: un | D126: 232.2519
A127: M0153 | B127: Ancoragem ativa para lajes para 4 cordoalhas - D = 12,7 mm | C127: un | D127: 310.2037
A128: M0156 | B128: Bloco de concreto - L = 19 cm, A = 19 cm e C = 39 cm | C128: un | D128: 4.2
A129: M0158 | B129: Tela metálica galvanizada dobrada em L - C = 2,0 m, L = 0,4 m e H = 0,4 m | C129: un | D129: 469.9672
A130: M0160 | B130: Extintor de incêndio tipo espuma mecânica - V = 10 l | C130: un | D130: 594.6089
A131: M0161 | B131: Barra de fibra de vidro (vergalhão) - D = 25,0 mm | C131: m | D131: 60.7355
A132: M0162 | B132: Corrente de elo soldado em aço galvanizado com acabamento polido - D = 3,18 mm (1/8") | C132: m | D132: 7.1408
A133: M0163 | B133: Gonzo com aba em aço galvanizado - D = 12,7 mm (1/2") | C133: un | D133: 2.9026
A134: M0164 | B134: Tubo em aço galvanizado - E = 1,50 mm e seção de 20 x 20 mm | C134: m | D134: 12.7712
A135: M0166 | B135: Tubo em aço galvanizado - E = 2,25 mm e D = 20 mm (3/4") | C135: m | D135: 32.4039
A136: M0167 | B136: Tela de poliamida industrial - E = 0,40 mm e malha de 1,6 mm | C136: m² | D136: 15.131
A137: M0168 | B137: Abraçadeira de poliamida - E = 3,6 mm e C = 200 mm | C137: un | D137: 0.2263
A138: M0169 | B138: Roda em aço e pneu com câmara de ar 83/203 mm (3,25"/8") para carrinho de mão | C138: un | D138: 64.39
A139: M0173 | B139: Ancoragem ativa para lajes para 1 cordoalha - D = 15,2 mm | C139: un | D139: 100.6795
A140: M0178 | B140: Ancoragem ativa para lajes para 2 cordoalhas - D = 15,2 mm | C140: un | D140: 217.8823
A141: M0181 | B141: Ancoragem ativa para lajes para 3 cordoalhas - D = 15,2 mm | C141: un | D141: 283.9047
A142: M0184 | B142: Ancoragem ativa para lajes para 4 cordoalhas - D = 15,2 mm | C142: un | D142: 375.0362
A143: M0191 | B143: Brita 1 | C143: m³ | D143: 146.2096
A144: M0192 | B144: Brita 2 | C144: m³ | D144: 141.9566
A145: M0193 | B145: Brita 3 | C145: m³ | D145: 139.9919
A146: M0194 | B146: Escória de aciaria | C146: m³ | D146: 13.7706
A147: M0198 | B147: Parafuso de cabeça chata em aço - D = 4,5 mm e bucha plástica - D = 8 mm (S8) | C147: un | D147: 0.3261
A148: M0199 | B148: Coroa de botões cruzados linha R32 - D = 43 mm (1 11/16’’) | C148: un | D148: 321.0654
A149: M0201 | B149: Coroa de botões esféricos linha T38 - D = 89 mm (3 1/2") | C149: un | D149: 872.094
A150: M0202 | B150: Coroa de botões esféricos linha T45 - D = 76 mm (3") | C150: un | D150: 674.0147
A151: M0204 | B151: Instalações físicas para a central de pré-moldagem de dormentes de concreto protendido | C151: CMCC | D151: 1668.69
A152: M0217 | B152: Enxofre | C152: kg | D152: 5.0414
A153: M0220 | B153: Adubo à base de nitrogênio, fósforo e potássio (NPK) | C153: kg | D153: 4.1141
A154: M0222 | B154: Filer calcário | C154: kg | D154: 0.265
A155: M0223 | B155: Sementes para hidrossemeadura | C155: kg | D155: 31.3062
A156: M0224 | B156: Guia-chapéu pré-moldada - C = 120 cm | C156: un | D156: 67.5084
A157: M0225 | B157: Adubo orgânico composto | C157: kg | D157: 0.2803
A158: M0229 | B158: Gabião tipo colchão em liga de zinco e alumínio revestido com polímero de malha hexagonal - E = 0,17 m | C158: m² | D158: 212.3024
A159: M0230 | B159: Gabião tipo caixa em liga de zinco e alumínio de malha hexagonal - C = 2,00 m, L = 1,00 m e H = 0,50 m | C159: un | D159: 631.433
A160: M0231 | B160: Gabião tipo caixa em liga de zinco e alumínio de malha hexagonal - C = 2,00 m, L = 1,00 m e H = 1,00 m | C160: un | D160: 989.4797
A161: M0232 | B161: Gabião tipo caixa em liga de zinco e alumínio revestido com polímero de malha hexagonal - C = 2,00 m, L = 1,00 m e H = 0,50 m | C161: un | D161: 784.9717
A162: M0233 | B162: Gabião tipo caixa em liga de zinco e alumínio revestido com polímero de malha hexagonal - C = 2,00 m, L = 1,00 m e H = 1,00 m | C162: un | D162: 1099.0614
A163: M0234 | B163: Gabião tipo saco em liga de zinco e alumínio revestido com polímero de malha hexagonal - D = 0,65 m | C163: m³ | D163: 588.0627
A164: M0235 | B164: Gabião tipo colchão em liga de zinco e alumínio revestido com polímero de malha hexagonal - E = 0,23 m | C164: m² | D164: 223.5304
A165: M0236 | B165: Gabião tipo colchão em liga de zinco e alumínio revestido com polímero de malha hexagonal - E = 0,30 m | C165: m² | D165: 246.1118
A166: M0237 | B166: Energia elétrica | C166: kWh | D166: 1.0691
A167: M0253 | B167: Cabo de cobre flexível antichama isolado em PVC - tensão de 450/750 V e seção de 16 mm² | C167: m | D167: 12.8291
A168: M0254 | B168: Mistura gasosa de argônio e dióxido de carbono para solda MIG/MAG | C168: m³ | D168: 46.4828
A169: M0256 | B169: Tinta à base de etil silicato de zinco bicomponente para fundo preparador de pintura | C169: l | D169: 87.7584
A170: M0257 | B170: Diluente para tinta à base de etil silicato de zinco | C170: l | D170: 33.7899
A171: M0260 | B171: Cabo de cobre PP flexível isolado em PVC - tensão de 300/500 V e seção de 3 x 1,5 mm² | C171: m | D171: 4.3986
A172: M0264 | B172: Bomba de combustível industrial eletrônica simples | C172: un | D172: 26540.7127
A173: M0265 | B173: Tanque de combustível aéreo horizontal com escada para visita - capacidade de 5.000 l | C173: un | D173: 20271.7781
A174: M0266 | B174: Cabo de cobre flexível antichama isolado em PVC - tensão de 0,6/1,0 kV e seção de 240 mm² | C174: m | D174: 154.195
A175: M0267 | B175: Módulo de torre de elevador de cremalheira | C175: un | D175: 3842.604
A176: M0268 | B176: Módulo de ancoragem de torre de elevador de cremalheira | C176: un | D176: 2904.9212
A177: M0269 | B177: Cabo de cobre flexível antichama isolado em PVC - tensão de 0,6/1,0 kV e seção de 50 mm² | C177: m | D177: 31.6996
A178: M0284 | B178: Caibro de pinho - L = 7,5 cm e E = 7,5 cm | C178: m | D178: 17.2656
A179: M0285 | B179: Pontalete para escoramento - D = 15 cm | C179: m | D179: 9.2597
A180: M0286 | B180: Tábua - E = 2,5 cm e L = 30 cm | C180: m | D180: 16.2879
A181: M0289 | B181: Tábua - E = 2,5 cm e L = 15 cm | C181: m | D181: 8.1439
A182: M0290 | B182: Tábua - E = 2,5 cm e L = 10 cm | C182: m | D182: 5.4293
A183: M0301 | B183: Pontalete para escoramento - D = 10 cm | C183: m | D183: 4.1175
A184: M0310 | B184: Peça de madeira - L = 7,5 cm e E = 2,5 cm | C184: m | D184: 5.6771
A185: M0311 | B185: Filtro de aspiração de ar externo com capacidade 3,58 l/s para compressor de ar respirável | C185: un | D185: 199.8112
A186: M0312 | B186: Filtro de purificação de ar comprimido com capacidade de 35 MPa para compressor de ar respirável | C186: un | D186: 222.5392
A187: M0344 | B187: Cal hidratada - a granel | C187: kg | D187: 0.4947
A188: M0345 | B188: Cal hidratada - saco | C188: kg | D188: 0.8165
A189: M0346 | B189: Disco de aço para bomba de projeção via seca | C189: un | D189: 330
A190: M0347 | B190: Disco de aço para bomba de projeção via úmida | C190: un | D190: 1216.4926
